Workbook

Sheet 使い方
C3: ①はじめに
C4: 本ソフトは給与賞与の「源泉所得税」「雇用保険料」「社会保険料」を自動計算するためのものです。
C5: 本ソフトは、細心の注意を払って作成しておりますが、計算の正確さを保証するものではありません。使用する際は、自己の責任の下でのご使用をご了承ください。
C7: ②使い方
C8: ・「基本情報シート」に基本的情報を入力後、「給与計算シート」と「賞与計算シート」の白い部分に必要事項を入力してください。
C9: ・保護されている部分は解除が可能です。
C11: ③賞与に対する社会保険料の計算についての注意事項
C13: ・健康保険の標準賞与額の一人当たりの上限は年度（4月1日から来年の3月31日まで）の賞与累計額540万円までです。今年度賞与累計額が540万円にさしかかる場合は適宜健康保険の額を修正してください。
C15: ・厚生年金の標準賞与額の一人あたりの上限は１ヶ月に１５０万円までです。１ヶ月に2回賞与を支給して合計が１５０万円を超える場合は適宜厚生年金の額を修正してください。１回の賞与が１５０万円を超える場合は自動で１５０万円の標準賞与額として厚生年金が計算されます。
H18: 酒井会計事務所
H19: http://sakai-ac.com/

Sheet 基本情報
B2: 年月 | D2: ○○年○○月
B3: 営業所の場所 | D3: 東京
B4: 事業の種類 | D4: 一般の事業
B6: NO. | C6: 名前 | D6: 甲・乙区分 | E6: 扶養人数 | F6: 雇用保険 加入○× | G6: 社会保険区分 | J6: 交通費 手当 （非課税分）
G7: 標準報酬月額 | H7: 健康保険 | I7: 厚生年金
B8: 1 | C8: 給与一郎 | D8: 甲欄 | E8: 2 | F8: ○ | G8: 500000 | H8: 介護保険あり | I8: 一般の被保険者 | J8: 12000
B9: 2 | C9: 給与二郎 | D9: 甲欄 | E9: 1 | F9: ○ | G9: 360000 | H9: 介護保険なし | I9: 一般の被保険者 | J9: 15000
B10: 3 | C10: 給与三郎 | D10: 乙欄 | E10: 0 | F10: ×
B11: 4
B12: 5
B13: 6
B14: 7
B15: 8
B16: 9
B17: 10
B18: 11
B19: 12
B20: 13
B21: 14
B22: 15
B23: 16
B24: 17
B25: 18
B26: 19
B27: 20
B28: 21
B29: 22
B30: 23
B31: 24
B32: 25
B33: 26
B34: 27
B35: 28
B36: 29
B37: 30

Sheet 給与計算
B2: =基本情報!D2 -> ○○年○○月 | D2: 給与計算 | G2: ※シートの保護は解除できます。
B3: 合計 | D3: =D6 -> 本給 | E3: =E6 -> 他手当1 （課税） | F3: =F6 -> 他手当2 （課税） | G3: =G6 -> 他手当3 (課税） | H3: 他手当4 （課税） | I3: 総支給額 | J3: =J7 -> 雇用保険 | K3: =K7 -> 健康保険 | L3: =L7 -> 厚生年金 | M3: 社会保険料控除後の総支給額 | N3: 源泉所得税 | O3: =O6 -> 交通費 手当 （非課税） | P3: 差引支給額
D4: =SUM(D8:D37) -> 900000 | E4: =SUM(E8:E37) -> 100000 | F4: 0 | G4: 0 | H4: 0 | I4: 1000000 | J4: 4385 | K4: 47171 | L4: 73616 | M4: 874828 | N4: 27680 | O4: 27000 | P4: 874148
B6: NO. | C6: 名前 | D6: 本給 | E6: 他手当1 （課税） | F6: 他手当2 （課税） | G6: 他手当3 (課税） | H6: 他手当4 （課税） | I6: 総支給額 | J6: 社会保険 | M6: 社会保険料控除後の総支給額 | N6: 源泉所得税 | O6: 交通費 手当 （非課税） | P6: 差引支給額 | Q6: 備考
J7: 雇用保険 | K7: 健康保険 | L7: 厚生年金
B8: 1 | C8: =IF(基本情報!C8="","",基本情報!C8) -> 給与一郎 | D8: 450000 | E8: 50000 | I8: =SUM(D8:H8) -> 500000 | J8: =IF(基本情報!F8="○",ROUND((I8+O8)*IF(基本情報!$D$4="",0,VLOOKUP(基本情報!$D$4,雇用保険料率!$C:$D,2,0)),0),0) -> 2560 | K8: =IF(OR(基本情報!$D$3="",基本情報!H8=""),0,HLOOKUP(基本情報!H8,計算シート!$U$4:$W$34,ROW(計算シート!U5)-3,0)) -> 29225 | L8: =IF(OR(基本情報!$D$3="",基本情報!I8=""),0,HLOOKUP(基本情報!I8,計算シート!$X$4:$Z$34,ROW(計算シート!U5)-3,0)) -> 42800 | M8: =MAX(I8-J8-K8-L8,0) -> 425415 | N8: =IF(基本情報!D8="","",HLOOKUP(基本情報!D8,計算シート!$E$4:$G$34,ROW(計算シート!E5)-3,0)) -> 12240 | O8: =IF(ISNUMBER(基本情報!J8),基本情報!J8,0) -> 12000 | P8: =M8-IF(N8="",0,N8)+O8 -> 425175
B9: 2 | C9: =IF(基本情報!C9="","",基本情報!C9) -> 給与二郎 | D9: 300000 | E9: 50000 | I9: 350000 | J9: =IF(基本情報!F9="○",ROUND((I9+O9)*IF(基本情報!$D$4="",0,VLOOKUP(基本情報!$D$4,雇用保険料率!$C:$D,2,0)),0),0) -> 1825 | K9: =IF(OR(基本情報!$D$3="",基本情報!H9=""),0,HLOOKUP(基本情報!H9,計算シート!$U$4:$W$34,ROW(計算シート!U6)-3,0)) -> 17946 | L9: =IF(OR(基本情報!$D$3="",基本情報!I9=""),0,HLOOKUP(基本情報!I9,計算シート!$X$4:$Z$34,ROW(計算シート!U6)-3,0)) -> 30816 | M9: =MAX(I9-J9-K9-L9,0) -> 299413 | N9: =IF(基本情報!D9="","",HLOOKUP(基本情報!D9,計算シート!$E$4:$G$34,ROW(計算シート!E6)-3,0)) -> 6740 | O9: =IF(ISNUMBER(基本情報!J9),基本情報!J9,0) -> 15000 | P9: =M9-IF(N9="",0,N9)+O9 -> 307673
B10: 3 | C10: =IF(基本情報!C10="","",基本情報!C10) -> 給与三郎 | D10: 150000 | I10: 150000 | J10: =IF(基本情報!F10="○",ROUND((I10+O10)*IF(基本情報!$D$4="",0,VLOOKUP(基本情報!$D$4,雇用保険料率!$C:$D,2,0)),0),0) -> 0 | K10: =IF(OR(基本情報!$D$3="",基本情報!H10=""),0,HLOOKUP(基本情報!H10,計算シート!$U$4:$W$34,ROW(計算シート!U7)-3,0)) -> 0 | L10: =IF(OR(基本情報!$D$3="",基本情報!I10=""),0,HLOOKUP(基本情報!I10,計算シート!$X$4:$Z$34,ROW(計算シート!U7)-3,0)) -> 0 | M10: 150000 | N10: =IF(基本情報!D10="","",HLOOKUP(基本情報!D10,計算シート!$E$4:$G$34,ROW(計算シート!E7)-3,0)) -> 8700 | O10: =IF(ISNUMBER(基本情報!J10),基本情報!J10,0) -> 0 | P10: 141300
B11: 4 | C11: =IF(基本情報!C11="","",基本情報!C11) ->  | I11: 0 | J11: =IF(基本情報!F11="○",ROUND((I11+O11)*IF(基本情報!$D$4="",0,VLOOKUP(基本情報!$D$4,雇用保険料率!$C:$D,2,0)),0),0) -> 0 | K11: =IF(OR(基本情報!$D$3="",基本情報!H11=""),0,HLOOKUP(基本情報!H11,計算シート!$U$4:$W$34,ROW(計算シート!U8)-3,0)) -> 0 | L11: =IF(OR(基本情報!$D$3="",基本情報!I11=""),0,HLOOKUP(基本情報!I11,計算シート!$X$4:$Z$34,ROW(計算シート!U8)-3,0)) -> 0 | M11: 0 | N11: =IF(基本情報!D11="","",HLOOKUP(基本情報!D11,計算シート!$E$4:$G$34,ROW(計算シート!E8)-3,0)) ->  | O11: =IF(ISNUMBER(基本情報!J11),基本情報!J11,0) -> 0 | P11: 0
B12: 5 | C12: =IF(基本情報!C12="","",基本情報!C12) ->  | I12: 0 | J12: =IF(基本情報!F12="○",ROUND((I12+O12)*IF(基本情報!$D$4="",0,VLOOKUP(基本情報!$D$4,雇用保険料率!$C:$D,2,0)),0),0) -> 0 | K12: =IF(OR(基本情報!$D$3="",基本情報!H12=""),0,HLOOKUP(基本情報!H12,計算シート!$U$4:$W$34,ROW(計算シート!U9)-3,0)) -> 0 | L12: =IF(OR(基本情報!$D$3="",基本情報!I12=""),0,HLOOKUP(基本情報!I12,計算シート!$X$4:$Z$34,ROW(計算シート!U9)-3,0)) -> 0 | M12: 0 | N12: =IF(基本情報!D12="","",HLOOKUP(基本情報!D12,計算シート!$E$4:$G$34,ROW(計算シート!E9)-3,0)) ->  | O12: =IF(ISNUMBER(基本情報!J12),基本情報!J12,0) -> 0 | P12: 0
B13: 6 | C13: =IF(基本情報!C13="","",基本情報!C13) ->  | I13: 0 | J13: =IF(基本情報!F13="○",ROUND((I13+O13)*IF(基本情報!$D$4="",0,VLOOKUP(基本情報!$D$4,雇用保険料率!$C:$D,2,0)),0),0) -> 0 | K13: =IF(OR(基本情報!$D$3="",基本情報!H13=""),0,HLOOKUP(基本情報!H13,計算シート!$U$4:$W$34,ROW(計算シート!U10)-3,0)) -> 0 | L13: =IF(OR(基本情報!$D$3="",基本情報!I13=""),0,HLOOKUP(基本情報!I13,計算シート!$X$4:$Z$34,ROW(計算シート!U10)-3,0)) -> 0 | M13: 0 | N13: =IF(基本情報!D13="","",HLOOKUP(基本情報!D13,計算シート!$E$4:$G$34,ROW(計算シート!E10)-3,0)) ->  | O13: =IF(ISNUMBER(基本情報!J13),基本情報!J13,0) -> 0 | P13: 0
B14: 7 | C14: =IF(基本情報!C14="","",基本情報!C14) ->  | I14: 0 | J14: =IF(基本情報!F14="○",ROUND((I14+O14)*IF(基本情報!$D$4="",0,VLOOKUP(基本情報!$D$4,雇用保険料率!$C:$D,2,0)),0),0) -> 0 | K14: =IF(OR(基本情報!$D$3="",基本情報!H14=""),0,HLOOKUP(基本情報!H14,計算シート!$U$4:$W$34,ROW(計算シート!U11)-3,0)) -> 0 | L14: =IF(OR(基本情報!$D$3="",基本情報!I14=""),0,HLOOKUP(基本情報!I14,計算シート!$X$4:$Z$34,ROW(計算シート!U11)-3,0)) -> 0 | M14: 0 | N14: =IF(基本情報!D14="","",HLOOKUP(基本情報!D14,計算シート!$E$4:$G$34,ROW(計算シート!E11)-3,0)) ->  | O14: =IF(ISNUMBER(基本情報!J14),基本情報!J14,0) -> 0 | P14: 0
B15: 8 | C15: =IF(基本情報!C15="","",基本情報!C15) ->  | I15: 0 | J15: =IF(基本情報!F15="○",ROUND((I15+O15)*IF(基本情報!$D$4="",0,VLOOKUP(基本情報!$D$4,雇用保険料率!$C:$D,2,0)),0),0) -> 0 | K15: =IF(OR(基本情報!$D$3="",基本情報!H15=""),0,HLOOKUP(基本情報!H15,計算シート!$U$4:$W$34,ROW(計算シート!U12)-3,0)) -> 0 | L15: =IF(OR(基本情報!$D$3="",基本情報!I15=""),0,HLOOKUP(基本情報!I15,計算シート!$X$4:$Z$34,ROW(計算シート!U12)-3,0)) -> 0 | M15: 0 | N15: =IF(基本情報!D15="","",HLOOKUP(基本情報!D15,計算シート!$E$4:$G$34,ROW(計算シート!E12)-3,0)) ->  | O15: =IF(ISNUMBER(基本情報!J15),基本情報!J15,0) -> 0 | P15: 0
B16: 9 | C16: =IF(基本情報!C16="","",基本情報!C16) ->  | I16: 0 | J16: =IF(基本情報!F16="○",ROUND((I16+O16)*IF(基本情報!$D$4="",0,VLOOKUP(基本情報!$D$4,雇用保険料率!$C:$D,2,0)),0),0) -> 0 | K16: =IF(OR(基本情報!$D$3="",基本情報!H16=""),0,HLOOKUP(基本情報!H16,計算シート!$U$4:$W$34,ROW(計算シート!U13)-3,0)) -> 0 | L16: =IF(OR(基本情報!$D$3="",基本情報!I16=""),0,HLOOKUP(基本情報!I16,計算シート!$X$4:$Z$34,ROW(計算シート!U13)-3,0)) -> 0 | M16: 0 | N16: =IF(基本情報!D16="","",HLOOKUP(基本情報!D16,計算シート!$E$4:$G$34,ROW(計算シート!E13)-3,0)) ->  | O16: =IF(ISNUMBER(基本情報!J16),基本情報!J16,0) -> 0 | P16: 0
B17: 10 | C17: =IF(基本情報!C17="","",基本情報!C17) ->  | I17: 0 | J17: =IF(基本情報!F17="○",ROUND((I17+O17)*IF(基本情報!$D$4="",0,VLOOKUP(基本情報!$D$4,雇用保険料率!$C:$D,2,0)),0),0) -> 0 | K17: =IF(OR(基本情報!$D$3="",基本情報!H17=""),0,HLOOKUP(基本情報!H17,計算シート!$U$4:$W$34,ROW(計算シート!U14)-3,0)) -> 0 | L17: =IF(OR(基本情報!$D$3="",基本情報!I17=""),0,HLOOKUP(基本情報!I17,計算シート!$X$4:$Z$34,ROW(計算シート!U14)-3,0)) -> 0 | M17: 0 | N17: =IF(基本情報!D17="","",HLOOKUP(基本情報!D17,計算シート!$E$4:$G$34,ROW(計算シート!E14)-3,0)) ->  | O17: =IF(ISNUMBER(基本情報!J17),基本情報!J17,0) -> 0 | P17: 0
B18: 11 | C18: =IF(基本情報!C18="","",基本情報!C18) ->  | I18: 0 | J18: =IF(基本情報!F18="○",ROUND((I18+O18)*IF(基本情報!$D$4="",0,VLOOKUP(基本情報!$D$4,雇用保険料率!$C:$D,2,0)),0),0) -> 0 | K18: =IF(OR(基本情報!$D$3="",基本情報!H18=""),0,HLOOKUP(基本情報!H18,計算シート!$U$4:$W$34,ROW(計算シート!U15)-3,0)) -> 0 | L18: =IF(OR(基本情報!$D$3="",基本情報!I18=""),0,HLOOKUP(基本情報!I18,計算シート!$X$4:$Z$34,ROW(計算シート!U15)-3,0)) -> 0 | M18: 0 | N18: =IF(基本情報!D18="","",HLOOKUP(基本情報!D18,計算シート!$E$4:$G$34,ROW(計算シート!E15)-3,0)) ->  | O18: =IF(ISNUMBER(基本情報!J18),基本情報!J18,0) -> 0 | P18: 0
B19: 12 | C19: =IF(基本情報!C19="","",基本情報!C19) ->  | I19: 0 | J19: =IF(基本情報!F19="○",ROUND((I19+O19)*IF(基本情報!$D$4="",0,VLOOKUP(基本情報!$D$4,雇用保険料率!$C:$D,2,0)),0),0) -> 0 | K19: =IF(OR(基本情報!$D$3="",基本情報!H19=""),0,HLOOKUP(基本情報!H19,計算シート!$U$4:$W$34,ROW(計算シート!U16)-3,0)) -> 0 | L19: =IF(OR(基本情報!$D$3="",基本情報!I19=""),0,HLOOKUP(基本情報!I19,計算シート!$X$4:$Z$34,ROW(計算シート!U16)-3,0)) -> 0 | M19: 0 | N19: =IF(基本情報!D19="","",HLOOKUP(基本情報!D19,計算シート!$E$4:$G$34,ROW(計算シート!E16)-3,0)) ->  | O19: =IF(ISNUMBER(基本情報!J19),基本情報!J19,0) -> 0 | P19: 0
B20: 13 | C20: =IF(基本情報!C20="","",基本情報!C20) ->  | I20: 0 | J20: =IF(基本情報!F20="○",ROUND((I20+O20)*IF(基本情報!$D$4="",0,VLOOKUP(基本情報!$D$4,雇用保険料率!$C:$D,2,0)),0),0) -> 0 | K20: =IF(OR(基本情報!$D$3="",基本情報!H20=""),0,HLOOKUP(基本情報!H20,計算シート!$U$4:$W$34,ROW(計算シート!U17)-3,0)) -> 0 | L20: =IF(OR(基本情報!$D$3="",基本情報!I20=""),0,HLOOKUP(基本情報!I20,計算シート!$X$4:$Z$34,ROW(計算シート!U17)-3,0)) -> 0 | M20: 0 | N20: =IF(基本情報!D20="","",HLOOKUP(基本情報!D20,計算シート!$E$4:$G$34,ROW(計算シート!E17)-3,0)) ->  | O20: =IF(ISNUMBER(基本情報!J20),基本情報!J20,0) -> 0 | P20: 0
B21: 14 | C21: =IF(基本情報!C21="","",基本情報!C21) ->  | I21: 0 | J21: =IF(基本情報!F21="○",ROUND((I21+O21)*IF(基本情報!$D$4="",0,VLOOKUP(基本情報!$D$4,雇用保険料率!$C:$D,2,0)),0),0) -> 0 | K21: =IF(OR(基本情報!$D$3="",基本情報!H21=""),0,HLOOKUP(基本情報!H21,計算シート!$U$4:$W$34,ROW(計算シート!U18)-3,0)) -> 0 | L21: =IF(OR(基本情報!$D$3="",基本情報!I21=""),0,HLOOKUP(基本情報!I21,計算シート!$X$4:$Z$34,ROW(計算シート!U18)-3,0)) -> 0 | M21: 0 | N21: =IF(基本情報!D21="","",HLOOKUP(基本情報!D21,計算シート!$E$4:$G$34,ROW(計算シート!E18)-3,0)) ->  | O21: =IF(ISNUMBER(基本情報!J21),基本情報!J21,0) -> 0 | P21: 0
B22: 15 | C22: =IF(基本情報!C22="","",基本情報!C22) ->  | I22: 0 | J22: =IF(基本情報!F22="○",ROUND((I22+O22)*IF(基本情報!$D$4="",0,VLOOKUP(基本情報!$D$4,雇用保険料率!$C:$D,2,0)),0),0) -> 0 | K22: =IF(OR(基本情報!$D$3="",基本情報!H22=""),0,HLOOKUP(基本情報!H22,計算シート!$U$4:$W$34,ROW(計算シート!U19)-3,0)) -> 0 | L22: =IF(OR(基本情報!$D$3="",基本情報!I22=""),0,HLOOKUP(基本情報!I22,計算シート!$X$4:$Z$34,ROW(計算シート!U19)-3,0)) -> 0 | M22: 0 | N22: =IF(基本情報!D22="","",HLOOKUP(基本情報!D22,計算シート!$E$4:$G$34,ROW(計算シート!E19)-3,0)) ->  | O22: =IF(ISNUMBER(基本情報!J22),基本情報!J22,0) -> 0 | P22: 0
B23: 16 | C23: =IF(基本情報!C23="","",基本情報!C23) ->  | I23: 0 | J23: =IF(基本情報!F23="○",ROUND((I23+O23)*IF(基本情報!$D$4="",0,VLOOKUP(基本情報!$D$4,雇用保険料率!$C:$D,2,0)),0),0) -> 0 | K23: =IF(OR(基本情報!$D$3="",基本情報!H23=""),0,HLOOKUP(基本情報!H23,計算シート!$U$4:$W$34,ROW(計算シート!U20)-3,0)) -> 0 | L23: =IF(OR(基本情報!$D$3="",基本情報!I23=""),0,HLOOKUP(基本情報!I23,計算シート!$X$4:$Z$34,ROW(計算シート!U20)-3,0)) -> 0 | M23: 0 | N23: =IF(基本情報!D23="","",HLOOKUP(基本情報!D23,計算シート!$E$4:$G$34,ROW(計算シート!E20)-3,0)) ->  | O23: =IF(ISNUMBER(基本情報!J23),基本情報!J23,0) -> 0 | P23: 0
B24: 17 | C24: =IF(基本情報!C24="","",基本情報!C24) ->  | I24: 0 | J24: =IF(基本情報!F24="○",ROUND((I24+O24)*IF(基本情報!$D$4="",0,VLOOKUP(基本情報!$D$4,雇用保険料率!$C:$D,2,0)),0),0) -> 0 | K24: =IF(OR(基本情報!$D$3="",基本情報!H24=""),0,HLOOKUP(基本情報!H24,計算シート!$U$4:$W$34,ROW(計算シート!U21)-3,0)) -> 0 | L24: =IF(OR(基本情報!$D$3="",基本情報!I24=""),0,HLOOKUP(基本情報!I24,計算シート!$X$4:$Z$34,ROW(計算シート!U21)-3,0)) -> 0 | M24: 0 | N24: =IF(基本情報!D24="","",HLOOKUP(基本情報!D24,計算シート!$E$4:$G$34,ROW(計算シート!E21)-3,0)) ->  | O24: =IF(ISNUMBER(基本情報!J24),基本情報!J24,0) -> 0 | P24: 0
B25: 18 | C25: =IF(基本情報!C25="","",基本情報!C25) ->  | I25: 0 | J25: =IF(基本情報!F25="○",ROUND((I25+O25)*IF(基本情報!$D$4="",0,VLOOKUP(基本情報!$D$4,雇用保険料率!$C:$D,2,0)),0),0) -> 0 | K25: =IF(OR(基本情報!$D$3="",基本情報!H25=""),0,HLOOKUP(基本情報!H25,計算シート!$U$4:$W$34,ROW(計算シート!U22)-3,0)) -> 0 | L25: =IF(OR(基本情報!$D$3="",基本情報!I25=""),0,HLOOKUP(基本情報!I25,計算シート!$X$4:$Z$34,ROW(計算シート!U22)-3,0)) -> 0 | M25: 0 | N25: =IF(基本情報!D25="","",HLOOKUP(基本情報!D25,計算シート!$E$4:$G$34,ROW(計算シート!E22)-3,0)) ->  | O25: =IF(ISNUMBER(基本情報!J25),基本情報!J25,0) -> 0 | P25: 0
B26: 19 | C26: =IF(基本情報!C26="","",基本情報!C26) ->  | I26: 0 | J26: =IF(基本情報!F26="○",ROUND((I26+O26)*IF(基本情報!$D$4="",0,VLOOKUP(基本情報!$D$4,雇用保険料率!$C:$D,2,0)),0),0) -> 0 | K26: =IF(OR(基本情報!$D$3="",基本情報!H26=""),0,HLOOKUP(基本情報!H26,計算シート!$U$4:$W$34,ROW(計算シート!U23)-3,0)) -> 0 | L26: =IF(OR(基本情報!$D$3="",基本情報!I26=""),0,HLOOKUP(基本情報!I26,計算シート!$X$4:$Z$34,ROW(計算シート!U23)-3,0)) -> 0 | M26: 0 | N26: =IF(基本情報!D26="","",HLOOKUP(基本情報!D26,計算シート!$E$4:$G$34,ROW(計算シート!E23)-3,0)) ->  | O26: =IF(ISNUMBER(基本情報!J26),基本情報!J26,0) -> 0 | P26: 0
B27: 20 | C27: =IF(基本情報!C27="","",基本情報!C27) ->  | I27: 0 | J27: =IF(基本情報!F27="○",ROUND((I27+O27)*IF(基本情報!$D$4="",0,VLOOKUP(基本情報!$D$4,雇用保険料率!$C:$D,2,0)),0),0) -> 0 | K27: =IF(OR(基本情報!$D$3="",基本情報!H27=""),0,HLOOKUP(基本情報!H27,計算シート!$U$4:$W$34,ROW(計算シート!U24)-3,0)) -> 0 | L27: =IF(OR(基本情報!$D$3="",基本情報!I27=""),0,HLOOKUP(基本情報!I27,計算シート!$X$4:$Z$34,ROW(計算シート!U24)-3,0)) -> 0 | M27: 0 | N27: =IF(基本情報!D27="","",HLOOKUP(基本情報!D27,計算シート!$E$4:$G$34,ROW(計算シート!E24)-3,0)) ->  | O27: =IF(ISNUMBER(基本情報!J27),基本情報!J27,0) -> 0 | P27: 0
B28: 21 | C28: =IF(基本情報!C28="","",基本情報!C28) ->  | I28: 0 | J28: =IF(基本情報!F28="○",ROUND((I28+O28)*IF(基本情報!$D$4="",0,VLOOKUP(基本情報!$D$4,雇用保険料率!$C:$D,2,0)),0),0) -> 0 | K28: =IF(OR(基本情報!$D$3="",基本情報!H28=""),0,HLOOKUP(基本情報!H28,計算シート!$U$4:$W$34,ROW(計算シート!U25)-3,0)) -> 0 | L28: =IF(OR(基本情報!$D$3="",基本情報!I28=""),0,HLOOKUP(基本情報!I28,計算シート!$X$4:$Z$34,ROW(計算シート!U25)-3,0)) -> 0 | M28: 0 | N28: =IF(基本情報!D28="","",HLOOKUP(基本情報!D28,計算シート!$E$4:$G$34,ROW(計算シート!E25)-3,0)) ->  | O28: =IF(ISNUMBER(基本情報!J28),基本情報!J28,0) -> 0 | P28: 0
B29: 22 | C29: =IF(基本情報!C29="","",基本情報!C29) ->  | I29: 0 | J29: =IF(基本情報!F29="○",ROUND((I29+O29)*IF(基本情報!$D$4="",0,VLOOKUP(基本情報!$D$4,雇用保険料率!$C:$D,2,0)),0),0) -> 0 | K29: =IF(OR(基本情報!$D$3="",基本情報!H29=""),0,HLOOKUP(基本情報!H29,計算シート!$U$4:$W$34,ROW(計算シート!U26)-3,0)) -> 0 | L29: =IF(OR(基本情報!$D$3="",基本情報!I29=""),0,HLOOKUP(基本情報!I29,計算シート!$X$4:$Z$34,ROW(計算シート!U26)-3,0)) -> 0 | M29: 0 | N29: =IF(基本情報!D29="","",HLOOKUP(基本情報!D29,計算シート!$E$4:$G$34,ROW(計算シート!E26)-3,0)) ->  | O29: =IF(ISNUMBER(基本情報!J29),基本情報!J29,0) -> 0 | P29: 0
B30: 23 | C30: =IF(基本情報!C30="","",基本情報!C30) ->  | I30: 0 | J30: =IF(基本情報!F30="○",ROUND((I30+O30)*IF(基本情報!$D$4="",0,VLOOKUP(基本情報!$D$4,雇用保険料率!$C:$D,2,0)),0),0) -> 0 | K30: =IF(OR(基本情報!$D$3="",基本情報!H30=""),0,HLOOKUP(基本情報!H30,計算シート!$U$4:$W$34,ROW(計算シート!U27)-3,0)) -> 0 | L30: =IF(OR(基本情報!$D$3="",基本情報!I30=""),0,HLOOKUP(基本情報!I30,計算シート!$X$4:$Z$34,ROW(計算シート!U27)-3,0)) -> 0 | M30: 0 | N30: =IF(基本情報!D30="","",HLOOKUP(基本情報!D30,計算シート!$E$4:$G$34,ROW(計算シート!E27)-3,0)) ->  | O30: =IF(ISNUMBER(基本情報!J30),基本情報!J30,0) -> 0 | P30: 0
B31: 24 | C31: =IF(基本情報!C31="","",基本情報!C31) ->  | I31: 0 | J31: =IF(基本情報!F31="○",ROUND((I31+O31)*IF(基本情報!$D$4="",0,VLOOKUP(基本情報!$D$4,雇用保険料率!$C:$D,2,0)),0),0) -> 0 | K31: =IF(OR(基本情報!$D$3="",基本情報!H31=""),0,HLOOKUP(基本情報!H31,計算シート!$U$4:$W$34,ROW(計算シート!U28)-3,0)) -> 0 | L31: =IF(OR(基本情報!$D$3="",基本情報!I31=""),0,HLOOKUP(基本情報!I31,計算シート!$X$4:$Z$34,ROW(計算シート!U28)-3,0)) -> 0 | M31: 0 | N31: =IF(基本情報!D31="","",HLOOKUP(基本情報!D31,計算シート!$E$4:$G$34,ROW(計算シート!E28)-3,0)) ->  | O31: =IF(ISNUMBER(基本情報!J31),基本情報!J31,0) -> 0 | P31: 0
B32: 25 | C32: =IF(基本情報!C32="","",基本情報!C32) ->  | I32: 0 | J32: =IF(基本情報!F32="○",ROUND((I32+O32)*IF(基本情報!$D$4="",0,VLOOKUP(基本情報!$D$4,雇用保険料率!$C:$D,2,0)),0),0) -> 0 | K32: =IF(OR(基本情報!$D$3="",基本情報!H32=""),0,HLOOKUP(基本情報!H32,計算シート!$U$4:$W$34,ROW(計算シート!U29)-3,0)) -> 0 | L32: =IF(OR(基本情報!$D$3="",基本情報!I32=""),0,HLOOKUP(基本情報!I32,計算シート!$X$4:$Z$34,ROW(計算シート!U29)-3,0)) -> 0 | M32: 0 | N32: =IF(基本情報!D32="","",HLOOKUP(基本情報!D32,計算シート!$E$4:$G$34,ROW(計算シート!E29)-3,0)) ->  | O32: =IF(ISNUMBER(基本情報!J32),基本情報!J32,0) -> 0 | P32: 0
B33: 26 | C33: =IF(基本情報!C33="","",基本情報!C33) ->  | I33: 0 | J33: =IF(基本情報!F33="○",ROUND((I33+O33)*IF(基本情報!$D$4="",0,VLOOKUP(基本情報!$D$4,雇用保険料率!$C:$D,2,0)),0),0) -> 0 | K33: =IF(OR(基本情報!$D$3="",基本情報!H33=""),0,HLOOKUP(基本情報!H33,計算シート!$U$4:$W$34,ROW(計算シート!U30)-3,0)) -> 0 | L33: =IF(OR(基本情報!$D$3="",基本情報!I33=""),0,HLOOKUP(基本情報!I33,計算シート!$X$4:$Z$34,ROW(計算シート!U30)-3,0)) -> 0 | M33: 0 | N33: =IF(基本情報!D33="","",HLOOKUP(基本情報!D33,計算シート!$E$4:$G$34,ROW(計算シート!E30)-3,0)) ->  | O33: =IF(ISNUMBER(基本情報!J33),基本情報!J33,0) -> 0 | P33: 0
B34: 27 | C34: =IF(基本情報!C34="","",基本情報!C34) ->  | I34: 0 | J34: =IF(基本情報!F34="○",ROUND((I34+O34)*IF(基本情報!$D$4="",0,VLOOKUP(基本情報!$D$4,雇用保険料率!$C:$D,2,0)),0),0) -> 0 | K34: =IF(OR(基本情報!$D$3="",基本情報!H34=""),0,HLOOKUP(基本情報!H34,計算シート!$U$4:$W$34,ROW(計算シート!U31)-3,0)) -> 0 | L34: =IF(OR(基本情報!$D$3="",基本情報!I34=""),0,HLOOKUP(基本情報!I34,計算シート!$X$4:$Z$34,ROW(計算シート!U31)-3,0)) -> 0 | M34: 0 | N34: =IF(基本情報!D34="","",HLOOKUP(基本情報!D34,計算シート!$E$4:$G$34,ROW(計算シート!E31)-3,0)) ->  | O34: =IF(ISNUMBER(基本情報!J34),基本情報!J34,0) -> 0 | P34: 0
B35: 28 | C35: =IF(基本情報!C35="","",基本情報!C35) ->  | I35: 0 | J35: =IF(基本情報!F35="○",ROUND((I35+O35)*IF(基本情報!$D$4="",0,VLOOKUP(基本情報!$D$4,雇用保険料率!$C:$D,2,0)),0),0) -> 0 | K35: =IF(OR(基本情報!$D$3="",基本情報!H35=""),0,HLOOKUP(基本情報!H35,計算シート!$U$4:$W$34,ROW(計算シート!U32)-3,0)) -> 0 | L35: =IF(OR(基本情報!$D$3="",基本情報!I35=""),0,HLOOKUP(基本情報!I35,計算シート!$X$4:$Z$34,ROW(計算シート!U32)-3,0)) -> 0 | M35: 0 | N35: =IF(基本情報!D35="","",HLOOKUP(基本情報!D35,計算シート!$E$4:$G$34,ROW(計算シート!E32)-3,0)) ->  | O35: =IF(ISNUMBER(基本情報!J35),基本情報!J35,0) -> 0 | P35: 0
B36: 29 | C36: =IF(基本情報!C36="","",基本情報!C36) ->  | I36: 0 | J36: =IF(基本情報!F36="○",ROUND((I36+O36)*IF(基本情報!$D$4="",0,VLOOKUP(基本情報!$D$4,雇用保険料率!$C:$D,2,0)),0),0) -> 0 | K36: =IF(OR(基本情報!$D$3="",基本情報!H36=""),0,HLOOKUP(基本情報!H36,計算シート!$U$4:$W$34,ROW(計算シート!U33)-3,0)) -> 0 | L36: =IF(OR(基本情報!$D$3="",基本情報!I36=""),0,HLOOKUP(基本情報!I36,計算シート!$X$4:$Z$34,ROW(計算シート!U33)-3,0)) -> 0 | M36: 0 | N36: =IF(基本情報!D36="","",HLOOKUP(基本情報!D36,計算シート!$E$4:$G$34,ROW(計算シート!E33)-3,0)) ->  | O36: =IF(ISNUMBER(基本情報!J36),基本情報!J36,0) -> 0 | P36: 0
B37: 30 | C37: =IF(基本情報!C37="","",基本情報!C37) ->  | I37: 0 | J37: =IF(基本情報!F37="○",ROUND((I37+O37)*IF(基本情報!$D$4="",0,VLOOKUP(基本情報!$D$4,雇用保険料率!$C:$D,2,0)),0),0) -> 0 | K37: =IF(OR(基本情報!$D$3="",基本情報!H37=""),0,HLOOKUP(基本情報!H37,計算シート!$U$4:$W$34,ROW(計算シート!U34)-3,0)) -> 0 | L37: =IF(OR(基本情報!$D$3="",基本情報!I37=""),0,HLOOKUP(基本情報!I37,計算シート!$X$4:$Z$34,ROW(計算シート!U34)-3,0)) -> 0 | M37: 0 | N37: =IF(基本情報!D37="","",HLOOKUP(基本情報!D37,計算シート!$E$4:$G$34,ROW(計算シート!E34)-3,0)) ->  | O37: =IF(ISNUMBER(基本情報!J37),基本情報!J37,0) -> 0 | P37: 0

Sheet 賞与計算
B2: =基本情報!D2 -> ○○年○○月 | E2: ※シートの保護は解除できます。
B3: 賞与計算 | E3: 合計 | F3: =F6 -> 賞与金額 | G3: =G7 -> 雇用保険 | H3: =H7 -> 健康保険 | I3: =I7 -> 厚生年金 | J3: =J6 -> 社会保険料控除後の総支給額 | K3: =K6 -> 源泉所得税 | L3: =L6 -> 差引支給額
F4: =SUM(F8:F37) -> 1000000 | G4: =SUM(G8:G37) -> 4250 | H4: 46672 | I4: 72760 | J4: 876318 | K4: 88418 | L4: 787900
B6: NO. | C6: 名前 | D6: 前月の社会保険料控除後の給与 | E6: 税率 | F6: 賞与金額 | G6: 社会保険 | J6: 社会保険料控除後の総支給額 | K6: 源泉所得税 | L6: 差引支給額 | M6: 備考
G7: 雇用保険 | H7: 健康保険 | I7: 厚生年金
B8: 1 | C8: =IF(基本情報!C8="","",基本情報!C8) -> 給与一郎 | D8: 450000 | E8: =IF(D8="",0,IF(基本情報!D8="",0,IF(基本情報!D8="甲欄",IF(基本情報!E8>7,計算シート!S5,HLOOKUP(基本情報!E8,計算シート!$L$4:$T$34,ROW(計算シート!L5)-3,0))&"%",計算シート!T5&"%"))) -> 14.294% | F8: 500000 | G8: =IF(基本情報!F8="○",ROUND((F8)*IF(基本情報!$D$4="",0,VLOOKUP(基本情報!$D$4,雇用保険料率!$C:$D,2,0)),0),0) -> 2500 | H8: =IF(OR(基本情報!$D$3="",基本情報!H8=""),0,HLOOKUP(基本情報!H8,計算シート!$AC$4:$AE$34,ROW(計算シート!AC5)-3,0)) -> 29225 | I8: =IF(OR(基本情報!$D$3="",基本情報!I8=""),0,HLOOKUP(基本情報!I8,計算シート!$AF$4:$AH$34,ROW(計算シート!AC5)-3,0)) -> 42800 | J8: =F8-G8-H8-I8 -> 425475 | K8: =IF(D8="","",ROUNDDOWN(E8*J8,0)) -> 60817 | L8: =J8-IF(K8="",0,K8) -> 364658
B9: 2 | C9: =IF(基本情報!C9="","",基本情報!C9) -> 給与二郎 | D9: 280000 | E9: =IF(D9="",0,IF(基本情報!D9="",0,IF(基本情報!D9="甲欄",IF(基本情報!E9>7,計算シート!S6,HLOOKUP(基本情報!E9,計算シート!$L$4:$T$34,ROW(計算シート!L6)-3,0))&"%",計算シート!T6&"%"))) -> 4.084% | F9: 350000 | G9: =IF(基本情報!F9="○",ROUND((F9)*IF(基本情報!$D$4="",0,VLOOKUP(基本情報!$D$4,雇用保険料率!$C:$D,2,0)),0),0) -> 1750 | H9: =IF(OR(基本情報!$D$3="",基本情報!H9=""),0,HLOOKUP(基本情報!H9,計算シート!$AC$4:$AE$34,ROW(計算シート!AC6)-3,0)) -> 17447 | I9: =IF(OR(基本情報!$D$3="",基本情報!I9=""),0,HLOOKUP(基本情報!I9,計算シート!$AF$4:$AH$34,ROW(計算シート!AC6)-3,0)) -> 29960 | J9: 300843 | K9: 12286 | L9: =J9-IF(K9="",0,K9) -> 288557
B10: 3 | C10: =IF(基本情報!C10="","",基本情報!C10) -> 給与三郎 | D10: 150000 | E10: =IF(D10="",0,IF(基本情報!D10="",0,IF(基本情報!D10="甲欄",IF(基本情報!E10>7,計算シート!S7,HLOOKUP(基本情報!E10,計算シート!$L$4:$T$34,ROW(計算シート!L7)-3,0))&"%",計算シート!T7&"%"))) -> 10.21% | F10: 150000 | G10: =IF(基本情報!F10="○",ROUND((F10)*IF(基本情報!$D$4="",0,VLOOKUP(基本情報!$D$4,雇用保険料率!$C:$D,2,0)),0),0) -> 0 | H10: =IF(OR(基本情報!$D$3="",基本情報!H10=""),0,HLOOKUP(基本情報!H10,計算シート!$AC$4:$AE$34,ROW(計算シート!AC7)-3,0)) -> 0 | I10: =IF(OR(基本情報!$D$3="",基本情報!I10=""),0,HLOOKUP(基本情報!I10,計算シート!$AF$4:$AH$34,ROW(計算シート!AC7)-3,0)) -> 0 | J10: 150000 | K10: 15315 | L10: 134685
B11: 4 | C11: =IF(基本情報!C11="","",基本情報!C11) ->  | E11: =IF(D11="",0,IF(基本情報!D11="",0,IF(基本情報!D11="甲欄",IF(基本情報!E11>7,計算シート!S8,HLOOKUP(基本情報!E11,計算シート!$L$4:$T$34,ROW(計算シート!L8)-3,0))&"%",計算シート!T8&"%"))) -> 0 | G11: =IF(基本情報!F11="○",ROUND((F11)*IF(基本情報!$D$4="",0,VLOOKUP(基本情報!$D$4,雇用保険料率!$C:$D,2,0)),0),0) -> 0 | H11: =IF(OR(基本情報!$D$3="",基本情報!H11=""),0,HLOOKUP(基本情報!H11,計算シート!$AC$4:$AE$34,ROW(計算シート!AC8)-3,0)) -> 0 | I11: =IF(OR(基本情報!$D$3="",基本情報!I11=""),0,HLOOKUP(基本情報!I11,計算シート!$AF$4:$AH$34,ROW(計算シート!AC8)-3,0)) -> 0 | J11: 0 | L11: 0
B12: 5 | C12: =IF(基本情報!C12="","",基本情報!C12) ->  | E12: =IF(D12="",0,IF(基本情報!D12="",0,IF(基本情報!D12="甲欄",IF(基本情報!E12>7,計算シート!S9,HLOOKUP(基本情報!E12,計算シート!$L$4:$T$34,ROW(計算シート!L9)-3,0))&"%",計算シート!T9&"%"))) -> 0 | G12: =IF(基本情報!F12="○",ROUND((F12)*IF(基本情報!$D$4="",0,VLOOKUP(基本情報!$D$4,雇用保険料率!$C:$D,2,0)),0),0) -> 0 | H12: =IF(OR(基本情報!$D$3="",基本情報!H12=""),0,HLOOKUP(基本情報!H12,計算シート!$AC$4:$AE$34,ROW(計算シート!AC9)-3,0)) -> 0 | I12: =IF(OR(基本情報!$D$3="",基本情報!I12=""),0,HLOOKUP(基本情報!I12,計算シート!$AF$4:$AH$34,ROW(計算シート!AC9)-3,0)) -> 0 | J12: 0 | L12: 0
B13: 6 | C13: =IF(基本情報!C13="","",基本情報!C13) ->  | E13: =IF(D13="",0,IF(基本情報!D13="",0,IF(基本情報!D13="甲欄",IF(基本情報!E13>7,計算シート!S10,HLOOKUP(基本情報!E13,計算シート!$L$4:$T$34,ROW(計算シート!L10)-3,0))&"%",計算シート!T10&"%"))) -> 0 | G13: =IF(基本情報!F13="○",ROUND((F13)*IF(基本情報!$D$4="",0,VLOOKUP(基本情報!$D$4,雇用保険料率!$C:$D,2,0)),0),0) -> 0 | H13: =IF(OR(基本情報!$D$3="",基本情報!H13=""),0,HLOOKUP(基本情報!H13,計算シート!$AC$4:$AE$34,ROW(計算シート!AC10)-3,0)) -> 0 | I13: =IF(OR(基本情報!$D$3="",基本情報!I13=""),0,HLOOKUP(基本情報!I13,計算シート!$AF$4:$AH$34,ROW(計算シート!AC10)-3,0)) -> 0 | J13: 0 | L13: 0
B14: 7 | C14: =IF(基本情報!C14="","",基本情報!C14) ->  | E14: =IF(D14="",0,IF(基本情報!D14="",0,IF(基本情報!D14="甲欄",IF(基本情報!E14>7,計算シート!S11,HLOOKUP(基本情報!E14,計算シート!$L$4:$T$34,ROW(計算シート!L11)-3,0))&"%",計算シート!T11&"%"))) -> 0 | G14: =IF(基本情報!F14="○",ROUND((F14)*IF(基本情報!$D$4="",0,VLOOKUP(基本情報!$D$4,雇用保険料率!$C:$D,2,0)),0),0) -> 0 | H14: =IF(OR(基本情報!$D$3="",基本情報!H14=""),0,HLOOKUP(基本情報!H14,計算シート!$AC$4:$AE$34,ROW(計算シート!AC11)-3,0)) -> 0 | I14: =IF(OR(基本情報!$D$3="",基本情報!I14=""),0,HLOOKUP(基本情報!I14,計算シート!$AF$4:$AH$34,ROW(計算シート!AC11)-3,0)) -> 0 | J14: 0 | L14: 0
B15: 8 | C15: =IF(基本情報!C15="","",基本情報!C15) ->  | E15: =IF(D15="",0,IF(基本情報!D15="",0,IF(基本情報!D15="甲欄",IF(基本情報!E15>7,計算シート!S12,HLOOKUP(基本情報!E15,計算シート!$L$4:$T$34,ROW(計算シート!L12)-3,0))&"%",計算シート!T12&"%"))) -> 0 | G15: =IF(基本情報!F15="○",ROUND((F15)*IF(基本情報!$D$4="",0,VLOOKUP(基本情報!$D$4,雇用保険料率!$C:$D,2,0)),0),0) -> 0 | H15: =IF(OR(基本情報!$D$3="",基本情報!H15=""),0,HLOOKUP(基本情報!H15,計算シート!$AC$4:$AE$34,ROW(計算シート!AC12)-3,0)) -> 0 | I15: =IF(OR(基本情報!$D$3="",基本情報!I15=""),0,HLOOKUP(基本情報!I15,計算シート!$AF$4:$AH$34,ROW(計算シート!AC12)-3,0)) -> 0 | J15: 0 | L15: 0
B16: 9 | C16: =IF(基本情報!C16="","",基本情報!C16) ->  | E16: =IF(D16="",0,IF(基本情報!D16="",0,IF(基本情報!D16="甲欄",IF(基本情報!E16>7,計算シート!S13,HLOOKUP(基本情報!E16,計算シート!$L$4:$T$34,ROW(計算シート!L13)-3,0))&"%",計算シート!T13&"%"))) -> 0 | G16: =IF(基本情報!F16="○",ROUND((F16)*IF(基本情報!$D$4="",0,VLOOKUP(基本情報!$D$4,雇用保険料率!$C:$D,2,0)),0),0) -> 0 | H16: =IF(OR(基本情報!$D$3="",基本情報!H16=""),0,HLOOKUP(基本情報!H16,計算シート!$AC$4:$AE$34,ROW(計算シート!AC13)-3,0)) -> 0 | I16: =IF(OR(基本情報!$D$3="",基本情報!I16=""),0,HLOOKUP(基本情報!I16,計算シート!$AF$4:$AH$34,ROW(計算シート!AC13)-3,0)) -> 0 | J16: 0 | L16: 0
B17: 10 | C17: =IF(基本情報!C17="","",基本情報!C17) ->  | E17: =IF(D17="",0,IF(基本情報!D17="",0,IF(基本情報!D17="甲欄",IF(基本情報!E17>7,計算シート!S14,HLOOKUP(基本情報!E17,計算シート!$L$4:$T$34,ROW(計算シート!L14)-3,0))&"%",計算シート!T14&"%"))) -> 0 | G17: =IF(基本情報!F17="○",ROUND((F17)*IF(基本情報!$D$4="",0,VLOOKUP(基本情報!$D$4,雇用保険料率!$C:$D,2,0)),0),0) -> 0 | H17: =IF(OR(基本情報!$D$3="",基本情報!H17=""),0,HLOOKUP(基本情報!H17,計算シート!$AC$4:$AE$34,ROW(計算シート!AC14)-3,0)) -> 0 | I17: =IF(OR(基本情報!$D$3="",基本情報!I17=""),0,HLOOKUP(基本情報!I17,計算シート!$AF$4:$AH$34,ROW(計算シート!AC14)-3,0)) -> 0 | J17: 0 | L17: 0
B18: 11 | C18: =IF(基本情報!C18="","",基本情報!C18) ->  | E18: =IF(D18="",0,IF(基本情報!D18="",0,IF(基本情報!D18="甲欄",IF(基本情報!E18>7,計算シート!S15,HLOOKUP(基本情報!E18,計算シート!$L$4:$T$34,ROW(計算シート!L15)-3,0))&"%",計算シート!T15&"%"))) -> 0 | G18: =IF(基本情報!F18="○",ROUND((F18)*IF(基本情報!$D$4="",0,VLOOKUP(基本情報!$D$4,雇用保険料率!$C:$D,2,0)),0),0) -> 0 | H18: =IF(OR(基本情報!$D$3="",基本情報!H18=""),0,HLOOKUP(基本情報!H18,計算シート!$AC$4:$AE$34,ROW(計算シート!AC15)-3,0)) -> 0 | I18: =IF(OR(基本情報!$D$3="",基本情報!I18=""),0,HLOOKUP(基本情報!I18,計算シート!$AF$4:$AH$34,ROW(計算シート!AC15)-3,0)) -> 0 | J18: 0 | L18: 0
B19: 12 | C19: =IF(基本情報!C19="","",基本情報!C19) ->  | E19: =IF(D19="",0,IF(基本情報!D19="",0,IF(基本情報!D19="甲欄",IF(基本情報!E19>7,計算シート!S16,HLOOKUP(基本情報!E19,計算シート!$L$4:$T$34,ROW(計算シート!L16)-3,0))&"%",計算シート!T16&"%"))) -> 0 | G19: =IF(基本情報!F19="○",ROUND((F19)*IF(基本情報!$D$4="",0,VLOOKUP(基本情報!$D$4,雇用保険料率!$C:$D,2,0)),0),0) -> 0 | H19: =IF(OR(基本情報!$D$3="",基本情報!H19=""),0,HLOOKUP(基本情報!H19,計算シート!$AC$4:$AE$34,ROW(計算シート!AC16)-3,0)) -> 0 | I19: =IF(OR(基本情報!$D$3="",基本情報!I19=""),0,HLOOKUP(基本情報!I19,計算シート!$AF$4:$AH$34,ROW(計算シート!AC16)-3,0)) -> 0 | J19: 0 | L19: 0
B20: 13 | C20: =IF(基本情報!C20="","",基本情報!C20) ->  | E20: =IF(D20="",0,IF(基本情報!D20="",0,IF(基本情報!D20="甲欄",IF(基本情報!E20>7,計算シート!S17,HLOOKUP(基本情報!E20,計算シート!$L$4:$T$34,ROW(計算シート!L17)-3,0))&"%",計算シート!T17&"%"))) -> 0 | G20: =IF(基本情報!F20="○",ROUND((F20)*IF(基本情報!$D$4="",0,VLOOKUP(基本情報!$D$4,雇用保険料率!$C:$D,2,0)),0),0) -> 0 | H20: =IF(OR(基本情報!$D$3="",基本情報!H20=""),0,HLOOKUP(基本情報!H20,計算シート!$AC$4:$AE$34,ROW(計算シート!AC17)-3,0)) -> 0 | I20: =IF(OR(基本情報!$D$3="",基本情報!I20=""),0,HLOOKUP(基本情報!I20,計算シート!$AF$4:$AH$34,ROW(計算シート!AC17)-3,0)) -> 0 | J20: 0 | L20: 0
B21: 14 | C21: =IF(基本情報!C21="","",基本情報!C21) ->  | E21: =IF(D21="",0,IF(基本情報!D21="",0,IF(基本情報!D21="甲欄",IF(基本情報!E21>7,計算シート!S18,HLOOKUP(基本情報!E21,計算シート!$L$4:$T$34,ROW(計算シート!L18)-3,0))&"%",計算シート!T18&"%"))) -> 0 | G21: =IF(基本情報!F21="○",ROUND((F21)*IF(基本情報!$D$4="",0,VLOOKUP(基本情報!$D$4,雇用保険料率!$C:$D,2,0)),0),0) -> 0 | H21: =IF(OR(基本情報!$D$3="",基本情報!H21=""),0,HLOOKUP(基本情報!H21,計算シート!$AC$4:$AE$34,ROW(計算シート!AC18)-3,0)) -> 0 | I21: =IF(OR(基本情報!$D$3="",基本情報!I21=""),0,HLOOKUP(基本情報!I21,計算シート!$AF$4:$AH$34,ROW(計算シート!AC18)-3,0)) -> 0 | J21: 0 | L21: 0
B22: 15 | C22: =IF(基本情報!C22="","",基本情報!C22) ->  | E22: =IF(D22="",0,IF(基本情報!D22="",0,IF(基本情報!D22="甲欄",IF(基本情報!E22>7,計算シート!S19,HLOOKUP(基本情報!E22,計算シート!$L$4:$T$34,ROW(計算シート!L19)-3,0))&"%",計算シート!T19&"%"))) -> 0 | G22: =IF(基本情報!F22="○",ROUND((F22)*IF(基本情報!$D$4="",0,VLOOKUP(基本情報!$D$4,雇用保険料率!$C:$D,2,0)),0),0) -> 0 | H22: =IF(OR(基本情報!$D$3="",基本情報!H22=""),0,HLOOKUP(基本情報!H22,計算シート!$AC$4:$AE$34,ROW(計算シート!AC19)-3,0)) -> 0 | I22: =IF(OR(基本情報!$D$3="",基本情報!I22=""),0,HLOOKUP(基本情報!I22,計算シート!$AF$4:$AH$34,ROW(計算シート!AC19)-3,0)) -> 0 | J22: 0 | L22: 0
B23: 16 | C23: =IF(基本情報!C23="","",基本情報!C23) ->  | E23: =IF(D23="",0,IF(基本情報!D23="",0,IF(基本情報!D23="甲欄",IF(基本情報!E23>7,計算シート!S20,HLOOKUP(基本情報!E23,計算シート!$L$4:$T$34,ROW(計算シート!L20)-3,0))&"%",計算シート!T20&"%"))) -> 0 | G23: =IF(基本情報!F23="○",ROUND((F23)*IF(基本情報!$D$4="",0,VLOOKUP(基本情報!$D$4,雇用保険料率!$C:$D,2,0)),0),0) -> 0 | H23: =IF(OR(基本情報!$D$3="",基本情報!H23=""),0,HLOOKUP(基本情報!H23,計算シート!$AC$4:$AE$34,ROW(計算シート!AC20)-3,0)) -> 0 | I23: =IF(OR(基本情報!$D$3="",基本情報!I23=""),0,HLOOKUP(基本情報!I23,計算シート!$AF$4:$AH$34,ROW(計算シート!AC20)-3,0)) -> 0 | J23: 0 | L23: 0
B24: 17 | C24: =IF(基本情報!C24="","",基本情報!C24) ->  | E24: =IF(D24="",0,IF(基本情報!D24="",0,IF(基本情報!D24="甲欄",IF(基本情報!E24>7,計算シート!S21,HLOOKUP(基本情報!E24,計算シート!$L$4:$T$34,ROW(計算シート!L21)-3,0))&"%",計算シート!T21&"%"))) -> 0 | G24: =IF(基本情報!F24="○",ROUND((F24)*IF(基本情報!$D$4="",0,VLOOKUP(基本情報!$D$4,雇用保険料率!$C:$D,2,0)),0),0) -> 0 | H24: =IF(OR(基本情報!$D$3="",基本情報!H24=""),0,HLOOKUP(基本情報!H24,計算シート!$AC$4:$AE$34,ROW(計算シート!AC21)-3,0)) -> 0 | I24: =IF(OR(基本情報!$D$3="",基本情報!I24=""),0,HLOOKUP(基本情報!I24,計算シート!$AF$4:$AH$34,ROW(計算シート!AC21)-3,0)) -> 0 | J24: 0 | L24: 0
B25: 18 | C25: =IF(基本情報!C25="","",基本情報!C25) ->  | E25: =IF(D25="",0,IF(基本情報!D25="",0,IF(基本情報!D25="甲欄",IF(基本情報!E25>7,計算シート!S22,HLOOKUP(基本情報!E25,計算シート!$L$4:$T$34,ROW(計算シート!L22)-3,0))&"%",計算シート!T22&"%"))) -> 0 | G25: =IF(基本情報!F25="○",ROUND((F25)*IF(基本情報!$D$4="",0,VLOOKUP(基本情報!$D$4,雇用保険料率!$C:$D,2,0)),0),0) -> 0 | H25: =IF(OR(基本情報!$D$3="",基本情報!H25=""),0,HLOOKUP(基本情報!H25,計算シート!$AC$4:$AE$34,ROW(計算シート!AC22)-3,0)) -> 0 | I25: =IF(OR(基本情報!$D$3="",基本情報!I25=""),0,HLOOKUP(基本情報!I25,計算シート!$AF$4:$AH$34,ROW(計算シート!AC22)-3,0)) -> 0 | J25: 0 | L25: 0
B26: 19 | C26: =IF(基本情報!C26="","",基本情報!C26) ->  | E26: =IF(D26="",0,IF(基本情報!D26="",0,IF(基本情報!D26="甲欄",IF(基本情報!E26>7,計算シート!S23,HLOOKUP(基本情報!E26,計算シート!$L$4:$T$34,ROW(計算シート!L23)-3,0))&"%",計算シート!T23&"%"))) -> 0 | G26: =IF(基本情報!F26="○",ROUND((F26)*IF(基本情報!$D$4="",0,VLOOKUP(基本情報!$D$4,雇用保険料率!$C:$D,2,0)),0),0) -> 0 | H26: =IF(OR(基本情報!$D$3="",基本情報!H26=""),0,HLOOKUP(基本情報!H26,計算シート!$AC$4:$AE$34,ROW(計算シート!AC23)-3,0)) -> 0 | I26: =IF(OR(基本情報!$D$3="",基本情報!I26=""),0,HLOOKUP(基本情報!I26,計算シート!$AF$4:$AH$34,ROW(計算シート!AC23)-3,0)) -> 0 | J26: 0 | L26: 0
B27: 20 | C27: =IF(基本情報!C27="","",基本情報!C27) ->  | E27: =IF(D27="",0,IF(基本情報!D27="",0,IF(基本情報!D27="甲欄",IF(基本情報!E27>7,計算シート!S24,HLOOKUP(基本情報!E27,計算シート!$L$4:$T$34,ROW(計算シート!L24)-3,0))&"%",計算シート!T24&"%"))) -> 0 | G27: =IF(基本情報!F27="○",ROUND((F27)*IF(基本情報!$D$4="",0,VLOOKUP(基本情報!$D$4,雇用保険料率!$C:$D,2,0)),0),0) -> 0 | H27: =IF(OR(基本情報!$D$3="",基本情報!H27=""),0,HLOOKUP(基本情報!H27,計算シート!$AC$4:$AE$34,ROW(計算シート!AC24)-3,0)) -> 0 | I27: =IF(OR(基本情報!$D$3="",基本情報!I27=""),0,HLOOKUP(基本情報!I27,計算シート!$AF$4:$AH$34,ROW(計算シート!AC24)-3,0)) -> 0 | J27: 0 | L27: 0
B28: 21 | C28: =IF(基本情報!C28="","",基本情報!C28) ->  | E28: =IF(D28="",0,IF(基本情報!D28="",0,IF(基本情報!D28="甲欄",IF(基本情報!E28>7,計算シート!S25,HLOOKUP(基本情報!E28,計算シート!$L$4:$T$34,ROW(計算シート!L25)-3,0))&"%",計算シート!T25&"%"))) -> 0 | G28: =IF(基本情報!F28="○",ROUND((F28)*IF(基本情報!$D$4="",0,VLOOKUP(基本情報!$D$4,雇用保険料率!$C:$D,2,0)),0),0) -> 0 | H28: =IF(OR(基本情報!$D$3="",基本情報!H28=""),0,HLOOKUP(基本情報!H28,計算シート!$AC$4:$AE$34,ROW(計算シート!AC25)-3,0)) -> 0 | I28: =IF(OR(基本情報!$D$3="",基本情報!I28=""),0,HLOOKUP(基本情報!I28,計算シート!$AF$4:$AH$34,ROW(計算シート!AC25)-3,0)) -> 0 | J28: 0 | L28: 0
B29: 22 | C29: =IF(基本情報!C29="","",基本情報!C29) ->  | E29: =IF(D29="",0,IF(基本情報!D29="",0,IF(基本情報!D29="甲欄",IF(基本情報!E29>7,計算シート!S26,HLOOKUP(基本情報!E29,計算シート!$L$4:$T$34,ROW(計算シート!L26)-3,0))&"%",計算シート!T26&"%"))) -> 0 | G29: =IF(基本情報!F29="○",ROUND((F29)*IF(基本情報!$D$4="",0,VLOOKUP(基本情報!$D$4,雇用保険料率!$C:$D,2,0)),0),0) -> 0 | H29: =IF(OR(基本情報!$D$3="",基本情報!H29=""),0,HLOOKUP(基本情報!H29,計算シート!$AC$4:$AE$34,ROW(計算シート!AC26)-3,0)) -> 0 | I29: =IF(OR(基本情報!$D$3="",基本情報!I29=""),0,HLOOKUP(基本情報!I29,計算シート!$AF$4:$AH$34,ROW(計算シート!AC26)-3,0)) -> 0 | J29: 0 | L29: 0
B30: 23 | C30: =IF(基本情報!C30="","",基本情報!C30) ->  | E30: =IF(D30="",0,IF(基本情報!D30="",0,IF(基本情報!D30="甲欄",IF(基本情報!E30>7,計算シート!S27,HLOOKUP(基本情報!E30,計算シート!$L$4:$T$34,ROW(計算シート!L27)-3,0))&"%",計算シート!T27&"%"))) -> 0 | G30: =IF(基本情報!F30="○",ROUND((F30)*IF(基本情報!$D$4="",0,VLOOKUP(基本情報!$D$4,雇用保険料率!$C:$D,2,0)),0),0) -> 0 | H30: =IF(OR(基本情報!$D$3="",基本情報!H30=""),0,HLOOKUP(基本情報!H30,計算シート!$AC$4:$AE$34,ROW(計算シート!AC27)-3,0)) -> 0 | I30: =IF(OR(基本情報!$D$3="",基本情報!I30=""),0,HLOOKUP(基本情報!I30,計算シート!$AF$4:$AH$34,ROW(計算シート!AC27)-3,0)) -> 0 | J30: 0 | L30: 0
B31: 24 | C31: =IF(基本情報!C31="","",基本情報!C31) ->  | E31: =IF(D31="",0,IF(基本情報!D31="",0,IF(基本情報!D31="甲欄",IF(基本情報!E31>7,計算シート!S28,HLOOKUP(基本情報!E31,計算シート!$L$4:$T$34,ROW(計算シート!L28)-3,0))&"%",計算シート!T28&"%"))) -> 0 | G31: =IF(基本情報!F31="○",ROUND((F31)*IF(基本情報!$D$4="",0,VLOOKUP(基本情報!$D$4,雇用保険料率!$C:$D,2,0)),0),0) -> 0 | H31: =IF(OR(基本情報!$D$3="",基本情報!H31=""),0,HLOOKUP(基本情報!H31,計算シート!$AC$4:$AE$34,ROW(計算シート!AC28)-3,0)) -> 0 | I31: =IF(OR(基本情報!$D$3="",基本情報!I31=""),0,HLOOKUP(基本情報!I31,計算シート!$AF$4:$AH$34,ROW(計算シート!AC28)-3,0)) -> 0 | J31: 0 | L31: 0
B32: 25 | C32: =IF(基本情報!C32="","",基本情報!C32) ->  | E32: =IF(D32="",0,IF(基本情報!D32="",0,IF(基本情報!D32="甲欄",IF(基本情報!E32>7,計算シート!S29,HLOOKUP(基本情報!E32,計算シート!$L$4:$T$34,ROW(計算シート!L29)-3,0))&"%",計算シート!T29&"%"))) -> 0 | G32: =IF(基本情報!F32="○",ROUND((F32)*IF(基本情報!$D$4="",0,VLOOKUP(基本情報!$D$4,雇用保険料率!$C:$D,2,0)),0),0) -> 0 | H32: =IF(OR(基本情報!$D$3="",基本情報!H32=""),0,HLOOKUP(基本情報!H32,計算シート!$AC$4:$AE$34,ROW(計算シート!AC29)-3,0)) -> 0 | I32: =IF(OR(基本情報!$D$3="",基本情報!I32=""),0,HLOOKUP(基本情報!I32,計算シート!$AF$4:$AH$34,ROW(計算シート!AC29)-3,0)) -> 0 | J32: 0 | L32: 0
B33: 26 | C33: =IF(基本情報!C33="","",基本情報!C33) ->  | E33: =IF(D33="",0,IF(基本情報!D33="",0,IF(基本情報!D33="甲欄",IF(基本情報!E33>7,計算シート!S30,HLOOKUP(基本情報!E33,計算シート!$L$4:$T$34,ROW(計算シート!L30)-3,0))&"%",計算シート!T30&"%"))) -> 0 | G33: =IF(基本情報!F33="○",ROUND((F33)*IF(基本情報!$D$4="",0,VLOOKUP(基本情報!$D$4,雇用保険料率!$C:$D,2,0)),0),0) -> 0 | H33: =IF(OR(基本情報!$D$3="",基本情報!H33=""),0,HLOOKUP(基本情報!H33,計算シート!$AC$4:$AE$34,ROW(計算シート!AC30)-3,0)) -> 0 | I33: =IF(OR(基本情報!$D$3="",基本情報!I33=""),0,HLOOKUP(基本情報!I33,計算シート!$AF$4:$AH$34,ROW(計算シート!AC30)-3,0)) -> 0 | J33: 0 | L33: 0
B34: 27 | C34: =IF(基本情報!C34="","",基本情報!C34) ->  | E34: =IF(D34="",0,IF(基本情報!D34="",0,IF(基本情報!D34="甲欄",IF(基本情報!E34>7,計算シート!S31,HLOOKUP(基本情報!E34,計算シート!$L$4:$T$34,ROW(計算シート!L31)-3,0))&"%",計算シート!T31&"%"))) -> 0 | G34: =IF(基本情報!F34="○",ROUND((F34)*IF(基本情報!$D$4="",0,VLOOKUP(基本情報!$D$4,雇用保険料率!$C:$D,2,0)),0),0) -> 0 | H34: =IF(OR(基本情報!$D$3="",基本情報!H34=""),0,HLOOKUP(基本情報!H34,計算シート!$AC$4:$AE$34,ROW(計算シート!AC31)-3,0)) -> 0 | I34: =IF(OR(基本情報!$D$3="",基本情報!I34=""),0,HLOOKUP(基本情報!I34,計算シート!$AF$4:$AH$34,ROW(計算シート!AC31)-3,0)) -> 0 | J34: 0 | L34: 0
B35: 28 | C35: =IF(基本情報!C35="","",基本情報!C35) ->  | E35: =IF(D35="",0,IF(基本情報!D35="",0,IF(基本情報!D35="甲欄",IF(基本情報!E35>7,計算シート!S32,HLOOKUP(基本情報!E35,計算シート!$L$4:$T$34,ROW(計算シート!L32)-3,0))&"%",計算シート!T32&"%"))) -> 0 | G35: =IF(基本情報!F35="○",ROUND((F35)*IF(基本情報!$D$4="",0,VLOOKUP(基本情報!$D$4,雇用保険料率!$C:$D,2,0)),0),0) -> 0 | H35: =IF(OR(基本情報!$D$3="",基本情報!H35=""),0,HLOOKUP(基本情報!H35,計算シート!$AC$4:$AE$34,ROW(計算シート!AC32)-3,0)) -> 0 | I35: =IF(OR(基本情報!$D$3="",基本情報!I35=""),0,HLOOKUP(基本情報!I35,計算シート!$AF$4:$AH$34,ROW(計算シート!AC32)-3,0)) -> 0 | J35: 0 | L35: 0
B36: 29 | C36: =IF(基本情報!C36="","",基本情報!C36) ->  | E36: =IF(D36="",0,IF(基本情報!D36="",0,IF(基本情報!D36="甲欄",IF(基本情報!E36>7,計算シート!S33,HLOOKUP(基本情報!E36,計算シート!$L$4:$T$34,ROW(計算シート!L33)-3,0))&"%",計算シート!T33&"%"))) -> 0 | G36: =IF(基本情報!F36="○",ROUND((F36)*IF(基本情報!$D$4="",0,VLOOKUP(基本情報!$D$4,雇用保険料率!$C:$D,2,0)),0),0) -> 0 | H36: =IF(OR(基本情報!$D$3="",基本情報!H36=""),0,HLOOKUP(基本情報!H36,計算シート!$AC$4:$AE$34,ROW(計算シート!AC33)-3,0)) -> 0 | I36: =IF(OR(基本情報!$D$3="",基本情報!I36=""),0,HLOOKUP(基本情報!I36,計算シート!$AF$4:$AH$34,ROW(計算シート!AC33)-3,0)) -> 0 | J36: 0 | L36: 0
B37: 30 | C37: =IF(基本情報!C37="","",基本情報!C37) ->  | E37: =IF(D37="",0,IF(基本情報!D37="",0,IF(基本情報!D37="甲欄",IF(基本情報!E37>7,計算シート!S34,HLOOKUP(基本情報!E37,計算シート!$L$4:$T$34,ROW(計算シート!L34)-3,0))&"%",計算シート!T34&"%"))) -> 0 | G37: =IF(基本情報!F37="○",ROUND((F37)*IF(基本情報!$D$4="",0,VLOOKUP(基本情報!$D$4,雇用保険料率!$C:$D,2,0)),0),0) -> 0 | H37: =IF(OR(基本情報!$D$3="",基本情報!H37=""),0,HLOOKUP(基本情報!H37,計算シート!$AC$4:$AE$34,ROW(計算シート!AC34)-3,0)) -> 0 | I37: =IF(OR(基本情報!$D$3="",基本情報!I37=""),0,HLOOKUP(基本情報!I37,計算シート!$AF$4:$AH$34,ROW(計算シート!AC34)-3,0)) -> 0 | J37: 0 | L37: 0

Sheet 計算シート (hidden)
C3: NO. | D3: 名前 | E3: 源泉徴収税額 | H3: 月額101万円超えた場合の源泉徴収税額（甲欄） | K3: 月額101万円超えた場合の税額表（乙欄) | L3: 賞与税率 | U3: 給与：社会保険（健康保険） | X3: 給与：社会保険（厚生年金） | AC3: 賞与：社会保険（健康保険) | AF3: 賞与：社会保険（厚生年金）
E4: 甲欄 | F4: 乙欄 | G4: 乙欄（従たる給与についての扶養控除等申告書提出あり） | H4: =税額基本情報!C6 -> 1,010,000円以上 1,250,000円未満 | I4: =税額基本情報!C7 -> 1,250,000円以上 1,740,000円未満 | J4: =税額基本情報!C8 -> 1,740,000円以上 | K4: =税額基本情報!C12 -> 1,010,000円以上 | L4: 0 | M4: 1 | N4: 2 | O4: 3 | P4: 4 | Q4: 5 | R4: 6 | S4: 7 | T4: 乙 | U4: =リスト表!E4 -> 無し | V4: =リスト表!E5 -> 介護保険なし | W4: =リスト表!E6 -> 介護保険あり | X4: =リスト表!F4 -> 無し | Y4: =リスト表!F5 -> 一般の被保険者 | Z4: =リスト表!F6 -> 坑内員・船員 | AA4: ＜一般の被保険者＞標準報酬月額98,000円未満、650,000円以上の場合 | AB4: ＜坑内員・船員＞標準報酬月額98,000円未満、650,000円以上の場合 | AC4: =リスト表!E4 -> 無し | AD4: =リスト表!E5 -> 介護保険なし | AE4: =リスト表!E6 -> 介護保険あり | AF4: =リスト表!F4 -> 無し | AG4: =リスト表!F5 -> 一般の被保険者 | AH4: =リスト表!F6 -> 坑内員・船員
C5: 1 | D5: =給与計算!C8 -> 給与一郎 | E5: =MAX(IF(給与計算!M8>=税額基本情報!$D$6,MAX(計算シート!H5:J5),IF(給与計算!M8<源泉月額表!$B$8,0,VLOOKUP(給与計算!M8,源泉月額表!$B:$K,IF(基本情報!E8>=8,10,基本情報!E8+3),1)))-IF(基本情報!E8>=8,(基本情報!E8-7)*税額基本情報!$D$15,0),0) -> 12240 | F5: =IF(給与計算!M8<源泉月額表!$B$8,ROUNDDOWN(給与計算!M8*税額基本情報!$D$21,0),IF(給与計算!M8=0,0,IF(給与計算!M8>=税額基本情報!$D$12,K5,VLOOKUP(給与計算!M8,源泉月額表!$B:$L,11,1)))) -> 97100 | G5: =MAX(IF(給与計算!M8<源泉月額表!$B$8,ROUNDDOWN(給与計算!M8*3.063%,0),IF(給与計算!M8=0,0,IF(給与計算!M8>=税額基本情報!$D$12,K5,VLOOKUP(給与計算!M8,源泉月額表!$B:$L,11,1))))-基本情報!E8*税額基本情報!$D$18,0) -> 93880 | H5: =IF(AND(給与計算!M8>=1010000,給与計算!M8<1250000),VLOOKUP(給与計算!M8,税額基本情報!$D$6:$M$8,IF(基本情報!E8>=8,10,基本情報!E8+3),1)+ROUNDDOWN((給与計算!M8-税額基本情報!$D$6)*税額基本情報!$E$6,0),0) -> 0 | I5: =IF(AND(給与計算!M8>=1250000,給与計算!M8<1740000),VLOOKUP(給与計算!M8,税額基本情報!$D$6:$M$8,IF(基本情報!E8>=8,10,基本情報!E8+3),1)+ROUNDDOWN((給与計算!M8-税額基本情報!$D$7)*税額基本情報!$E$7,0),0) -> 0 | J5: =IF(給与計算!M8>=1740000,VLOOKUP(給与計算!M8,税額基本情報!$D$6:$M$8,IF(基本情報!E8>=8,10,基本情報!E8+3),1)+ROUNDDOWN((給与計算!M8-税額基本情報!$D$8)*税額基本情報!$E$8,0),0) -> 0 | K5: =IF(給与計算!M8>=1010000,税額基本情報!$F$12+ROUNDDOWN((給与計算!M8-税額基本情報!$D$12)*税額基本情報!$E$12,0),0) -> 0 | L5: =IF(賞与計算!D8<源泉賞与表!$D$10*1000,0,INDEX(源泉賞与表!$B:$B,MATCH(賞与計算!D8/1000,源泉賞与表!$D:$D,1))) -> 16.336 | M5: =IF(賞与計算!D8<源泉賞与表!$F$10*1000,0,INDEX(源泉賞与表!$B:$B,MATCH(賞与計算!D8/1000,源泉賞与表!$F:$F,1))) -> 14.294 | N5: =IF(賞与計算!D8<源泉賞与表!$H$10*1000,0,INDEX(源泉賞与表!$B:$B,MATCH(賞与計算!D8/1000,源泉賞与表!$H:$H,1))) -> 14.294 | O5: =IF(賞与計算!D8<源泉賞与表!$J$10*1000,0,INDEX(源泉賞与表!$B:$B,MATCH(賞与計算!D8/1000,源泉賞与表!$J:$J,1))) -> 12.252 | P5: =IF(賞与計算!D8<源泉賞与表!$L$10*1000,0,INDEX(源泉賞与表!$B:$B,MATCH(賞与計算!D8/1000,源泉賞与表!$L:$L,1))) -> 10.21 | Q5: =IF(賞与計算!D8<源泉賞与表!$N$10*1000,0,INDEX(源泉賞与表!$B:$B,MATCH(賞与計算!D8/1000,源泉賞与表!$N:$N,1))) -> 8.168 | R5: =IF(賞与計算!D8<源泉賞与表!$P$10*1000,0,INDEX(源泉賞与表!$B:$B,MATCH(賞与計算!D8/1000,源泉賞与表!$P:$P,1))) -> 6.126 | S5: =IF(賞与計算!D8<源泉賞与表!$R$10*1000,0,INDEX(源泉賞与表!$B:$B,MATCH(賞与計算!D8/1000,源泉賞与表!$R:$R,1))) -> 4.084 | T5: =IF(賞与計算!D8="","",IF(賞与計算!D8<源泉賞与表!$T$22*1000,10.21,INDEX(源泉賞与表!$B:$B,MATCH(賞与計算!D8/1000,源泉賞与表!$T:$T,1)))) -> 30.63 | U5: 0 | V5: =IF(基本情報!G8="",0,ROUND(VLOOKUP(基本情報!G8,INDIRECT(基本情報!$D$3&"!$C$15:$P$61"),10,0)-0.1,0)) -> 24925 | W5: =IF(基本情報!G8="",0,ROUND(VLOOKUP(基本情報!G8,INDIRECT(基本情報!$D$3&"!$C$15:$P$61"),14,0)-0.1,0)) -> 29225 | X5: =U5 -> 0 | Y5: =IF(基本情報!G8="",0,ROUND(IF(OR(基本情報!G8<税額基本情報!$E$24,基本情報!G8>税額基本情報!$E$25),AA5,VLOOKUP(基本情報!G8,INDIRECT(基本情報!$D$3&"!$C$19:$X$48"),18,0))-0.1,0)) -> 42800 | Z5: =IF(基本情報!G8="",0,ROUND(IF(OR(基本情報!G8<税額基本情報!$E$24,基本情報!G8>税額基本情報!$E$25),AB5,VLOOKUP(基本情報!G8,INDIRECT(基本情報!$D$3&"!$C$19:$X$48"),22,0))-0.1,0)) -> 43600 | AA5: =IF(基本情報!G8="",0,IF(基本情報!G8<税額基本情報!$E$24,税額基本情報!$F$24,IF(基本情報!G8>税額基本情報!$E$25,税額基本情報!$F$25,0))) -> 0 | AB5: =IF(基本情報!G8="",0,IF(基本情報!G8<税額基本情報!$E$24,税額基本情報!$G$24,IF(基本情報!G8>税額基本情報!$E$25,税額基本情報!$G$25,0))) -> 0 | AC5: =U5 -> 0 | AD5: =ROUND(ROUNDDOWN(賞与計算!F8,-3)*INDIRECT(基本情報!$D$3&"!$J$10")*0.5-0.1,0) -> 24925 | AE5: =ROUND(ROUNDDOWN(賞与計算!F8,-3)*INDIRECT(基本情報!$D$3&"!$N$10")/2-0.1,0) -> 29225 | AF5: =U5 -> 0 | AG5: =ROUND(IF(賞与計算!F8>税額基本情報!$D$28,税額基本情報!$D$28,ROUNDDOWN(賞与計算!F8,-3))*INDIRECT(基本情報!$D$3&"!$R$10")/2-0.1,0) -> 42800 | AH5: =ROUND(IF(賞与計算!F8>税額基本情報!$D$28,税額基本情報!$D$28,ROUNDDOWN(賞与計算!F8,-3))*INDIRECT(基本情報!$D$3&"!$V$10")/2-0.1,0) -> 43600
C6: 2 | D6: =給与計算!C9 -> 給与二郎 | E6: =MAX(IF(給与計算!M9>=税額基本情報!$D$6,MAX(計算シート!H6:J6),IF(給与計算!M9<源泉月額表!$B$8,0,VLOOKUP(給与計算!M9,源泉月額表!$B:$K,IF(基本情報!E9>=8,10,基本情報!E9+3),1)))-IF(基本情報!E9>=8,(基本情報!E9-7)*税額基本情報!$D$15,0),0) -> 6740 | F6: =IF(給与計算!M9<源泉月額表!$B$8,ROUNDDOWN(給与計算!M9*税額基本情報!$D$21,0),IF(給与計算!M9=0,0,IF(給与計算!M9>=税額基本情報!$D$12,K6,VLOOKUP(給与計算!M9,源泉月額表!$B:$L,11,1)))) -> 52900 | G6: =MAX(IF(給与計算!M9<源泉月額表!$B$8,ROUNDDOWN(給与計算!M9*3.063%,0),IF(給与計算!M9=0,0,IF(給与計算!M9>=税額基本情報!$D$12,K6,VLOOKUP(給与計算!M9,源泉月額表!$B:$L,11,1))))-基本情報!E9*税額基本情報!$D$18,0) -> 51290 | H6: =IF(AND(給与計算!M9>=1010000,給与計算!M9<1250000),VLOOKUP(給与計算!M9,税額基本情報!$D$6:$M$8,IF(基本情報!E9>=8,10,基本情報!E9+3),1)+ROUNDDOWN((給与計算!M9-税額基本情報!$D$6)*税額基本情報!$E$6,0),0) -> 0 | I6: =IF(AND(給与計算!M9>=1250000,給与計算!M9<1740000),VLOOKUP(給与計算!M9,税額基本情報!$D$6:$M$8,IF(基本情報!E9>=8,10,基本情報!E9+3),1)+ROUNDDOWN((給与計算!M9-税額基本情報!$D$7)*税額基本情報!$E$7,0),0) -> 0 | J6: =IF(給与計算!M9>=1740000,VLOOKUP(給与計算!M9,税額基本情報!$D$6:$M$8,IF(基本情報!E9>=8,10,基本情報!E9+3),1)+ROUNDDOWN((給与計算!M9-税額基本情報!$D$8)*税額基本情報!$E$8,0),0) -> 0 | K6: =IF(給与計算!M9>=1010000,税額基本情報!$F$12+ROUNDDOWN((給与計算!M9-税額基本情報!$D$12)*税額基本情報!$E$12,0),0) -> 0 | L6: =IF(賞与計算!D9<源泉賞与表!$D$10*1000,0,INDEX(源泉賞与表!$B:$B,MATCH(賞与計算!D9/1000,源泉賞与表!$D:$D,1))) -> 6.126 | M6: =IF(賞与計算!D9<源泉賞与表!$F$10*1000,0,INDEX(源泉賞与表!$B:$B,MATCH(賞与計算!D9/1000,源泉賞与表!$F:$F,1))) -> 4.084 | N6: =IF(賞与計算!D9<源泉賞与表!$H$10*1000,0,INDEX(源泉賞与表!$B:$B,MATCH(賞与計算!D9/1000,源泉賞与表!$H:$H,1))) -> 4.084 | O6: =IF(賞与計算!D9<源泉賞与表!$J$10*1000,0,INDEX(源泉賞与表!$B:$B,MATCH(賞与計算!D9/1000,源泉賞与表!$J:$J,1))) -> 2.042 | P6: =IF(賞与計算!D9<源泉賞与表!$L$10*1000,0,INDEX(源泉賞与表!$B:$B,MATCH(賞与計算!D9/1000,源泉賞与表!$L:$L,1))) -> 2.042 | Q6: =IF(賞与計算!D9<源泉賞与表!$N$10*1000,0,INDEX(源泉賞与表!$B:$B,MATCH(賞与計算!D9/1000,源泉賞与表!$N:$N,1))) -> 2.042 | R6: =IF(賞与計算!D9<源泉賞与表!$P$10*1000,0,INDEX(源泉賞与表!$B:$B,MATCH(賞与計算!D9/1000,源泉賞与表!$P:$P,1))) -> 2.042 | S6: =IF(賞与計算!D9<源泉賞与表!$R$10*1000,0,INDEX(源泉賞与表!$B:$B,MATCH(賞与計算!D9/1000,源泉賞与表!$R:$R,1))) -> 0 | T6: =IF(賞与計算!D9="","",IF(賞与計算!D9<源泉賞与表!$T$22*1000,10.21,INDEX(源泉賞与表!$B:$B,MATCH(賞与計算!D9/1000,源泉賞与表!$T:$T,1)))) -> 20.42 | U6: 0 | V6: =IF(基本情報!G9="",0,ROUND(VLOOKUP(基本情報!G9,INDIRECT(基本情報!$D$3&"!$C$15:$P$61"),10,0)-0.1,0)) -> 17946 | W6: =IF(基本情報!G9="",0,ROUND(VLOOKUP(基本情報!G9,INDIRECT(基本情報!$D$3&"!$C$15:$P$61"),14,0)-0.1,0)) -> 21042 | X6: =U6 -> 0 | Y6: =IF(基本情報!G9="",0,ROUND(IF(OR(基本情報!G9<税額基本情報!$E$24,基本情報!G9>税額基本情報!$E$25),AA6,VLOOKUP(基本情報!G9,INDIRECT(基本情報!$D$3&"!$C$19:$X$48"),18,0))-0.1,0)) -> 30816 | Z6: =IF(基本情報!G9="",0,ROUND(IF(OR(基本情報!G9<税額基本情報!$E$24,基本情報!G9>税額基本情報!$E$25),AB6,VLOOKUP(基本情報!G9,INDIRECT(基本情報!$D$3&"!$C$19:$X$48"),22,0))-0.1,0)) -> 31392 | AA6: =IF(基本情報!G9="",0,IF(基本情報!G9<税額基本情報!$E$24,税額基本情報!$F$24,IF(基本情報!G9>税額基本情報!$E$25,税額基本情報!$F$25,0))) -> 0 | AB6: =IF(基本情報!G9="",0,IF(基本情報!G9<税額基本情報!$E$24,税額基本情報!$G$24,IF(基本情報!G9>税額基本情報!$E$25,税額基本情報!$G$25,0))) -> 0 | AC6: =U6 -> 0 | AD6: =ROUND(ROUNDDOWN(賞与計算!F9,-3)*INDIRECT(基本情報!$D$3&"!$J$10")*0.5-0.1,0) -> 17447 | AE6: =ROUND(ROUNDDOWN(賞与計算!F9,-3)*INDIRECT(基本情報!$D$3&"!$N$10")/2-0.1,0) -> 20457 | AF6: =U6 -> 0 | AG6: =ROUND(IF(賞与計算!F9>税額基本情報!$D$28,税額基本情報!$D$28,ROUNDDOWN(賞与計算!F9,-3))*INDIRECT(基本情報!$D$3&"!$R$10")/2-0.1,0) -> 29960 | AH6: =ROUND(IF(賞与計算!F9>税額基本情報!$D$28,税額基本情報!$D$28,ROUNDDOWN(賞与計算!F9,-3))*INDIRECT(基本情報!$D$3&"!$V$10")/2-0.1,0) -> 30520
C7: 3 | D7: =給与計算!C10 -> 給与三郎 | E7: =MAX(IF(給与計算!M10>=税額基本情報!$D$6,MAX(計算シート!H7:J7),IF(給与計算!M10<源泉月額表!$B$8,0,VLOOKUP(給与計算!M10,源泉月額表!$B:$K,IF(基本情報!E10>=8,10,基本情報!E10+3),1)))-IF(基本情報!E10>=8,(基本情報!E10-7)*税額基本情報!$D$15,0),0) -> 2980 | F7: =IF(給与計算!M10<源泉月額表!$B$8,ROUNDDOWN(給与計算!M10*税額基本情報!$D$21,0),IF(給与計算!M10=0,0,IF(給与計算!M10>=税額基本情報!$D$12,K7,VLOOKUP(給与計算!M10,源泉月額表!$B:$L,11,1)))) -> 8700 | G7: =MAX(IF(給与計算!M10<源泉月額表!$B$8,ROUNDDOWN(給与計算!M10*3.063%,0),IF(給与計算!M10=0,0,IF(給与計算!M10>=税額基本情報!$D$12,K7,VLOOKUP(給与計算!M10,源泉月額表!$B:$L,11,1))))-基本情報!E10*税額基本情報!$D$18,0) -> 8700 | H7: =IF(AND(給与計算!M10>=1010000,給与計算!M10<1250000),VLOOKUP(給与計算!M10,税額基本情報!$D$6:$M$8,IF(基本情報!E10>=8,10,基本情報!E10+3),1)+ROUNDDOWN((給与計算!M10-税額基本情報!$D$6)*税額基本情報!$E$6,0),0) -> 0 | I7: =IF(AND(給与計算!M10>=1250000,給与計算!M10<1740000),VLOOKUP(給与計算!M10,税額基本情報!$D$6:$M$8,IF(基本情報!E10>=8,10,基本情報!E10+3),1)+ROUNDDOWN((給与計算!M10-税額基本情報!$D$7)*税額基本情報!$E$7,0),0) -> 0 | J7: =IF(給与計算!M10>=1740000,VLOOKUP(給与計算!M10,税額基本情報!$D$6:$M$8,IF(基本情報!E10>=8,10,基本情報!E10+3),1)+ROUNDDOWN((給与計算!M10-税額基本情報!$D$8)*税額基本情報!$E$8,0),0) -> 0 | K7: =IF(給与計算!M10>=1010000,税額基本情報!$F$12+ROUNDDOWN((給与計算!M10-税額基本情報!$D$12)*税額基本情報!$E$12,0),0) -> 0 | L7: =IF(賞与計算!D10<源泉賞与表!$D$10*1000,0,INDEX(源泉賞与表!$B:$B,MATCH(賞与計算!D10/1000,源泉賞与表!$D:$D,1))) -> 4.084 | M7: =IF(賞与計算!D10<源泉賞与表!$F$10*1000,0,INDEX(源泉賞与表!$B:$B,MATCH(賞与計算!D10/1000,源泉賞与表!$F:$F,1))) -> 2.042 | N7: =IF(賞与計算!D10<源泉賞与表!$H$10*1000,0,INDEX(源泉賞与表!$B:$B,MATCH(賞与計算!D10/1000,源泉賞与表!$H:$H,1))) -> 2.042 | O7: =IF(賞与計算!D10<源泉賞与表!$J$10*1000,0,INDEX(源泉賞与表!$B:$B,MATCH(賞与計算!D10/1000,源泉賞与表!$J:$J,1))) -> 0 | P7: =IF(賞与計算!D10<源泉賞与表!$L$10*1000,0,INDEX(源泉賞与表!$B:$B,MATCH(賞与計算!D10/1000,源泉賞与表!$L:$L,1))) -> 0 | Q7: =IF(賞与計算!D10<源泉賞与表!$N$10*1000,0,INDEX(源泉賞与表!$B:$B,MATCH(賞与計算!D10/1000,源泉賞与表!$N:$N,1))) -> 0 | R7: =IF(賞与計算!D10<源泉賞与表!$P$10*1000,0,INDEX(源泉賞与表!$B:$B,MATCH(賞与計算!D10/1000,源泉賞与表!$P:$P,1))) -> 0 | S7: =IF(賞与計算!D10<源泉賞与表!$R$10*1000,0,INDEX(源泉賞与表!$B:$B,MATCH(賞与計算!D10/1000,源泉賞与表!$R:$R,1))) -> 0 | T7: =IF(賞与計算!D10="","",IF(賞与計算!D10<源泉賞与表!$T$22*1000,10.21,INDEX(源泉賞与表!$B:$B,MATCH(賞与計算!D10/1000,源泉賞与表!$T:$T,1)))) -> 10.21 | U7: 0 | V7: =IF(基本情報!G10="",0,ROUND(VLOOKUP(基本情報!G10,INDIRECT(基本情報!$D$3&"!$C$15:$P$61"),10,0)-0.1,0)) -> 0 | W7: =IF(基本情報!G10="",0,ROUND(VLOOKUP(基本情報!G10,INDIRECT(基本情報!$D$3&"!$C$15:$P$61"),14,0)-0.1,0)) -> 0 | X7: 0 | Y7: =IF(基本情報!G10="",0,ROUND(IF(OR(基本情報!G10<税額基本情報!$E$24,基本情報!G10>税額基本情報!$E$25),AA7,VLOOKUP(基本情報!G10,INDIRECT(基本情報!$D$3&"!$C$19:$X$48"),18,0))-0.1,0)) -> 0 | Z7: =IF(基本情報!G10="",0,ROUND(IF(OR(基本情報!G10<税額基本情報!$E$24,基本情報!G10>税額基本情報!$E$25),AB7,VLOOKUP(基本情報!G10,INDIRECT(基本情報!$D$3&"!$C$19:$X$48"),22,0))-0.1,0)) -> 0 | AA7: =IF(基本情報!G10="",0,IF(基本情報!G10<税額基本情報!$E$24,税額基本情報!$F$24,IF(基本情報!G10>税額基本情報!$E$25,税額基本情報!$F$25,0))) -> 0 | AB7: =IF(基本情報!G10="",0,IF(基本情報!G10<税額基本情報!$E$24,税額基本情報!$G$24,IF(基本情報!G10>税額基本情報!$E$25,税額基本情報!$G$25,0))) -> 0 | AC7: 0 | AD7: =ROUND(ROUNDDOWN(賞与計算!F10,-3)*INDIRECT(基本情報!$D$3&"!$J$10")*0.5-0.1,0) -> 7477 | AE7: =ROUND(ROUNDDOWN(賞与計算!F10,-3)*INDIRECT(基本情報!$D$3&"!$N$10")/2-0.1,0) -> 8767 | AF7: 0 | AG7: =ROUND(IF(賞与計算!F10>税額基本情報!$D$28,税額基本情報!$D$28,ROUNDDOWN(賞与計算!F10,-3))*INDIRECT(基本情報!$D$3&"!$R$10")/2-0.1,0) -> 12840 | AH7: =ROUND(IF(賞与計算!F10>税額基本情報!$D$28,税額基本情報!$D$28,ROUNDDOWN(賞与計算!F10,-3))*INDIRECT(基本情報!$D$3&"!$V$10")/2-0.1,0) -> 13080
C8: 4 | D8: =給与計算!C11 ->  | E8: =MAX(IF(給与計算!M11>=税額基本情報!$D$6,MAX(計算シート!H8:J8),IF(給与計算!M11<源泉月額表!$B$8,0,VLOOKUP(給与計算!M11,源泉月額表!$B:$K,IF(基本情報!E11>=8,10,基本情報!E11+3),1)))-IF(基本情報!E11>=8,(基本情報!E11-7)*税額基本情報!$D$15,0),0) -> 0 | F8: =IF(給与計算!M11<源泉月額表!$B$8,ROUNDDOWN(給与計算!M11*税額基本情報!$D$21,0),IF(給与計算!M11=0,0,IF(給与計算!M11>=税額基本情報!$D$12,K8,VLOOKUP(給与計算!M11,源泉月額表!$B:$L,11,1)))) -> 0 | G8: =MAX(IF(給与計算!M11<源泉月額表!$B$8,ROUNDDOWN(給与計算!M11*3.063%,0),IF(給与計算!M11=0,0,IF(給与計算!M11>=税額基本情報!$D$12,K8,VLOOKUP(給与計算!M11,源泉月額表!$B:$L,11,1))))-基本情報!E11*税額基本情報!$D$18,0) -> 0 | H8: =IF(AND(給与計算!M11>=1010000,給与計算!M11<1250000),VLOOKUP(給与計算!M11,税額基本情報!$D$6:$M$8,IF(基本情報!E11>=8,10,基本情報!E11+3),1)+ROUNDDOWN((給与計算!M11-税額基本情報!$D$6)*税額基本情報!$E$6,0),0) -> 0 | I8: =IF(AND(給与計算!M11>=1250000,給与計算!M11<1740000),VLOOKUP(給与計算!M11,税額基本情報!$D$6:$M$8,IF(基本情報!E11>=8,10,基本情報!E11+3),1)+ROUNDDOWN((給与計算!M11-税額基本情報!$D$7)*税額基本情報!$E$7,0),0) -> 0 | J8: =IF(給与計算!M11>=1740000,VLOOKUP(給与計算!M11,税額基本情報!$D$6:$M$8,IF(基本情報!E11>=8,10,基本情報!E11+3),1)+ROUNDDOWN((給与計算!M11-税額基本情報!$D$8)*税額基本情報!$E$8,0),0) -> 0 | K8: =IF(給与計算!M11>=1010000,税額基本情報!$F$12+ROUNDDOWN((給与計算!M11-税額基本情報!$D$12)*税額基本情報!$E$12,0),0) -> 0 | L8: =IF(賞与計算!D11<源泉賞与表!$D$10*1000,0,INDEX(源泉賞与表!$B:$B,MATCH(賞与計算!D11/1000,源泉賞与表!$D:$D,1))) -> 0 | M8: =IF(賞与計算!D11<源泉賞与表!$F$10*1000,0,INDEX(源泉賞与表!$B:$B,MATCH(賞与計算!D11/1000,源泉賞与表!$F:$F,1))) -> 0 | N8: =IF(賞与計算!D11<源泉賞与表!$H$10*1000,0,INDEX(源泉賞与表!$B:$B,MATCH(賞与計算!D11/1000,源泉賞与表!$H:$H,1))) -> 0 | O8: =IF(賞与計算!D11<源泉賞与表!$J$10*1000,0,INDEX(源泉賞与表!$B:$B,MATCH(賞与計算!D11/1000,源泉賞与表!$J:$J,1))) -> 0 | P8: =IF(賞与計算!D11<源泉賞与表!$L$10*1000,0,INDEX(源泉賞与表!$B:$B,MATCH(賞与計算!D11/1000,源泉賞与表!$L:$L,1))) -> 0 | Q8: =IF(賞与計算!D11<源泉賞与表!$N$10*1000,0,INDEX(源泉賞与表!$B:$B,MATCH(賞与計算!D11/1000,源泉賞与表!$N:$N,1))) -> 0 | R8: =IF(賞与計算!D11<源泉賞与表!$P$10*1000,0,INDEX(源泉賞与表!$B:$B,MATCH(賞与計算!D11/1000,源泉賞与表!$P:$P,1))) -> 0 | S8: =IF(賞与計算!D11<源泉賞与表!$R$10*1000,0,INDEX(源泉賞与表!$B:$B,MATCH(賞与計算!D11/1000,源泉賞与表!$R:$R,1))) -> 0 | T8: =IF(賞与計算!D11="","",IF(賞与計算!D11<源泉賞与表!$T$22*1000,10.21,INDEX(源泉賞与表!$B:$B,MATCH(賞与計算!D11/1000,源泉賞与表!$T:$T,1)))) ->  | U8: 0 | V8: =IF(基本情報!G11="",0,ROUND(VLOOKUP(基本情報!G11,INDIRECT(基本情報!$D$3&"!$C$15:$P$61"),10,0)-0.1,0)) -> 0 | W8: =IF(基本情報!G11="",0,ROUND(VLOOKUP(基本情報!G11,INDIRECT(基本情報!$D$3&"!$C$15:$P$61"),14,0)-0.1,0)) -> 0 | X8: 0 | Y8: =IF(基本情報!G11="",0,ROUND(IF(OR(基本情報!G11<税額基本情報!$E$24,基本情報!G11>税額基本情報!$E$25),AA8,VLOOKUP(基本情報!G11,INDIRECT(基本情報!$D$3&"!$C$19:$X$48"),18,0))-0.1,0)) -> 0 | Z8: =IF(基本情報!G11="",0,ROUND(IF(OR(基本情報!G11<税額基本情報!$E$24,基本情報!G11>税額基本情報!$E$25),AB8,VLOOKUP(基本情報!G11,INDIRECT(基本情報!$D$3&"!$C$19:$X$48"),22,0))-0.1,0)) -> 0 | AA8: =IF(基本情報!G11="",0,IF(基本情報!G11<税額基本情報!$E$24,税額基本情報!$F$24,IF(基本情報!G11>税額基本情報!$E$25,税額基本情報!$F$25,0))) -> 0 | AB8: =IF(基本情報!G11="",0,IF(基本情報!G11<税額基本情報!$E$24,税額基本情報!$G$24,IF(基本情報!G11>税額基本情報!$E$25,税額基本情報!$G$25,0))) -> 0 | AC8: 0 | AD8: =ROUND(ROUNDDOWN(賞与計算!F11,-3)*INDIRECT(基本情報!$D$3&"!$J$10")*0.5-0.1,0) -> 0 | AE8: =ROUND(ROUNDDOWN(賞与計算!F11,-3)*INDIRECT(基本情報!$D$3&"!$N$10")/2-0.1,0) -> 0 | AF8: 0 | AG8: =ROUND(IF(賞与計算!F11>税額基本情報!$D$28,税額基本情報!$D$28,ROUNDDOWN(賞与計算!F11,-3))*INDIRECT(基本情報!$D$3&"!$R$10")/2-0.1,0) -> 0 | AH8: =ROUND(IF(賞与計算!F11>税額基本情報!$D$28,税額基本情報!$D$28,ROUNDDOWN(賞与計算!F11,-3))*INDIRECT(基本情報!$D$3&"!$V$10")/2-0.1,0) -> 0
C9: 5 | D9: =給与計算!C12 ->  | E9: =MAX(IF(給与計算!M12>=税額基本情報!$D$6,MAX(計算シート!H9:J9),IF(給与計算!M12<源泉月額表!$B$8,0,VLOOKUP(給与計算!M12,源泉月額表!$B:$K,IF(基本情報!E12>=8,10,基本情報!E12+3),1)))-IF(基本情報!E12>=8,(基本情報!E12-7)*税額基本情報!$D$15,0),0) -> 0 | F9: =IF(給与計算!M12<源泉月額表!$B$8,ROUNDDOWN(給与計算!M12*税額基本情報!$D$21,0),IF(給与計算!M12=0,0,IF(給与計算!M12>=税額基本情報!$D$12,K9,VLOOKUP(給与計算!M12,源泉月額表!$B:$L,11,1)))) -> 0 | G9: =MAX(IF(給与計算!M12<源泉月額表!$B$8,ROUNDDOWN(給与計算!M12*3.063%,0),IF(給与計算!M12=0,0,IF(給与計算!M12>=税額基本情報!$D$12,K9,VLOOKUP(給与計算!M12,源泉月額表!$B:$L,11,1))))-基本情報!E12*税額基本情報!$D$18,0) -> 0 | H9: =IF(AND(給与計算!M12>=1010000,給与計算!M12<1250000),VLOOKUP(給与計算!M12,税額基本情報!$D$6:$M$8,IF(基本情報!E12>=8,10,基本情報!E12+3),1)+ROUNDDOWN((給与計算!M12-税額基本情報!$D$6)*税額基本情報!$E$6,0),0) -> 0 | I9: =IF(AND(給与計算!M12>=1250000,給与計算!M12<1740000),VLOOKUP(給与計算!M12,税額基本情報!$D$6:$M$8,IF(基本情報!E12>=8,10,基本情報!E12+3),1)+ROUNDDOWN((給与計算!M12-税額基本情報!$D$7)*税額基本情報!$E$7,0),0) -> 0 | J9: =IF(給与計算!M12>=1740000,VLOOKUP(給与計算!M12,税額基本情報!$D$6:$M$8,IF(基本情報!E12>=8,10,基本情報!E12+3),1)+ROUNDDOWN((給与計算!M12-税額基本情報!$D$8)*税額基本情報!$E$8,0),0) -> 0 | K9: =IF(給与計算!M12>=1010000,税額基本情報!$F$12+ROUNDDOWN((給与計算!M12-税額基本情報!$D$12)*税額基本情報!$E$12,0),0) -> 0 | L9: =IF(賞与計算!D12<源泉賞与表!$D$10*1000,0,INDEX(源泉賞与表!$B:$B,MATCH(賞与計算!D12/1000,源泉賞与表!$D:$D,1))) -> 0 | M9: =IF(賞与計算!D12<源泉賞与表!$F$10*1000,0,INDEX(源泉賞与表!$B:$B,MATCH(賞与計算!D12/1000,源泉賞与表!$F:$F,1))) -> 0 | N9: =IF(賞与計算!D12<源泉賞与表!$H$10*1000,0,INDEX(源泉賞与表!$B:$B,MATCH(賞与計算!D12/1000,源泉賞与表!$H:$H,1))) -> 0 | O9: =IF(賞与計算!D12<源泉賞与表!$J$10*1000,0,INDEX(源泉賞与表!$B:$B,MATCH(賞与計算!D12/1000,源泉賞与表!$J:$J,1))) -> 0 | P9: =IF(賞与計算!D12<源泉賞与表!$L$10*1000,0,INDEX(源泉賞与表!$B:$B,MATCH(賞与計算!D12/1000,源泉賞与表!$L:$L,1))) -> 0 | Q9: =IF(賞与計算!D12<源泉賞与表!$N$10*1000,0,INDEX(源泉賞与表!$B:$B,MATCH(賞与計算!D12/1000,源泉賞与表!$N:$N,1))) -> 0 | R9: =IF(賞与計算!D12<源泉賞与表!$P$10*1000,0,INDEX(源泉賞与表!$B:$B,MATCH(賞与計算!D12/1000,源泉賞与表!$P:$P,1))) -> 0 | S9: =IF(賞与計算!D12<源泉賞与表!$R$10*1000,0,INDEX(源泉賞与表!$B:$B,MATCH(賞与計算!D12/1000,源泉賞与表!$R:$R,1))) -> 0 | T9: =IF(賞与計算!D12="","",IF(賞与計算!D12<源泉賞与表!$T$22*1000,10.21,INDEX(源泉賞与表!$B:$B,MATCH(賞与計算!D12/1000,源泉賞与表!$T:$T,1)))) ->  | U9: 0 | V9: =IF(基本情報!G12="",0,ROUND(VLOOKUP(基本情報!G12,INDIRECT(基本情報!$D$3&"!$C$15:$P$61"),10,0)-0.1,0)) -> 0 | W9: =IF(基本情報!G12="",0,ROUND(VLOOKUP(基本情報!G12,INDIRECT(基本情報!$D$3&"!$C$15:$P$61"),14,0)-0.1,0)) -> 0 | X9: 0 | Y9: =IF(基本情報!G12="",0,ROUND(IF(OR(基本情報!G12<税額基本情報!$E$24,基本情報!G12>税額基本情報!$E$25),AA9,VLOOKUP(基本情報!G12,INDIRECT(基本情報!$D$3&"!$C$19:$X$48"),18,0))-0.1,0)) -> 0 | Z9: =IF(基本情報!G12="",0,ROUND(IF(OR(基本情報!G12<税額基本情報!$E$24,基本情報!G12>税額基本情報!$E$25),AB9,VLOOKUP(基本情報!G12,INDIRECT(基本情報!$D$3&"!$C$19:$X$48"),22,0))-0.1,0)) -> 0 | AA9: =IF(基本情報!G12="",0,IF(基本情報!G12<税額基本情報!$E$24,税額基本情報!$F$24,IF(基本情報!G12>税額基本情報!$E$25,税額基本情報!$F$25,0))) -> 0 | AB9: =IF(基本情報!G12="",0,IF(基本情報!G12<税額基本情報!$E$24,税額基本情報!$G$24,IF(基本情報!G12>税額基本情報!$E$25,税額基本情報!$G$25,0))) -> 0 | AC9: 0 | AD9: =ROUND(ROUNDDOWN(賞与計算!F12,-3)*INDIRECT(基本情報!$D$3&"!$J$10")*0.5-0.1,0) -> 0 | AE9: =ROUND(ROUNDDOWN(賞与計算!F12,-3)*INDIRECT(基本情報!$D$3&"!$N$10")/2-0.1,0) -> 0 | AF9: 0 | AG9: =ROUND(IF(賞与計算!F12>税額基本情報!$D$28,税額基本情報!$D$28,ROUNDDOWN(賞与計算!F12,-3))*INDIRECT(基本情報!$D$3&"!$R$10")/2-0.1,0) -> 0 | AH9: =ROUND(IF(賞与計算!F12>税額基本情報!$D$28,税額基本情報!$D$28,ROUNDDOWN(賞与計算!F12,-3))*INDIRECT(基本情報!$D$3&"!$V$10")/2-0.1,0) -> 0
C10: 6 | D10: =給与計算!C13 ->  | E10: =MAX(IF(給与計算!M13>=税額基本情報!$D$6,MAX(計算シート!H10:J10),IF(給与計算!M13<源泉月額表!$B$8,0,VLOOKUP(給与計算!M13,源泉月額表!$B:$K,IF(基本情報!E13>=8,10,基本情報!E13+3),1)))-IF(基本情報!E13>=8,(基本情報!E13-7)*税額基本情報!$D$15,0),0) -> 0 | F10: =IF(給与計算!M13<源泉月額表!$B$8,ROUNDDOWN(給与計算!M13*税額基本情報!$D$21,0),IF(給与計算!M13=0,0,IF(給与計算!M13>=税額基本情報!$D$12,K10,VLOOKUP(給与計算!M13,源泉月額表!$B:$L,11,1)))) -> 0 | G10: =MAX(IF(給与計算!M13<源泉月額表!$B$8,ROUNDDOWN(給与計算!M13*3.063%,0),IF(給与計算!M13=0,0,IF(給与計算!M13>=税額基本情報!$D$12,K10,VLOOKUP(給与計算!M13,源泉月額表!$B:$L,11,1))))-基本情報!E13*税額基本情報!$D$18,0) -> 0 | H10: =IF(AND(給与計算!M13>=1010000,給与計算!M13<1250000),VLOOKUP(給与計算!M13,税額基本情報!$D$6:$M$8,IF(基本情報!E13>=8,10,基本情報!E13+3),1)+ROUNDDOWN((給与計算!M13-税額基本情報!$D$6)*税額基本情報!$E$6,0),0) -> 0 | I10: =IF(AND(給与計算!M13>=1250000,給与計算!M13<1740000),VLOOKUP(給与計算!M13,税額基本情報!$D$6:$M$8,IF(基本情報!E13>=8,10,基本情報!E13+3),1)+ROUNDDOWN((給与計算!M13-税額基本情報!$D$7)*税額基本情報!$E$7,0),0) -> 0 | J10: =IF(給与計算!M13>=1740000,VLOOKUP(給与計算!M13,税額基本情報!$D$6:$M$8,IF(基本情報!E13>=8,10,基本情報!E13+3),1)+ROUNDDOWN((給与計算!M13-税額基本情報!$D$8)*税額基本情報!$E$8,0),0) -> 0 | K10: =IF(給与計算!M13>=1010000,税額基本情報!$F$12+ROUNDDOWN((給与計算!M13-税額基本情報!$D$12)*税額基本情報!$E$12,0),0) -> 0 | L10: =IF(賞与計算!D13<源泉賞与表!$D$10*1000,0,INDEX(源泉賞与表!$B:$B,MATCH(賞与計算!D13/1000,源泉賞与表!$D:$D,1))) -> 0 | M10: =IF(賞与計算!D13<源泉賞与表!$F$10*1000,0,INDEX(源泉賞与表!$B:$B,MATCH(賞与計算!D13/1000,源泉賞与表!$F:$F,1))) -> 0 | N10: =IF(賞与計算!D13<源泉賞与表!$H$10*1000,0,INDEX(源泉賞与表!$B:$B,MATCH(賞与計算!D13/1000,源泉賞与表!$H:$H,1))) -> 0 | O10: =IF(賞与計算!D13<源泉賞与表!$J$10*1000,0,INDEX(源泉賞与表!$B:$B,MATCH(賞与計算!D13/1000,源泉賞与表!$J:$J,1))) -> 0 | P10: =IF(賞与計算!D13<源泉賞与表!$L$10*1000,0,INDEX(源泉賞与表!$B:$B,MATCH(賞与計算!D13/1000,源泉賞与表!$L:$L,1))) -> 0 | Q10: =IF(賞与計算!D13<源泉賞与表!$N$10*1000,0,INDEX(源泉賞与表!$B:$B,MATCH(賞与計算!D13/1000,源泉賞与表!$N:$N,1))) -> 0 | R10: =IF(賞与計算!D13<源泉賞与表!$P$10*1000,0,INDEX(源泉賞与表!$B:$B,MATCH(賞与計算!D13/1000,源泉賞与表!$P:$P,1))) -> 0 | S10: =IF(賞与計算!D13<源泉賞与表!$R$10*1000,0,INDEX(源泉賞与表!$B:$B,MATCH(賞与計算!D13/1000,源泉賞与表!$R:$R,1))) -> 0 | T10: =IF(賞与計算!D13="","",IF(賞与計算!D13<源泉賞与表!$T$22*1000,10.21,INDEX(源泉賞与表!$B:$B,MATCH(賞与計算!D13/1000,源泉賞与表!$T:$T,1)))) ->  | U10: 0 | V10: =IF(基本情報!G13="",0,ROUND(VLOOKUP(基本情報!G13,INDIRECT(基本情報!$D$3&"!$C$15:$P$61"),10,0)-0.1,0)) -> 0 | W10: =IF(基本情報!G13="",0,ROUND(VLOOKUP(基本情報!G13,INDIRECT(基本情報!$D$3&"!$C$15:$P$61"),14,0)-0.1,0)) -> 0 | X10: 0 | Y10: =IF(基本情報!G13="",0,ROUND(IF(OR(基本情報!G13<税額基本情報!$E$24,基本情報!G13>税額基本情報!$E$25),AA10,VLOOKUP(基本情報!G13,INDIRECT(基本情報!$D$3&"!$C$19:$X$48"),18,0))-0.1,0)) -> 0 | Z10: =IF(基本情報!G13="",0,ROUND(IF(OR(基本情報!G13<税額基本情報!$E$24,基本情報!G13>税額基本情報!$E$25),AB10,VLOOKUP(基本情報!G13,INDIRECT(基本情報!$D$3&"!$C$19:$X$48"),22,0))-0.1,0)) -> 0 | AA10: =IF(基本情報!G13="",0,IF(基本情報!G13<税額基本情報!$E$24,税額基本情報!$F$24,IF(基本情報!G13>税額基本情報!$E$25,税額基本情報!$F$25,0))) -> 0 | AB10: =IF(基本情報!G13="",0,IF(基本情報!G13<税額基本情報!$E$24,税額基本情報!$G$24,IF(基本情報!G13>税額基本情報!$E$25,税額基本情報!$G$25,0))) -> 0 | AC10: 0 | AD10: =ROUND(ROUNDDOWN(賞与計算!F13,-3)*INDIRECT(基本情報!$D$3&"!$J$10")*0.5-0.1,0) -> 0 | AE10: =ROUND(ROUNDDOWN(賞与計算!F13,-3)*INDIRECT(基本情報!$D$3&"!$N$10")/2-0.1,0) -> 0 | AF10: 0 | AG10: =ROUND(IF(賞与計算!F13>税額基本情報!$D$28,税額基本情報!$D$28,ROUNDDOWN(賞与計算!F13,-3))*INDIRECT(基本情報!$D$3&"!$R$10")/2-0.1,0) -> 0 | AH10: =ROUND(IF(賞与計算!F13>税額基本情報!$D$28,税額基本情報!$D$28,ROUNDDOWN(賞与計算!F13,-3))*INDIRECT(基本情報!$D$3&"!$V$10")/2-0.1,0) -> 0
C11: 7 | D11: =給与計算!C14 ->  | E11: =MAX(IF(給与計算!M14>=税額基本情報!$D$6,MAX(計算シート!H11:J11),IF(給与計算!M14<源泉月額表!$B$8,0,VLOOKUP(給与計算!M14,源泉月額表!$B:$K,IF(基本情報!E14>=8,10,基本情報!E14+3),1)))-IF(基本情報!E14>=8,(基本情報!E14-7)*税額基本情報!$D$15,0),0) -> 0 | F11: =IF(給与計算!M14<源泉月額表!$B$8,ROUNDDOWN(給与計算!M14*税額基本情報!$D$21,0),IF(給与計算!M14=0,0,IF(給与計算!M14>=税額基本情報!$D$12,K11,VLOOKUP(給与計算!M14,源泉月額表!$B:$L,11,1)))) -> 0 | G11: =MAX(IF(給与計算!M14<源泉月額表!$B$8,ROUNDDOWN(給与計算!M14*3.063%,0),IF(給与計算!M14=0,0,IF(給与計算!M14>=税額基本情報!$D$12,K11,VLOOKUP(給与計算!M14,源泉月額表!$B:$L,11,1))))-基本情報!E14*税額基本情報!$D$18,0) -> 0 | H11: =IF(AND(給与計算!M14>=1010000,給与計算!M14<1250000),VLOOKUP(給与計算!M14,税額基本情報!$D$6:$M$8,IF(基本情報!E14>=8,10,基本情報!E14+3),1)+ROUNDDOWN((給与計算!M14-税額基本情報!$D$6)*税額基本情報!$E$6,0),0) -> 0 | I11: =IF(AND(給与計算!M14>=1250000,給与計算!M14<1740000),VLOOKUP(給与計算!M14,税額基本情報!$D$6:$M$8,IF(基本情報!E14>=8,10,基本情報!E14+3),1)+ROUNDDOWN((給与計算!M14-税額基本情報!$D$7)*税額基本情報!$E$7,0),0) -> 0 | J11: =IF(給与計算!M14>=1740000,VLOOKUP(給与計算!M14,税額基本情報!$D$6:$M$8,IF(基本情報!E14>=8,10,基本情報!E14+3),1)+ROUNDDOWN((給与計算!M14-税額基本情報!$D$8)*税額基本情報!$E$8,0),0) -> 0 | K11: =IF(給与計算!M14>=1010000,税額基本情報!$F$12+ROUNDDOWN((給与計算!M14-税額基本情報!$D$12)*税額基本情報!$E$12,0),0) -> 0 | L11: =IF(賞与計算!D14<源泉賞与表!$D$10*1000,0,INDEX(源泉賞与表!$B:$B,MATCH(賞与計算!D14/1000,源泉賞与表!$D:$D,1))) -> 0 | M11: =IF(賞与計算!D14<源泉賞与表!$F$10*1000,0,INDEX(源泉賞与表!$B:$B,MATCH(賞与計算!D14/1000,源泉賞与表!$F:$F,1))) -> 0 | N11: =IF(賞与計算!D14<源泉賞与表!$H$10*1000,0,INDEX(源泉賞与表!$B:$B,MATCH(賞与計算!D14/1000,源泉賞与表!$H:$H,1))) -> 0 | O11: =IF(賞与計算!D14<源泉賞与表!$J$10*1000,0,INDEX(源泉賞与表!$B:$B,MATCH(賞与計算!D14/1000,源泉賞与表!$J:$J,1))) -> 0 | P11: =IF(賞与計算!D14<源泉賞与表!$L$10*1000,0,INDEX(源泉賞与表!$B:$B,MATCH(賞与計算!D14/1000,源泉賞与表!$L:$L,1))) -> 0 | Q11: =IF(賞与計算!D14<源泉賞与表!$N$10*1000,0,INDEX(源泉賞与表!$B:$B,MATCH(賞与計算!D14/1000,源泉賞与表!$N:$N,1))) -> 0 | R11: =IF(賞与計算!D14<源泉賞与表!$P$10*1000,0,INDEX(源泉賞与表!$B:$B,MATCH(賞与計算!D14/1000,源泉賞与表!$P:$P,1))) -> 0 | S11: =IF(賞与計算!D14<源泉賞与表!$R$10*1000,0,INDEX(源泉賞与表!$B:$B,MATCH(賞与計算!D14/1000,源泉賞与表!$R:$R,1))) -> 0 | T11: =IF(賞与計算!D14="","",IF(賞与計算!D14<源泉賞与表!$T$22*1000,10.21,INDEX(源泉賞与表!$B:$B,MATCH(賞与計算!D14/1000,源泉賞与表!$T:$T,1)))) ->  | U11: 0 | V11: =IF(基本情報!G14="",0,ROUND(VLOOKUP(基本情報!G14,INDIRECT(基本情報!$D$3&"!$C$15:$P$61"),10,0)-0.1,0)) -> 0 | W11: =IF(基本情報!G14="",0,ROUND(VLOOKUP(基本情報!G14,INDIRECT(基本情報!$D$3&"!$C$15:$P$61"),14,0)-0.1,0)) -> 0 | X11: 0 | Y11: =IF(基本情報!G14="",0,ROUND(IF(OR(基本情報!G14<税額基本情報!$E$24,基本情報!G14>税額基本情報!$E$25),AA11,VLOOKUP(基本情報!G14,INDIRECT(基本情報!$D$3&"!$C$19:$X$48"),18,0))-0.1,0)) -> 0 | Z11: =IF(基本情報!G14="",0,ROUND(IF(OR(基本情報!G14<税額基本情報!$E$24,基本情報!G14>税額基本情報!$E$25),AB11,VLOOKUP(基本情報!G14,INDIRECT(基本情報!$D$3&"!$C$19:$X$48"),22,0))-0.1,0)) -> 0 | AA11: =IF(基本情報!G14="",0,IF(基本情報!G14<税額基本情報!$E$24,税額基本情報!$F$24,IF(基本情報!G14>税額基本情報!$E$25,税額基本情報!$F$25,0))) -> 0 | AB11: =IF(基本情報!G14="",0,IF(基本情報!G14<税額基本情報!$E$24,税額基本情報!$G$24,IF(基本情報!G14>税額基本情報!$E$25,税額基本情報!$G$25,0))) -> 0 | AC11: 0 | AD11: =ROUND(ROUNDDOWN(賞与計算!F14,-3)*INDIRECT(基本情報!$D$3&"!$J$10")*0.5-0.1,0) -> 0 | AE11: =ROUND(ROUNDDOWN(賞与計算!F14,-3)*INDIRECT(基本情報!$D$3&"!$N$10")/2-0.1,0) -> 0 | AF11: 0 | AG11: =ROUND(IF(賞与計算!F14>税額基本情報!$D$28,税額基本情報!$D$28,ROUNDDOWN(賞与計算!F14,-3))*INDIRECT(基本情報!$D$3&"!$R$10")/2-0.1,0) -> 0 | AH11: =ROUND(IF(賞与計算!F14>税額基本情報!$D$28,税額基本情報!$D$28,ROUNDDOWN(賞与計算!F14,-3))*INDIRECT(基本情報!$D$3&"!$V$10")/2-0.1,0) -> 0
C12: 8 | D12: =給与計算!C15 ->  | E12: =MAX(IF(給与計算!M15>=税額基本情報!$D$6,MAX(計算シート!H12:J12),IF(給与計算!M15<源泉月額表!$B$8,0,VLOOKUP(給与計算!M15,源泉月額表!$B:$K,IF(基本情報!E15>=8,10,基本情報!E15+3),1)))-IF(基本情報!E15>=8,(基本情報!E15-7)*税額基本情報!$D$15,0),0) -> 0 | F12: =IF(給与計算!M15<源泉月額表!$B$8,ROUNDDOWN(給与計算!M15*税額基本情報!$D$21,0),IF(給与計算!M15=0,0,IF(給与計算!M15>=税額基本情報!$D$12,K12,VLOOKUP(給与計算!M15,源泉月額表!$B:$L,11,1)))) -> 0 | G12: =MAX(IF(給与計算!M15<源泉月額表!$B$8,ROUNDDOWN(給与計算!M15*3.063%,0),IF(給与計算!M15=0,0,IF(給与計算!M15>=税額基本情報!$D$12,K12,VLOOKUP(給与計算!M15,源泉月額表!$B:$L,11,1))))-基本情報!E15*税額基本情報!$D$18,0) -> 0 | H12: =IF(AND(給与計算!M15>=1010000,給与計算!M15<1250000),VLOOKUP(給与計算!M15,税額基本情報!$D$6:$M$8,IF(基本情報!E15>=8,10,基本情報!E15+3),1)+ROUNDDOWN((給与計算!M15-税額基本情報!$D$6)*税額基本情報!$E$6,0),0) -> 0 | I12: =IF(AND(給与計算!M15>=1250000,給与計算!M15<1740000),VLOOKUP(給与計算!M15,税額基本情報!$D$6:$M$8,IF(基本情報!E15>=8,10,基本情報!E15+3),1)+ROUNDDOWN((給与計算!M15-税額基本情報!$D$7)*税額基本情報!$E$7,0),0) -> 0 | J12: =IF(給与計算!M15>=1740000,VLOOKUP(給与計算!M15,税額基本情報!$D$6:$M$8,IF(基本情報!E15>=8,10,基本情報!E15+3),1)+ROUNDDOWN((給与計算!M15-税額基本情報!$D$8)*税額基本情報!$E$8,0),0) -> 0 | K12: =IF(給与計算!M15>=1010000,税額基本情報!$F$12+ROUNDDOWN((給与計算!M15-税額基本情報!$D$12)*税額基本情報!$E$12,0),0) -> 0 | L12: =IF(賞与計算!D15<源泉賞与表!$D$10*1000,0,INDEX(源泉賞与表!$B:$B,MATCH(賞与計算!D15/1000,源泉賞与表!$D:$D,1))) -> 0 | M12: =IF(賞与計算!D15<源泉賞与表!$F$10*1000,0,INDEX(源泉賞与表!$B:$B,MATCH(賞与計算!D15/1000,源泉賞与表!$F:$F,1))) -> 0 | N12: =IF(賞与計算!D15<源泉賞与表!$H$10*1000,0,INDEX(源泉賞与表!$B:$B,MATCH(賞与計算!D15/1000,源泉賞与表!$H:$H,1))) -> 0 | O12: =IF(賞与計算!D15<源泉賞与表!$J$10*1000,0,INDEX(源泉賞与表!$B:$B,MATCH(賞与計算!D15/1000,源泉賞与表!$J:$J,1))) -> 0 | P12: =IF(賞与計算!D15<源泉賞与表!$L$10*1000,0,INDEX(源泉賞与表!$B:$B,MATCH(賞与計算!D15/1000,源泉賞与表!$L:$L,1))) -> 0 | Q12: =IF(賞与計算!D15<源泉賞与表!$N$10*1000,0,INDEX(源泉賞与表!$B:$B,MATCH(賞与計算!D15/1000,源泉賞与表!$N:$N,1))) -> 0 | R12: =IF(賞与計算!D15<源泉賞与表!$P$10*1000,0,INDEX(源泉賞与表!$B:$B,MATCH(賞与計算!D15/1000,源泉賞与表!$P:$P,1))) -> 0 | S12: =IF(賞与計算!D15<源泉賞与表!$R$10*1000,0,INDEX(源泉賞与表!$B:$B,MATCH(賞与計算!D15/1000,源泉賞与表!$R:$R,1))) -> 0 | T12: =IF(賞与計算!D15="","",IF(賞与計算!D15<源泉賞与表!$T$22*1000,10.21,INDEX(源泉賞与表!$B:$B,MATCH(賞与計算!D15/1000,源泉賞与表!$T:$T,1)))) ->  | U12: 0 | V12: =IF(基本情報!G15="",0,ROUND(VLOOKUP(基本情報!G15,INDIRECT(基本情報!$D$3&"!$C$15:$P$61"),10,0)-0.1,0)) -> 0 | W12: =IF(基本情報!G15="",0,ROUND(VLOOKUP(基本情報!G15,INDIRECT(基本情報!$D$3&"!$C$15:$P$61"),14,0)-0.1,0)) -> 0 | X12: 0 | Y12: =IF(基本情報!G15="",0,ROUND(IF(OR(基本情報!G15<税額基本情報!$E$24,基本情報!G15>税額基本情報!$E$25),AA12,VLOOKUP(基本情報!G15,INDIRECT(基本情報!$D$3&"!$C$19:$X$48"),18,0))-0.1,0)) -> 0 | Z12: =IF(基本情報!G15="",0,ROUND(IF(OR(基本情報!G15<税額基本情報!$E$24,基本情報!G15>税額基本情報!$E$25),AB12,VLOOKUP(基本情報!G15,INDIRECT(基本情報!$D$3&"!$C$19:$X$48"),22,0))-0.1,0)) -> 0 | AA12: =IF(基本情報!G15="",0,IF(基本情報!G15<税額基本情報!$E$24,税額基本情報!$F$24,IF(基本情報!G15>税額基本情報!$E$25,税額基本情報!$F$25,0))) -> 0 | AB12: =IF(基本情報!G15="",0,IF(基本情報!G15<税額基本情報!$E$24,税額基本情報!$G$24,IF(基本情報!G15>税額基本情報!$E$25,税額基本情報!$G$25,0))) -> 0 | AC12: 0 | AD12: =ROUND(ROUNDDOWN(賞与計算!F15,-3)*INDIRECT(基本情報!$D$3&"!$J$10")*0.5-0.1,0) -> 0 | AE12: =ROUND(ROUNDDOWN(賞与計算!F15,-3)*INDIRECT(基本情報!$D$3&"!$N$10")/2-0.1,0) -> 0 | AF12: 0 | AG12: =ROUND(IF(賞与計算!F15>税額基本情報!$D$28,税額基本情報!$D$28,ROUNDDOWN(賞与計算!F15,-3))*INDIRECT(基本情報!$D$3&"!$R$10")/2-0.1,0) -> 0 | AH12: =ROUND(IF(賞与計算!F15>税額基本情報!$D$28,税額基本情報!$D$28,ROUNDDOWN(賞与計算!F15,-3))*INDIRECT(基本情報!$D$3&"!$V$10")/2-0.1,0) -> 0
C13: 9 | D13: =給与計算!C16 ->  | E13: =MAX(IF(給与計算!M16>=税額基本情報!$D$6,MAX(計算シート!H13:J13),IF(給与計算!M16<源泉月額表!$B$8,0,VLOOKUP(給与計算!M16,源泉月額表!$B:$K,IF(基本情報!E16>=8,10,基本情報!E16+3),1)))-IF(基本情報!E16>=8,(基本情報!E16-7)*税額基本情報!$D$15,0),0) -> 0 | F13: =IF(給与計算!M16<源泉月額表!$B$8,ROUNDDOWN(給与計算!M16*税額基本情報!$D$21,0),IF(給与計算!M16=0,0,IF(給与計算!M16>=税額基本情報!$D$12,K13,VLOOKUP(給与計算!M16,源泉月額表!$B:$L,11,1)))) -> 0 | G13: =MAX(IF(給与計算!M16<源泉月額表!$B$8,ROUNDDOWN(給与計算!M16*3.063%,0),IF(給与計算!M16=0,0,IF(給与計算!M16>=税額基本情報!$D$12,K13,VLOOKUP(給与計算!M16,源泉月額表!$B:$L,11,1))))-基本情報!E16*税額基本情報!$D$18,0) -> 0 | H13: =IF(AND(給与計算!M16>=1010000,給与計算!M16<1250000),VLOOKUP(給与計算!M16,税額基本情報!$D$6:$M$8,IF(基本情報!E16>=8,10,基本情報!E16+3),1)+ROUNDDOWN((給与計算!M16-税額基本情報!$D$6)*税額基本情報!$E$6,0),0) -> 0 | I13: =IF(AND(給与計算!M16>=1250000,給与計算!M16<1740000),VLOOKUP(給与計算!M16,税額基本情報!$D$6:$M$8,IF(基本情報!E16>=8,10,基本情報!E16+3),1)+ROUNDDOWN((給与計算!M16-税額基本情報!$D$7)*税額基本情報!$E$7,0),0) -> 0 | J13: =IF(給与計算!M16>=1740000,VLOOKUP(給与計算!M16,税額基本情報!$D$6:$M$8,IF(基本情報!E16>=8,10,基本情報!E16+3),1)+ROUNDDOWN((給与計算!M16-税額基本情報!$D$8)*税額基本情報!$E$8,0),0) -> 0 | K13: =IF(給与計算!M16>=1010000,税額基本情報!$F$12+ROUNDDOWN((給与計算!M16-税額基本情報!$D$12)*税額基本情報!$E$12,0),0) -> 0 | L13: =IF(賞与計算!D16<源泉賞与表!$D$10*1000,0,INDEX(源泉賞与表!$B:$B,MATCH(賞与計算!D16/1000,源泉賞与表!$D:$D,1))) -> 0 | M13: =IF(賞与計算!D16<源泉賞与表!$F$10*1000,0,INDEX(源泉賞与表!$B:$B,MATCH(賞与計算!D16/1000,源泉賞与表!$F:$F,1))) -> 0 | N13: =IF(賞与計算!D16<源泉賞与表!$H$10*1000,0,INDEX(源泉賞与表!$B:$B,MATCH(賞与計算!D16/1000,源泉賞与表!$H:$H,1))) -> 0 | O13: =IF(賞与計算!D16<源泉賞与表!$J$10*1000,0,INDEX(源泉賞与表!$B:$B,MATCH(賞与計算!D16/1000,源泉賞与表!$J:$J,1))) -> 0 | P13: =IF(賞与計算!D16<源泉賞与表!$L$10*1000,0,INDEX(源泉賞与表!$B:$B,MATCH(賞与計算!D16/1000,源泉賞与表!$L:$L,1))) -> 0 | Q13: =IF(賞与計算!D16<源泉賞与表!$N$10*1000,0,INDEX(源泉賞与表!$B:$B,MATCH(賞与計算!D16/1000,源泉賞与表!$N:$N,1))) -> 0 | R13: =IF(賞与計算!D16<源泉賞与表!$P$10*1000,0,INDEX(源泉賞与表!$B:$B,MATCH(賞与計算!D16/1000,源泉賞与表!$P:$P,1))) -> 0 | S13: =IF(賞与計算!D16<源泉賞与表!$R$10*1000,0,INDEX(源泉賞与表!$B:$B,MATCH(賞与計算!D16/1000,源泉賞与表!$R:$R,1))) -> 0 | T13: =IF(賞与計算!D16="","",IF(賞与計算!D16<源泉賞与表!$T$22*1000,10.21,INDEX(源泉賞与表!$B:$B,MATCH(賞与計算!D16/1000,源泉賞与表!$T:$T,1)))) ->  | U13: 0 | V13: =IF(基本情報!G16="",0,ROUND(VLOOKUP(基本情報!G16,INDIRECT(基本情報!$D$3&"!$C$15:$P$61"),10,0)-0.1,0)) -> 0 | W13: =IF(基本情報!G16="",0,ROUND(VLOOKUP(基本情報!G16,INDIRECT(基本情報!$D$3&"!$C$15:$P$61"),14,0)-0.1,0)) -> 0 | X13: 0 | Y13: =IF(基本情報!G16="",0,ROUND(IF(OR(基本情報!G16<税額基本情報!$E$24,基本情報!G16>税額基本情報!$E$25),AA13,VLOOKUP(基本情報!G16,INDIRECT(基本情報!$D$3&"!$C$19:$X$48"),18,0))-0.1,0)) -> 0 | Z13: =IF(基本情報!G16="",0,ROUND(IF(OR(基本情報!G16<税額基本情報!$E$24,基本情報!G16>税額基本情報!$E$25),AB13,VLOOKUP(基本情報!G16,INDIRECT(基本情報!$D$3&"!$C$19:$X$48"),22,0))-0.1,0)) -> 0 | AA13: =IF(基本情報!G16="",0,IF(基本情報!G16<税額基本情報!$E$24,税額基本情報!$F$24,IF(基本情報!G16>税額基本情報!$E$25,税額基本情報!$F$25,0))) -> 0 | AB13: =IF(基本情報!G16="",0,IF(基本情報!G16<税額基本情報!$E$24,税額基本情報!$G$24,IF(基本情報!G16>税額基本情報!$E$25,税額基本情報!$G$25,0))) -> 0 | AC13: 0 | AD13: =ROUND(ROUNDDOWN(賞与計算!F16,-3)*INDIRECT(基本情報!$D$3&"!$J$10")*0.5-0.1,0) -> 0 | AE13: =ROUND(ROUNDDOWN(賞与計算!F16,-3)*INDIRECT(基本情報!$D$3&"!$N$10")/2-0.1,0) -> 0 | AF13: 0 | AG13: =ROUND(IF(賞与計算!F16>税額基本情報!$D$28,税額基本情報!$D$28,ROUNDDOWN(賞与計算!F16,-3))*INDIRECT(基本情報!$D$3&"!$R$10")/2-0.1,0) -> 0 | AH13: =ROUND(IF(賞与計算!F16>税額基本情報!$D$28,税額基本情報!$D$28,ROUNDDOWN(賞与計算!F16,-3))*INDIRECT(基本情報!$D$3&"!$V$10")/2-0.1,0) -> 0
C14: 10 | D14: =給与計算!C17 ->  | E14: =MAX(IF(給与計算!M17>=税額基本情報!$D$6,MAX(計算シート!H14:J14),IF(給与計算!M17<源泉月額表!$B$8,0,VLOOKUP(給与計算!M17,源泉月額表!$B:$K,IF(基本情報!E17>=8,10,基本情報!E17+3),1)))-IF(基本情報!E17>=8,(基本情報!E17-7)*税額基本情報!$D$15,0),0) -> 0 | F14: =IF(給与計算!M17<源泉月額表!$B$8,ROUNDDOWN(給与計算!M17*税額基本情報!$D$21,0),IF(給与計算!M17=0,0,IF(給与計算!M17>=税額基本情報!$D$12,K14,VLOOKUP(給与計算!M17,源泉月額表!$B:$L,11,1)))) -> 0 | G14: =MAX(IF(給与計算!M17<源泉月額表!$B$8,ROUNDDOWN(給与計算!M17*3.063%,0),IF(給与計算!M17=0,0,IF(給与計算!M17>=税額基本情報!$D$12,K14,VLOOKUP(給与計算!M17,源泉月額表!$B:$L,11,1))))-基本情報!E17*税額基本情報!$D$18,0) -> 0 | H14: =IF(AND(給与計算!M17>=1010000,給与計算!M17<1250000),VLOOKUP(給与計算!M17,税額基本情報!$D$6:$M$8,IF(基本情報!E17>=8,10,基本情報!E17+3),1)+ROUNDDOWN((給与計算!M17-税額基本情報!$D$6)*税額基本情報!$E$6,0),0) -> 0 | I14: =IF(AND(給与計算!M17>=1250000,給与計算!M17<1740000),VLOOKUP(給与計算!M17,税額基本情報!$D$6:$M$8,IF(基本情報!E17>=8,10,基本情報!E17+3),1)+ROUNDDOWN((給与計算!M17-税額基本情報!$D$7)*税額基本情報!$E$7,0),0) -> 0 | J14: =IF(給与計算!M17>=1740000,VLOOKUP(給与計算!M17,税額基本情報!$D$6:$M$8,IF(基本情報!E17>=8,10,基本情報!E17+3),1)+ROUNDDOWN((給与計算!M17-税額基本情報!$D$8)*税額基本情報!$E$8,0),0) -> 0 | K14: =IF(給与計算!M17>=1010000,税額基本情報!$F$12+ROUNDDOWN((給与計算!M17-税額基本情報!$D$12)*税額基本情報!$E$12,0),0) -> 0 | L14: =IF(賞与計算!D17<源泉賞与表!$D$10*1000,0,INDEX(源泉賞与表!$B:$B,MATCH(賞与計算!D17/1000,源泉賞与表!$D:$D,1))) -> 0 | M14: =IF(賞与計算!D17<源泉賞与表!$F$10*1000,0,INDEX(源泉賞与表!$B:$B,MATCH(賞与計算!D17/1000,源泉賞与表!$F:$F,1))) -> 0 | N14: =IF(賞与計算!D17<源泉賞与表!$H$10*1000,0,INDEX(源泉賞与表!$B:$B,MATCH(賞与計算!D17/1000,源泉賞与表!$H:$H,1))) -> 0 | O14: =IF(賞与計算!D17<源泉賞与表!$J$10*1000,0,INDEX(源泉賞与表!$B:$B,MATCH(賞与計算!D17/1000,源泉賞与表!$J:$J,1))) -> 0 | P14: =IF(賞与計算!D17<源泉賞与表!$L$10*1000,0,INDEX(源泉賞与表!$B:$B,MATCH(賞与計算!D17/1000,源泉賞与表!$L:$L,1))) -> 0 | Q14: =IF(賞与計算!D17<源泉賞与表!$N$10*1000,0,INDEX(源泉賞与表!$B:$B,MATCH(賞与計算!D17/1000,源泉賞与表!$N:$N,1))) -> 0 | R14: =IF(賞与計算!D17<源泉賞与表!$P$10*1000,0,INDEX(源泉賞与表!$B:$B,MATCH(賞与計算!D17/1000,源泉賞与表!$P:$P,1))) -> 0 | S14: =IF(賞与計算!D17<源泉賞与表!$R$10*1000,0,INDEX(源泉賞与表!$B:$B,MATCH(賞与計算!D17/1000,源泉賞与表!$R:$R,1))) -> 0 | T14: =IF(賞与計算!D17="","",IF(賞与計算!D17<源泉賞与表!$T$22*1000,10.21,INDEX(源泉賞与表!$B:$B,MATCH(賞与計算!D17/1000,源泉賞与表!$T:$T,1)))) ->  | U14: 0 | V14: =IF(基本情報!G17="",0,ROUND(VLOOKUP(基本情報!G17,INDIRECT(基本情報!$D$3&"!$C$15:$P$61"),10,0)-0.1,0)) -> 0 | W14: =IF(基本情報!G17="",0,ROUND(VLOOKUP(基本情報!G17,INDIRECT(基本情報!$D$3&"!$C$15:$P$61"),14,0)-0.1,0)) -> 0 | X14: 0 | Y14: =IF(基本情報!G17="",0,ROUND(IF(OR(基本情報!G17<税額基本情報!$E$24,基本情報!G17>税額基本情報!$E$25),AA14,VLOOKUP(基本情報!G17,INDIRECT(基本情報!$D$3&"!$C$19:$X$48"),18,0))-0.1,0)) -> 0 | Z14: =IF(基本情報!G17="",0,ROUND(IF(OR(基本情報!G17<税額基本情報!$E$24,基本情報!G17>税額基本情報!$E$25),AB14,VLOOKUP(基本情報!G17,INDIRECT(基本情報!$D$3&"!$C$19:$X$48"),22,0))-0.1,0)) -> 0 | AA14: =IF(基本情報!G17="",0,IF(基本情報!G17<税額基本情報!$E$24,税額基本情報!$F$24,IF(基本情報!G17>税額基本情報!$E$25,税額基本情報!$F$25,0))) -> 0 | AB14: =IF(基本情報!G17="",0,IF(基本情報!G17<税額基本情報!$E$24,税額基本情報!$G$24,IF(基本情報!G17>税額基本情報!$E$25,税額基本情報!$G$25,0))) -> 0 | AC14: 0 | AD14: =ROUND(ROUNDDOWN(賞与計算!F17,-3)*INDIRECT(基本情報!$D$3&"!$J$10")*0.5-0.1,0) -> 0 | AE14: =ROUND(ROUNDDOWN(賞与計算!F17,-3)*INDIRECT(基本情報!$D$3&"!$N$10")/2-0.1,0) -> 0 | AF14: 0 | AG14: =ROUND(IF(賞与計算!F17>税額基本情報!$D$28,税額基本情報!$D$28,ROUNDDOWN(賞与計算!F17,-3))*INDIRECT(基本情報!$D$3&"!$R$10")/2-0.1,0) -> 0 | AH14: =ROUND(IF(賞与計算!F17>税額基本情報!$D$28,税額基本情報!$D$28,ROUNDDOWN(賞与計算!F17,-3))*INDIRECT(基本情報!$D$3&"!$V$10")/2-0.1,0) -> 0
C15: 11 | D15: =給与計算!C18 ->  | E15: =MAX(IF(給与計算!M18>=税額基本情報!$D$6,MAX(計算シート!H15:J15),IF(給与計算!M18<源泉月額表!$B$8,0,VLOOKUP(給与計算!M18,源泉月額表!$B:$K,IF(基本情報!E18>=8,10,基本情報!E18+3),1)))-IF(基本情報!E18>=8,(基本情報!E18-7)*税額基本情報!$D$15,0),0) -> 0 | F15: =IF(給与計算!M18<源泉月額表!$B$8,ROUNDDOWN(給与計算!M18*税額基本情報!$D$21,0),IF(給与計算!M18=0,0,IF(給与計算!M18>=税額基本情報!$D$12,K15,VLOOKUP(給与計算!M18,源泉月額表!$B:$L,11,1)))) -> 0 | G15: =MAX(IF(給与計算!M18<源泉月額表!$B$8,ROUNDDOWN(給与計算!M18*3.063%,0),IF(給与計算!M18=0,0,IF(給与計算!M18>=税額基本情報!$D$12,K15,VLOOKUP(給与計算!M18,源泉月額表!$B:$L,11,1))))-基本情報!E18*税額基本情報!$D$18,0) -> 0 | H15: =IF(AND(給与計算!M18>=1010000,給与計算!M18<1250000),VLOOKUP(給与計算!M18,税額基本情報!$D$6:$M$8,IF(基本情報!E18>=8,10,基本情報!E18+3),1)+ROUNDDOWN((給与計算!M18-税額基本情報!$D$6)*税額基本情報!$E$6,0),0) -> 0 | I15: =IF(AND(給与計算!M18>=1250000,給与計算!M18<1740000),VLOOKUP(給与計算!M18,税額基本情報!$D$6:$M$8,IF(基本情報!E18>=8,10,基本情報!E18+3),1)+ROUNDDOWN((給与計算!M18-税額基本情報!$D$7)*税額基本情報!$E$7,0),0) -> 0 | J15: =IF(給与計算!M18>=1740000,VLOOKUP(給与計算!M18,税額基本情報!$D$6:$M$8,IF(基本情報!E18>=8,10,基本情報!E18+3),1)+ROUNDDOWN((給与計算!M18-税額基本情報!$D$8)*税額基本情報!$E$8,0),0) -> 0 | K15: =IF(給与計算!M18>=1010000,税額基本情報!$F$12+ROUNDDOWN((給与計算!M18-税額基本情報!$D$12)*税額基本情報!$E$12,0),0) -> 0 | L15: =IF(賞与計算!D18<源泉賞与表!$D$10*1000,0,INDEX(源泉賞与表!$B:$B,MATCH(賞与計算!D18/1000,源泉賞与表!$D:$D,1))) -> 0 | M15: =IF(賞与計算!D18<源泉賞与表!$F$10*1000,0,INDEX(源泉賞与表!$B:$B,MATCH(賞与計算!D18/1000,源泉賞与表!$F:$F,1))) -> 0 | N15: =IF(賞与計算!D18<源泉賞与表!$H$10*1000,0,INDEX(源泉賞与表!$B:$B,MATCH(賞与計算!D18/1000,源泉賞与表!$H:$H,1))) -> 0 | O15: =IF(賞与計算!D18<源泉賞与表!$J$10*1000,0,INDEX(源泉賞与表!$B:$B,MATCH(賞与計算!D18/1000,源泉賞与表!$J:$J,1))) -> 0 | P15: =IF(賞与計算!D18<源泉賞与表!$L$10*1000,0,INDEX(源泉賞与表!$B:$B,MATCH(賞与計算!D18/1000,源泉賞与表!$L:$L,1))) -> 0 | Q15: =IF(賞与計算!D18<源泉賞与表!$N$10*1000,0,INDEX(源泉賞与表!$B:$B,MATCH(賞与計算!D18/1000,源泉賞与表!$N:$N,1))) -> 0 | R15: =IF(賞与計算!D18<源泉賞与表!$P$10*1000,0,INDEX(源泉賞与表!$B:$B,MATCH(賞与計算!D18/1000,源泉賞与表!$P:$P,1))) -> 0 | S15: =IF(賞与計算!D18<源泉賞与表!$R$10*1000,0,INDEX(源泉賞与表!$B:$B,MATCH(賞与計算!D18/1000,源泉賞与表!$R:$R,1))) -> 0 | T15: =IF(賞与計算!D18="","",IF(賞与計算!D18<源泉賞与表!$T$22*1000,10.21,INDEX(源泉賞与表!$B:$B,MATCH(賞与計算!D18/1000,源泉賞与表!$T:$T,1)))) ->  | U15: 0 | V15: =IF(基本情報!G18="",0,ROUND(VLOOKUP(基本情報!G18,INDIRECT(基本情報!$D$3&"!$C$15:$P$61"),10,0)-0.1,0)) -> 0 | W15: =IF(基本情報!G18="",0,ROUND(VLOOKUP(基本情報!G18,INDIRECT(基本情報!$D$3&"!$C$15:$P$61"),14,0)-0.1,0)) -> 0 | X15: 0 | Y15: =IF(基本情報!G18="",0,ROUND(IF(OR(基本情報!G18<税額基本情報!$E$24,基本情報!G18>税額基本情報!$E$25),AA15,VLOOKUP(基本情報!G18,INDIRECT(基本情報!$D$3&"!$C$19:$X$48"),18,0))-0.1,0)) -> 0 | Z15: =IF(基本情報!G18="",0,ROUND(IF(OR(基本情報!G18<税額基本情報!$E$24,基本情報!G18>税額基本情報!$E$25),AB15,VLOOKUP(基本情報!G18,INDIRECT(基本情報!$D$3&"!$C$19:$X$48"),22,0))-0.1,0)) -> 0 | AA15: =IF(基本情報!G18="",0,IF(基本情報!G18<税額基本情報!$E$24,税額基本情報!$F$24,IF(基本情報!G18>税額基本情報!$E$25,税額基本情報!$F$25,0))) -> 0 | AB15: =IF(基本情報!G18="",0,IF(基本情報!G18<税額基本情報!$E$24,税額基本情報!$G$24,IF(基本情報!G18>税額基本情報!$E$25,税額基本情報!$G$25,0))) -> 0 | AC15: 0 | AD15: =ROUND(ROUNDDOWN(賞与計算!F18,-3)*INDIRECT(基本情報!$D$3&"!$J$10")*0.5-0.1,0) -> 0 | AE15: =ROUND(ROUNDDOWN(賞与計算!F18,-3)*INDIRECT(基本情報!$D$3&"!$N$10")/2-0.1,0) -> 0 | AF15: 0 | AG15: =ROUND(IF(賞与計算!F18>税額基本情報!$D$28,税額基本情報!$D$28,ROUNDDOWN(賞与計算!F18,-3))*INDIRECT(基本情報!$D$3&"!$R$10")/2-0.1,0) -> 0 | AH15: =ROUND(IF(賞与計算!F18>税額基本情報!$D$28,税額基本情報!$D$28,ROUNDDOWN(賞与計算!F18,-3))*INDIRECT(基本情報!$D$3&"!$V$10")/2-0.1,0) -> 0
C16: 12 | D16: =給与計算!C19 ->  | E16: =MAX(IF(給与計算!M19>=税額基本情報!$D$6,MAX(計算シート!H16:J16),IF(給与計算!M19<源泉月額表!$B$8,0,VLOOKUP(給与計算!M19,源泉月額表!$B:$K,IF(基本情報!E19>=8,10,基本情報!E19+3),1)))-IF(基本情報!E19>=8,(基本情報!E19-7)*税額基本情報!$D$15,0),0) -> 0 | F16: =IF(給与計算!M19<源泉月額表!$B$8,ROUNDDOWN(給与計算!M19*税額基本情報!$D$21,0),IF(給与計算!M19=0,0,IF(給与計算!M19>=税額基本情報!$D$12,K16,VLOOKUP(給与計算!M19,源泉月額表!$B:$L,11,1)))) -> 0 | G16: =MAX(IF(給与計算!M19<源泉月額表!$B$8,ROUNDDOWN(給与計算!M19*3.063%,0),IF(給与計算!M19=0,0,IF(給与計算!M19>=税額基本情報!$D$12,K16,VLOOKUP(給与計算!M19,源泉月額表!$B:$L,11,1))))-基本情報!E19*税額基本情報!$D$18,0) -> 0 | H16: =IF(AND(給与計算!M19>=1010000,給与計算!M19<1250000),VLOOKUP(給与計算!M19,税額基本情報!$D$6:$M$8,IF(基本情報!E19>=8,10,基本情報!E19+3),1)+ROUNDDOWN((給与計算!M19-税額基本情報!$D$6)*税額基本情報!$E$6,0),0) -> 0 | I16: =IF(AND(給与計算!M19>=1250000,給与計算!M19<1740000),VLOOKUP(給与計算!M19,税額基本情報!$D$6:$M$8,IF(基本情報!E19>=8,10,基本情報!E19+3),1)+ROUNDDOWN((給与計算!M19-税額基本情報!$D$7)*税額基本情報!$E$7,0),0) -> 0 | J16: =IF(給与計算!M19>=1740000,VLOOKUP(給与計算!M19,税額基本情報!$D$6:$M$8,IF(基本情報!E19>=8,10,基本情報!E19+3),1)+ROUNDDOWN((給与計算!M19-税額基本情報!$D$8)*税額基本情報!$E$8,0),0) -> 0 | K16: =IF(給与計算!M19>=1010000,税額基本情報!$F$12+ROUNDDOWN((給与計算!M19-税額基本情報!$D$12)*税額基本情報!$E$12,0),0) -> 0 | L16: =IF(賞与計算!D19<源泉賞与表!$D$10*1000,0,INDEX(源泉賞与表!$B:$B,MATCH(賞与計算!D19/1000,源泉賞与表!$D:$D,1))) -> 0 | M16: =IF(賞与計算!D19<源泉賞与表!$F$10*1000,0,INDEX(源泉賞与表!$B:$B,MATCH(賞与計算!D19/1000,源泉賞与表!$F:$F,1))) -> 0 | N16: =IF(賞与計算!D19<源泉賞与表!$H$10*1000,0,INDEX(源泉賞与表!$B:$B,MATCH(賞与計算!D19/1000,源泉賞与表!$H:$H,1))) -> 0 | O16: =IF(賞与計算!D19<源泉賞与表!$J$10*1000,0,INDEX(源泉賞与表!$B:$B,MATCH(賞与計算!D19/1000,源泉賞与表!$J:$J,1))) -> 0 | P16: =IF(賞与計算!D19<源泉賞与表!$L$10*1000,0,INDEX(源泉賞与表!$B:$B,MATCH(賞与計算!D19/1000,源泉賞与表!$L:$L,1))) -> 0 | Q16: =IF(賞与計算!D19<源泉賞与表!$N$10*1000,0,INDEX(源泉賞与表!$B:$B,MATCH(賞与計算!D19/1000,源泉賞与表!$N:$N,1))) -> 0 | R16: =IF(賞与計算!D19<源泉賞与表!$P$10*1000,0,INDEX(源泉賞与表!$B:$B,MATCH(賞与計算!D19/1000,源泉賞与表!$P:$P,1))) -> 0 | S16: =IF(賞与計算!D19<源泉賞与表!$R$10*1000,0,INDEX(源泉賞与表!$B:$B,MATCH(賞与計算!D19/1000,源泉賞与表!$R:$R,1))) -> 0 | T16: =IF(賞与計算!D19="","",IF(賞与計算!D19<源泉賞与表!$T$22*1000,10.21,INDEX(源泉賞与表!$B:$B,MATCH(賞与計算!D19/1000,源泉賞与表!$T:$T,1)))) ->  | U16: 0 | V16: =IF(基本情報!G19="",0,ROUND(VLOOKUP(基本情報!G19,INDIRECT(基本情報!$D$3&"!$C$15:$P$61"),10,0)-0.1,0)) -> 0 | W16: =IF(基本情報!G19="",0,ROUND(VLOOKUP(基本情報!G19,INDIRECT(基本情報!$D$3&"!$C$15:$P$61"),14,0)-0.1,0)) -> 0 | X16: 0 | Y16: =IF(基本情報!G19="",0,ROUND(IF(OR(基本情報!G19<税額基本情報!$E$24,基本情報!G19>税額基本情報!$E$25),AA16,VLOOKUP(基本情報!G19,INDIRECT(基本情報!$D$3&"!$C$19:$X$48"),18,0))-0.1,0)) -> 0 | Z16: =IF(基本情報!G19="",0,ROUND(IF(OR(基本情報!G19<税額基本情報!$E$24,基本情報!G19>税額基本情報!$E$25),AB16,VLOOKUP(基本情報!G19,INDIRECT(基本情報!$D$3&"!$C$19:$X$48"),22,0))-0.1,0)) -> 0 | AA16: =IF(基本情報!G19="",0,IF(基本情報!G19<税額基本情報!$E$24,税額基本情報!$F$24,IF(基本情報!G19>税額基本情報!$E$25,税額基本情報!$F$25,0))) -> 0 | AB16: =IF(基本情報!G19="",0,IF(基本情報!G19<税額基本情報!$E$24,税額基本情報!$G$24,IF(基本情報!G19>税額基本情報!$E$25,税額基本情報!$G$25,0))) -> 0 | AC16: 0 | AD16: =ROUND(ROUNDDOWN(賞与計算!F19,-3)*INDIRECT(基本情報!$D$3&"!$J$10")*0.5-0.1,0) -> 0 | AE16: =ROUND(ROUNDDOWN(賞与計算!F19,-3)*INDIRECT(基本情報!$D$3&"!$N$10")/2-0.1,0) -> 0 | AF16: 0 | AG16: =ROUND(IF(賞与計算!F19>税額基本情報!$D$28,税額基本情報!$D$28,ROUNDDOWN(賞与計算!F19,-3))*INDIRECT(基本情報!$D$3&"!$R$10")/2-0.1,0) -> 0 | AH16: =ROUND(IF(賞与計算!F19>税額基本情報!$D$28,税額基本情報!$D$28,ROUNDDOWN(賞与計算!F19,-3))*INDIRECT(基本情報!$D$3&"!$V$10")/2-0.1,0) -> 0
C17: 13 | D17: =給与計算!C20 ->  | E17: =MAX(IF(給与計算!M20>=税額基本情報!$D$6,MAX(計算シート!H17:J17),IF(給与計算!M20<源泉月額表!$B$8,0,VLOOKUP(給与計算!M20,源泉月額表!$B:$K,IF(基本情報!E20>=8,10,基本情報!E20+3),1)))-IF(基本情報!E20>=8,(基本情報!E20-7)*税額基本情報!$D$15,0),0) -> 0 | F17: =IF(給与計算!M20<源泉月額表!$B$8,ROUNDDOWN(給与計算!M20*税額基本情報!$D$21,0),IF(給与計算!M20=0,0,IF(給与計算!M20>=税額基本情報!$D$12,K17,VLOOKUP(給与計算!M20,源泉月額表!$B:$L,11,1)))) -> 0 | G17: =MAX(IF(給与計算!M20<源泉月額表!$B$8,ROUNDDOWN(給与計算!M20*3.063%,0),IF(給与計算!M20=0,0,IF(給与計算!M20>=税額基本情報!$D$12,K17,VLOOKUP(給与計算!M20,源泉月額表!$B:$L,11,1))))-基本情報!E20*税額基本情報!$D$18,0) -> 0 | H17: =IF(AND(給与計算!M20>=1010000,給与計算!M20<1250000),VLOOKUP(給与計算!M20,税額基本情報!$D$6:$M$8,IF(基本情報!E20>=8,10,基本情報!E20+3),1)+ROUNDDOWN((給与計算!M20-税額基本情報!$D$6)*税額基本情報!$E$6,0),0) -> 0 | I17: =IF(AND(給与計算!M20>=1250000,給与計算!M20<1740000),VLOOKUP(給与計算!M20,税額基本情報!$D$6:$M$8,IF(基本情報!E20>=8,10,基本情報!E20+3),1)+ROUNDDOWN((給与計算!M20-税額基本情報!$D$7)*税額基本情報!$E$7,0),0) -> 0 | J17: =IF(給与計算!M20>=1740000,VLOOKUP(給与計算!M20,税額基本情報!$D$6:$M$8,IF(基本情報!E20>=8,10,基本情報!E20+3),1)+ROUNDDOWN((給与計算!M20-税額基本情報!$D$8)*税額基本情報!$E$8,0),0) -> 0 | K17: =IF(給与計算!M20>=1010000,税額基本情報!$F$12+ROUNDDOWN((給与計算!M20-税額基本情報!$D$12)*税額基本情報!$E$12,0),0) -> 0 | L17: =IF(賞与計算!D20<源泉賞与表!$D$10*1000,0,INDEX(源泉賞与表!$B:$B,MATCH(賞与計算!D20/1000,源泉賞与表!$D:$D,1))) -> 0 | M17: =IF(賞与計算!D20<源泉賞与表!$F$10*1000,0,INDEX(源泉賞与表!$B:$B,MATCH(賞与計算!D20/1000,源泉賞与表!$F:$F,1))) -> 0 | N17: =IF(賞与計算!D20<源泉賞与表!$H$10*1000,0,INDEX(源泉賞与表!$B:$B,MATCH(賞与計算!D20/1000,源泉賞与表!$H:$H,1))) -> 0 | O17: =IF(賞与計算!D20<源泉賞与表!$J$10*1000,0,INDEX(源泉賞与表!$B:$B,MATCH(賞与計算!D20/1000,源泉賞与表!$J:$J,1))) -> 0 | P17: =IF(賞与計算!D20<源泉賞与表!$L$10*1000,0,INDEX(源泉賞与表!$B:$B,MATCH(賞与計算!D20/1000,源泉賞与表!$L:$L,1))) -> 0 | Q17: =IF(賞与計算!D20<源泉賞与表!$N$10*1000,0,INDEX(源泉賞与表!$B:$B,MATCH(賞与計算!D20/1000,源泉賞与表!$N:$N,1))) -> 0 | R17: =IF(賞与計算!D20<源泉賞与表!$P$10*1000,0,INDEX(源泉賞与表!$B:$B,MATCH(賞与計算!D20/1000,源泉賞与表!$P:$P,1))) -> 0 | S17: =IF(賞与計算!D20<源泉賞与表!$R$10*1000,0,INDEX(源泉賞与表!$B:$B,MATCH(賞与計算!D20/1000,源泉賞与表!$R:$R,1))) -> 0 | T17: =IF(賞与計算!D20="","",IF(賞与計算!D20<源泉賞与表!$T$22*1000,10.21,INDEX(源泉賞与表!$B:$B,MATCH(賞与計算!D20/1000,源泉賞与表!$T:$T,1)))) ->  | U17: 0 | V17: =IF(基本情報!G20="",0,ROUND(VLOOKUP(基本情報!G20,INDIRECT(基本情報!$D$3&"!$C$15:$P$61"),10,0)-0.1,0)) -> 0 | W17: =IF(基本情報!G20="",0,ROUND(VLOOKUP(基本情報!G20,INDIRECT(基本情報!$D$3&"!$C$15:$P$61"),14,0)-0.1,0)) -> 0 | X17: 0 | Y17: =IF(基本情報!G20="",0,ROUND(IF(OR(基本情報!G20<税額基本情報!$E$24,基本情報!G20>税額基本情報!$E$25),AA17,VLOOKUP(基本情報!G20,INDIRECT(基本情報!$D$3&"!$C$19:$X$48"),18,0))-0.1,0)) -> 0 | Z17: =IF(基本情報!G20="",0,ROUND(IF(OR(基本情報!G20<税額基本情報!$E$24,基本情報!G20>税額基本情報!$E$25),AB17,VLOOKUP(基本情報!G20,INDIRECT(基本情報!$D$3&"!$C$19:$X$48"),22,0))-0.1,0)) -> 0 | AA17: =IF(基本情報!G20="",0,IF(基本情報!G20<税額基本情報!$E$24,税額基本情報!$F$24,IF(基本情報!G20>税額基本情報!$E$25,税額基本情報!$F$25,0))) -> 0 | AB17: =IF(基本情報!G20="",0,IF(基本情報!G20<税額基本情報!$E$24,税額基本情報!$G$24,IF(基本情報!G20>税額基本情報!$E$25,税額基本情報!$G$25,0))) -> 0 | AC17: 0 | AD17: =ROUND(ROUNDDOWN(賞与計算!F20,-3)*INDIRECT(基本情報!$D$3&"!$J$10")*0.5-0.1,0) -> 0 | AE17: =ROUND(ROUNDDOWN(賞与計算!F20,-3)*INDIRECT(基本情報!$D$3&"!$N$10")/2-0.1,0) -> 0 | AF17: 0 | AG17: =ROUND(IF(賞与計算!F20>税額基本情報!$D$28,税額基本情報!$D$28,ROUNDDOWN(賞与計算!F20,-3))*INDIRECT(基本情報!$D$3&"!$R$10")/2-0.1,0) -> 0 | AH17: =ROUND(IF(賞与計算!F20>税額基本情報!$D$28,税額基本情報!$D$28,ROUNDDOWN(賞与計算!F20,-3))*INDIRECT(基本情報!$D$3&"!$V$10")/2-0.1,0) -> 0
C18: 14 | D18: =給与計算!C21 ->  | E18: =MAX(IF(給与計算!M21>=税額基本情報!$D$6,MAX(計算シート!H18:J18),IF(給与計算!M21<源泉月額表!$B$8,0,VLOOKUP(給与計算!M21,源泉月額表!$B:$K,IF(基本情報!E21>=8,10,基本情報!E21+3),1)))-IF(基本情報!E21>=8,(基本情報!E21-7)*税額基本情報!$D$15,0),0) -> 0 | F18: =IF(給与計算!M21<源泉月額表!$B$8,ROUNDDOWN(給与計算!M21*税額基本情報!$D$21,0),IF(給与計算!M21=0,0,IF(給与計算!M21>=税額基本情報!$D$12,K18,VLOOKUP(給与計算!M21,源泉月額表!$B:$L,11,1)))) -> 0 | G18: =MAX(IF(給与計算!M21<源泉月額表!$B$8,ROUNDDOWN(給与計算!M21*3.063%,0),IF(給与計算!M21=0,0,IF(給与計算!M21>=税額基本情報!$D$12,K18,VLOOKUP(給与計算!M21,源泉月額表!$B:$L,11,1))))-基本情報!E21*税額基本情報!$D$18,0) -> 0 | H18: =IF(AND(給与計算!M21>=1010000,給与計算!M21<1250000),VLOOKUP(給与計算!M21,税額基本情報!$D$6:$M$8,IF(基本情報!E21>=8,10,基本情報!E21+3),1)+ROUNDDOWN((給与計算!M21-税額基本情報!$D$6)*税額基本情報!$E$6,0),0) -> 0 | I18: =IF(AND(給与計算!M21>=1250000,給与計算!M21<1740000),VLOOKUP(給与計算!M21,税額基本情報!$D$6:$M$8,IF(基本情報!E21>=8,10,基本情報!E21+3),1)+ROUNDDOWN((給与計算!M21-税額基本情報!$D$7)*税額基本情報!$E$7,0),0) -> 0 | J18: =IF(給与計算!M21>=1740000,VLOOKUP(給与計算!M21,税額基本情報!$D$6:$M$8,IF(基本情報!E21>=8,10,基本情報!E21+3),1)+ROUNDDOWN((給与計算!M21-税額基本情報!$D$8)*税額基本情報!$E$8,0),0) -> 0 | K18: =IF(給与計算!M21>=1010000,税額基本情報!$F$12+ROUNDDOWN((給与計算!M21-税額基本情報!$D$12)*税額基本情報!$E$12,0),0) -> 0 | L18: =IF(賞与計算!D21<源泉賞与表!$D$10*1000,0,INDEX(源泉賞与表!$B:$B,MATCH(賞与計算!D21/1000,源泉賞与表!$D:$D,1))) -> 0 | M18: =IF(賞与計算!D21<源泉賞与表!$F$10*1000,0,INDEX(源泉賞与表!$B:$B,MATCH(賞与計算!D21/1000,源泉賞与表!$F:$F,1))) -> 0 | N18: =IF(賞与計算!D21<源泉賞与表!$H$10*1000,0,INDEX(源泉賞与表!$B:$B,MATCH(賞与計算!D21/1000,源泉賞与表!$H:$H,1))) -> 0 | O18: =IF(賞与計算!D21<源泉賞与表!$J$10*1000,0,INDEX(源泉賞与表!$B:$B,MATCH(賞与計算!D21/1000,源泉賞与表!$J:$J,1))) -> 0 | P18: =IF(賞与計算!D21<源泉賞与表!$L$10*1000,0,INDEX(源泉賞与表!$B:$B,MATCH(賞与計算!D21/1000,源泉賞与表!$L:$L,1))) -> 0 | Q18: =IF(賞与計算!D21<源泉賞与表!$N$10*1000,0,INDEX(源泉賞与表!$B:$B,MATCH(賞与計算!D21/1000,源泉賞与表!$N:$N,1))) -> 0 | R18: =IF(賞与計算!D21<源泉賞与表!$P$10*1000,0,INDEX(源泉賞与表!$B:$B,MATCH(賞与計算!D21/1000,源泉賞与表!$P:$P,1))) -> 0 | S18: =IF(賞与計算!D21<源泉賞与表!$R$10*1000,0,INDEX(源泉賞与表!$B:$B,MATCH(賞与計算!D21/1000,源泉賞与表!$R:$R,1))) -> 0 | T18: =IF(賞与計算!D21="","",IF(賞与計算!D21<源泉賞与表!$T$22*1000,10.21,INDEX(源泉賞与表!$B:$B,MATCH(賞与計算!D21/1000,源泉賞与表!$T:$T,1)))) ->  | U18: 0 | V18: =IF(基本情報!G21="",0,ROUND(VLOOKUP(基本情報!G21,INDIRECT(基本情報!$D$3&"!$C$15:$P$61"),10,0)-0.1,0)) -> 0 | W18: =IF(基本情報!G21="",0,ROUND(VLOOKUP(基本情報!G21,INDIRECT(基本情報!$D$3&"!$C$15:$P$61"),14,0)-0.1,0)) -> 0 | X18: 0 | Y18: =IF(基本情報!G21="",0,ROUND(IF(OR(基本情報!G21<税額基本情報!$E$24,基本情報!G21>税額基本情報!$E$25),AA18,VLOOKUP(基本情報!G21,INDIRECT(基本情報!$D$3&"!$C$19:$X$48"),18,0))-0.1,0)) -> 0 | Z18: =IF(基本情報!G21="",0,ROUND(IF(OR(基本情報!G21<税額基本情報!$E$24,基本情報!G21>税額基本情報!$E$25),AB18,VLOOKUP(基本情報!G21,INDIRECT(基本情報!$D$3&"!$C$19:$X$48"),22,0))-0.1,0)) -> 0 | AA18: =IF(基本情報!G21="",0,IF(基本情報!G21<税額基本情報!$E$24,税額基本情報!$F$24,IF(基本情報!G21>税額基本情報!$E$25,税額基本情報!$F$25,0))) -> 0 | AB18: =IF(基本情報!G21="",0,IF(基本情報!G21<税額基本情報!$E$24,税額基本情報!$G$24,IF(基本情報!G21>税額基本情報!$E$25,税額基本情報!$G$25,0))) -> 0 | AC18: 0 | AD18: =ROUND(ROUNDDOWN(賞与計算!F21,-3)*INDIRECT(基本情報!$D$3&"!$J$10")*0.5-0.1,0) -> 0 | AE18: =ROUND(ROUNDDOWN(賞与計算!F21,-3)*INDIRECT(基本情報!$D$3&"!$N$10")/2-0.1,0) -> 0 | AF18: 0 | AG18: =ROUND(IF(賞与計算!F21>税額基本情報!$D$28,税額基本情報!$D$28,ROUNDDOWN(賞与計算!F21,-3))*INDIRECT(基本情報!$D$3&"!$R$10")/2-0.1,0) -> 0 | AH18: =ROUND(IF(賞与計算!F21>税額基本情報!$D$28,税額基本情報!$D$28,ROUNDDOWN(賞与計算!F21,-3))*INDIRECT(基本情報!$D$3&"!$V$10")/2-0.1,0) -> 0
C19: 15 | D19: =給与計算!C22 ->  | E19: =MAX(IF(給与計算!M22>=税額基本情報!$D$6,MAX(計算シート!H19:J19),IF(給与計算!M22<源泉月額表!$B$8,0,VLOOKUP(給与計算!M22,源泉月額表!$B:$K,IF(基本情報!E22>=8,10,基本情報!E22+3),1)))-IF(基本情報!E22>=8,(基本情報!E22-7)*税額基本情報!$D$15,0),0) -> 0 | F19: =IF(給与計算!M22<源泉月額表!$B$8,ROUNDDOWN(給与計算!M22*税額基本情報!$D$21,0),IF(給与計算!M22=0,0,IF(給与計算!M22>=税額基本情報!$D$12,K19,VLOOKUP(給与計算!M22,源泉月額表!$B:$L,11,1)))) -> 0 | G19: =MAX(IF(給与計算!M22<源泉月額表!$B$8,ROUNDDOWN(給与計算!M22*3.063%,0),IF(給与計算!M22=0,0,IF(給与計算!M22>=税額基本情報!$D$12,K19,VLOOKUP(給与計算!M22,源泉月額表!$B:$L,11,1))))-基本情報!E22*税額基本情報!$D$18,0) -> 0 | H19: =IF(AND(給与計算!M22>=1010000,給与計算!M22<1250000),VLOOKUP(給与計算!M22,税額基本情報!$D$6:$M$8,IF(基本情報!E22>=8,10,基本情報!E22+3),1)+ROUNDDOWN((給与計算!M22-税額基本情報!$D$6)*税額基本情報!$E$6,0),0) -> 0 | I19: =IF(AND(給与計算!M22>=1250000,給与計算!M22<1740000),VLOOKUP(給与計算!M22,税額基本情報!$D$6:$M$8,IF(基本情報!E22>=8,10,基本情報!E22+3),1)+ROUNDDOWN((給与計算!M22-税額基本情報!$D$7)*税額基本情報!$E$7,0),0) -> 0 | J19: =IF(給与計算!M22>=1740000,VLOOKUP(給与計算!M22,税額基本情報!$D$6:$M$8,IF(基本情報!E22>=8,10,基本情報!E22+3),1)+ROUNDDOWN((給与計算!M22-税額基本情報!$D$8)*税額基本情報!$E$8,0),0) -> 0 | K19: =IF(給与計算!M22>=1010000,税額基本情報!$F$12+ROUNDDOWN((給与計算!M22-税額基本情報!$D$12)*税額基本情報!$E$12,0),0) -> 0 | L19: =IF(賞与計算!D22<源泉賞与表!$D$10*1000,0,INDEX(源泉賞与表!$B:$B,MATCH(賞与計算!D22/1000,源泉賞与表!$D:$D,1))) -> 0 | M19: =IF(賞与計算!D22<源泉賞与表!$F$10*1000,0,INDEX(源泉賞与表!$B:$B,MATCH(賞与計算!D22/1000,源泉賞与表!$F:$F,1))) -> 0 | N19: =IF(賞与計算!D22<源泉賞与表!$H$10*1000,0,INDEX(源泉賞与表!$B:$B,MATCH(賞与計算!D22/1000,源泉賞与表!$H:$H,1))) -> 0 | O19: =IF(賞与計算!D22<源泉賞与表!$J$10*1000,0,INDEX(源泉賞与表!$B:$B,MATCH(賞与計算!D22/1000,源泉賞与表!$J:$J,1))) -> 0 | P19: =IF(賞与計算!D22<源泉賞与表!$L$10*1000,0,INDEX(源泉賞与表!$B:$B,MATCH(賞与計算!D22/1000,源泉賞与表!$L:$L,1))) -> 0 | Q19: =IF(賞与計算!D22<源泉賞与表!$N$10*1000,0,INDEX(源泉賞与表!$B:$B,MATCH(賞与計算!D22/1000,源泉賞与表!$N:$N,1))) -> 0 | R19: =IF(賞与計算!D22<源泉賞与表!$P$10*1000,0,INDEX(源泉賞与表!$B:$B,MATCH(賞与計算!D22/1000,源泉賞与表!$P:$P,1))) -> 0 | S19: =IF(賞与計算!D22<源泉賞与表!$R$10*1000,0,INDEX(源泉賞与表!$B:$B,MATCH(賞与計算!D22/1000,源泉賞与表!$R:$R,1))) -> 0 | T19: =IF(賞与計算!D22="","",IF(賞与計算!D22<源泉賞与表!$T$22*1000,10.21,INDEX(源泉賞与表!$B:$B,MATCH(賞与計算!D22/1000,源泉賞与表!$T:$T,1)))) ->  | U19: 0 | V19: =IF(基本情報!G22="",0,ROUND(VLOOKUP(基本情報!G22,INDIRECT(基本情報!$D$3&"!$C$15:$P$61"),10,0)-0.1,0)) -> 0 | W19: =IF(基本情報!G22="",0,ROUND(VLOOKUP(基本情報!G22,INDIRECT(基本情報!$D$3&"!$C$15:$P$61"),14,0)-0.1,0)) -> 0 | X19: 0 | Y19: =IF(基本情報!G22="",0,ROUND(IF(OR(基本情報!G22<税額基本情報!$E$24,基本情報!G22>税額基本情報!$E$25),AA19,VLOOKUP(基本情報!G22,INDIRECT(基本情報!$D$3&"!$C$19:$X$48"),18,0))-0.1,0)) -> 0 | Z19: =IF(基本情報!G22="",0,ROUND(IF(OR(基本情報!G22<税額基本情報!$E$24,基本情報!G22>税額基本情報!$E$25),AB19,VLOOKUP(基本情報!G22,INDIRECT(基本情報!$D$3&"!$C$19:$X$48"),22,0))-0.1,0)) -> 0 | AA19: =IF(基本情報!G22="",0,IF(基本情報!G22<税額基本情報!$E$24,税額基本情報!$F$24,IF(基本情報!G22>税額基本情報!$E$25,税額基本情報!$F$25,0))) -> 0 | AB19: =IF(基本情報!G22="",0,IF(基本情報!G22<税額基本情報!$E$24,税額基本情報!$G$24,IF(基本情報!G22>税額基本情報!$E$25,税額基本情報!$G$25,0))) -> 0 | AC19: 0 | AD19: =ROUND(ROUNDDOWN(賞与計算!F22,-3)*INDIRECT(基本情報!$D$3&"!$J$10")*0.5-0.1,0) -> 0 | AE19: =ROUND(ROUNDDOWN(賞与計算!F22,-3)*INDIRECT(基本情報!$D$3&"!$N$10")/2-0.1,0) -> 0 | AF19: 0 | AG19: =ROUND(IF(賞与計算!F22>税額基本情報!$D$28,税額基本情報!$D$28,ROUNDDOWN(賞与計算!F22,-3))*INDIRECT(基本情報!$D$3&"!$R$10")/2-0.1,0) -> 0 | AH19: =ROUND(IF(賞与計算!F22>税額基本情報!$D$28,税額基本情報!$D$28,ROUNDDOWN(賞与計算!F22,-3))*INDIRECT(基本情報!$D$3&"!$V$10")/2-0.1,0) -> 0
C20: 16 | D20: =給与計算!C23 ->  | E20: =MAX(IF(給与計算!M23>=税額基本情報!$D$6,MAX(計算シート!H20:J20),IF(給与計算!M23<源泉月額表!$B$8,0,VLOOKUP(給与計算!M23,源泉月額表!$B:$K,IF(基本情報!E23>=8,10,基本情報!E23+3),1)))-IF(基本情報!E23>=8,(基本情報!E23-7)*税額基本情報!$D$15,0),0) -> 0 | F20: =IF(給与計算!M23<源泉月額表!$B$8,ROUNDDOWN(給与計算!M23*税額基本情報!$D$21,0),IF(給与計算!M23=0,0,IF(給与計算!M23>=税額基本情報!$D$12,K20,VLOOKUP(給与計算!M23,源泉月額表!$B:$L,11,1)))) -> 0 | G20: =MAX(IF(給与計算!M23<源泉月額表!$B$8,ROUNDDOWN(給与計算!M23*3.063%,0),IF(給与計算!M23=0,0,IF(給与計算!M23>=税額基本情報!$D$12,K20,VLOOKUP(給与計算!M23,源泉月額表!$B:$L,11,1))))-基本情報!E23*税額基本情報!$D$18,0) -> 0 | H20: =IF(AND(給与計算!M23>=1010000,給与計算!M23<1250000),VLOOKUP(給与計算!M23,税額基本情報!$D$6:$M$8,IF(基本情報!E23>=8,10,基本情報!E23+3),1)+ROUNDDOWN((給与計算!M23-税額基本情報!$D$6)*税額基本情報!$E$6,0),0) -> 0 | I20: =IF(AND(給与計算!M23>=1250000,給与計算!M23<1740000),VLOOKUP(給与計算!M23,税額基本情報!$D$6:$M$8,IF(基本情報!E23>=8,10,基本情報!E23+3),1)+ROUNDDOWN((給与計算!M23-税額基本情報!$D$7)*税額基本情報!$E$7,0),0) -> 0 | J20: =IF(給与計算!M23>=1740000,VLOOKUP(給与計算!M23,税額基本情報!$D$6:$M$8,IF(基本情報!E23>=8,10,基本情報!E23+3),1)+ROUNDDOWN((給与計算!M23-税額基本情報!$D$8)*税額基本情報!$E$8,0),0) -> 0 | K20: =IF(給与計算!M23>=1010000,税額基本情報!$F$12+ROUNDDOWN((給与計算!M23-税額基本情報!$D$12)*税額基本情報!$E$12,0),0) -> 0 | L20: =IF(賞与計算!D23<源泉賞与表!$D$10*1000,0,INDEX(源泉賞与表!$B:$B,MATCH(賞与計算!D23/1000,源泉賞与表!$D:$D,1))) -> 0 | M20: =IF(賞与計算!D23<源泉賞与表!$F$10*1000,0,INDEX(源泉賞与表!$B:$B,MATCH(賞与計算!D23/1000,源泉賞与表!$F:$F,1))) -> 0 | N20: =IF(賞与計算!D23<源泉賞与表!$H$10*1000,0,INDEX(源泉賞与表!$B:$B,MATCH(賞与計算!D23/1000,源泉賞与表!$H:$H,1))) -> 0 | O20: =IF(賞与計算!D23<源泉賞与表!$J$10*1000,0,INDEX(源泉賞与表!$B:$B,MATCH(賞与計算!D23/1000,源泉賞与表!$J:$J,1))) -> 0 | P20: =IF(賞与計算!D23<源泉賞与表!$L$10*1000,0,INDEX(源泉賞与表!$B:$B,MATCH(賞与計算!D23/1000,源泉賞与表!$L:$L,1))) -> 0 | Q20: =IF(賞与計算!D23<源泉賞与表!$N$10*1000,0,INDEX(源泉賞与表!$B:$B,MATCH(賞与計算!D23/1000,源泉賞与表!$N:$N,1))) -> 0 | R20: =IF(賞与計算!D23<源泉賞与表!$P$10*1000,0,INDEX(源泉賞与表!$B:$B,MATCH(賞与計算!D23/1000,源泉賞与表!$P:$P,1))) -> 0 | S20: =IF(賞与計算!D23<源泉賞与表!$R$10*1000,0,INDEX(源泉賞与表!$B:$B,MATCH(賞与計算!D23/1000,源泉賞与表!$R:$R,1))) -> 0 | T20: =IF(賞与計算!D23="","",IF(賞与計算!D23<源泉賞与表!$T$22*1000,10.21,INDEX(源泉賞与表!$B:$B,MATCH(賞与計算!D23/1000,源泉賞与表!$T:$T,1)))) ->  | U20: 0 | V20: =IF(基本情報!G23="",0,ROUND(VLOOKUP(基本情報!G23,INDIRECT(基本情報!$D$3&"!$C$15:$P$61"),10,0)-0.1,0)) -> 0 | W20: =IF(基本情報!G23="",0,ROUND(VLOOKUP(基本情報!G23,INDIRECT(基本情報!$D$3&"!$C$15:$P$61"),14,0)-0.1,0)) -> 0 | X20: 0 | Y20: =IF(基本情報!G23="",0,ROUND(IF(OR(基本情報!G23<税額基本情報!$E$24,基本情報!G23>税額基本情報!$E$25),AA20,VLOOKUP(基本情報!G23,INDIRECT(基本情報!$D$3&"!$C$19:$X$48"),18,0))-0.1,0)) -> 0 | Z20: =IF(基本情報!G23="",0,ROUND(IF(OR(基本情報!G23<税額基本情報!$E$24,基本情報!G23>税額基本情報!$E$25),AB20,VLOOKUP(基本情報!G23,INDIRECT(基本情報!$D$3&"!$C$19:$X$48"),22,0))-0.1,0)) -> 0 | AA20: =IF(基本情報!G23="",0,IF(基本情報!G23<税額基本情報!$E$24,税額基本情報!$F$24,IF(基本情報!G23>税額基本情報!$E$25,税額基本情報!$F$25,0))) -> 0 | AB20: =IF(基本情報!G23="",0,IF(基本情報!G23<税額基本情報!$E$24,税額基本情報!$G$24,IF(基本情報!G23>税額基本情報!$E$25,税額基本情報!$G$25,0))) -> 0 | AC20: 0 | AD20: =ROUND(ROUNDDOWN(賞与計算!F23,-3)*INDIRECT(基本情報!$D$3&"!$J$10")*0.5-0.1,0) -> 0 | AE20: =ROUND(ROUNDDOWN(賞与計算!F23,-3)*INDIRECT(基本情報!$D$3&"!$N$10")/2-0.1,0) -> 0 | AF20: 0 | AG20: =ROUND(IF(賞与計算!F23>税額基本情報!$D$28,税額基本情報!$D$28,ROUNDDOWN(賞与計算!F23,-3))*INDIRECT(基本情報!$D$3&"!$R$10")/2-0.1,0) -> 0 | AH20: =ROUND(IF(賞与計算!F23>税額基本情報!$D$28,税額基本情報!$D$28,ROUNDDOWN(賞与計算!F23,-3))*INDIRECT(基本情報!$D$3&"!$V$10")/2-0.1,0) -> 0
C21: 17 | D21: =給与計算!C24 ->  | E21: =MAX(IF(給与計算!M24>=税額基本情報!$D$6,MAX(計算シート!H21:J21),IF(給与計算!M24<源泉月額表!$B$8,0,VLOOKUP(給与計算!M24,源泉月額表!$B:$K,IF(基本情報!E24>=8,10,基本情報!E24+3),1)))-IF(基本情報!E24>=8,(基本情報!E24-7)*税額基本情報!$D$15,0),0) -> 0 | F21: =IF(給与計算!M24<源泉月額表!$B$8,ROUNDDOWN(給与計算!M24*税額基本情報!$D$21,0),IF(給与計算!M24=0,0,IF(給与計算!M24>=税額基本情報!$D$12,K21,VLOOKUP(給与計算!M24,源泉月額表!$B:$L,11,1)))) -> 0 | G21: =MAX(IF(給与計算!M24<源泉月額表!$B$8,ROUNDDOWN(給与計算!M24*3.063%,0),IF(給与計算!M24=0,0,IF(給与計算!M24>=税額基本情報!$D$12,K21,VLOOKUP(給与計算!M24,源泉月額表!$B:$L,11,1))))-基本情報!E24*税額基本情報!$D$18,0) -> 0 | H21: =IF(AND(給与計算!M24>=1010000,給与計算!M24<1250000),VLOOKUP(給与計算!M24,税額基本情報!$D$6:$M$8,IF(基本情報!E24>=8,10,基本情報!E24+3),1)+ROUNDDOWN((給与計算!M24-税額基本情報!$D$6)*税額基本情報!$E$6,0),0) -> 0 | I21: =IF(AND(給与計算!M24>=1250000,給与計算!M24<1740000),VLOOKUP(給与計算!M24,税額基本情報!$D$6:$M$8,IF(基本情報!E24>=8,10,基本情報!E24+3),1)+ROUNDDOWN((給与計算!M24-税額基本情報!$D$7)*税額基本情報!$E$7,0),0) -> 0 | J21: =IF(給与計算!M24>=1740000,VLOOKUP(給与計算!M24,税額基本情報!$D$6:$M$8,IF(基本情報!E24>=8,10,基本情報!E24+3),1)+ROUNDDOWN((給与計算!M24-税額基本情報!$D$8)*税額基本情報!$E$8,0),0) -> 0 | K21: =IF(給与計算!M24>=1010000,税額基本情報!$F$12+ROUNDDOWN((給与計算!M24-税額基本情報!$D$12)*税額基本情報!$E$12,0),0) -> 0 | L21: =IF(賞与計算!D24<源泉賞与表!$D$10*1000,0,INDEX(源泉賞与表!$B:$B,MATCH(賞与計算!D24/1000,源泉賞与表!$D:$D,1))) -> 0 | M21: =IF(賞与計算!D24<源泉賞与表!$F$10*1000,0,INDEX(源泉賞与表!$B:$B,MATCH(賞与計算!D24/1000,源泉賞与表!$F:$F,1))) -> 0 | N21: =IF(賞与計算!D24<源泉賞与表!$H$10*1000,0,INDEX(源泉賞与表!$B:$B,MATCH(賞与計算!D24/1000,源泉賞与表!$H:$H,1))) -> 0 | O21: =IF(賞与計算!D24<源泉賞与表!$J$10*1000,0,INDEX(源泉賞与表!$B:$B,MATCH(賞与計算!D24/1000,源泉賞与表!$J:$J,1))) -> 0 | P21: =IF(賞与計算!D24<源泉賞与表!$L$10*1000,0,INDEX(源泉賞与表!$B:$B,MATCH(賞与計算!D24/1000,源泉賞与表!$L:$L,1))) -> 0 | Q21: =IF(賞与計算!D24<源泉賞与表!$N$10*1000,0,INDEX(源泉賞与表!$B:$B,MATCH(賞与計算!D24/1000,源泉賞与表!$N:$N,1))) -> 0 | R21: =IF(賞与計算!D24<源泉賞与表!$P$10*1000,0,INDEX(源泉賞与表!$B:$B,MATCH(賞与計算!D24/1000,源泉賞与表!$P:$P,1))) -> 0 | S21: =IF(賞与計算!D24<源泉賞与表!$R$10*1000,0,INDEX(源泉賞与表!$B:$B,MATCH(賞与計算!D24/1000,源泉賞与表!$R:$R,1))) -> 0 | T21: =IF(賞与計算!D24="","",IF(賞与計算!D24<源泉賞与表!$T$22*1000,10.21,INDEX(源泉賞与表!$B:$B,MATCH(賞与計算!D24/1000,源泉賞与表!$T:$T,1)))) ->  | U21: 0 | V21: =IF(基本情報!G24="",0,ROUND(VLOOKUP(基本情報!G24,INDIRECT(基本情報!$D$3&"!$C$15:$P$61"),10,0)-0.1,0)) -> 0 | W21: =IF(基本情報!G24="",0,ROUND(VLOOKUP(基本情報!G24,INDIRECT(基本情報!$D$3&"!$C$15:$P$61"),14,0)-0.1,0)) -> 0 | X21: 0 | Y21: =IF(基本情報!G24="",0,ROUND(IF(OR(基本情報!G24<税額基本情報!$E$24,基本情報!G24>税額基本情報!$E$25),AA21,VLOOKUP(基本情報!G24,INDIRECT(基本情報!$D$3&"!$C$19:$X$48"),18,0))-0.1,0)) -> 0 | Z21: =IF(基本情報!G24="",0,ROUND(IF(OR(基本情報!G24<税額基本情報!$E$24,基本情報!G24>税額基本情報!$E$25),AB21,VLOOKUP(基本情報!G24,INDIRECT(基本情報!$D$3&"!$C$19:$X$48"),22,0))-0.1,0)) -> 0 | AA21: =IF(基本情報!G24="",0,IF(基本情報!G24<税額基本情報!$E$24,税額基本情報!$F$24,IF(基本情報!G24>税額基本情報!$E$25,税額基本情報!$F$25,0))) -> 0 | AB21: =IF(基本情報!G24="",0,IF(基本情報!G24<税額基本情報!$E$24,税額基本情報!$G$24,IF(基本情報!G24>税額基本情報!$E$25,税額基本情報!$G$25,0))) -> 0 | AC21: 0 | AD21: =ROUND(ROUNDDOWN(賞与計算!F24,-3)*INDIRECT(基本情報!$D$3&"!$J$10")*0.5-0.1,0) -> 0 | AE21: =ROUND(ROUNDDOWN(賞与計算!F24,-3)*INDIRECT(基本情報!$D$3&"!$N$10")/2-0.1,0) -> 0 | AF21: 0 | AG21: =ROUND(IF(賞与計算!F24>税額基本情報!$D$28,税額基本情報!$D$28,ROUNDDOWN(賞与計算!F24,-3))*INDIRECT(基本情報!$D$3&"!$R$10")/2-0.1,0) -> 0 | AH21: =ROUND(IF(賞与計算!F24>税額基本情報!$D$28,税額基本情報!$D$28,ROUNDDOWN(賞与計算!F24,-3))*INDIRECT(基本情報!$D$3&"!$V$10")/2-0.1,0) -> 0
C22: 18 | D22: =給与計算!C25 ->  | E22: =MAX(IF(給与計算!M25>=税額基本情報!$D$6,MAX(計算シート!H22:J22),IF(給与計算!M25<源泉月額表!$B$8,0,VLOOKUP(給与計算!M25,源泉月額表!$B:$K,IF(基本情報!E25>=8,10,基本情報!E25+3),1)))-IF(基本情報!E25>=8,(基本情報!E25-7)*税額基本情報!$D$15,0),0) -> 0 | F22: =IF(給与計算!M25<源泉月額表!$B$8,ROUNDDOWN(給与計算!M25*税額基本情報!$D$21,0),IF(給与計算!M25=0,0,IF(給与計算!M25>=税額基本情報!$D$12,K22,VLOOKUP(給与計算!M25,源泉月額表!$B:$L,11,1)))) -> 0 | G22: =MAX(IF(給与計算!M25<源泉月額表!$B$8,ROUNDDOWN(給与計算!M25*3.063%,0),IF(給与計算!M25=0,0,IF(給与計算!M25>=税額基本情報!$D$12,K22,VLOOKUP(給与計算!M25,源泉月額表!$B:$L,11,1))))-基本情報!E25*税額基本情報!$D$18,0) -> 0 | H22: =IF(AND(給与計算!M25>=1010000,給与計算!M25<1250000),VLOOKUP(給与計算!M25,税額基本情報!$D$6:$M$8,IF(基本情報!E25>=8,10,基本情報!E25+3),1)+ROUNDDOWN((給与計算!M25-税額基本情報!$D$6)*税額基本情報!$E$6,0),0) -> 0 | I22: =IF(AND(給与計算!M25>=1250000,給与計算!M25<1740000),VLOOKUP(給与計算!M25,税額基本情報!$D$6:$M$8,IF(基本情報!E25>=8,10,基本情報!E25+3),1)+ROUNDDOWN((給与計算!M25-税額基本情報!$D$7)*税額基本情報!$E$7,0),0) -> 0 | J22: =IF(給与計算!M25>=1740000,VLOOKUP(給与計算!M25,税額基本情報!$D$6:$M$8,IF(基本情報!E25>=8,10,基本情報!E25+3),1)+ROUNDDOWN((給与計算!M25-税額基本情報!$D$8)*税額基本情報!$E$8,0),0) -> 0 | K22: =IF(給与計算!M25>=1010000,税額基本情報!$F$12+ROUNDDOWN((給与計算!M25-税額基本情報!$D$12)*税額基本情報!$E$12,0),0) -> 0 | L22: =IF(賞与計算!D25<源泉賞与表!$D$10*1000,0,INDEX(源泉賞与表!$B:$B,MATCH(賞与計算!D25/1000,源泉賞与表!$D:$D,1))) -> 0 | M22: =IF(賞与計算!D25<源泉賞与表!$F$10*1000,0,INDEX(源泉賞与表!$B:$B,MATCH(賞与計算!D25/1000,源泉賞与表!$F:$F,1))) -> 0 | N22: =IF(賞与計算!D25<源泉賞与表!$H$10*1000,0,INDEX(源泉賞与表!$B:$B,MATCH(賞与計算!D25/1000,源泉賞与表!$H:$H,1))) -> 0 | O22: =IF(賞与計算!D25<源泉賞与表!$J$10*1000,0,INDEX(源泉賞与表!$B:$B,MATCH(賞与計算!D25/1000,源泉賞与表!$J:$J,1))) -> 0 | P22: =IF(賞与計算!D25<源泉賞与表!$L$10*1000,0,INDEX(源泉賞与表!$B:$B,MATCH(賞与計算!D25/1000,源泉賞与表!$L:$L,1))) -> 0 | Q22: =IF(賞与計算!D25<源泉賞与表!$N$10*1000,0,INDEX(源泉賞与表!$B:$B,MATCH(賞与計算!D25/1000,源泉賞与表!$N:$N,1))) -> 0 | R22: =IF(賞与計算!D25<源泉賞与表!$P$10*1000,0,INDEX(源泉賞与表!$B:$B,MATCH(賞与計算!D25/1000,源泉賞与表!$P:$P,1))) -> 0 | S22: =IF(賞与計算!D25<源泉賞与表!$R$10*1000,0,INDEX(源泉賞与表!$B:$B,MATCH(賞与計算!D25/1000,源泉賞与表!$R:$R,1))) -> 0 | T22: =IF(賞与計算!D25="","",IF(賞与計算!D25<源泉賞与表!$T$22*1000,10.21,INDEX(源泉賞与表!$B:$B,MATCH(賞与計算!D25/1000,源泉賞与表!$T:$T,1)))) ->  | U22: 0 | V22: =IF(基本情報!G25="",0,ROUND(VLOOKUP(基本情報!G25,INDIRECT(基本情報!$D$3&"!$C$15:$P$61"),10,0)-0.1,0)) -> 0 | W22: =IF(基本情報!G25="",0,ROUND(VLOOKUP(基本情報!G25,INDIRECT(基本情報!$D$3&"!$C$15:$P$61"),14,0)-0.1,0)) -> 0 | X22: 0 | Y22: =IF(基本情報!G25="",0,ROUND(IF(OR(基本情報!G25<税額基本情報!$E$24,基本情報!G25>税額基本情報!$E$25),AA22,VLOOKUP(基本情報!G25,INDIRECT(基本情報!$D$3&"!$C$19:$X$48"),18,0))-0.1,0)) -> 0 | Z22: =IF(基本情報!G25="",0,ROUND(IF(OR(基本情報!G25<税額基本情報!$E$24,基本情報!G25>税額基本情報!$E$25),AB22,VLOOKUP(基本情報!G25,INDIRECT(基本情報!$D$3&"!$C$19:$X$48"),22,0))-0.1,0)) -> 0 | AA22: =IF(基本情報!G25="",0,IF(基本情報!G25<税額基本情報!$E$24,税額基本情報!$F$24,IF(基本情報!G25>税額基本情報!$E$25,税額基本情報!$F$25,0))) -> 0 | AB22: =IF(基本情報!G25="",0,IF(基本情報!G25<税額基本情報!$E$24,税額基本情報!$G$24,IF(基本情報!G25>税額基本情報!$E$25,税額基本情報!$G$25,0))) -> 0 | AC22: 0 | AD22: =ROUND(ROUNDDOWN(賞与計算!F25,-3)*INDIRECT(基本情報!$D$3&"!$J$10")*0.5-0.1,0) -> 0 | AE22: =ROUND(ROUNDDOWN(賞与計算!F25,-3)*INDIRECT(基本情報!$D$3&"!$N$10")/2-0.1,0) -> 0 | AF22: 0 | AG22: =ROUND(IF(賞与計算!F25>税額基本情報!$D$28,税額基本情報!$D$28,ROUNDDOWN(賞与計算!F25,-3))*INDIRECT(基本情報!$D$3&"!$R$10")/2-0.1,0) -> 0 | AH22: =ROUND(IF(賞与計算!F25>税額基本情報!$D$28,税額基本情報!$D$28,ROUNDDOWN(賞与計算!F25,-3))*INDIRECT(基本情報!$D$3&"!$V$10")/2-0.1,0) -> 0
C23: 19 | D23: =給与計算!C26 ->  | E23: =MAX(IF(給与計算!M26>=税額基本情報!$D$6,MAX(計算シート!H23:J23),IF(給与計算!M26<源泉月額表!$B$8,0,VLOOKUP(給与計算!M26,源泉月額表!$B:$K,IF(基本情報!E26>=8,10,基本情報!E26+3),1)))-IF(基本情報!E26>=8,(基本情報!E26-7)*税額基本情報!$D$15,0),0) -> 0 | F23: =IF(給与計算!M26<源泉月額表!$B$8,ROUNDDOWN(給与計算!M26*税額基本情報!$D$21,0),IF(給与計算!M26=0,0,IF(給与計算!M26>=税額基本情報!$D$12,K23,VLOOKUP(給与計算!M26,源泉月額表!$B:$L,11,1)))) -> 0 | G23: =MAX(IF(給与計算!M26<源泉月額表!$B$8,ROUNDDOWN(給与計算!M26*3.063%,0),IF(給与計算!M26=0,0,IF(給与計算!M26>=税額基本情報!$D$12,K23,VLOOKUP(給与計算!M26,源泉月額表!$B:$L,11,1))))-基本情報!E26*税額基本情報!$D$18,0) -> 0 | H23: =IF(AND(給与計算!M26>=1010000,給与計算!M26<1250000),VLOOKUP(給与計算!M26,税額基本情報!$D$6:$M$8,IF(基本情報!E26>=8,10,基本情報!E26+3),1)+ROUNDDOWN((給与計算!M26-税額基本情報!$D$6)*税額基本情報!$E$6,0),0) -> 0 | I23: =IF(AND(給与計算!M26>=1250000,給与計算!M26<1740000),VLOOKUP(給与計算!M26,税額基本情報!$D$6:$M$8,IF(基本情報!E26>=8,10,基本情報!E26+3),1)+ROUNDDOWN((給与計算!M26-税額基本情報!$D$7)*税額基本情報!$E$7,0),0) -> 0 | J23: =IF(給与計算!M26>=1740000,VLOOKUP(給与計算!M26,税額基本情報!$D$6:$M$8,IF(基本情報!E26>=8,10,基本情報!E26+3),1)+ROUNDDOWN((給与計算!M26-税額基本情報!$D$8)*税額基本情報!$E$8,0),0) -> 0 | K23: =IF(給与計算!M26>=1010000,税額基本情報!$F$12+ROUNDDOWN((給与計算!M26-税額基本情報!$D$12)*税額基本情報!$E$12,0),0) -> 0 | L23: =IF(賞与計算!D26<源泉賞与表!$D$10*1000,0,INDEX(源泉賞与表!$B:$B,MATCH(賞与計算!D26/1000,源泉賞与表!$D:$D,1))) -> 0 | M23: =IF(賞与計算!D26<源泉賞与表!$F$10*1000,0,INDEX(源泉賞与表!$B:$B,MATCH(賞与計算!D26/1000,源泉賞与表!$F:$F,1))) -> 0 | N23: =IF(賞与計算!D26<源泉賞与表!$H$10*1000,0,INDEX(源泉賞与表!$B:$B,MATCH(賞与計算!D26/1000,源泉賞与表!$H:$H,1))) -> 0 | O23: =IF(賞与計算!D26<源泉賞与表!$J$10*1000,0,INDEX(源泉賞与表!$B:$B,MATCH(賞与計算!D26/1000,源泉賞与表!$J:$J,1))) -> 0 | P23: =IF(賞与計算!D26<源泉賞与表!$L$10*1000,0,INDEX(源泉賞与表!$B:$B,MATCH(賞与計算!D26/1000,源泉賞与表!$L:$L,1))) -> 0 | Q23: =IF(賞与計算!D26<源泉賞与表!$N$10*1000,0,INDEX(源泉賞与表!$B:$B,MATCH(賞与計算!D26/1000,源泉賞与表!$N:$N,1))) -> 0 | R23: =IF(賞与計算!D26<源泉賞与表!$P$10*1000,0,INDEX(源泉賞与表!$B:$B,MATCH(賞与計算!D26/1000,源泉賞与表!$P:$P,1))) -> 0 | S23: =IF(賞与計算!D26<源泉賞与表!$R$10*1000,0,INDEX(源泉賞与表!$B:$B,MATCH(賞与計算!D26/1000,源泉賞与表!$R:$R,1))) -> 0 | T23: =IF(賞与計算!D26="","",IF(賞与計算!D26<源泉賞与表!$T$22*1000,10.21,INDEX(源泉賞与表!$B:$B,MATCH(賞与計算!D26/1000,源泉賞与表!$T:$T,1)))) ->  | U23: 0 | V23: =IF(基本情報!G26="",0,ROUND(VLOOKUP(基本情報!G26,INDIRECT(基本情報!$D$3&"!$C$15:$P$61"),10,0)-0.1,0)) -> 0 | W23: =IF(基本情報!G26="",0,ROUND(VLOOKUP(基本情報!G26,INDIRECT(基本情報!$D$3&"!$C$15:$P$61"),14,0)-0.1,0)) -> 0 | X23: 0 | Y23: =IF(基本情報!G26="",0,ROUND(IF(OR(基本情報!G26<税額基本情報!$E$24,基本情報!G26>税額基本情報!$E$25),AA23,VLOOKUP(基本情報!G26,INDIRECT(基本情報!$D$3&"!$C$19:$X$48"),18,0))-0.1,0)) -> 0 | Z23: =IF(基本情報!G26="",0,ROUND(IF(OR(基本情報!G26<税額基本情報!$E$24,基本情報!G26>税額基本情報!$E$25),AB23,VLOOKUP(基本情報!G26,INDIRECT(基本情報!$D$3&"!$C$19:$X$48"),22,0))-0.1,0)) -> 0 | AA23: =IF(基本情報!G26="",0,IF(基本情報!G26<税額基本情報!$E$24,税額基本情報!$F$24,IF(基本情報!G26>税額基本情報!$E$25,税額基本情報!$F$25,0))) -> 0 | AB23: =IF(基本情報!G26="",0,IF(基本情報!G26<税額基本情報!$E$24,税額基本情報!$G$24,IF(基本情報!G26>税額基本情報!$E$25,税額基本情報!$G$25,0))) -> 0 | AC23: 0 | AD23: =ROUND(ROUNDDOWN(賞与計算!F26,-3)*INDIRECT(基本情報!$D$3&"!$J$10")*0.5-0.1,0) -> 0 | AE23: =ROUND(ROUNDDOWN(賞与計算!F26,-3)*INDIRECT(基本情報!$D$3&"!$N$10")/2-0.1,0) -> 0 | AF23: 0 | AG23: =ROUND(IF(賞与計算!F26>税額基本情報!$D$28,税額基本情報!$D$28,ROUNDDOWN(賞与計算!F26,-3))*INDIRECT(基本情報!$D$3&"!$R$10")/2-0.1,0) -> 0 | AH23: =ROUND(IF(賞与計算!F26>税額基本情報!$D$28,税額基本情報!$D$28,ROUNDDOWN(賞与計算!F26,-3))*INDIRECT(基本情報!$D$3&"!$V$10")/2-0.1,0) -> 0
C24: 20 | D24: =給与計算!C27 ->  | E24: =MAX(IF(給与計算!M27>=税額基本情報!$D$6,MAX(計算シート!H24:J24),IF(給与計算!M27<源泉月額表!$B$8,0,VLOOKUP(給与計算!M27,源泉月額表!$B:$K,IF(基本情報!E27>=8,10,基本情報!E27+3),1)))-IF(基本情報!E27>=8,(基本情報!E27-7)*税額基本情報!$D$15,0),0) -> 0 | F24: =IF(給与計算!M27<源泉月額表!$B$8,ROUNDDOWN(給与計算!M27*税額基本情報!$D$21,0),IF(給与計算!M27=0,0,IF(給与計算!M27>=税額基本情報!$D$12,K24,VLOOKUP(給与計算!M27,源泉月額表!$B:$L,11,1)))) -> 0 | G24: =MAX(IF(給与計算!M27<源泉月額表!$B$8,ROUNDDOWN(給与計算!M27*3.063%,0),IF(給与計算!M27=0,0,IF(給与計算!M27>=税額基本情報!$D$12,K24,VLOOKUP(給与計算!M27,源泉月額表!$B:$L,11,1))))-基本情報!E27*税額基本情報!$D$18,0) -> 0 | H24: =IF(AND(給与計算!M27>=1010000,給与計算!M27<1250000),VLOOKUP(給与計算!M27,税額基本情報!$D$6:$M$8,IF(基本情報!E27>=8,10,基本情報!E27+3),1)+ROUNDDOWN((給与計算!M27-税額基本情報!$D$6)*税額基本情報!$E$6,0),0) -> 0 | I24: =IF(AND(給与計算!M27>=1250000,給与計算!M27<1740000),VLOOKUP(給与計算!M27,税額基本情報!$D$6:$M$8,IF(基本情報!E27>=8,10,基本情報!E27+3),1)+ROUNDDOWN((給与計算!M27-税額基本情報!$D$7)*税額基本情報!$E$7,0),0) -> 0 | J24: =IF(給与計算!M27>=1740000,VLOOKUP(給与計算!M27,税額基本情報!$D$6:$M$8,IF(基本情報!E27>=8,10,基本情報!E27+3),1)+ROUNDDOWN((給与計算!M27-税額基本情報!$D$8)*税額基本情報!$E$8,0),0) -> 0 | K24: =IF(給与計算!M27>=1010000,税額基本情報!$F$12+ROUNDDOWN((給与計算!M27-税額基本情報!$D$12)*税額基本情報!$E$12,0),0) -> 0 | L24: =IF(賞与計算!D27<源泉賞与表!$D$10*1000,0,INDEX(源泉賞与表!$B:$B,MATCH(賞与計算!D27/1000,源泉賞与表!$D:$D,1))) -> 0 | M24: =IF(賞与計算!D27<源泉賞与表!$F$10*1000,0,INDEX(源泉賞与表!$B:$B,MATCH(賞与計算!D27/1000,源泉賞与表!$F:$F,1))) -> 0 | N24: =IF(賞与計算!D27<源泉賞与表!$H$10*1000,0,INDEX(源泉賞与表!$B:$B,MATCH(賞与計算!D27/1000,源泉賞与表!$H:$H,1))) -> 0 | O24: =IF(賞与計算!D27<源泉賞与表!$J$10*1000,0,INDEX(源泉賞与表!$B:$B,MATCH(賞与計算!D27/1000,源泉賞与表!$J:$J,1))) -> 0 | P24: =IF(賞与計算!D27<源泉賞与表!$L$10*1000,0,INDEX(源泉賞与表!$B:$B,MATCH(賞与計算!D27/1000,源泉賞与表!$L:$L,1))) -> 0 | Q24: =IF(賞与計算!D27<源泉賞与表!$N$10*1000,0,INDEX(源泉賞与表!$B:$B,MATCH(賞与計算!D27/1000,源泉賞与表!$N:$N,1))) -> 0 | R24: =IF(賞与計算!D27<源泉賞与表!$P$10*1000,0,INDEX(源泉賞与表!$B:$B,MATCH(賞与計算!D27/1000,源泉賞与表!$P:$P,1))) -> 0 | S24: =IF(賞与計算!D27<源泉賞与表!$R$10*1000,0,INDEX(源泉賞与表!$B:$B,MATCH(賞与計算!D27/1000,源泉賞与表!$R:$R,1))) -> 0 | T24: =IF(賞与計算!D27="","",IF(賞与計算!D27<源泉賞与表!$T$22*1000,10.21,INDEX(源泉賞与表!$B:$B,MATCH(賞与計算!D27/1000,源泉賞与表!$T:$T,1)))) ->  | U24: 0 | V24: =IF(基本情報!G27="",0,ROUND(VLOOKUP(基本情報!G27,INDIRECT(基本情報!$D$3&"!$C$15:$P$61"),10,0)-0.1,0)) -> 0 | W24: =IF(基本情報!G27="",0,ROUND(VLOOKUP(基本情報!G27,INDIRECT(基本情報!$D$3&"!$C$15:$P$61"),14,0)-0.1,0)) -> 0 | X24: 0 | Y24: =IF(基本情報!G27="",0,ROUND(IF(OR(基本情報!G27<税額基本情報!$E$24,基本情報!G27>税額基本情報!$E$25),AA24,VLOOKUP(基本情報!G27,INDIRECT(基本情報!$D$3&"!$C$19:$X$48"),18,0))-0.1,0)) -> 0 | Z24: =IF(基本情報!G27="",0,ROUND(IF(OR(基本情報!G27<税額基本情報!$E$24,基本情報!G27>税額基本情報!$E$25),AB24,VLOOKUP(基本情報!G27,INDIRECT(基本情報!$D$3&"!$C$19:$X$48"),22,0))-0.1,0)) -> 0 | AA24: =IF(基本情報!G27="",0,IF(基本情報!G27<税額基本情報!$E$24,税額基本情報!$F$24,IF(基本情報!G27>税額基本情報!$E$25,税額基本情報!$F$25,0))) -> 0 | AB24: =IF(基本情報!G27="",0,IF(基本情報!G27<税額基本情報!$E$24,税額基本情報!$G$24,IF(基本情報!G27>税額基本情報!$E$25,税額基本情報!$G$25,0))) -> 0 | AC24: 0 | AD24: =ROUND(ROUNDDOWN(賞与計算!F27,-3)*INDIRECT(基本情報!$D$3&"!$J$10")*0.5-0.1,0) -> 0 | AE24: =ROUND(ROUNDDOWN(賞与計算!F27,-3)*INDIRECT(基本情報!$D$3&"!$N$10")/2-0.1,0) -> 0 | AF24: 0 | AG24: =ROUND(IF(賞与計算!F27>税額基本情報!$D$28,税額基本情報!$D$28,ROUNDDOWN(賞与計算!F27,-3))*INDIRECT(基本情報!$D$3&"!$R$10")/2-0.1,0) -> 0 | AH24: =ROUND(IF(賞与計算!F27>税額基本情報!$D$28,税額基本情報!$D$28,ROUNDDOWN(賞与計算!F27,-3))*INDIRECT(基本情報!$D$3&"!$V$10")/2-0.1,0) -> 0
C25: 21 | D25: =給与計算!C28 ->  | E25: =MAX(IF(給与計算!M28>=税額基本情報!$D$6,MAX(計算シート!H25:J25),IF(給与計算!M28<源泉月額表!$B$8,0,VLOOKUP(給与計算!M28,源泉月額表!$B:$K,IF(基本情報!E28>=8,10,基本情報!E28+3),1)))-IF(基本情報!E28>=8,(基本情報!E28-7)*税額基本情報!$D$15,0),0) -> 0 | F25: =IF(給与計算!M28<源泉月額表!$B$8,ROUNDDOWN(給与計算!M28*税額基本情報!$D$21,0),IF(給与計算!M28=0,0,IF(給与計算!M28>=税額基本情報!$D$12,K25,VLOOKUP(給与計算!M28,源泉月額表!$B:$L,11,1)))) -> 0 | G25: =MAX(IF(給与計算!M28<源泉月額表!$B$8,ROUNDDOWN(給与計算!M28*3.063%,0),IF(給与計算!M28=0,0,IF(給与計算!M28>=税額基本情報!$D$12,K25,VLOOKUP(給与計算!M28,源泉月額表!$B:$L,11,1))))-基本情報!E28*税額基本情報!$D$18,0) -> 0 | H25: =IF(AND(給与計算!M28>=1010000,給与計算!M28<1250000),VLOOKUP(給与計算!M28,税額基本情報!$D$6:$M$8,IF(基本情報!E28>=8,10,基本情報!E28+3),1)+ROUNDDOWN((給与計算!M28-税額基本情報!$D$6)*税額基本情報!$E$6,0),0) -> 0 | I25: =IF(AND(給与計算!M28>=1250000,給与計算!M28<1740000),VLOOKUP(給与計算!M28,税額基本情報!$D$6:$M$8,IF(基本情報!E28>=8,10,基本情報!E28+3),1)+ROUNDDOWN((給与計算!M28-税額基本情報!$D$7)*税額基本情報!$E$7,0),0) -> 0 | J25: =IF(給与計算!M28>=1740000,VLOOKUP(給与計算!M28,税額基本情報!$D$6:$M$8,IF(基本情報!E28>=8,10,基本情報!E28+3),1)+ROUNDDOWN((給与計算!M28-税額基本情報!$D$8)*税額基本情報!$E$8,0),0) -> 0 | K25: =IF(給与計算!M28>=1010000,税額基本情報!$F$12+ROUNDDOWN((給与計算!M28-税額基本情報!$D$12)*税額基本情報!$E$12,0),0) -> 0 | L25: =IF(賞与計算!D28<源泉賞与表!$D$10*1000,0,INDEX(源泉賞与表!$B:$B,MATCH(賞与計算!D28/1000,源泉賞与表!$D:$D,1))) -> 0 | M25: =IF(賞与計算!D28<源泉賞与表!$F$10*1000,0,INDEX(源泉賞与表!$B:$B,MATCH(賞与計算!D28/1000,源泉賞与表!$F:$F,1))) -> 0 | N25: =IF(賞与計算!D28<源泉賞与表!$H$10*1000,0,INDEX(源泉賞与表!$B:$B,MATCH(賞与計算!D28/1000,源泉賞与表!$H:$H,1))) -> 0 | O25: =IF(賞与計算!D28<源泉賞与表!$J$10*1000,0,INDEX(源泉賞与表!$B:$B,MATCH(賞与計算!D28/1000,源泉賞与表!$J:$J,1))) -> 0 | P25: =IF(賞与計算!D28<源泉賞与表!$L$10*1000,0,INDEX(源泉賞与表!$B:$B,MATCH(賞与計算!D28/1000,源泉賞与表!$L:$L,1))) -> 0 | Q25: =IF(賞与計算!D28<源泉賞与表!$N$10*1000,0,INDEX(源泉賞与表!$B:$B,MATCH(賞与計算!D28/1000,源泉賞与表!$N:$N,1))) -> 0 | R25: =IF(賞与計算!D28<源泉賞与表!$P$10*1000,0,INDEX(源泉賞与表!$B:$B,MATCH(賞与計算!D28/1000,源泉賞与表!$P:$P,1))) -> 0 | S25: =IF(賞与計算!D28<源泉賞与表!$R$10*1000,0,INDEX(源泉賞与表!$B:$B,MATCH(賞与計算!D28/1000,源泉賞与表!$R:$R,1))) -> 0 | T25: =IF(賞与計算!D28="","",IF(賞与計算!D28<源泉賞与表!$T$22*1000,10.21,INDEX(源泉賞与表!$B:$B,MATCH(賞与計算!D28/1000,源泉賞与表!$T:$T,1)))) ->  | U25: 0 | V25: =IF(基本情報!G28="",0,ROUND(VLOOKUP(基本情報!G28,INDIRECT(基本情報!$D$3&"!$C$15:$P$61"),10,0)-0.1,0)) -> 0 | W25: =IF(基本情報!G28="",0,ROUND(VLOOKUP(基本情報!G28,INDIRECT(基本情報!$D$3&"!$C$15:$P$61"),14,0)-0.1,0)) -> 0 | X25: 0 | Y25: =IF(基本情報!G28="",0,ROUND(IF(OR(基本情報!G28<税額基本情報!$E$24,基本情報!G28>税額基本情報!$E$25),AA25,VLOOKUP(基本情報!G28,INDIRECT(基本情報!$D$3&"!$C$19:$X$48"),18,0))-0.1,0)) -> 0 | Z25: =IF(基本情報!G28="",0,ROUND(IF(OR(基本情報!G28<税額基本情報!$E$24,基本情報!G28>税額基本情報!$E$25),AB25,VLOOKUP(基本情報!G28,INDIRECT(基本情報!$D$3&"!$C$19:$X$48"),22,0))-0.1,0)) -> 0 | AA25: =IF(基本情報!G28="",0,IF(基本情報!G28<税額基本情報!$E$24,税額基本情報!$F$24,IF(基本情報!G28>税額基本情報!$E$25,税額基本情報!$F$25,0))) -> 0 | AB25: =IF(基本情報!G28="",0,IF(基本情報!G28<税額基本情報!$E$24,税額基本情報!$G$24,IF(基本情報!G28>税額基本情報!$E$25,税額基本情報!$G$25,0))) -> 0 | AC25: 0 | AD25: =ROUND(ROUNDDOWN(賞与計算!F28,-3)*INDIRECT(基本情報!$D$3&"!$J$10")*0.5-0.1,0) -> 0 | AE25: =ROUND(ROUNDDOWN(賞与計算!F28,-3)*INDIRECT(基本情報!$D$3&"!$N$10")/2-0.1,0) -> 0 | AF25: 0 | AG25: =ROUND(IF(賞与計算!F28>税額基本情報!$D$28,税額基本情報!$D$28,ROUNDDOWN(賞与計算!F28,-3))*INDIRECT(基本情報!$D$3&"!$R$10")/2-0.1,0) -> 0 | AH25: =ROUND(IF(賞与計算!F28>税額基本情報!$D$28,税額基本情報!$D$28,ROUNDDOWN(賞与計算!F28,-3))*INDIRECT(基本情報!$D$3&"!$V$10")/2-0.1,0) -> 0
C26: 22 | D26: =給与計算!C29 ->  | E26: =MAX(IF(給与計算!M29>=税額基本情報!$D$6,MAX(計算シート!H26:J26),IF(給与計算!M29<源泉月額表!$B$8,0,VLOOKUP(給与計算!M29,源泉月額表!$B:$K,IF(基本情報!E29>=8,10,基本情報!E29+3),1)))-IF(基本情報!E29>=8,(基本情報!E29-7)*税額基本情報!$D$15,0),0) -> 0 | F26: =IF(給与計算!M29<源泉月額表!$B$8,ROUNDDOWN(給与計算!M29*税額基本情報!$D$21,0),IF(給与計算!M29=0,0,IF(給与計算!M29>=税額基本情報!$D$12,K26,VLOOKUP(給与計算!M29,源泉月額表!$B:$L,11,1)))) -> 0 | G26: =MAX(IF(給与計算!M29<源泉月額表!$B$8,ROUNDDOWN(給与計算!M29*3.063%,0),IF(給与計算!M29=0,0,IF(給与計算!M29>=税額基本情報!$D$12,K26,VLOOKUP(給与計算!M29,源泉月額表!$B:$L,11,1))))-基本情報!E29*税額基本情報!$D$18,0) -> 0 | H26: =IF(AND(給与計算!M29>=1010000,給与計算!M29<1250000),VLOOKUP(給与計算!M29,税額基本情報!$D$6:$M$8,IF(基本情報!E29>=8,10,基本情報!E29+3),1)+ROUNDDOWN((給与計算!M29-税額基本情報!$D$6)*税額基本情報!$E$6,0),0) -> 0 | I26: =IF(AND(給与計算!M29>=1250000,給与計算!M29<1740000),VLOOKUP(給与計算!M29,税額基本情報!$D$6:$M$8,IF(基本情報!E29>=8,10,基本情報!E29+3),1)+ROUNDDOWN((給与計算!M29-税額基本情報!$D$7)*税額基本情報!$E$7,0),0) -> 0 | J26: =IF(給与計算!M29>=1740000,VLOOKUP(給与計算!M29,税額基本情報!$D$6:$M$8,IF(基本情報!E29>=8,10,基本情報!E29+3),1)+ROUNDDOWN((給与計算!M29-税額基本情報!$D$8)*税額基本情報!$E$8,0),0) -> 0 | K26: =IF(給与計算!M29>=1010000,税額基本情報!$F$12+ROUNDDOWN((給与計算!M29-税額基本情報!$D$12)*税額基本情報!$E$12,0),0) -> 0 | L26: =IF(賞与計算!D29<源泉賞与表!$D$10*1000,0,INDEX(源泉賞与表!$B:$B,MATCH(賞与計算!D29/1000,源泉賞与表!$D:$D,1))) -> 0 | M26: =IF(賞与計算!D29<源泉賞与表!$F$10*1000,0,INDEX(源泉賞与表!$B:$B,MATCH(賞与計算!D29/1000,源泉賞与表!$F:$F,1))) -> 0 | N26: =IF(賞与計算!D29<源泉賞与表!$H$10*1000,0,INDEX(源泉賞与表!$B:$B,MATCH(賞与計算!D29/1000,源泉賞与表!$H:$H,1))) -> 0 | O26: =IF(賞与計算!D29<源泉賞与表!$J$10*1000,0,INDEX(源泉賞与表!$B:$B,MATCH(賞与計算!D29/1000,源泉賞与表!$J:$J,1))) -> 0 | P26: =IF(賞与計算!D29<源泉賞与表!$L$10*1000,0,INDEX(源泉賞与表!$B:$B,MATCH(賞与計算!D29/1000,源泉賞与表!$L:$L,1))) -> 0 | Q26: =IF(賞与計算!D29<源泉賞与表!$N$10*1000,0,INDEX(源泉賞与表!$B:$B,MATCH(賞与計算!D29/1000,源泉賞与表!$N:$N,1))) -> 0 | R26: =IF(賞与計算!D29<源泉賞与表!$P$10*1000,0,INDEX(源泉賞与表!$B:$B,MATCH(賞与計算!D29/1000,源泉賞与表!$P:$P,1))) -> 0 | S26: =IF(賞与計算!D29<源泉賞与表!$R$10*1000,0,INDEX(源泉賞与表!$B:$B,MATCH(賞与計算!D29/1000,源泉賞与表!$R:$R,1))) -> 0 | T26: =IF(賞与計算!D29="","",IF(賞与計算!D29<源泉賞与表!$T$22*1000,10.21,INDEX(源泉賞与表!$B:$B,MATCH(賞与計算!D29/1000,源泉賞与表!$T:$T,1)))) ->  | U26: 0 | V26: =IF(基本情報!G29="",0,ROUND(VLOOKUP(基本情報!G29,INDIRECT(基本情報!$D$3&"!$C$15:$P$61"),10,0)-0.1,0)) -> 0 | W26: =IF(基本情報!G29="",0,ROUND(VLOOKUP(基本情報!G29,INDIRECT(基本情報!$D$3&"!$C$15:$P$61"),14,0)-0.1,0)) -> 0 | X26: 0 | Y26: =IF(基本情報!G29="",0,ROUND(IF(OR(基本情報!G29<税額基本情報!$E$24,基本情報!G29>税額基本情報!$E$25),AA26,VLOOKUP(基本情報!G29,INDIRECT(基本情報!$D$3&"!$C$19:$X$48"),18,0))-0.1,0)) -> 0 | Z26: =IF(基本情報!G29="",0,ROUND(IF(OR(基本情報!G29<税額基本情報!$E$24,基本情報!G29>税額基本情報!$E$25),AB26,VLOOKUP(基本情報!G29,INDIRECT(基本情報!$D$3&"!$C$19:$X$48"),22,0))-0.1,0)) -> 0 | AA26: =IF(基本情報!G29="",0,IF(基本情報!G29<税額基本情報!$E$24,税額基本情報!$F$24,IF(基本情報!G29>税額基本情報!$E$25,税額基本情報!$F$25,0))) -> 0 | AB26: =IF(基本情報!G29="",0,IF(基本情報!G29<税額基本情報!$E$24,税額基本情報!$G$24,IF(基本情報!G29>税額基本情報!$E$25,税額基本情報!$G$25,0))) -> 0 | AC26: 0 | AD26: =ROUND(ROUNDDOWN(賞与計算!F29,-3)*INDIRECT(基本情報!$D$3&"!$J$10")*0.5-0.1,0) -> 0 | AE26: =ROUND(ROUNDDOWN(賞与計算!F29,-3)*INDIRECT(基本情報!$D$3&"!$N$10")/2-0.1,0) -> 0 | AF26: 0 | AG26: =ROUND(IF(賞与計算!F29>税額基本情報!$D$28,税額基本情報!$D$28,ROUNDDOWN(賞与計算!F29,-3))*INDIRECT(基本情報!$D$3&"!$R$10")/2-0.1,0) -> 0 | AH26: =ROUND(IF(賞与計算!F29>税額基本情報!$D$28,税額基本情報!$D$28,ROUNDDOWN(賞与計算!F29,-3))*INDIRECT(基本情報!$D$3&"!$V$10")/2-0.1,0) -> 0
C27: 23 | D27: =給与計算!C30 ->  | E27: =MAX(IF(給与計算!M30>=税額基本情報!$D$6,MAX(計算シート!H27:J27),IF(給与計算!M30<源泉月額表!$B$8,0,VLOOKUP(給与計算!M30,源泉月額表!$B:$K,IF(基本情報!E30>=8,10,基本情報!E30+3),1)))-IF(基本情報!E30>=8,(基本情報!E30-7)*税額基本情報!$D$15,0),0) -> 0 | F27: =IF(給与計算!M30<源泉月額表!$B$8,ROUNDDOWN(給与計算!M30*税額基本情報!$D$21,0),IF(給与計算!M30=0,0,IF(給与計算!M30>=税額基本情報!$D$12,K27,VLOOKUP(給与計算!M30,源泉月額表!$B:$L,11,1)))) -> 0 | G27: =MAX(IF(給与計算!M30<源泉月額表!$B$8,ROUNDDOWN(給与計算!M30*3.063%,0),IF(給与計算!M30=0,0,IF(給与計算!M30>=税額基本情報!$D$12,K27,VLOOKUP(給与計算!M30,源泉月額表!$B:$L,11,1))))-基本情報!E30*税額基本情報!$D$18,0) -> 0 | H27: =IF(AND(給与計算!M30>=1010000,給与計算!M30<1250000),VLOOKUP(給与計算!M30,税額基本情報!$D$6:$M$8,IF(基本情報!E30>=8,10,基本情報!E30+3),1)+ROUNDDOWN((給与計算!M30-税額基本情報!$D$6)*税額基本情報!$E$6,0),0) -> 0 | I27: =IF(AND(給与計算!M30>=1250000,給与計算!M30<1740000),VLOOKUP(給与計算!M30,税額基本情報!$D$6:$M$8,IF(基本情報!E30>=8,10,基本情報!E30+3),1)+ROUNDDOWN((給与計算!M30-税額基本情報!$D$7)*税額基本情報!$E$7,0),0) -> 0 | J27: =IF(給与計算!M30>=1740000,VLOOKUP(給与計算!M30,税額基本情報!$D$6:$M$8,IF(基本情報!E30>=8,10,基本情報!E30+3),1)+ROUNDDOWN((給与計算!M30-税額基本情報!$D$8)*税額基本情報!$E$8,0),0) -> 0 | K27: =IF(給与計算!M30>=1010000,税額基本情報!$F$12+ROUNDDOWN((給与計算!M30-税額基本情報!$D$12)*税額基本情報!$E$12,0),0) -> 0 | L27: =IF(賞与計算!D30<源泉賞与表!$D$10*1000,0,INDEX(源泉賞与表!$B:$B,MATCH(賞与計算!D30/1000,源泉賞与表!$D:$D,1))) -> 0 | M27: =IF(賞与計算!D30<源泉賞与表!$F$10*1000,0,INDEX(源泉賞与表!$B:$B,MATCH(賞与計算!D30/1000,源泉賞与表!$F:$F,1))) -> 0 | N27: =IF(賞与計算!D30<源泉賞与表!$H$10*1000,0,INDEX(源泉賞与表!$B:$B,MATCH(賞与計算!D30/1000,源泉賞与表!$H:$H,1))) -> 0 | O27: =IF(賞与計算!D30<源泉賞与表!$J$10*1000,0,INDEX(源泉賞与表!$B:$B,MATCH(賞与計算!D30/1000,源泉賞与表!$J:$J,1))) -> 0 | P27: =IF(賞与計算!D30<源泉賞与表!$L$10*1000,0,INDEX(源泉賞与表!$B:$B,MATCH(賞与計算!D30/1000,源泉賞与表!$L:$L,1))) -> 0 | Q27: =IF(賞与計算!D30<源泉賞与表!$N$10*1000,0,INDEX(源泉賞与表!$B:$B,MATCH(賞与計算!D30/1000,源泉賞与表!$N:$N,1))) -> 0 | R27: =IF(賞与計算!D30<源泉賞与表!$P$10*1000,0,INDEX(源泉賞与表!$B:$B,MATCH(賞与計算!D30/1000,源泉賞与表!$P:$P,1))) -> 0 | S27: =IF(賞与計算!D30<源泉賞与表!$R$10*1000,0,INDEX(源泉賞与表!$B:$B,MATCH(賞与計算!D30/1000,源泉賞与表!$R:$R,1))) -> 0 | T27: =IF(賞与計算!D30="","",IF(賞与計算!D30<源泉賞与表!$T$22*1000,10.21,INDEX(源泉賞与表!$B:$B,MATCH(賞与計算!D30/1000,源泉賞与表!$T:$T,1)))) ->  | U27: 0 | V27: =IF(基本情報!G30="",0,ROUND(VLOOKUP(基本情報!G30,INDIRECT(基本情報!$D$3&"!$C$15:$P$61"),10,0)-0.1,0)) -> 0 | W27: =IF(基本情報!G30="",0,ROUND(VLOOKUP(基本情報!G30,INDIRECT(基本情報!$D$3&"!$C$15:$P$61"),14,0)-0.1,0)) -> 0 | X27: 0 | Y27: =IF(基本情報!G30="",0,ROUND(IF(OR(基本情報!G30<税額基本情報!$E$24,基本情報!G30>税額基本情報!$E$25),AA27,VLOOKUP(基本情報!G30,INDIRECT(基本情報!$D$3&"!$C$19:$X$48"),18,0))-0.1,0)) -> 0 | Z27: =IF(基本情報!G30="",0,ROUND(IF(OR(基本情報!G30<税額基本情報!$E$24,基本情報!G30>税額基本情報!$E$25),AB27,VLOOKUP(基本情報!G30,INDIRECT(基本情報!$D$3&"!$C$19:$X$48"),22,0))-0.1,0)) -> 0 | AA27: =IF(基本情報!G30="",0,IF(基本情報!G30<税額基本情報!$E$24,税額基本情報!$F$24,IF(基本情報!G30>税額基本情報!$E$25,税額基本情報!$F$25,0))) -> 0 | AB27: =IF(基本情報!G30="",0,IF(基本情報!G30<税額基本情報!$E$24,税額基本情報!$G$24,IF(基本情報!G30>税額基本情報!$E$25,税額基本情報!$G$25,0))) -> 0 | AC27: 0 | AD27: =ROUND(ROUNDDOWN(賞与計算!F30,-3)*INDIRECT(基本情報!$D$3&"!$J$10")*0.5-0.1,0) -> 0 | AE27: =ROUND(ROUNDDOWN(賞与計算!F30,-3)*INDIRECT(基本情報!$D$3&"!$N$10")/2-0.1,0) -> 0 | AF27: 0 | AG27: =ROUND(IF(賞与計算!F30>税額基本情報!$D$28,税額基本情報!$D$28,ROUNDDOWN(賞与計算!F30,-3))*INDIRECT(基本情報!$D$3&"!$R$10")/2-0.1,0) -> 0 | AH27: =ROUND(IF(賞与計算!F30>税額基本情報!$D$28,税額基本情報!$D$28,ROUNDDOWN(賞与計算!F30,-3))*INDIRECT(基本情報!$D$3&"!$V$10")/2-0.1,0) -> 0
C28: 24 | D28: =給与計算!C31 ->  | E28: =MAX(IF(給与計算!M31>=税額基本情報!$D$6,MAX(計算シート!H28:J28),IF(給与計算!M31<源泉月額表!$B$8,0,VLOOKUP(給与計算!M31,源泉月額表!$B:$K,IF(基本情報!E31>=8,10,基本情報!E31+3),1)))-IF(基本情報!E31>=8,(基本情報!E31-7)*税額基本情報!$D$15,0),0) -> 0 | F28: =IF(給与計算!M31<源泉月額表!$B$8,ROUNDDOWN(給与計算!M31*税額基本情報!$D$21,0),IF(給与計算!M31=0,0,IF(給与計算!M31>=税額基本情報!$D$12,K28,VLOOKUP(給与計算!M31,源泉月額表!$B:$L,11,1)))) -> 0 | G28: =MAX(IF(給与計算!M31<源泉月額表!$B$8,ROUNDDOWN(給与計算!M31*3.063%,0),IF(給与計算!M31=0,0,IF(給与計算!M31>=税額基本情報!$D$12,K28,VLOOKUP(給与計算!M31,源泉月額表!$B:$L,11,1))))-基本情報!E31*税額基本情報!$D$18,0) -> 0 | H28: =IF(AND(給与計算!M31>=1010000,給与計算!M31<1250000),VLOOKUP(給与計算!M31,税額基本情報!$D$6:$M$8,IF(基本情報!E31>=8,10,基本情報!E31+3),1)+ROUNDDOWN((給与計算!M31-税額基本情報!$D$6)*税額基本情報!$E$6,0),0) -> 0 | I28: =IF(AND(給与計算!M31>=1250000,給与計算!M31<1740000),VLOOKUP(給与計算!M31,税額基本情報!$D$6:$M$8,IF(基本情報!E31>=8,10,基本情報!E31+3),1)+ROUNDDOWN((給与計算!M31-税額基本情報!$D$7)*税額基本情報!$E$7,0),0) -> 0 | J28: =IF(給与計算!M31>=1740000,VLOOKUP(給与計算!M31,税額基本情報!$D$6:$M$8,IF(基本情報!E31>=8,10,基本情報!E31+3),1)+ROUNDDOWN((給与計算!M31-税額基本情報!$D$8)*税額基本情報!$E$8,0),0) -> 0 | K28: =IF(給与計算!M31>=1010000,税額基本情報!$F$12+ROUNDDOWN((給与計算!M31-税額基本情報!$D$12)*税額基本情報!$E$12,0),0) -> 0 | L28: =IF(賞与計算!D31<源泉賞与表!$D$10*1000,0,INDEX(源泉賞与表!$B:$B,MATCH(賞与計算!D31/1000,源泉賞与表!$D:$D,1))) -> 0 | M28: =IF(賞与計算!D31<源泉賞与表!$F$10*1000,0,INDEX(源泉賞与表!$B:$B,MATCH(賞与計算!D31/1000,源泉賞与表!$F:$F,1))) -> 0 | N28: =IF(賞与計算!D31<源泉賞与表!$H$10*1000,0,INDEX(源泉賞与表!$B:$B,MATCH(賞与計算!D31/1000,源泉賞与表!$H:$H,1))) -> 0 | O28: =IF(賞与計算!D31<源泉賞与表!$J$10*1000,0,INDEX(源泉賞与表!$B:$B,MATCH(賞与計算!D31/1000,源泉賞与表!$J:$J,1))) -> 0 | P28: =IF(賞与計算!D31<源泉賞与表!$L$10*1000,0,INDEX(源泉賞与表!$B:$B,MATCH(賞与計算!D31/1000,源泉賞与表!$L:$L,1))) -> 0 | Q28: =IF(賞与計算!D31<源泉賞与表!$N$10*1000,0,INDEX(源泉賞与表!$B:$B,MATCH(賞与計算!D31/1000,源泉賞与表!$N:$N,1))) -> 0 | R28: =IF(賞与計算!D31<源泉賞与表!$P$10*1000,0,INDEX(源泉賞与表!$B:$B,MATCH(賞与計算!D31/1000,源泉賞与表!$P:$P,1))) -> 0 | S28: =IF(賞与計算!D31<源泉賞与表!$R$10*1000,0,INDEX(源泉賞与表!$B:$B,MATCH(賞与計算!D31/1000,源泉賞与表!$R:$R,1))) -> 0 | T28: =IF(賞与計算!D31="","",IF(賞与計算!D31<源泉賞与表!$T$22*1000,10.21,INDEX(源泉賞与表!$B:$B,MATCH(賞与計算!D31/1000,源泉賞与表!$T:$T,1)))) ->  | U28: 0 | V28: =IF(基本情報!G31="",0,ROUND(VLOOKUP(基本情報!G31,INDIRECT(基本情報!$D$3&"!$C$15:$P$61"),10,0)-0.1,0)) -> 0 | W28: =IF(基本情報!G31="",0,ROUND(VLOOKUP(基本情報!G31,INDIRECT(基本情報!$D$3&"!$C$15:$P$61"),14,0)-0.1,0)) -> 0 | X28: 0 | Y28: =IF(基本情報!G31="",0,ROUND(IF(OR(基本情報!G31<税額基本情報!$E$24,基本情報!G31>税額基本情報!$E$25),AA28,VLOOKUP(基本情報!G31,INDIRECT(基本情報!$D$3&"!$C$19:$X$48"),18,0))-0.1,0)) -> 0 | Z28: =IF(基本情報!G31="",0,ROUND(IF(OR(基本情報!G31<税額基本情報!$E$24,基本情報!G31>税額基本情報!$E$25),AB28,VLOOKUP(基本情報!G31,INDIRECT(基本情報!$D$3&"!$C$19:$X$48"),22,0))-0.1,0)) -> 0 | AA28: =IF(基本情報!G31="",0,IF(基本情報!G31<税額基本情報!$E$24,税額基本情報!$F$24,IF(基本情報!G31>税額基本情報!$E$25,税額基本情報!$F$25,0))) -> 0 | AB28: =IF(基本情報!G31="",0,IF(基本情報!G31<税額基本情報!$E$24,税額基本情報!$G$24,IF(基本情報!G31>税額基本情報!$E$25,税額基本情報!$G$25,0))) -> 0 | AC28: 0 | AD28: =ROUND(ROUNDDOWN(賞与計算!F31,-3)*INDIRECT(基本情報!$D$3&"!$J$10")*0.5-0.1,0) -> 0 | AE28: =ROUND(ROUNDDOWN(賞与計算!F31,-3)*INDIRECT(基本情報!$D$3&"!$N$10")/2-0.1,0) -> 0 | AF28: 0 | AG28: =ROUND(IF(賞与計算!F31>税額基本情報!$D$28,税額基本情報!$D$28,ROUNDDOWN(賞与計算!F31,-3))*INDIRECT(基本情報!$D$3&"!$R$10")/2-0.1,0) -> 0 | AH28: =ROUND(IF(賞与計算!F31>税額基本情報!$D$28,税額基本情報!$D$28,ROUNDDOWN(賞与計算!F31,-3))*INDIRECT(基本情報!$D$3&"!$V$10")/2-0.1,0) -> 0
C29: 25 | D29: =給与計算!C32 ->  | E29: =MAX(IF(給与計算!M32>=税額基本情報!$D$6,MAX(計算シート!H29:J29),IF(給与計算!M32<源泉月額表!$B$8,0,VLOOKUP(給与計算!M32,源泉月額表!$B:$K,IF(基本情報!E32>=8,10,基本情報!E32+3),1)))-IF(基本情報!E32>=8,(基本情報!E32-7)*税額基本情報!$D$15,0),0) -> 0 | F29: =IF(給与計算!M32<源泉月額表!$B$8,ROUNDDOWN(給与計算!M32*税額基本情報!$D$21,0),IF(給与計算!M32=0,0,IF(給与計算!M32>=税額基本情報!$D$12,K29,VLOOKUP(給与計算!M32,源泉月額表!$B:$L,11,1)))) -> 0 | G29: =MAX(IF(給与計算!M32<源泉月額表!$B$8,ROUNDDOWN(給与計算!M32*3.063%,0),IF(給与計算!M32=0,0,IF(給与計算!M32>=税額基本情報!$D$12,K29,VLOOKUP(給与計算!M32,源泉月額表!$B:$L,11,1))))-基本情報!E32*税額基本情報!$D$18,0) -> 0 | H29: =IF(AND(給与計算!M32>=1010000,給与計算!M32<1250000),VLOOKUP(給与計算!M32,税額基本情報!$D$6:$M$8,IF(基本情報!E32>=8,10,基本情報!E32+3),1)+ROUNDDOWN((給与計算!M32-税額基本情報!$D$6)*税額基本情報!$E$6,0),0) -> 0 | I29: =IF(AND(給与計算!M32>=1250000,給与計算!M32<1740000),VLOOKUP(給与計算!M32,税額基本情報!$D$6:$M$8,IF(基本情報!E32>=8,10,基本情報!E32+3),1)+ROUNDDOWN((給与計算!M32-税額基本情報!$D$7)*税額基本情報!$E$7,0),0) -> 0 | J29: =IF(給与計算!M32>=1740000,VLOOKUP(給与計算!M32,税額基本情報!$D$6:$M$8,IF(基本情報!E32>=8,10,基本情報!E32+3),1)+ROUNDDOWN((給与計算!M32-税額基本情報!$D$8)*税額基本情報!$E$8,0),0) -> 0 | K29: =IF(給与計算!M32>=1010000,税額基本情報!$F$12+ROUNDDOWN((給与計算!M32-税額基本情報!$D$12)*税額基本情報!$E$12,0),0) -> 0 | L29: =IF(賞与計算!D32<源泉賞与表!$D$10*1000,0,INDEX(源泉賞与表!$B:$B,MATCH(賞与計算!D32/1000,源泉賞与表!$D:$D,1))) -> 0 | M29: =IF(賞与計算!D32<源泉賞与表!$F$10*1000,0,INDEX(源泉賞与表!$B:$B,MATCH(賞与計算!D32/1000,源泉賞与表!$F:$F,1))) -> 0 | N29: =IF(賞与計算!D32<源泉賞与表!$H$10*1000,0,INDEX(源泉賞与表!$B:$B,MATCH(賞与計算!D32/1000,源泉賞与表!$H:$H,1))) -> 0 | O29: =IF(賞与計算!D32<源泉賞与表!$J$10*1000,0,INDEX(源泉賞与表!$B:$B,MATCH(賞与計算!D32/1000,源泉賞与表!$J:$J,1))) -> 0 | P29: =IF(賞与計算!D32<源泉賞与表!$L$10*1000,0,INDEX(源泉賞与表!$B:$B,MATCH(賞与計算!D32/1000,源泉賞与表!$L:$L,1))) -> 0 | Q29: =IF(賞与計算!D32<源泉賞与表!$N$10*1000,0,INDEX(源泉賞与表!$B:$B,MATCH(賞与計算!D32/1000,源泉賞与表!$N:$N,1))) -> 0 | R29: =IF(賞与計算!D32<源泉賞与表!$P$10*1000,0,INDEX(源泉賞与表!$B:$B,MATCH(賞与計算!D32/1000,源泉賞与表!$P:$P,1))) -> 0 | S29: =IF(賞与計算!D32<源泉賞与表!$R$10*1000,0,INDEX(源泉賞与表!$B:$B,MATCH(賞与計算!D32/1000,源泉賞与表!$R:$R,1))) -> 0 | T29: =IF(賞与計算!D32="","",IF(賞与計算!D32<源泉賞与表!$T$22*1000,10.21,INDEX(源泉賞与表!$B:$B,MATCH(賞与計算!D32/1000,源泉賞与表!$T:$T,1)))) ->  | U29: 0 | V29: =IF(基本情報!G32="",0,ROUND(VLOOKUP(基本情報!G32,INDIRECT(基本情報!$D$3&"!$C$15:$P$61"),10,0)-0.1,0)) -> 0 | W29: =IF(基本情報!G32="",0,ROUND(VLOOKUP(基本情報!G32,INDIRECT(基本情報!$D$3&"!$C$15:$P$61"),14,0)-0.1,0)) -> 0 | X29: 0 | Y29: =IF(基本情報!G32="",0,ROUND(IF(OR(基本情報!G32<税額基本情報!$E$24,基本情報!G32>税額基本情報!$E$25),AA29,VLOOKUP(基本情報!G32,INDIRECT(基本情報!$D$3&"!$C$19:$X$48"),18,0))-0.1,0)) -> 0 | Z29: =IF(基本情報!G32="",0,ROUND(IF(OR(基本情報!G32<税額基本情報!$E$24,基本情報!G32>税額基本情報!$E$25),AB29,VLOOKUP(基本情報!G32,INDIRECT(基本情報!$D$3&"!$C$19:$X$48"),22,0))-0.1,0)) -> 0 | AA29: =IF(基本情報!G32="",0,IF(基本情報!G32<税額基本情報!$E$24,税額基本情報!$F$24,IF(基本情報!G32>税額基本情報!$E$25,税額基本情報!$F$25,0))) -> 0 | AB29: =IF(基本情報!G32="",0,IF(基本情報!G32<税額基本情報!$E$24,税額基本情報!$G$24,IF(基本情報!G32>税額基本情報!$E$25,税額基本情報!$G$25,0))) -> 0 | AC29: 0 | AD29: =ROUND(ROUNDDOWN(賞与計算!F32,-3)*INDIRECT(基本情報!$D$3&"!$J$10")*0.5-0.1,0) -> 0 | AE29: =ROUND(ROUNDDOWN(賞与計算!F32,-3)*INDIRECT(基本情報!$D$3&"!$N$10")/2-0.1,0) -> 0 | AF29: 0 | AG29: =ROUND(IF(賞与計算!F32>税額基本情報!$D$28,税額基本情報!$D$28,ROUNDDOWN(賞与計算!F32,-3))*INDIRECT(基本情報!$D$3&"!$R$10")/2-0.1,0) -> 0 | AH29: =ROUND(IF(賞与計算!F32>税額基本情報!$D$28,税額基本情報!$D$28,ROUNDDOWN(賞与計算!F32,-3))*INDIRECT(基本情報!$D$3&"!$V$10")/2-0.1,0) -> 0
C30: 26 | D30: =給与計算!C33 ->  | E30: =MAX(IF(給与計算!M33>=税額基本情報!$D$6,MAX(計算シート!H30:J30),IF(給与計算!M33<源泉月額表!$B$8,0,VLOOKUP(給与計算!M33,源泉月額表!$B:$K,IF(基本情報!E33>=8,10,基本情報!E33+3),1)))-IF(基本情報!E33>=8,(基本情報!E33-7)*税額基本情報!$D$15,0),0) -> 0 | F30: =IF(給与計算!M33<源泉月額表!$B$8,ROUNDDOWN(給与計算!M33*税額基本情報!$D$21,0),IF(給与計算!M33=0,0,IF(給与計算!M33>=税額基本情報!$D$12,K30,VLOOKUP(給与計算!M33,源泉月額表!$B:$L,11,1)))) -> 0 | G30: =MAX(IF(給与計算!M33<源泉月額表!$B$8,ROUNDDOWN(給与計算!M33*3.063%,0),IF(給与計算!M33=0,0,IF(給与計算!M33>=税額基本情報!$D$12,K30,VLOOKUP(給与計算!M33,源泉月額表!$B:$L,11,1))))-基本情報!E33*税額基本情報!$D$18,0) -> 0 | H30: =IF(AND(給与計算!M33>=1010000,給与計算!M33<1250000),VLOOKUP(給与計算!M33,税額基本情報!$D$6:$M$8,IF(基本情報!E33>=8,10,基本情報!E33+3),1)+ROUNDDOWN((給与計算!M33-税額基本情報!$D$6)*税額基本情報!$E$6,0),0) -> 0 | I30: =IF(AND(給与計算!M33>=1250000,給与計算!M33<1740000),VLOOKUP(給与計算!M33,税額基本情報!$D$6:$M$8,IF(基本情報!E33>=8,10,基本情報!E33+3),1)+ROUNDDOWN((給与計算!M33-税額基本情報!$D$7)*税額基本情報!$E$7,0),0) -> 0 | J30: =IF(給与計算!M33>=1740000,VLOOKUP(給与計算!M33,税額基本情報!$D$6:$M$8,IF(基本情報!E33>=8,10,基本情報!E33+3),1)+ROUNDDOWN((給与計算!M33-税額基本情報!$D$8)*税額基本情報!$E$8,0),0) -> 0 | K30: =IF(給与計算!M33>=1010000,税額基本情報!$F$12+ROUNDDOWN((給与計算!M33-税額基本情報!$D$12)*税額基本情報!$E$12,0),0) -> 0 | L30: =IF(賞与計算!D33<源泉賞与表!$D$10*1000,0,INDEX(源泉賞与表!$B:$B,MATCH(賞与計算!D33/1000,源泉賞与表!$D:$D,1))) -> 0 | M30: =IF(賞与計算!D33<源泉賞与表!$F$10*1000,0,INDEX(源泉賞与表!$B:$B,MATCH(賞与計算!D33/1000,源泉賞与表!$F:$F,1))) -> 0 | N30: =IF(賞与計算!D33<源泉賞与表!$H$10*1000,0,INDEX(源泉賞与表!$B:$B,MATCH(賞与計算!D33/1000,源泉賞与表!$H:$H,1))) -> 0 | O30: =IF(賞与計算!D33<源泉賞与表!$J$10*1000,0,INDEX(源泉賞与表!$B:$B,MATCH(賞与計算!D33/1000,源泉賞与表!$J:$J,1))) -> 0 | P30: =IF(賞与計算!D33<源泉賞与表!$L$10*1000,0,INDEX(源泉賞与表!$B:$B,MATCH(賞与計算!D33/1000,源泉賞与表!$L:$L,1))) -> 0 | Q30: =IF(賞与計算!D33<源泉賞与表!$N$10*1000,0,INDEX(源泉賞与表!$B:$B,MATCH(賞与計算!D33/1000,源泉賞与表!$N:$N,1))) -> 0 | R30: =IF(賞与計算!D33<源泉賞与表!$P$10*1000,0,INDEX(源泉賞与表!$B:$B,MATCH(賞与計算!D33/1000,源泉賞与表!$P:$P,1))) -> 0 | S30: =IF(賞与計算!D33<源泉賞与表!$R$10*1000,0,INDEX(源泉賞与表!$B:$B,MATCH(賞与計算!D33/1000,源泉賞与表!$R:$R,1))) -> 0 | T30: =IF(賞与計算!D33="","",IF(賞与計算!D33<源泉賞与表!$T$22*1000,10.21,INDEX(源泉賞与表!$B:$B,MATCH(賞与計算!D33/1000,源泉賞与表!$T:$T,1)))) ->  | U30: 0 | V30: =IF(基本情報!G33="",0,ROUND(VLOOKUP(基本情報!G33,INDIRECT(基本情報!$D$3&"!$C$15:$P$61"),10,0)-0.1,0)) -> 0 | W30: =IF(基本情報!G33="",0,ROUND(VLOOKUP(基本情報!G33,INDIRECT(基本情報!$D$3&"!$C$15:$P$61"),14,0)-0.1,0)) -> 0 | X30: 0 | Y30: =IF(基本情報!G33="",0,ROUND(IF(OR(基本情報!G33<税額基本情報!$E$24,基本情報!G33>税額基本情報!$E$25),AA30,VLOOKUP(基本情報!G33,INDIRECT(基本情報!$D$3&"!$C$19:$X$48"),18,0))-0.1,0)) -> 0 | Z30: =IF(基本情報!G33="",0,ROUND(IF(OR(基本情報!G33<税額基本情報!$E$24,基本情報!G33>税額基本情報!$E$25),AB30,VLOOKUP(基本情報!G33,INDIRECT(基本情報!$D$3&"!$C$19:$X$48"),22,0))-0.1,0)) -> 0 | AA30: =IF(基本情報!G33="",0,IF(基本情報!G33<税額基本情報!$E$24,税額基本情報!$F$24,IF(基本情報!G33>税額基本情報!$E$25,税額基本情報!$F$25,0))) -> 0 | AB30: =IF(基本情報!G33="",0,IF(基本情報!G33<税額基本情報!$E$24,税額基本情報!$G$24,IF(基本情報!G33>税額基本情報!$E$25,税額基本情報!$G$25,0))) -> 0 | AC30: 0 | AD30: =ROUND(ROUNDDOWN(賞与計算!F33,-3)*INDIRECT(基本情報!$D$3&"!$J$10")*0.5-0.1,0) -> 0 | AE30: =ROUND(ROUNDDOWN(賞与計算!F33,-3)*INDIRECT(基本情報!$D$3&"!$N$10")/2-0.1,0) -> 0 | AF30: 0 | AG30: =ROUND(IF(賞与計算!F33>税額基本情報!$D$28,税額基本情報!$D$28,ROUNDDOWN(賞与計算!F33,-3))*INDIRECT(基本情報!$D$3&"!$R$10")/2-0.1,0) -> 0 | AH30: =ROUND(IF(賞与計算!F33>税額基本情報!$D$28,税額基本情報!$D$28,ROUNDDOWN(賞与計算!F33,-3))*INDIRECT(基本情報!$D$3&"!$V$10")/2-0.1,0) -> 0
C31: 27 | D31: =給与計算!C34 ->  | E31: =MAX(IF(給与計算!M34>=税額基本情報!$D$6,MAX(計算シート!H31:J31),IF(給与計算!M34<源泉月額表!$B$8,0,VLOOKUP(給与計算!M34,源泉月額表!$B:$K,IF(基本情報!E34>=8,10,基本情報!E34+3),1)))-IF(基本情報!E34>=8,(基本情報!E34-7)*税額基本情報!$D$15,0),0) -> 0 | F31: =IF(給与計算!M34<源泉月額表!$B$8,ROUNDDOWN(給与計算!M34*税額基本情報!$D$21,0),IF(給与計算!M34=0,0,IF(給与計算!M34>=税額基本情報!$D$12,K31,VLOOKUP(給与計算!M34,源泉月額表!$B:$L,11,1)))) -> 0 | G31: =MAX(IF(給与計算!M34<源泉月額表!$B$8,ROUNDDOWN(給与計算!M34*3.063%,0),IF(給与計算!M34=0,0,IF(給与計算!M34>=税額基本情報!$D$12,K31,VLOOKUP(給与計算!M34,源泉月額表!$B:$L,11,1))))-基本情報!E34*税額基本情報!$D$18,0) -> 0 | H31: =IF(AND(給与計算!M34>=1010000,給与計算!M34<1250000),VLOOKUP(給与計算!M34,税額基本情報!$D$6:$M$8,IF(基本情報!E34>=8,10,基本情報!E34+3),1)+ROUNDDOWN((給与計算!M34-税額基本情報!$D$6)*税額基本情報!$E$6,0),0) -> 0 | I31: =IF(AND(給与計算!M34>=1250000,給与計算!M34<1740000),VLOOKUP(給与計算!M34,税額基本情報!$D$6:$M$8,IF(基本情報!E34>=8,10,基本情報!E34+3),1)+ROUNDDOWN((給与計算!M34-税額基本情報!$D$7)*税額基本情報!$E$7,0),0) -> 0 | J31: =IF(給与計算!M34>=1740000,VLOOKUP(給与計算!M34,税額基本情報!$D$6:$M$8,IF(基本情報!E34>=8,10,基本情報!E34+3),1)+ROUNDDOWN((給与計算!M34-税額基本情報!$D$8)*税額基本情報!$E$8,0),0) -> 0 | K31: =IF(給与計算!M34>=1010000,税額基本情報!$F$12+ROUNDDOWN((給与計算!M34-税額基本情報!$D$12)*税額基本情報!$E$12,0),0) -> 0 | L31: =IF(賞与計算!D34<源泉賞与表!$D$10*1000,0,INDEX(源泉賞与表!$B:$B,MATCH(賞与計算!D34/1000,源泉賞与表!$D:$D,1))) -> 0 | M31: =IF(賞与計算!D34<源泉賞与表!$F$10*1000,0,INDEX(源泉賞与表!$B:$B,MATCH(賞与計算!D34/1000,源泉賞与表!$F:$F,1))) -> 0 | N31: =IF(賞与計算!D34<源泉賞与表!$H$10*1000,0,INDEX(源泉賞与表!$B:$B,MATCH(賞与計算!D34/1000,源泉賞与表!$H:$H,1))) -> 0 | O31: =IF(賞与計算!D34<源泉賞与表!$J$10*1000,0,INDEX(源泉賞与表!$B:$B,MATCH(賞与計算!D34/1000,源泉賞与表!$J:$J,1))) -> 0 | P31: =IF(賞与計算!D34<源泉賞与表!$L$10*1000,0,INDEX(源泉賞与表!$B:$B,MATCH(賞与計算!D34/1000,源泉賞与表!$L:$L,1))) -> 0 | Q31: =IF(賞与計算!D34<源泉賞与表!$N$10*1000,0,INDEX(源泉賞与表!$B:$B,MATCH(賞与計算!D34/1000,源泉賞与表!$N:$N,1))) -> 0 | R31: =IF(賞与計算!D34<源泉賞与表!$P$10*1000,0,INDEX(源泉賞与表!$B:$B,MATCH(賞与計算!D34/1000,源泉賞与表!$P:$P,1))) -> 0 | S31: =IF(賞与計算!D34<源泉賞与表!$R$10*1000,0,INDEX(源泉賞与表!$B:$B,MATCH(賞与計算!D34/1000,源泉賞与表!$R:$R,1))) -> 0 | T31: =IF(賞与計算!D34="","",IF(賞与計算!D34<源泉賞与表!$T$22*1000,10.21,INDEX(源泉賞与表!$B:$B,MATCH(賞与計算!D34/1000,源泉賞与表!$T:$T,1)))) ->  | U31: 0 | V31: =IF(基本情報!G34="",0,ROUND(VLOOKUP(基本情報!G34,INDIRECT(基本情報!$D$3&"!$C$15:$P$61"),10,0)-0.1,0)) -> 0 | W31: =IF(基本情報!G34="",0,ROUND(VLOOKUP(基本情報!G34,INDIRECT(基本情報!$D$3&"!$C$15:$P$61"),14,0)-0.1,0)) -> 0 | X31: 0 | Y31: =IF(基本情報!G34="",0,ROUND(IF(OR(基本情報!G34<税額基本情報!$E$24,基本情報!G34>税額基本情報!$E$25),AA31,VLOOKUP(基本情報!G34,INDIRECT(基本情報!$D$3&"!$C$19:$X$48"),18,0))-0.1,0)) -> 0 | Z31: =IF(基本情報!G34="",0,ROUND(IF(OR(基本情報!G34<税額基本情報!$E$24,基本情報!G34>税額基本情報!$E$25),AB31,VLOOKUP(基本情報!G34,INDIRECT(基本情報!$D$3&"!$C$19:$X$48"),22,0))-0.1,0)) -> 0 | AA31: =IF(基本情報!G34="",0,IF(基本情報!G34<税額基本情報!$E$24,税額基本情報!$F$24,IF(基本情報!G34>税額基本情報!$E$25,税額基本情報!$F$25,0))) -> 0 | AB31: =IF(基本情報!G34="",0,IF(基本情報!G34<税額基本情報!$E$24,税額基本情報!$G$24,IF(基本情報!G34>税額基本情報!$E$25,税額基本情報!$G$25,0))) -> 0 | AC31: 0 | AD31: =ROUND(ROUNDDOWN(賞与計算!F34,-3)*INDIRECT(基本情報!$D$3&"!$J$10")*0.5-0.1,0) -> 0 | AE31: =ROUND(ROUNDDOWN(賞与計算!F34,-3)*INDIRECT(基本情報!$D$3&"!$N$10")/2-0.1,0) -> 0 | AF31: 0 | AG31: =ROUND(IF(賞与計算!F34>税額基本情報!$D$28,税額基本情報!$D$28,ROUNDDOWN(賞与計算!F34,-3))*INDIRECT(基本情報!$D$3&"!$R$10")/2-0.1,0) -> 0 | AH31: =ROUND(IF(賞与計算!F34>税額基本情報!$D$28,税額基本情報!$D$28,ROUNDDOWN(賞与計算!F34,-3))*INDIRECT(基本情報!$D$3&"!$V$10")/2-0.1,0) -> 0
C32: 28 | D32: =給与計算!C35 ->  | E32: =MAX(IF(給与計算!M35>=税額基本情報!$D$6,MAX(計算シート!H32:J32),IF(給与計算!M35<源泉月額表!$B$8,0,VLOOKUP(給与計算!M35,源泉月額表!$B:$K,IF(基本情報!E35>=8,10,基本情報!E35+3),1)))-IF(基本情報!E35>=8,(基本情報!E35-7)*税額基本情報!$D$15,0),0) -> 0 | F32: =IF(給与計算!M35<源泉月額表!$B$8,ROUNDDOWN(給与計算!M35*税額基本情報!$D$21,0),IF(給与計算!M35=0,0,IF(給与計算!M35>=税額基本情報!$D$12,K32,VLOOKUP(給与計算!M35,源泉月額表!$B:$L,11,1)))) -> 0 | G32: =MAX(IF(給与計算!M35<源泉月額表!$B$8,ROUNDDOWN(給与計算!M35*3.063%,0),IF(給与計算!M35=0,0,IF(給与計算!M35>=税額基本情報!$D$12,K32,VLOOKUP(給与計算!M35,源泉月額表!$B:$L,11,1))))-基本情報!E35*税額基本情報!$D$18,0) -> 0 | H32: =IF(AND(給与計算!M35>=1010000,給与計算!M35<1250000),VLOOKUP(給与計算!M35,税額基本情報!$D$6:$M$8,IF(基本情報!E35>=8,10,基本情報!E35+3),1)+ROUNDDOWN((給与計算!M35-税額基本情報!$D$6)*税額基本情報!$E$6,0),0) -> 0 | I32: =IF(AND(給与計算!M35>=1250000,給与計算!M35<1740000),VLOOKUP(給与計算!M35,税額基本情報!$D$6:$M$8,IF(基本情報!E35>=8,10,基本情報!E35+3),1)+ROUNDDOWN((給与計算!M35-税額基本情報!$D$7)*税額基本情報!$E$7,0),0) -> 0 | J32: =IF(給与計算!M35>=1740000,VLOOKUP(給与計算!M35,税額基本情報!$D$6:$M$8,IF(基本情報!E35>=8,10,基本情報!E35+3),1)+ROUNDDOWN((給与計算!M35-税額基本情報!$D$8)*税額基本情報!$E$8,0),0) -> 0 | K32: =IF(給与計算!M35>=1010000,税額基本情報!$F$12+ROUNDDOWN((給与計算!M35-税額基本情報!$D$12)*税額基本情報!$E$12,0),0) -> 0 | L32: =IF(賞与計算!D35<源泉賞与表!$D$10*1000,0,INDEX(源泉賞与表!$B:$B,MATCH(賞与計算!D35/1000,源泉賞与表!$D:$D,1))) -> 0 | M32: =IF(賞与計算!D35<源泉賞与表!$F$10*1000,0,INDEX(源泉賞与表!$B:$B,MATCH(賞与計算!D35/1000,源泉賞与表!$F:$F,1))) -> 0 | N32: =IF(賞与計算!D35<源泉賞与表!$H$10*1000,0,INDEX(源泉賞与表!$B:$B,MATCH(賞与計算!D35/1000,源泉賞与表!$H:$H,1))) -> 0 | O32: =IF(賞与計算!D35<源泉賞与表!$J$10*1000,0,INDEX(源泉賞与表!$B:$B,MATCH(賞与計算!D35/1000,源泉賞与表!$J:$J,1))) -> 0 | P32: =IF(賞与計算!D35<源泉賞与表!$L$10*1000,0,INDEX(源泉賞与表!$B:$B,MATCH(賞与計算!D35/1000,源泉賞与表!$L:$L,1))) -> 0 | Q32: =IF(賞与計算!D35<源泉賞与表!$N$10*1000,0,INDEX(源泉賞与表!$B:$B,MATCH(賞与計算!D35/1000,源泉賞与表!$N:$N,1))) -> 0 | R32: =IF(賞与計算!D35<源泉賞与表!$P$10*1000,0,INDEX(源泉賞与表!$B:$B,MATCH(賞与計算!D35/1000,源泉賞与表!$P:$P,1))) -> 0 | S32: =IF(賞与計算!D35<源泉賞与表!$R$10*1000,0,INDEX(源泉賞与表!$B:$B,MATCH(賞与計算!D35/1000,源泉賞与表!$R:$R,1))) -> 0 | T32: =IF(賞与計算!D35="","",IF(賞与計算!D35<源泉賞与表!$T$22*1000,10.21,INDEX(源泉賞与表!$B:$B,MATCH(賞与計算!D35/1000,源泉賞与表!$T:$T,1)))) ->  | U32: 0 | V32: =IF(基本情報!G35="",0,ROUND(VLOOKUP(基本情報!G35,INDIRECT(基本情報!$D$3&"!$C$15:$P$61"),10,0)-0.1,0)) -> 0 | W32: =IF(基本情報!G35="",0,ROUND(VLOOKUP(基本情報!G35,INDIRECT(基本情報!$D$3&"!$C$15:$P$61"),14,0)-0.1,0)) -> 0 | X32: 0 | Y32: =IF(基本情報!G35="",0,ROUND(IF(OR(基本情報!G35<税額基本情報!$E$24,基本情報!G35>税額基本情報!$E$25),AA32,VLOOKUP(基本情報!G35,INDIRECT(基本情報!$D$3&"!$C$19:$X$48"),18,0))-0.1,0)) -> 0 | Z32: =IF(基本情報!G35="",0,ROUND(IF(OR(基本情報!G35<税額基本情報!$E$24,基本情報!G35>税額基本情報!$E$25),AB32,VLOOKUP(基本情報!G35,INDIRECT(基本情報!$D$3&"!$C$19:$X$48"),22,0))-0.1,0)) -> 0 | AA32: =IF(基本情報!G35="",0,IF(基本情報!G35<税額基本情報!$E$24,税額基本情報!$F$24,IF(基本情報!G35>税額基本情報!$E$25,税額基本情報!$F$25,0))) -> 0 | AB32: =IF(基本情報!G35="",0,IF(基本情報!G35<税額基本情報!$E$24,税額基本情報!$G$24,IF(基本情報!G35>税額基本情報!$E$25,税額基本情報!$G$25,0))) -> 0 | AC32: 0 | AD32: =ROUND(ROUNDDOWN(賞与計算!F35,-3)*INDIRECT(基本情報!$D$3&"!$J$10")*0.5-0.1,0) -> 0 | AE32: =ROUND(ROUNDDOWN(賞与計算!F35,-3)*INDIRECT(基本情報!$D$3&"!$N$10")/2-0.1,0) -> 0 | AF32: 0 | AG32: =ROUND(IF(賞与計算!F35>税額基本情報!$D$28,税額基本情報!$D$28,ROUNDDOWN(賞与計算!F35,-3))*INDIRECT(基本情報!$D$3&"!$R$10")/2-0.1,0) -> 0 | AH32: =ROUND(IF(賞与計算!F35>税額基本情報!$D$28,税額基本情報!$D$28,ROUNDDOWN(賞与計算!F35,-3))*INDIRECT(基本情報!$D$3&"!$V$10")/2-0.1,0) -> 0
C33: 29 | D33: =給与計算!C36 ->  | E33: =MAX(IF(給与計算!M36>=税額基本情報!$D$6,MAX(計算シート!H33:J33),IF(給与計算!M36<源泉月額表!$B$8,0,VLOOKUP(給与計算!M36,源泉月額表!$B:$K,IF(基本情報!E36>=8,10,基本情報!E36+3),1)))-IF(基本情報!E36>=8,(基本情報!E36-7)*税額基本情報!$D$15,0),0) -> 0 | F33: =IF(給与計算!M36<源泉月額表!$B$8,ROUNDDOWN(給与計算!M36*税額基本情報!$D$21,0),IF(給与計算!M36=0,0,IF(給与計算!M36>=税額基本情報!$D$12,K33,VLOOKUP(給与計算!M36,源泉月額表!$B:$L,11,1)))) -> 0 | G33: =MAX(IF(給与計算!M36<源泉月額表!$B$8,ROUNDDOWN(給与計算!M36*3.063%,0),IF(給与計算!M36=0,0,IF(給与計算!M36>=税額基本情報!$D$12,K33,VLOOKUP(給与計算!M36,源泉月額表!$B:$L,11,1))))-基本情報!E36*税額基本情報!$D$18,0) -> 0 | H33: =IF(AND(給与計算!M36>=1010000,給与計算!M36<1250000),VLOOKUP(給与計算!M36,税額基本情報!$D$6:$M$8,IF(基本情報!E36>=8,10,基本情報!E36+3),1)+ROUNDDOWN((給与計算!M36-税額基本情報!$D$6)*税額基本情報!$E$6,0),0) -> 0 | I33: =IF(AND(給与計算!M36>=1250000,給与計算!M36<1740000),VLOOKUP(給与計算!M36,税額基本情報!$D$6:$M$8,IF(基本情報!E36>=8,10,基本情報!E36+3),1)+ROUNDDOWN((給与計算!M36-税額基本情報!$D$7)*税額基本情報!$E$7,0),0) -> 0 | J33: =IF(給与計算!M36>=1740000,VLOOKUP(給与計算!M36,税額基本情報!$D$6:$M$8,IF(基本情報!E36>=8,10,基本情報!E36+3),1)+ROUNDDOWN((給与計算!M36-税額基本情報!$D$8)*税額基本情報!$E$8,0),0) -> 0 | K33: =IF(給与計算!M36>=1010000,税額基本情報!$F$12+ROUNDDOWN((給与計算!M36-税額基本情報!$D$12)*税額基本情報!$E$12,0),0) -> 0 | L33: =IF(賞与計算!D36<源泉賞与表!$D$10*1000,0,INDEX(源泉賞与表!$B:$B,MATCH(賞与計算!D36/1000,源泉賞与表!$D:$D,1))) -> 0 | M33: =IF(賞与計算!D36<源泉賞与表!$F$10*1000,0,INDEX(源泉賞与表!$B:$B,MATCH(賞与計算!D36/1000,源泉賞与表!$F:$F,1))) -> 0 | N33: =IF(賞与計算!D36<源泉賞与表!$H$10*1000,0,INDEX(源泉賞与表!$B:$B,MATCH(賞与計算!D36/1000,源泉賞与表!$H:$H,1))) -> 0 | O33: =IF(賞与計算!D36<源泉賞与表!$J$10*1000,0,INDEX(源泉賞与表!$B:$B,MATCH(賞与計算!D36/1000,源泉賞与表!$J:$J,1))) -> 0 | P33: =IF(賞与計算!D36<源泉賞与表!$L$10*1000,0,INDEX(源泉賞与表!$B:$B,MATCH(賞与計算!D36/1000,源泉賞与表!$L:$L,1))) -> 0 | Q33: =IF(賞与計算!D36<源泉賞与表!$N$10*1000,0,INDEX(源泉賞与表!$B:$B,MATCH(賞与計算!D36/1000,源泉賞与表!$N:$N,1))) -> 0 | R33: =IF(賞与計算!D36<源泉賞与表!$P$10*1000,0,INDEX(源泉賞与表!$B:$B,MATCH(賞与計算!D36/1000,源泉賞与表!$P:$P,1))) -> 0 | S33: =IF(賞与計算!D36<源泉賞与表!$R$10*1000,0,INDEX(源泉賞与表!$B:$B,MATCH(賞与計算!D36/1000,源泉賞与表!$R:$R,1))) -> 0 | T33: =IF(賞与計算!D36="","",IF(賞与計算!D36<源泉賞与表!$T$22*1000,10.21,INDEX(源泉賞与表!$B:$B,MATCH(賞与計算!D36/1000,源泉賞与表!$T:$T,1)))) ->  | U33: 0 | V33: =IF(基本情報!G36="",0,ROUND(VLOOKUP(基本情報!G36,INDIRECT(基本情報!$D$3&"!$C$15:$P$61"),10,0)-0.1,0)) -> 0 | W33: =IF(基本情報!G36="",0,ROUND(VLOOKUP(基本情報!G36,INDIRECT(基本情報!$D$3&"!$C$15:$P$61"),14,0)-0.1,0)) -> 0 | X33: 0 | Y33: =IF(基本情報!G36="",0,ROUND(IF(OR(基本情報!G36<税額基本情報!$E$24,基本情報!G36>税額基本情報!$E$25),AA33,VLOOKUP(基本情報!G36,INDIRECT(基本情報!$D$3&"!$C$19:$X$48"),18,0))-0.1,0)) -> 0 | Z33: =IF(基本情報!G36="",0,ROUND(IF(OR(基本情報!G36<税額基本情報!$E$24,基本情報!G36>税額基本情報!$E$25),AB33,VLOOKUP(基本情報!G36,INDIRECT(基本情報!$D$3&"!$C$19:$X$48"),22,0))-0.1,0)) -> 0 | AA33: =IF(基本情報!G36="",0,IF(基本情報!G36<税額基本情報!$E$24,税額基本情報!$F$24,IF(基本情報!G36>税額基本情報!$E$25,税額基本情報!$F$25,0))) -> 0 | AB33: =IF(基本情報!G36="",0,IF(基本情報!G36<税額基本情報!$E$24,税額基本情報!$G$24,IF(基本情報!G36>税額基本情報!$E$25,税額基本情報!$G$25,0))) -> 0 | AC33: 0 | AD33: =ROUND(ROUNDDOWN(賞与計算!F36,-3)*INDIRECT(基本情報!$D$3&"!$J$10")*0.5-0.1,0) -> 0 | AE33: =ROUND(ROUNDDOWN(賞与計算!F36,-3)*INDIRECT(基本情報!$D$3&"!$N$10")/2-0.1,0) -> 0 | AF33: 0 | AG33: =ROUND(IF(賞与計算!F36>税額基本情報!$D$28,税額基本情報!$D$28,ROUNDDOWN(賞与計算!F36,-3))*INDIRECT(基本情報!$D$3&"!$R$10")/2-0.1,0) -> 0 | AH33: =ROUND(IF(賞与計算!F36>税額基本情報!$D$28,税額基本情報!$D$28,ROUNDDOWN(賞与計算!F36,-3))*INDIRECT(基本情報!$D$3&"!$V$10")/2-0.1,0) -> 0
C34: 30 | D34: =給与計算!C37 ->  | E34: =MAX(IF(給与計算!M37>=税額基本情報!$D$6,MAX(計算シート!H34:J34),IF(給与計算!M37<源泉月額表!$B$8,0,VLOOKUP(給与計算!M37,源泉月額表!$B:$K,IF(基本情報!E37>=8,10,基本情報!E37+3),1)))-IF(基本情報!E37>=8,(基本情報!E37-7)*税額基本情報!$D$15,0),0) -> 0 | F34: =IF(給与計算!M37<源泉月額表!$B$8,ROUNDDOWN(給与計算!M37*税額基本情報!$D$21,0),IF(給与計算!M37=0,0,IF(給与計算!M37>=税額基本情報!$D$12,K34,VLOOKUP(給与計算!M37,源泉月額表!$B:$L,11,1)))) -> 0 | G34: =MAX(IF(給与計算!M37<源泉月額表!$B$8,ROUNDDOWN(給与計算!M37*3.063%,0),IF(給与計算!M37=0,0,IF(給与計算!M37>=税額基本情報!$D$12,K34,VLOOKUP(給与計算!M37,源泉月額表!$B:$L,11,1))))-基本情報!E37*税額基本情報!$D$18,0) -> 0 | H34: =IF(AND(給与計算!M37>=1010000,給与計算!M37<1250000),VLOOKUP(給与計算!M37,税額基本情報!$D$6:$M$8,IF(基本情報!E37>=8,10,基本情報!E37+3),1)+ROUNDDOWN((給与計算!M37-税額基本情報!$D$6)*税額基本情報!$E$6,0),0) -> 0 | I34: =IF(AND(給与計算!M37>=1250000,給与計算!M37<1740000),VLOOKUP(給与計算!M37,税額基本情報!$D$6:$M$8,IF(基本情報!E37>=8,10,基本情報!E37+3),1)+ROUNDDOWN((給与計算!M37-税額基本情報!$D$7)*税額基本情報!$E$7,0),0) -> 0 | J34: =IF(給与計算!M37>=1740000,VLOOKUP(給与計算!M37,税額基本情報!$D$6:$M$8,IF(基本情報!E37>=8,10,基本情報!E37+3),1)+ROUNDDOWN((給与計算!M37-税額基本情報!$D$8)*税額基本情報!$E$8,0),0) -> 0 | K34: =IF(給与計算!M37>=1010000,税額基本情報!$F$12+ROUNDDOWN((給与計算!M37-税額基本情報!$D$12)*税額基本情報!$E$12,0),0) -> 0 | L34: =IF(賞与計算!D37<源泉賞与表!$D$10*1000,0,INDEX(源泉賞与表!$B:$B,MATCH(賞与計算!D37/1000,源泉賞与表!$D:$D,1))) -> 0 | M34: =IF(賞与計算!D37<源泉賞与表!$F$10*1000,0,INDEX(源泉賞与表!$B:$B,MATCH(賞与計算!D37/1000,源泉賞与表!$F:$F,1))) -> 0 | N34: =IF(賞与計算!D37<源泉賞与表!$H$10*1000,0,INDEX(源泉賞与表!$B:$B,MATCH(賞与計算!D37/1000,源泉賞与表!$H:$H,1))) -> 0 | O34: =IF(賞与計算!D37<源泉賞与表!$J$10*1000,0,INDEX(源泉賞与表!$B:$B,MATCH(賞与計算!D37/1000,源泉賞与表!$J:$J,1))) -> 0 | P34: =IF(賞与計算!D37<源泉賞与表!$L$10*1000,0,INDEX(源泉賞与表!$B:$B,MATCH(賞与計算!D37/1000,源泉賞与表!$L:$L,1))) -> 0 | Q34: =IF(賞与計算!D37<源泉賞与表!$N$10*1000,0,INDEX(源泉賞与表!$B:$B,MATCH(賞与計算!D37/1000,源泉賞与表!$N:$N,1))) -> 0 | R34: =IF(賞与計算!D37<源泉賞与表!$P$10*1000,0,INDEX(源泉賞与表!$B:$B,MATCH(賞与計算!D37/1000,源泉賞与表!$P:$P,1))) -> 0 | S34: =IF(賞与計算!D37<源泉賞与表!$R$10*1000,0,INDEX(源泉賞与表!$B:$B,MATCH(賞与計算!D37/1000,源泉賞与表!$R:$R,1))) -> 0 | T34: =IF(賞与計算!D37="","",IF(賞与計算!D37<源泉賞与表!$T$22*1000,10.21,INDEX(源泉賞与表!$B:$B,MATCH(賞与計算!D37/1000,源泉賞与表!$T:$T,1)))) ->  | U34: 0 | V34: =IF(基本情報!G37="",0,ROUND(VLOOKUP(基本情報!G37,INDIRECT(基本情報!$D$3&"!$C$15:$P$61"),10,0)-0.1,0)) -> 0 | W34: =IF(基本情報!G37="",0,ROUND(VLOOKUP(基本情報!G37,INDIRECT(基本情報!$D$3&"!$C$15:$P$61"),14,0)-0.1,0)) -> 0 | X34: 0 | Y34: =IF(基本情報!G37="",0,ROUND(IF(OR(基本情報!G37<税額基本情報!$E$24,基本情報!G37>税額基本情報!$E$25),AA34,VLOOKUP(基本情報!G37,INDIRECT(基本情報!$D$3&"!$C$19:$X$48"),18,0))-0.1,0)) -> 0 | Z34: =IF(基本情報!G37="",0,ROUND(IF(OR(基本情報!G37<税額基本情報!$E$24,基本情報!G37>税額基本情報!$E$25),AB34,VLOOKUP(基本情報!G37,INDIRECT(基本情報!$D$3&"!$C$19:$X$48"),22,0))-0.1,0)) -> 0 | AA34: =IF(基本情報!G37="",0,IF(基本情報!G37<税額基本情報!$E$24,税額基本情報!$F$24,IF(基本情報!G37>税額基本情報!$E$25,税額基本情報!$F$25,0))) -> 0 | AB34: =IF(基本情報!G37="",0,IF(基本情報!G37<税額基本情報!$E$24,税額基本情報!$G$24,IF(基本情報!G37>税額基本情報!$E$25,税額基本情報!$G$25,0))) -> 0 | AC34: 0 | AD34: =ROUND(ROUNDDOWN(賞与計算!F37,-3)*INDIRECT(基本情報!$D$3&"!$J$10")*0.5-0.1,0) -> 0 | AE34: =ROUND(ROUNDDOWN(賞与計算!F37,-3)*INDIRECT(基本情報!$D$3&"!$N$10")/2-0.1,0) -> 0 | AF34: 0 | AG34: =ROUND(IF(賞与計算!F37>税額基本情報!$D$28,税額基本情報!$D$28,ROUNDDOWN(賞与計算!F37,-3))*INDIRECT(基本情報!$D$3&"!$R$10")/2-0.1,0) -> 0 | AH34: =ROUND(IF(賞与計算!F37>税額基本情報!$D$28,税額基本情報!$D$28,ROUNDDOWN(賞与計算!F37,-3))*INDIRECT(基本情報!$D$3&"!$V$10")/2-0.1,0) -> 0

Sheet リスト表 (hidden)
B2: 甲・乙区分 | C2: 雇用保険区分 | E2: 社会保険料 | G2: 場所
E3: 健康保険 | F3: 厚生年金
B4: 甲欄 | C4: 無し | D4: =INDIRECT(基本情報!$D$3&"!C15") -> 58000 | E4: 無し | F4: 無し | G4: 北海道
B5: 乙欄 | C5: 一般の事業 | D5: =INDIRECT(基本情報!$D$3&"!C16") -> 68000 | E5: 介護保険なし | F5: 一般の被保険者 | G5: 青森
B6: 乙欄（従たる給与についての扶養控除等申告書提出あり） | C6: 農林水産・清酒製造事業 | D6: =INDIRECT(基本情報!$D$3&"!C17") -> 78000 | E6: 介護保険あり | F6: 坑内員・船員 | G6: 岩手
C7: 建設の事業 | D7: =INDIRECT(基本情報!$D$3&"!C18") -> 88000 | G7: 宮城
D8: =INDIRECT(基本情報!$D$3&"!C19") -> 98000 | G8: 秋田
C9: ○ | D9: =INDIRECT(基本情報!$D$3&"!C20") -> 104000 | G9: 山形
C10: × | D10: =INDIRECT(基本情報!$D$3&"!C21") -> 110000 | G10: 福島
D11: =INDIRECT(基本情報!$D$3&"!C22") -> 118000 | G11: 茨城
D12: =INDIRECT(基本情報!$D$3&"!C23") -> 126000 | G12: 栃木
D13: =INDIRECT(基本情報!$D$3&"!C24") -> 134000 | G13: 群馬
D14: =INDIRECT(基本情報!$D$3&"!C25") -> 142000 | G14: 埼玉
D15: =INDIRECT(基本情報!$D$3&"!C26") -> 150000 | G15: 千葉
D16: =INDIRECT(基本情報!$D$3&"!C27") -> 160000 | G16: 東京
D17: =INDIRECT(基本情報!$D$3&"!C28") -> 170000 | G17: 神奈川
D18: =INDIRECT(基本情報!$D$3&"!C29") -> 180000 | G18: 新潟
D19: =INDIRECT(基本情報!$D$3&"!C30") -> 190000 | G19: 富山
D20: =INDIRECT(基本情報!$D$3&"!C31") -> 200000 | G20: 石川
D21: =INDIRECT(基本情報!$D$3&"!C32") -> 220000 | G21: 福井
D22: =INDIRECT(基本情報!$D$3&"!C33") -> 240000 | G22: 山梨
D23: =INDIRECT(基本情報!$D$3&"!C34") -> 260000 | G23: 長野
D24: =INDIRECT(基本情報!$D$3&"!C35") -> 280000 | G24: 岐阜
D25: =INDIRECT(基本情報!$D$3&"!C36") -> 300000 | G25: 静岡
D26: =INDIRECT(基本情報!$D$3&"!C37") -> 320000 | G26: 愛知
D27: =INDIRECT(基本情報!$D$3&"!C38") -> 340000 | G27: 三重
D28: =INDIRECT(基本情報!$D$3&"!C39") -> 360000 | G28: 滋賀
D29: =INDIRECT(基本情報!$D$3&"!C40") -> 380000 | G29: 京都
D30: =INDIRECT(基本情報!$D$3&"!C41") -> 410000 | G30: 大阪
D31: =INDIRECT(基本情報!$D$3&"!C42") -> 440000 | G31: 兵庫
D32: =INDIRECT(基本情報!$D$3&"!C43") -> 470000 | G32: 奈良
D33: =INDIRECT(基本情報!$D$3&"!C44") -> 500000 | G33: 和歌山
D34: =INDIRECT(基本情報!$D$3&"!C45") -> 530000 | G34: 鳥取
D35: =INDIRECT(基本情報!$D$3&"!C46") -> 560000 | G35: 島根
D36: =INDIRECT(基本情報!$D$3&"!C47") -> 590000 | G36: 岡山
D37: =INDIRECT(基本情報!$D$3&"!C48") -> 620000 | G37: 広島
D38: =INDIRECT(基本情報!$D$3&"!C49") -> 650000 | G38: 山口
D39: =INDIRECT(基本情報!$D$3&"!C50") -> 680000 | G39: 徳島
D40: =INDIRECT(基本情報!$D$3&"!C51") -> 710000 | G40: 香川
D41: =INDIRECT(基本情報!$D$3&"!C52") -> 750000 | G41: 愛媛
D42: =INDIRECT(基本情報!$D$3&"!C53") -> 790000 | G42: 高知
D43: =INDIRECT(基本情報!$D$3&"!C54") -> 830000 | G43: 福岡
D44: =INDIRECT(基本情報!$D$3&"!C55") -> 880000 | G44: 佐賀
D45: =INDIRECT(基本情報!$D$3&"!C56") -> 930000 | G45: 長崎
D46: =INDIRECT(基本情報!$D$3&"!C57") -> 980000 | G46: 熊本
D47: =INDIRECT(基本情報!$D$3&"!C58") -> 1030000 | G47: 大分
D48: =INDIRECT(基本情報!$D$3&"!C59") -> 1090000 | G48: 宮崎
D49: =INDIRECT(基本情報!$D$3&"!C60") -> 1150000 | G49: 鹿児島
D50: =INDIRECT(基本情報!$D$3&"!C61") -> 1210000 | G50: 沖縄

Sheet 税額基本情報 (hidden)
C3: 甲欄（月額給与101万円超の場合の税額基本情報）
C4: 社会保険料控除後の支給額 | D4: 超えた部分に乗じる税率 | F4: 加算する源泉徴収税額
F5: 0 | G5: 1 | H5: 2 | I5: 3 | J5: 4 | K5: 5 | L5: 6 | M5: 7 | N5: ←扶養人数
C6: 1,010,000円以上 1,250,000円未満 | D6: 1010000 | E6: 0.321615 | F6: =源泉月額表!D412 -> 134190 | G6: =源泉月額表!E412 -> 123520 | H6: =源泉月額表!F412 -> 115630 | I6: =源泉月額表!G412 -> 108200 | J6: =源泉月額表!H412 -> 100750 | K6: =源泉月額表!I412 -> 93320 | L6: =源泉月額表!J412 -> 85890 | M6: =源泉月額表!K412 -> 78890
C7: 1,250,000円以上 1,740,000円未満 | D7: 1250000 | E7: 0.33693 | F7: =源泉月額表!D421 -> 211380 | G7: =源泉月額表!E421 -> 200710 | H7: =源泉月額表!F421 -> 192820 | I7: =源泉月額表!G421 -> 185390 | J7: =源泉月額表!H421 -> 177940 | K7: =源泉月額表!I421 -> 170510 | L7: =源泉月額表!J421 -> 163080 | M7: =源泉月額表!K421 -> 156080
C8: 1,740,000円以上 | D8: 1740000 | E8: 0.4084 | F8: =源泉月額表!D430 -> 376480 | G8: =源泉月額表!E430 -> 365810 | H8: =源泉月額表!F430 -> 357920 | I8: =源泉月額表!G430 -> 350490 | J8: =源泉月額表!H430 -> 343040 | K8: =源泉月額表!I430 -> 335610 | L8: =源泉月額表!J430 -> 328180 | M8: =源泉月額表!K430 -> 321180
C10: 乙欄（月額給与101万円超の場合の税額基本情報）
C11: 社会保険料控除後の支給額 | D11: 超えた部分に乗じる税率 | F11: 加算する源泉税額
C12: 1,010,000円以上 | D12: 1010000 | E12: 0.4084 | F12: 396700
C14: 甲欄（扶養人数7人超の場合控除する税額）
C15: 扶養人数一人増えるごとに控除される源泉徴収税額 | D15: 1610
C17: 乙欄（従たる給与についての扶養控除等申告書提出ありの場合、控除する税額）
C18: 扶養人数一人増えるごとに控除される源泉徴収税額 | D18: 1610
C20: 乙欄（月額給与88,000円未満だった場合に乗じる税率）
C21: 月額給与88,000円未満の場合乗じる税率 | D21: 0.03063
C23: 厚生年金（最低額と最高額） | F23: 一般の被保険者 | G23: 坑内員・船員
C24: 標準報酬月額 | D24: 最低額 | E24: =INDIRECT(基本情報!$D$3&"!C19") -> 98000 | F24: =ROUND(INDIRECT(基本情報!$D$3&"!T19")-0.1,0) -> 8389 | G24: =ROUND(INDIRECT(基本情報!$D$3&"!X19")-0.1,0) -> 8546
D25: 最高額 | E25: =INDIRECT(基本情報!$D$3&"!C48") -> 620000 | F25: =ROUND(INDIRECT(基本情報!$D$3&"!T48")-0.1,0) -> 53072 | G25: =ROUND(INDIRECT(基本情報!$D$3&"!X48")-0.1,0) -> 54064
C27: 厚生年金の計算における賞与支給額の上限
C28: 厚生年金の計算における賞与支給額の上限 | D28: 1500000

Sheet 源泉月額表 (hidden)
B1: 給与所得の源泉徴収税額表（平成26年分）
B2: 月 額 表（平成24年３月31日財務省告示第115号別表第一）
B3: その月の社会保 | D3: 甲
B4: 険料等控除後の | D4: 扶 養 親 族 等 の 数 | L4: 乙
B5: 給与等の金額 | D5: 0 人 | E5: 1 人 | F5: 2 人 | G5: 3 人 | H5: 4 人 | I5: 5 人 | J5: 6 人 | K5: 7 人
B6: 以 上 | C6: 未 満 | D6: 税 額 | L6: 税 額
B7: 円 | C7: 円 | D7: 円 | E7: 円 | F7: 円 | G7: 円 | H7: 円 | I7: 円 | J7: 円 | K7: 円 | L7: 円
B8: 88000 | C8: 円未満 | D8: 0 | E8: 0 | F8: 0 | G8: 0 | H8: 0 | I8: 0 | J8: 0 | K8: 0 | L8: その月の社会保険料等控除後の給与等の金額の3.063％に相当する金額
A10: 1 | B10: 88000 | C10: 89000 | D10: 130 | E10: 0 | F10: 0 | G10: 0 | H10: 0 | I10: 0 | J10: 0 | K10: 0 | L10: 3200
A11: 2 | B11: 89000 | C11: 90000 | D11: 180 | E11: 0 | F11: 0 | G11: 0 | H11: 0 | I11: 0 | J11: 0 | K11: 0 | L11: 3200
A12: 3 | B12: 90000 | C12: 91000 | D12: 230 | E12: 0 | F12: 0 | G12: 0 | H12: 0 | I12: 0 | J12: 0 | K12: 0 | L12: 3200
A13: 4 | B13: 91000 | C13: 92000 | D13: 290 | E13: 0 | F13: 0 | G13: 0 | H13: 0 | I13: 0 | J13: 0 | K13: 0 | L13: 3200
A14: 5 | B14: 92000 | C14: 93000 | D14: 340 | E14: 0 | F14: 0 | G14: 0 | H14: 0 | I14: 0 | J14: 0 | K14: 0 | L14: 3300
A16: 6 | B16: 93000 | C16: 94000 | D16: 390 | E16: 0 | F16: 0 | G16: 0 | H16: 0 | I16: 0 | J16: 0 | K16: 0 | L16: 3300
A17: 7 | B17: 94000 | C17: 95000 | D17: 440 | E17: 0 | F17: 0 | G17: 0 | H17: 0 | I17: 0 | J17: 0 | K17: 0 | L17: 3300
A18: 8 | B18: 95000 | C18: 96000 | D18: 490 | E18: 0 | F18: 0 | G18: 0 | H18: 0 | I18: 0 | J18: 0 | K18: 0 | L18: 3400
A19: 9 | B19: 96000 | C19: 97000 | D19: 540 | E19: 0 | F19: 0 | G19: 0 | H19: 0 | I19: 0 | J19: 0 | K19: 0 | L19: 3400
A20: 10 | B20: 97000 | C20: 98000 | D20: 590 | E20: 0 | F20: 0 | G20: 0 | H20: 0 | I20: 0 | J20: 0 | K20: 0 | L20: 3500
A22: 11 | B22: 98000 | C22: 99000 | D22: 640 | E22: 0 | F22: 0 | G22: 0 | H22: 0 | I22: 0 | J22: 0 | K22: 0 | L22: 3500
A23: 12 | B23: 99000 | C23: 101000 | D23: 720 | E23: 0 | F23: 0 | G23: 0 | H23: 0 | I23: 0 | J23: 0 | K23: 0 | L23: 3600
A24: 13 | B24: 101000 | C24: 103000 | D24: 830 | E24: 0 | F24: 0 | G24: 0 | H24: 0 | I24: 0 | J24: 0 | K24: 0 | L24: 3600
A25: 14 | B25: 103000 | C25: 105000 | D25: 930 | E25: 0 | F25: 0 | G25: 0 | H25: 0 | I25: 0 | J25: 0 | K25: 0 | L25: 3700
A26: 15 | B26: 105000 | C26: 107000 | D26: 1030 | E26: 0 | F26: 0 | G26: 0 | H26: 0 | I26: 0 | J26: 0 | K26: 0 | L26: 3800
A28: 16 | B28: 107000 | C28: 109000 | D28: 1130 | E28: 0 | F28: 0 | G28: 0 | H28: 0 | I28: 0 | J28: 0 | K28: 0 | L28: 3800
A29: 17 | B29: 109000 | C29: 111000 | D29: 1240 | E29: 0 | F29: 0 | G29: 0 | H29: 0 | I29: 0 | J29: 0 | K29: 0 | L29: 3900
A30: 18 | B30: 111000 | C30: 113000 | D30: 1340 | E30: 0 | F30: 0 | G30: 0 | H30: 0 | I30: 0 | J30: 0 | K30: 0 | L30: 4000
A31: 19 | B31: 113000 | C31: 115000 | D31: 1440 | E31: 0 | F31: 0 | G31: 0 | H31: 0 | I31: 0 | J31: 0 | K31: 0 | L31: 4100
A32: 20 | B32: 115000 | C32: 117000 | D32: 1540 | E32: 0 | F32: 0 | G32: 0 | H32: 0 | I32: 0 | J32: 0 | K32: 0 | L32: 4100
A34: 21 | B34: 117000 | C34: 119000 | D34: 1640 | E34: 0 | F34: 0 | G34: 0 | H34: 0 | I34: 0 | J34: 0 | K34: 0 | L34: 4200
A35: 22 | B35: 119000 | C35: 121000 | D35: 1750 | E35: 120 | F35: 0 | G35: 0 | H35: 0 | I35: 0 | J35: 0 | K35: 0 | L35: 4300
A36: 23 | B36: 121000 | C36: 123000 | D36: 1850 | E36: 220 | F36: 0 | G36: 0 | H36: 0 | I36: 0 | J36: 0 | K36: 0 | L36: 4500
A37: 24 | B37: 123000 | C37: 125000 | D37: 1950 | E37: 330 | F37: 0 | G37: 0 | H37: 0 | I37: 0 | J37: 0 | K37: 0 | L37: 4800
A38: 25 | B38: 125000 | C38: 127000 | D38: 2050 | E38: 430 | F38: 0 | G38: 0 | H38: 0 | I38: 0 | J38: 0 | K38: 0 | L38: 5100
A40: 26 | B40: 127000 | C40: 129000 | D40: 2150 | E40: 530 | F40: 0 | G40: 0 | H40: 0 | I40: 0 | J40: 0 | K40: 0 | L40: 5400
A41: 27 | B41: 129000 | C41: 131000 | D41: 2260 | E41: 630 | F41: 0 | G41: 0 | H41: 0 | I41: 0 | J41: 0 | K41: 0 | L41: 5700
A42: 28 | B42: 131000 | C42: 133000 | D42: 2360 | E42: 740 | F42: 0 | G42: 0 | H42: 0 | I42: 0 | J42: 0 | K42: 0 | L42: 6000
A43: 29 | B43: 133000 | C43: 135000 | D43: 2460 | E43: 840 | F43: 0 | G43: 0 | H43: 0 | I43: 0 | J43: 0 | K43: 0 | L43: 6300
A44: 30 | B44: 135000 | C44: 137000 | D44: 2550 | E44: 930 | F44: 0 | G44: 0 | H44: 0 | I44: 0 | J44: 0 | K44: 0 | L44: 6600
A46: 31 | B46: 137000 | C46: 139000 | D46: 2610 | E46: 990 | F46: 0 | G46: 0 | H46: 0 | I46: 0 | J46: 0 | K46: 0 | L46: 6800
A47: 32 | B47: 139000 | C47: 141000 | D47: 2680 | E47: 1050 | F47: 0 | G47: 0 | H47: 0 | I47: 0 | J47: 0 | K47: 0 | L47: 7100
A48: 33 | B48: 141000 | C48: 143000 | D48: 2740 | E48: 1110 | F48: 0 | G48: 0 | H48: 0 | I48: 0 | J48: 0 | K48: 0 | L48: 7500
A49: 34 | B49: 143000 | C49: 145000 | D49: 2800 | E49: 1170 | F49: 0 | G49: 0 | H49: 0 | I49: 0 | J49: 0 | K49: 0 | L49: 7800
A50: 35 | B50: 145000 | C50: 147000 | D50: 2860 | E50: 1240 | F50: 0 | G50: 0 | H50: 0 | I50: 0 | J50: 0 | K50: 0 | L50: 8100
A52: 36 | B52: 147000 | C52: 149000 | D52: 2920 | E52: 1300 | F52: 0 | G52: 0 | H52: 0 | I52: 0 | J52: 0 | K52: 0 | L52: 8400
A53: 37 | B53: 149000 | C53: 151000 | D53: 2980 | E53: 1360 | F53: 0 | G53: 0 | H53: 0 | I53: 0 | J53: 0 | K53: 0 | L53: 8700
A54: 38 | B54: 151000 | C54: 153000 | D54: 3050 | E54: 1430 | F54: 0 | G54: 0 | H54: 0 | I54: 0 | J54: 0 | K54: 0 | L54: 9000
A55: 39 | B55: 153000 | C55: 155000 | D55: 3120 | E55: 1500 | F55: 0 | G55: 0 | H55: 0 | I55: 0 | J55: 0 | K55: 0 | L55: 9300
A56: 40 | B56: 155000 | C56: 157000 | D56: 3200 | E56: 1570 | F56: 0 | G56: 0 | H56: 0 | I56: 0 | J56: 0 | K56: 0 | L56: 9600
A58: 41 | B58: 157000 | C58: 159000 | D58: 3270 | E58: 1640 | F58: 0 | G58: 0 | H58: 0 | I58: 0 | J58: 0 | K58: 0 | L58: 9900
A59: 42 | B59: 159000 | C59: 161000 | D59: 3340 | E59: 1720 | F59: 100 | G59: 0 | H59: 0 | I59: 0 | J59: 0 | K59: 0 | L59: 10200
A60: 43 | B60: 161000 | C60: 163000 | D60: 3410 | E60: 1790 | F60: 170 | G60: 0 | H60: 0 | I60: 0 | J60: 0 | K60: 0 | L60: 10500
A61: 44 | B61: 163000 | C61: 165000 | D61: 3480 | E61: 1860 | F61: 250 | G61: 0 | H61: 0 | I61: 0 | J61: 0 | K61: 0 | L61: 10800
A62: 45 | B62: 165000 | C62: 167000 | D62: 3550 | E62: 1930 | F62: 320 | G62: 0 | H62: 0 | I62: 0 | J62: 0 | K62: 0 | L62: 11100
A64: 46 | B64: 167000 | C64: 169000 | D64: 3620 | E64: 2000 | F64: 390 | G64: 0 | H64: 0 | I64: 0 | J64: 0 | K64: 0 | L64: 11400
A65: 47 | B65: 169000 | C65: 171000 | D65: 3700 | E65: 2070 | F65: 460 | G65: 0 | H65: 0 | I65: 0 | J65: 0 | K65: 0 | L65: 11700
A66: 48 | B66: 171000 | C66: 173000 | D66: 3770 | E66: 2140 | F66: 530 | G66: 0 | H66: 0 | I66: 0 | J66: 0 | K66: 0 | L66: 12000
A67: 49 | B67: 173000 | C67: 175000 | D67: 3840 | E67: 2220 | F67: 600 | G67: 0 | H67: 0 | I67: 0 | J67: 0 | K67: 0 | L67: 12400
A68: 50 | B68: 175000 | C68: 177000 | D68: 3910 | E68: 2290 | F68: 670 | G68: 0 | H68: 0 | I68: 0 | J68: 0 | K68: 0 | L68: 12700
A70: 51 | B70: 177000 | C70: 179000 | D70: 3980 | E70: 2360 | F70: 750 | G70: 0 | H70: 0 | I70: 0 | J70: 0 | K70: 0 | L70: 13200
A71: 52 | B71: 179000 | C71: 181000 | D71: 4050 | E71: 2430 | F71: 820 | G71: 0 | H71: 0 | I71: 0 | J71: 0 | K71: 0 | L71: 13900
A72: 53 | B72: 181000 | C72: 183000 | D72: 4120 | E72: 2500 | F72: 890 | G72: 0 | H72: 0 | I72: 0 | J72: 0 | K72: 0 | L72: 14600
A73: 54 | B73: 183000 | C73: 185000 | D73: 4200 | E73: 2570 | F73: 960 | G73: 0 | H73: 0 | I73: 0 | J73: 0 | K73: 0 | L73: 15300
A74: 55 | B74: 185000 | C74: 187000 | D74: 4270 | E74: 2640 | F74: 1030 | G74: 0 | H74: 0 | I74: 0 | J74: 0 | K74: 0 | L74: 16000
A76: 56 | B76: 187000 | C76: 189000 | D76: 4340 | E76: 2720 | F76: 1100 | G76: 0 | H76: 0 | I76: 0 | J76: 0 | K76: 0 | L76: 16700
A77: 57 | B77: 189000 | C77: 191000 | D77: 4410 | E77: 2790 | F77: 1170 | G77: 0 | H77: 0 | I77: 0 | J77: 0 | K77: 0 | L77: 17500
A78: 58 | B78: 191000 | C78: 193000 | D78: 4480 | E78: 2860 | F78: 1250 | G78: 0 | H78: 0 | I78: 0 | J78: 0 | K78: 0 | L78: 18100
A79: 59 | B79: 193000 | C79: 195000 | D79: 4550 | E79: 2930 | F79: 1320 | G79: 0 | H79: 0 | I79: 0 | J79: 0 | K79: 0 | L79: 18800
A80: 60 | B80: 195000 | C80: 197000 | D80: 4630 | E80: 3000 | F80: 1390 | G80: 0 | H80: 0 | I80: 0 | J80: 0 | K80: 0 | L80: 19500
A82: 61 | B82: 197000 | C82: 199000 | D82: 4700 | E82: 3070 | F82: 1460 | G82: 0 | H82: 0 | I82: 0 | J82: 0 | K82: 0 | L82: 20200
A83: 62 | B83: 199000 | C83: 201000 | D83: 4770 | E83: 3140 | F83: 1530 | G83: 0 | H83: 0 | I83: 0 | J83: 0 | K83: 0 | L83: 20900
A84: 63 | B84: 201000 | C84: 203000 | D84: 4840 | E84: 3220 | F84: 1600 | G84: 0 | H84: 0 | I84: 0 | J84: 0 | K84: 0 | L84: 21500
A85: 64 | B85: 203000 | C85: 205000 | D85: 4910 | E85: 3290 | F85: 1670 | G85: 0 | H85: 0 | I85: 0 | J85: 0 | K85: 0 | L85: 22200
A86: 65 | B86: 205000 | C86: 207000 | D86: 4980 | E86: 3360 | F86: 1750 | G86: 130 | H86: 0 | I86: 0 | J86: 0 | K86: 0 | L86: 22700
A88: 66 | B88: 207000 | C88: 209000 | D88: 5050 | E88: 3430 | F88: 1820 | G88: 200 | H88: 0 | I88: 0 | J88: 0 | K88: 0 | L88: 23300
A89: 67 | B89: 209000 | C89: 211000 | D89: 5130 | E89: 3500 | F89: 1890 | G89: 280 | H89: 0 | I89: 0 | J89: 0 | K89: 0 | L89: 23900
A90: 68 | B90: 211000 | C90: 213000 | D90: 5200 | E90: 3570 | F90: 1960 | G90: 350 | H90: 0 | I90: 0 | J90: 0 | K90: 0 | L90: 24400
A91: 69 | B91: 213000 | C91: 215000 | D91: 5270 | E91: 3640 | F91: 2030 | G91: 420 | H91: 0 | I91: 0 | J91: 0 | K91: 0 | L91: 25000
A92: 70 | B92: 215000 | C92: 217000 | D92: 5340 | E92: 3720 | F92: 2100 | G92: 490 | H92: 0 | I92: 0 | J92: 0 | K92: 0 | L92: 25500
A94: 71 | B94: 217000 | C94: 219000 | D94: 5410 | E94: 3790 | F94: 2170 | G94: 560 | H94: 0 | I94: 0 | J94: 0 | K94: 0 | L94: 26100
A95: 72 | B95: 219000 | C95: 221000 | D95: 5480 | E95: 3860 | F95: 2250 | G95: 630 | H95: 0 | I95: 0 | J95: 0 | K95: 0 | L95: 26800
A96: 73 | B96: 221000 | C96: 224000 | D96: 5560 | E96: 3950 | F96: 2340 | G96: 710 | H96: 0 | I96: 0 | J96: 0 | K96: 0 | L96: 27400
A97: 74 | B97: 224000 | C97: 227000 | D97: 5680 | E97: 4060 | F97: 2440 | G97: 830 | H97: 0 | I97: 0 | J97: 0 | K97: 0 | L97: 28400
A98: 75 | B98: 227000 | C98: 230000 | D98: 5780 | E98: 4170 | F98: 2550 | G98: 930 | H98: 0 | I98: 0 | J98: 0 | K98: 0 | L98: 29300
A100: 76 | B100: 230000 | C100: 233000 | D100: 5890 | E100: 4280 | F100: 2650 | G100: 1040 | H100: 0 | I100: 0 | J100: 0 | K100: 0 | L100: 30300
A101: 77 | B101: 233000 | C101: 236000 | D101: 5990 | E101: 4380 | F101: 2770 | G101: 1140 | H101: 0 | I101: 0 | J101: 0 | K101: 0 | L101: 31300
A102: 78 | B102: 236000 | C102: 239000 | D102: 6110 | E102: 4490 | F102: 2870 | G102: 1260 | H102: 0 | I102: 0 | J102: 0 | K102: 0 | L102: 32400
A103: 79 | B103: 239000 | C103: 242000 | D103: 6210 | E103: 4590 | F103: 2980 | G103: 1360 | H103: 0 | I103: 0 | J103: 0 | K103: 0 | L103: 33400
A104: 80 | B104: 242000 | C104: 245000 | D104: 6320 | E104: 4710 | F104: 3080 | G104: 1470 | H104: 0 | I104: 0 | J104: 0 | K104: 0 | L104: 34400
A106: 81 | B106: 245000 | C106: 248000 | D106: 6420 | E106: 4810 | F106: 3200 | G106: 1570 | H106: 0 | I106: 0 | J106: 0 | K106: 0 | L106: 35400
A107: 82 | B107: 248000 | C107: 251000 | D107: 6530 | E107: 4920 | F107: 3300 | G107: 1680 | H107: 0 | I107: 0 | J107: 0 | K107: 0 | L107: 36400
A108: 83 | B108: 251000 | C108: 254000 | D108: 6640 | E108: 5020 | F108: 3410 | G108: 1790 | H108: 170 | I108: 0 | J108: 0 | K108: 0 | L108: 37500
A109: 84 | B109: 254000 | C109: 257000 | D109: 6750 | E109: 5140 | F109: 3510 | G109: 1900 | H109: 290 | I109: 0 | J109: 0 | K109: 0 | L109: 38500
A110: 85 | B110: 257000 | C110: 260000 | D110: 6850 | E110: 5240 | F110: 3620 | G110: 2000 | H110: 390 | I110: 0 | J110: 0 | K110: 0 | L110: 39400
A112: 86 | B112: 260000 | C112: 263000 | D112: 6960 | E112: 5350 | F112: 3730 | G112: 2110 | H112: 500 | I112: 0 | J112: 0 | K112: 0 | L112: 40400
A113: 87 | B113: 263000 | C113: 266000 | D113: 7070 | E113: 5450 | F113: 3840 | G113: 2220 | H113: 600 | I113: 0 | J113: 0 | K113: 0 | L113: 41500
A114: 88 | B114: 266000 | C114: 269000 | D114: 7180 | E114: 5560 | F114: 3940 | G114: 2330 | H114: 710 | I114: 0 | J114: 0 | K114: 0 | L114: 42500
A115: 89 | B115: 269000 | C115: 272000 | D115: 7280 | E115: 5670 | F115: 4050 | G115: 2430 | H115: 820 | I115: 0 | J115: 0 | K115: 0 | L115: 43500
A116: 90 | B116: 272000 | C116: 275000 | D116: 7390 | E116: 5780 | F116: 4160 | G116: 2540 | H116: 930 | I116: 0 | J116: 0 | K116: 0 | L116: 44500
A118: 91 | B118: 275000 | C118: 278000 | D118: 7490 | E118: 5880 | F118: 4270 | G118: 2640 | H118: 1030 | I118: 0 | J118: 0 | K118: 0 | L118: 45500
A119: 92 | B119: 278000 | C119: 281000 | D119: 7610 | E119: 5990 | F119: 4370 | G119: 2760 | H119: 1140 | I119: 0 | J119: 0 | K119: 0 | L119: 46600
A120: 93 | B120: 281000 | C120: 284000 | D120: 7710 | E120: 6100 | F120: 4480 | G120: 2860 | H120: 1250 | I120: 0 | J120: 0 | K120: 0 | L120: 47600
A121: 94 | B121: 284000 | C121: 287000 | D121: 7820 | E121: 6210 | F121: 4580 | G121: 2970 | H121: 1360 | I121: 0 | J121: 0 | K121: 0 | L121: 48600
A122: 95 | B122: 287000 | C122: 290000 | D122: 7920 | E122: 6310 | F122: 4700 | G122: 3070 | H122: 1460 | I122: 0 | J122: 0 | K122: 0 | L122: 49500
A124: 96 | B124: 290000 | C124: 293000 | D124: 8040 | E124: 6420 | F124: 4800 | G124: 3190 | H124: 1570 | I124: 0 | J124: 0 | K124: 0 | L124: 50500
A125: 97 | B125: 293000 | C125: 296000 | D125: 8140 | E125: 6520 | F125: 4910 | G125: 3290 | H125: 1670 | I125: 0 | J125: 0 | K125: 0 | L125: 51600
A126: 98 | B126: 296000 | C126: 299000 | D126: 8250 | E126: 6640 | F126: 5010 | G126: 3400 | H126: 1790 | I126: 160 | J126: 0 | K126: 0 | L126: 52300
A127: 99 | B127: 299000 | C127: 302000 | D127: 8420 | E127: 6740 | F127: 5130 | G127: 3510 | H127: 1890 | I127: 280 | J127: 0 | K127: 0 | L127: 52900
A128: 100 | B128: 302000 | C128: 305000 | D128: 8670 | E128: 6860 | F128: 5250 | G128: 3630 | H128: 2010 | I128: 400 | J128: 0 | K128: 0 | L128: 53500
A130: 101 | B130: 305000 | C130: 308000 | D130: 8910 | E130: 6980 | F130: 5370 | G130: 3760 | H130: 2130 | I130: 520 | J130: 0 | K130: 0 | L130: 54200
A131: 102 | B131: 308000 | C131: 311000 | D131: 9160 | E131: 7110 | F131: 5490 | G131: 3880 | H131: 2260 | I131: 640 | J131: 0 | K131: 0 | L131: 54800
A132: 103 | B132: 311000 | C132: 314000 | D132: 9400 | E132: 7230 | F132: 5620 | G132: 4000 | H132: 2380 | I132: 770 | J132: 0 | K132: 0 | L132: 55400
A133: 104 | B133: 314000 | C133: 317000 | D133: 9650 | E133: 7350 | F133: 5740 | G133: 4120 | H133: 2500 | I133: 890 | J133: 0 | K133: 0 | L133: 56100
A134: 105 | B134: 317000 | C134: 320000 | D134: 9890 | E134: 7470 | F134: 5860 | G134: 4250 | H134: 2620 | I134: 1010 | J134: 0 | K134: 0 | L134: 56800
A136: 106 | B136: 320000 | C136: 323000 | D136: 10140 | E136: 7600 | F136: 5980 | G136: 4370 | H136: 2750 | I136: 1130 | J136: 0 | K136: 0 | L136: 57700
A137: 107 | B137: 323000 | C137: 326000 | D137: 10380 | E137: 7720 | F137: 6110 | G137: 4490 | H137: 2870 | I137: 1260 | J137: 0 | K137: 0 | L137: 58500
A138: 108 | B138: 326000 | C138: 329000 | D138: 10630 | E138: 7840 | F138: 6230 | G138: 4610 | H138: 2990 | I138: 1380 | J138: 0 | K138: 0 | L138: 59300
A139: 109 | B139: 329000 | C139: 332000 | D139: 10870 | E139: 7960 | F139: 6350 | G139: 4740 | H139: 3110 | I139: 1500 | J139: 0 | K139: 0 | L139: 60200
A140: 110 | B140: 332000 | C140: 335000 | D140: 11120 | E140: 8090 | F140: 6470 | G140: 4860 | H140: 3240 | I140: 1620 | J140: 0 | K140: 0 | L140: 61100
A142: 111 | B142: 335000 | C142: 338000 | D142: 11360 | E142: 8210 | F142: 6600 | G142: 4980 | H142: 3360 | I142: 1750 | J142: 130 | K142: 0 | L142: 62000
A143: 112 | B143: 338000 | C143: 341000 | D143: 11610 | E143: 8370 | F143: 6720 | G143: 5110 | H143: 3480 | I143: 1870 | J143: 260 | K143: 0 | L143: 62900
A144: 113 | B144: 341000 | C144: 344000 | D144: 11850 | E144: 8620 | F144: 6840 | G144: 5230 | H144: 3600 | I144: 1990 | J144: 380 | K144: 0 | L144: 63800
A145: 114 | B145: 344000 | C145: 347000 | D145: 12100 | E145: 8860 | F145: 6960 | G145: 5350 | H145: 3730 | I145: 2110 | J145: 500 | K145: 0 | L145: 64700
A146: 115 | B146: 347000 | C146: 350000 | D146: 12340 | E146: 9110 | F146: 7090 | G146: 5470 | H146: 3850 | I146: 2240 | J146: 620 | K146: 0 | L146: 65800
A148: 116 | B148: 350000 | C148: 353000 | D148: 12590 | E148: 9350 | F148: 7210 | G148: 5600 | H148: 3970 | I148: 2360 | J148: 750 | K148: 0 | L148: 66700
A149: 117 | B149: 353000 | C149: 356000 | D149: 12830 | E149: 9600 | F149: 7330 | G149: 5720 | H149: 4090 | I149: 2480 | J149: 870 | K149: 0 | L149: 67600
A150: 118 | B150: 356000 | C150: 359000 | D150: 13080 | E150: 9840 | F150: 7450 | G150: 5840 | H150: 4220 | I150: 2600 | J150: 990 | K150: 0 | L150: 68500
A151: 119 | B151: 359000 | C151: 362000 | D151: 13320 | E151: 10090 | F151: 7580 | G151: 5960 | H151: 4340 | I151: 2730 | J151: 1110 | K151: 0 | L151: 69400
A152: 120 | B152: 362000 | C152: 365000 | D152: 13570 | E152: 10330 | F152: 7700 | G152: 6090 | H152: 4460 | I152: 2850 | J152: 1240 | K152: 0 | L152: 70400
A154: 121 | B154: 365000 | C154: 368000 | D154: 13810 | E154: 10580 | F154: 7820 | G154: 6210 | H154: 4580 | I154: 2970 | J154: 1360 | K154: 0 | L154: 71400
A155: 122 | B155: 368000 | C155: 371000 | D155: 14060 | E155: 10820 | F155: 7940 | G155: 6330 | H155: 4710 | I155: 3090 | J155: 1480 | K155: 0 | L155: 72300
A156: 123 | B156: 371000 | C156: 374000 | D156: 14300 | E156: 11070 | F156: 8070 | G156: 6450 | H156: 4830 | I156: 3220 | J156: 1600 | K156: 0 | L156: 73100
A157: 124 | B157: 374000 | C157: 377000 | D157: 14550 | E157: 11310 | F157: 8190 | G157: 6580 | H157: 4950 | I157: 3340 | J157: 1730 | K157: 100 | L157: 73900
A158: 125 | B158: 377000 | C158: 380000 | D158: 14790 | E158: 11560 | F158: 8320 | G158: 6700 | H158: 5070 | I158: 3460 | J158: 1850 | K158: 220 | L158: 74700
A160: 126 | B160: 380000 | C160: 383000 | D160: 15040 | E160: 11800 | F160: 8570 | G160: 6820 | H160: 5200 | I160: 3580 | J160: 1970 | K160: 350 | L160: 75700
A161: 127 | B161: 383000 | C161: 386000 | D161: 15280 | E161: 12050 | F161: 8810 | G161: 6940 | H161: 5320 | I161: 3710 | J161: 2090 | K161: 470 | L161: 76500
A162: 128 | B162: 386000 | C162: 389000 | D162: 15530 | E162: 12290 | F162: 9060 | G162: 7070 | H162: 5440 | I162: 3830 | J162: 2220 | K162: 590 | L162: 77300
A163: 129 | B163: 389000 | C163: 392000 | D163: 15770 | E163: 12540 | F163: 9300 | G163: 7190 | H163: 5560 | I163: 3950 | J163: 2340 | K163: 710 | L163: 78200
A164: 130 | B164: 392000 | C164: 395000 | D164: 16020 | E164: 12780 | F164: 9550 | G164: 7310 | H164: 5690 | I164: 4070 | J164: 2460 | K164: 840 | L164: 79700
A166: 131 | B166: 395000 | C166: 398000 | D166: 16260 | E166: 13030 | F166: 9790 | G166: 7430 | H166: 5810 | I166: 4200 | J166: 2580 | K166: 960 | L166: 81400
A167: 132 | B167: 398000 | C167: 401000 | D167: 16510 | E167: 13270 | F167: 10040 | G167: 7560 | H167: 5930 | I167: 4320 | J167: 2710 | K167: 1080 | L167: 82900
A168: 133 | B168: 401000 | C168: 404000 | D168: 16750 | E168: 13520 | F168: 10280 | G168: 7680 | H168: 6050 | I168: 4440 | J168: 2830 | K168: 1200 | L168: 84500
A169: 134 | B169: 404000 | C169: 407000 | D169: 17000 | E169: 13760 | F169: 10530 | G169: 7800 | H169: 6180 | I169: 4560 | J169: 2950 | K169: 1330 | L169: 86100
A170: 135 | B170: 407000 | C170: 410000 | D170: 17240 | E170: 14010 | F170: 10770 | G170: 7920 | H170: 6300 | I170: 4690 | J170: 3070 | K170: 1450 | L170: 87700
A172: 136 | B172: 410000 | C172: 413000 | D172: 17490 | E172: 14250 | F172: 11020 | G172: 8050 | H172: 6420 | I172: 4810 | J172: 3200 | K172: 1570 | L172: 89200
A173: 137 | B173: 413000 | C173: 416000 | D173: 17730 | E173: 14500 | F173: 11260 | G173: 8170 | H173: 6540 | I173: 4930 | J173: 3320 | K173: 1690 | L173: 90800
A174: 138 | B174: 416000 | C174: 419000 | D174: 17980 | E174: 14740 | F174: 11510 | G174: 8290 | H174: 6670 | I174: 5050 | J174: 3440 | K174: 1820 | L174: 92400
A175: 139 | B175: 419000 | C175: 422000 | D175: 18220 | E175: 14990 | F175: 11750 | G175: 8530 | H175: 6790 | I175: 5180 | J175: 3560 | K175: 1940 | L175: 93900
A176: 140 | B176: 422000 | C176: 425000 | D176: 18470 | E176: 15230 | F176: 12000 | G176: 8770 | H176: 6910 | I176: 5300 | J176: 3690 | K176: 2060 | L176: 95600
A178: 141 | B178: 425000 | C178: 428000 | D178: 18710 | E178: 15480 | F178: 12240 | G178: 9020 | H178: 7030 | I178: 5420 | J178: 3810 | K178: 2180 | L178: 97100
A179: 142 | B179: 428000 | C179: 431000 | D179: 18960 | E179: 15720 | F179: 12490 | G179: 9260 | H179: 7160 | I179: 5540 | J179: 3930 | K179: 2310 | L179: 98600
A180: 143 | B180: 431000 | C180: 434000 | D180: 19210 | E180: 15970 | F180: 12730 | G180: 9510 | H180: 7280 | I180: 5670 | J180: 4050 | K180: 2430 | L180: 100300
A181: 144 | B181: 434000 | C181: 437000 | D181: 19450 | E181: 16210 | F181: 12980 | G181: 9750 | H181: 7400 | I181: 5790 | J181: 4180 | K181: 2550 | L181: 101800
A182: 145 | B182: 437000 | C182: 440000 | D182: 19700 | E182: 16460 | F182: 13220 | G182: 10000 | H182: 7520 | I182: 5910 | J182: 4300 | K182: 2680 | L182: 103400
A184: 146 | B184: 440000 | C184: 443000 | D184: 20090 | E184: 16700 | F184: 13470 | G184: 10240 | H184: 7650 | I184: 6030 | J184: 4420 | K184: 2800 | L184: 105000
A185: 147 | B185: 443000 | C185: 446000 | D185: 20580 | E185: 16950 | F185: 13710 | G185: 10490 | H185: 7770 | I185: 6160 | J185: 4540 | K185: 2920 | L185: 106600
A186: 148 | B186: 446000 | C186: 449000 | D186: 21070 | E186: 17190 | F186: 13960 | G186: 10730 | H186: 7890 | I186: 6280 | J186: 4670 | K186: 3040 | L186: 108100
A187: 149 | B187: 449000 | C187: 452000 | D187: 21560 | E187: 17440 | F187: 14200 | G187: 10980 | H187: 8010 | I187: 6400 | J187: 4790 | K187: 3170 | L187: 109700
A188: 150 | B188: 452000 | C188: 455000 | D188: 22050 | E188: 17680 | F188: 14450 | G188: 11220 | H188: 8140 | I188: 6520 | J188: 4910 | K188: 3290 | L188: 111300
A190: 151 | B190: 455000 | C190: 458000 | D190: 22540 | E190: 17930 | F190: 14690 | G190: 11470 | H190: 8260 | I190: 6650 | J190: 5030 | K190: 3410 | L190: 112800
A191: 152 | B191: 458000 | C191: 461000 | D191: 23030 | E191: 18170 | F191: 14940 | G191: 11710 | H191: 8470 | I191: 6770 | J191: 5160 | K191: 3530 | L191: 114500
A192: 153 | B192: 461000 | C192: 464000 | D192: 23520 | E192: 18420 | F192: 15180 | G192: 11960 | H192: 8720 | I192: 6890 | J192: 5280 | K192: 3660 | L192: 116000
A193: 154 | B193: 464000 | C193: 467000 | D193: 24010 | E193: 18660 | F193: 15430 | G193: 12200 | H193: 8960 | I193: 7010 | J193: 5400 | K193: 3780 | L193: 117500
A194: 155 | B194: 467000 | C194: 470000 | D194: 24500 | E194: 18910 | F194: 15670 | G194: 12450 | H194: 9210 | I194: 7140 | J194: 5520 | K194: 3900 | L194: 119200
A196: 156 | B196: 470000 | C196: 473000 | D196: 24990 | E196: 19150 | F196: 15920 | G196: 12690 | H196: 9450 | I196: 7260 | J196: 5650 | K196: 4020 | L196: 120700
A197: 157 | B197: 473000 | C197: 476000 | D197: 25480 | E197: 19400 | F197: 16160 | G197: 12940 | H197: 9700 | I197: 7380 | J197: 5770 | K197: 4150 | L197: 122300
A198: 158 | B198: 476000 | C198: 479000 | D198: 25970 | E198: 19640 | F198: 16410 | G198: 13180 | H198: 9940 | I198: 7500 | J198: 5890 | K198: 4270 | L198: 123800
A199: 159 | B199: 479000 | C199: 482000 | D199: 26460 | E199: 20000 | F199: 16650 | G199: 13430 | H199: 10190 | I199: 7630 | J199: 6010 | K199: 4390 | L199: 125400
A200: 160 | B200: 482000 | C200: 485000 | D200: 26950 | E200: 20490 | F200: 16900 | G200: 13670 | H200: 10430 | I200: 7750 | J200: 6140 | K200: 4510 | L200: 127000
A202: 161 | B202: 485000 | C202: 488000 | D202: 27440 | E202: 20980 | F202: 17140 | G202: 13920 | H202: 10680 | I202: 7870 | J202: 6260 | K202: 4640 | L202: 128500
A203: 162 | B203: 488000 | C203: 491000 | D203: 27930 | E203: 21470 | F203: 17390 | G203: 14160 | H203: 10920 | I203: 7990 | J203: 6380 | K203: 4760 | L203: 130200
A204: 163 | B204: 491000 | C204: 494000 | D204: 28420 | E204: 21960 | F204: 17630 | G204: 14410 | H204: 11170 | I204: 8120 | J204: 6500 | K204: 4880 | L204: 131700
A205: 164 | B205: 494000 | C205: 497000 | D205: 28910 | E205: 22450 | F205: 17880 | G205: 14650 | H205: 11410 | I205: 8240 | J205: 6630 | K205: 5000 | L205: 133300
A206: 165 | B206: 497000 | C206: 500000 | D206: 29400 | E206: 22940 | F206: 18120 | G206: 14900 | H206: 11660 | I206: 8420 | J206: 6750 | K206: 5130 | L206: 134900
A208: 166 | B208: 500000 | C208: 503000 | D208: 29890 | E208: 23430 | F208: 18370 | G208: 15140 | H208: 11900 | I208: 8670 | J208: 6870 | K208: 5250 | L208: 136400
A209: 167 | B209: 503000 | C209: 506000 | D209: 30380 | E209: 23920 | F209: 18610 | G209: 15390 | H209: 12150 | I209: 8910 | J209: 6990 | K209: 5370 | L209: 138100
A210: 168 | B210: 506000 | C210: 509000 | D210: 30880 | E210: 24410 | F210: 18860 | G210: 15630 | H210: 12390 | I210: 9160 | J210: 7120 | K210: 5490 | L210: 139900
A211: 169 | B211: 509000 | C211: 512000 | D211: 31370 | E211: 24900 | F211: 19100 | G211: 15880 | H211: 12640 | I211: 9400 | J211: 7240 | K211: 5620 | L211: 141500
A212: 170 | B212: 512000 | C212: 515000 | D212: 31860 | E212: 25390 | F212: 19350 | G212: 16120 | H212: 12890 | I212: 9650 | J212: 7360 | K212: 5740 | L212: 143200
A214: 171 | B214: 515000 | C214: 518000 | D214: 32350 | E214: 25880 | F214: 19590 | G214: 16370 | H214: 13130 | I214: 9890 | J214: 7480 | K214: 5860 | L214: 145000
A215: 172 | B215: 518000 | C215: 521000 | D215: 32840 | E215: 26370 | F215: 19900 | G215: 16610 | H215: 13380 | I215: 10140 | J215: 7610 | K215: 5980 | L215: 146600
A216: 173 | B216: 521000 | C216: 524000 | D216: 33330 | E216: 26860 | F216: 20390 | G216: 16860 | H216: 13620 | I216: 10380 | J216: 7730 | K216: 6110 | L216: 148400
A217: 174 | B217: 524000 | C217: 527000 | D217: 33820 | E217: 27350 | F217: 20880 | G217: 17100 | H217: 13870 | I217: 10630 | J217: 7850 | K217: 6230 | L217: 150100
A218: 175 | B218: 527000 | C218: 530000 | D218: 34310 | E218: 27840 | F218: 21370 | G218: 17350 | H218: 14110 | I218: 10870 | J218: 7970 | K218: 6350 | L218: 151700
A220: 176 | B220: 530000 | C220: 533000 | D220: 34800 | E220: 28330 | F220: 21860 | G220: 17590 | H220: 14360 | I220: 11120 | J220: 8100 | K220: 6470 | L220: 153300
A221: 177 | B221: 533000 | C221: 536000 | D221: 35290 | E221: 28820 | F221: 22350 | G221: 17840 | H221: 14600 | I221: 11360 | J221: 8220 | K221: 6600 | L221: 154900
A222: 178 | B222: 536000 | C222: 539000 | D222: 35780 | E222: 29310 | F222: 22840 | G222: 18080 | H222: 14850 | I222: 11610 | J222: 8380 | K222: 6720 | L222: 156400
A223: 179 | B223: 539000 | C223: 542000 | D223: 36270 | E223: 29800 | F223: 23330 | G223: 18330 | H223: 15090 | I223: 11850 | J223: 8630 | K223: 6840 | L223: 158100
A224: 180 | B224: 542000 | C224: 545000 | D224: 36760 | E224: 30290 | F224: 23820 | G224: 18570 | H224: 15340 | I224: 12100 | J224: 8870 | K224: 6960 | L224: 159600
A226: 181 | B226: 545000 | C226: 548000 | D226: 37250 | E226: 30780 | F226: 24310 | G226: 18820 | H226: 15580 | I226: 12340 | J226: 9120 | K226: 7090 | L226: 161200
A227: 182 | B227: 548000 | C227: 551000 | D227: 37740 | E227: 31270 | F227: 24800 | G227: 19060 | H227: 15830 | I227: 12590 | J227: 9360 | K227: 7210 | L227: 162700
A228: 183 | B228: 551000 | C228: 554000 | D228: 38280 | E228: 31810 | F228: 25340 | G228: 19330 | H228: 16100 | I228: 12860 | J228: 9630 | K228: 7350 | L228: 164300
A229: 184 | B229: 554000 | C229: 557000 | D229: 38830 | E229: 32370 | F229: 25890 | G229: 19600 | H229: 16380 | I229: 13140 | J229: 9900 | K229: 7480 | L229: 165900
A230: 185 | B230: 557000 | C230: 560000 | D230: 39380 | E230: 32920 | F230: 26440 | G230: 19980 | H230: 16650 | I230: 13420 | J230: 10180 | K230: 7630 | L230: 167400
A232: 186 | B232: 560000 | C232: 563000 | D232: 39930 | E232: 33470 | F232: 27000 | G232: 20530 | H232: 16930 | I232: 13690 | J232: 10460 | K232: 7760 | L232: 169000
A233: 187 | B233: 563000 | C233: 566000 | D233: 40480 | E233: 34020 | F233: 27550 | G233: 21080 | H233: 17200 | I233: 13970 | J233: 10730 | K233: 7900 | L233: 170500
A234: 188 | B234: 566000 | C234: 569000 | D234: 41030 | E234: 34570 | F234: 28100 | G234: 21630 | H234: 17480 | I234: 14240 | J234: 11010 | K234: 8040 | L234: 172000
A235: 189 | B235: 569000 | C235: 572000 | D235: 41590 | E235: 35120 | F235: 28650 | G235: 22190 | H235: 17760 | I235: 14520 | J235: 11280 | K235: 8180 | L235: 173600
A236: 190 | B236: 572000 | C236: 575000 | D236: 42140 | E236: 35670 | F236: 29200 | G236: 22740 | H236: 18030 | I236: 14790 | J236: 11560 | K236: 8330 | L236: 175100
A238: 191 | B238: 575000 | C238: 578000 | D238: 42690 | E238: 36230 | F238: 29750 | G238: 23290 | H238: 18310 | I238: 15070 | J238: 11830 | K238: 8610 | L238: 176600
A239: 192 | B239: 578000 | C239: 581000 | D239: 43240 | E239: 36780 | F239: 30300 | G239: 23840 | H239: 18580 | I239: 15350 | J239: 12110 | K239: 8880 | L239: 178200
... 163 more rows

Sheet 源泉賞与表 (hidden)
B1: 賞与に対する源泉徴収税額の算出率の表（平成26年分）
B2: （平成24年３月31日財務省告示第115号別表第三）
B3: 賞与の金額に乗ずべき率 | D3: 甲 | T3: 乙
D4: 扶 養 親 族 等 の 数
D5: 0 人 | F5: 1 人 | H5: 2 人 | J5: 3 人 | L5: 4 人 | N5: 5 人 | P5: 6 人 | R5: 7 人 以 上
D6: 前 月 の 社 会 保 険 料 等 控 除 後 の 給 与 等 の 金 額 | T6: 前月の社会保険料等控除後の給与等の金額
D7: 以上 | E7: 未満 | F7: 以上 | G7: 未満 | H7: 以上 | I7: 未満 | J7: 以上 | K7: 未満 | L7: 以上 | M7: 未満 | N7: 以上 | O7: 未満 | P7: 以上 | Q7: 未満 | R7: 以上 | S7: 未満 | T7: 以上 | U7: 未満
D8: 千円 | E8: 千円 | F8: 千円 | G8: 千円 | H8: 千円 | I8: 千円 | J8: 千円 | K8: 千円 | L8: 千円 | M8: 千円 | N8: 千円 | O8: 千円 | P8: 千円 | Q8: 千円 | R8: 千円 | S8: 千円 | T8: 千円 | U8: 千円
B9: 0 | C9: % | D9: 68千円未満 | F9: 94千円未満 | H9: 133千円未満 | J9: 171千円未満 | L9: 210千円未満 | N9: 243千円未満 | P9: 275千円未満 | R9: 308千円未満
B10: 2.042 | D10: 68 | E10: 79 | F10: 94 | G10: 243 | H10: 133 | I10: 269 | J10: 171 | K10: 295 | L10: 210 | M10: 300 | N10: 243 | O10: 300 | P10: 275 | Q10: 333 | R10: 308 | S10: 372
B11: 4.084 | D11: 79 | E11: 252 | F11: 243 | G11: 282 | H11: 269 | I11: 312 | J11: 295 | K11: 345 | L11: 300 | M11: 378 | N11: 300 | O11: 406 | P11: 333 | Q11: 431 | R11: 372 | S11: 456
B12: 6.126 | D12: 252 | E12: 300 | F12: 282 | G12: 338 | H12: 312 | I12: 369 | J12: 345 | K12: 398 | L12: 378 | M12: 424 | N12: 406 | O12: 450 | P12: 431 | Q12: 476 | R12: 456 | S12: 502
B14: 8.168 | D14: 300 | E14: 334 | F14: 338 | G14: 365 | H14: 369 | I14: 393 | J14: 398 | K14: 417 | L14: 424 | M14: 444 | N14: 450 | O14: 472 | P14: 476 | Q14: 499 | R14: 502 | S14: 527
B15: 10.21 | D15: 334 | E15: 363 | F15: 365 | G15: 394 | H15: 393 | I15: 420 | J15: 417 | K15: 445 | L15: 444 | M15: 470 | N15: 472 | O15: 496 | P15: 499 | Q15: 525 | R15: 527 | S15: 553 | U15: 241
B16: 12.252 | D16: 363 | E16: 395 | F16: 394 | G16: 422 | H16: 420 | I16: 450 | J16: 445 | K16: 477 | L16: 470 | M16: 504 | N16: 496 | O16: 531 | P16: 525 | Q16: 559 | R16: 553 | S16: 588
B18: 14.294 | D18: 395 | E18: 426 | F18: 422 | G18: 455 | H18: 450 | I18: 484 | J18: 477 | K18: 513 | L18: 504 | M18: 543 | N18: 531 | O18: 574 | P18: 559 | Q18: 604 | R18: 588 | S18: 632
B19: 16.336 | D19: 426 | E19: 550 | F19: 455 | G19: 550 | H19: 484 | I19: 550 | J19: 513 | K19: 557 | L19: 543 | M19: 592 | N19: 574 | O19: 622 | P19: 604 | Q19: 652 | R19: 632 | S19: 683
B20: 18.378 | D20: 550 | E20: 668 | F20: 550 | G20: 689 | H20: 550 | I20: 710 | J20: 557 | K20: 730 | L20: 592 | M20: 751 | N20: 622 | O20: 771 | P20: 652 | Q20: 792 | R20: 683 | S20: 812
B22: 20.42 | D22: 668 | E22: 714 | F22: 689 | G22: 738 | H22: 710 | I22: 762 | J22: 730 | K22: 786 | L22: 751 | M22: 810 | N22: 771 | O22: 834 | P22: 792 | Q22: 859 | R22: 812 | S22: 884 | T22: 241 | U22: 305
B23: 22.462 | D23: 714 | E23: 750 | F23: 738 | G23: 775 | H23: 762 | I23: 801 | J23: 786 | K23: 826 | L23: 810 | M23: 852 | N23: 834 | O23: 879 | P23: 859 | Q23: 902 | R23: 884 | S23: 925
B24: 24.504 | D24: 750 | E24: 791 | F24: 775 | G24: 817 | H24: 801 | I24: 844 | J24: 826 | K24: 872 | L24: 852 | M24: 898 | N24: 879 | O24: 922 | P24: 902 | Q24: 947 | R24: 925 | S24: 971
B26: 26.546 | D26: 791 | E26: 847 | F26: 817 | G26: 876 | H26: 844 | I26: 901 | J26: 872 | K26: 925 | L26: 898 | M26: 949 | N26: 922 | O26: 973 | P26: 947 | Q26: 997 | R26: 971 | S26: 1021
B27: 28.588 | D27: 847 | E27: 910 | F27: 876 | G27: 936 | H27: 901 | I27: 962 | J27: 925 | K27: 987 | L27: 949 | M27: 1013 | N27: 973 | O27: 1038 | P27: 997 | Q27: 1064 | R27: 1021 | S27: 1089
B28: 30.63 | D28: 910 | E28: 997 | F28: 936 | G28: 1003 | H28: 962 | I28: 1031 | J28: 987 | K28: 1058 | L28: 1013 | M28: 1086 | N28: 1038 | O28: 1113 | P28: 1064 | Q28: 1140 | R28: 1089 | S28: 1168 | T28: 305 | U28: 555
B30: 32.672 | D30: 997 | E30: 1337 | F30: 1003 | G30: 1362 | H30: 1031 | I30: 1386 | J30: 1058 | K30: 1410 | L30: 1086 | M30: 1435 | N30: 1113 | O30: 1459 | P30: 1140 | Q30: 1484 | R30: 1168 | S30: 1508
B31: 35.735 | D31: 1337 | E31: 1551 | F31: 1362 | G31: 1579 | H31: 1386 | I31: 1607 | J31: 1410 | K31: 1636 | L31: 1435 | M31: 1664 | N31: 1459 | O31: 1692 | P31: 1484 | Q31: 1720 | R31: 1508 | S31: 1749
B32: 38.798 | D32: 1551 | E32: 1735 | F32: 1579 | G32: 1767 | H32: 1607 | I32: 1799 | J32: 1636 | K32: 1830 | L32: 1664 | M32: 1862 | N32: 1692 | O32: 1894 | P32: 1720 | Q32: 1925 | R32: 1749 | S32: 1957
B34: 40.84 | D34: 1735 | E34: 千円以上 | F34: 1767 | G34: 千円以上 | H34: 1799 | I34: 千円以上 | J34: 1830 | K34: 千円以上 | L34: 1862 | M34: 千円以上 | N34: 1894 | O34: 千円以上 | P34: 1925 | Q34: 千円以上 | R34: 1957 | S34: 千円以上 | T34: 555 | U34: 千円以上

Sheet 雇用保険料率 (hidden)
C3: 雇用保険料率 | D3: 労働者負担分
D4: 0
C5: =リスト表!C5 -> 一般の事業 | D5: 0.005
C6: =リスト表!C6 -> 農林水産・清酒製造事業 | D6: 0.006
C7: =リスト表!C7 -> 建設の事業 | D7: 0.006
C9: 雇用保険料の対象となる賃金は、総支給額に交通費を加算した額です。

Sheet 北海道 (hidden)
B1: 平成26年3月分(4月納付分)からの健康保険・厚生年金保険の保険料額表
B3: ‣健康保険料率：平成24年3月分～ 適用 ‣厚生年金保険料率：平成25年9月分～平成26年8月分 適用 ‣介護保険料率：平成26年3月分～ 適用 ‣児童手当拠出金率：平成24年4月分～ 適用
B5: （北海道） | X5: （単位：円）
B6: 標 準 報 酬 | G6: 報 酬 月 額 | J6: 全国健康保険協会管掌健康保険料 | R6: 厚生年金保険料（厚生年金基金加入員を除く）
J7: 介護保険第２号被保険者 に該当しない場合 | N7: 介護保険第２号被保険者 に該当する場合 | R7: 一般の被保険者等 | V7: 坑内員・船員
J10: 0.1012 | N10: =J10+0.0172 -> 0.1184 | R10: 0.1712 | V10: 0.1744
B12: 等級 | C12: 月 額 | E12: 日 額 | J12: 全 額 | L12: 折半額 | N12: 全 額 | P12: 折半額 | R12: 全 額 | T12: 折半額 | V12: 全 額 | X12: 折半額
G14: 円以上 | I14: 円未満
B15: 1 | C15: 58000 | E15: 1930 | H15: ～ | I15: 63000 | J15: =C15*$J$10 -> 5869.6 | L15: =J15/2 -> 2934.8 | N15: =C15*$N$10 -> 6867.2 | P15: =N15/2 -> 3433.6
B16: 2 | C16: 68000 | E16: 2270 | G16: 63000 | H16: ～ | I16: 73000 | J16: =C16*$J$10 -> 6881.6 | L16: =J16/2 -> 3440.8 | N16: =C16*$N$10 -> 8051.2 | P16: =N16/2 -> 4025.6
B17: 3 | C17: 78000 | E17: 2600 | G17: 73000 | H17: ～ | I17: 83000 | J17: 7893.6 | L17: 3946.8 | N17: 9235.2 | P17: 4617.6
B18: 4 | C18: 88000 | E18: 2930 | G18: 83000 | H18: ～ | I18: 93000 | J18: 8905.6 | L18: 4452.8 | N18: =C18*$N$10 -> 10419.2 | P18: 5209.6
B19: 5(1) | C19: 98000 | E19: 3270 | G19: 93000 | H19: ～ | I19: 101000 | J19: 9917.6 | L19: 4958.8 | N19: 11603.2 | P19: 5801.6 | R19: =C19*$R$10 -> 16777.6 | T19: =R19/2 -> 8388.8 | V19: =C19*$V$10 -> 17091.2 | X19: =V19/2 -> 8545.6
B20: 6(2) | C20: 104000 | E20: 3470 | G20: 101000 | H20: ～ | I20: 107000 | J20: 10524.8 | L20: 5262.4 | N20: 12313.6 | P20: 6156.8 | R20: =C20*$R$10 -> 17804.8 | T20: =R20/2 -> 8902.4 | V20: =C20*$V$10 -> 18137.6 | X20: =V20/2 -> 9068.8
B21: 7(3) | C21: 110000 | E21: 3670 | G21: 107000 | H21: ～ | I21: 114000 | J21: 11132 | L21: 5566 | N21: 13024 | P21: 6512 | R21: 18832 | T21: 9416 | V21: 19184 | X21: 9592
B22: 8(4) | C22: 118000 | E22: 3930 | G22: 114000 | H22: ～ | I22: 122000 | J22: 11941.6 | L22: 5970.8 | N22: 13971.2 | P22: 6985.6 | R22: 20201.6 | T22: 10100.8 | V22: 20579.2 | X22: 10289.6
B23: 9(5) | C23: 126000 | E23: 4200 | G23: 122000 | H23: ～ | I23: 130000 | J23: 12751.2 | L23: 6375.6 | N23: 14918.4 | P23: 7459.2 | R23: 21571.2 | T23: 10785.6 | V23: 21974.4 | X23: 10987.2
B24: 10(6) | C24: 134000 | E24: 4470 | G24: 130000 | H24: ～ | I24: 138000 | J24: 13560.8 | L24: 6780.4 | N24: 15865.6 | P24: 7932.8 | R24: 22940.8 | T24: 11470.4 | V24: 23369.6 | X24: 11684.8
B25: 11(7) | C25: 142000 | E25: 4730 | G25: 138000 | H25: ～ | I25: 146000 | J25: 14370.4 | L25: 7185.2 | N25: 16812.8 | P25: 8406.4 | R25: 24310.4 | T25: 12155.2 | V25: 24764.8 | X25: 12382.4
B26: 12(8) | C26: 150000 | E26: 5000 | G26: 146000 | H26: ～ | I26: 155000 | J26: 15180 | L26: 7590 | N26: 17760 | P26: 8880 | R26: 25680 | T26: 12840 | V26: 26160 | X26: 13080
B27: 13(9) | C27: 160000 | E27: 5330 | G27: 155000 | H27: ～ | I27: 165000 | J27: 16192 | L27: 8096 | N27: 18944 | P27: 9472 | R27: 27392 | T27: 13696 | V27: 27904 | X27: 13952
B28: 14(10) | C28: 170000 | E28: 5670 | G28: 165000 | H28: ～ | I28: 175000 | J28: 17204 | L28: 8602 | N28: 20128 | P28: 10064 | R28: 29104 | T28: 14552 | V28: 29648 | X28: 14824
B29: 15(11) | C29: 180000 | E29: 6000 | G29: 175000 | H29: ～ | I29: 185000 | J29: 18216 | L29: 9108 | N29: 21312 | P29: 10656 | R29: 30816 | T29: 15408 | V29: 31392 | X29: 15696
B30: 16(12) | C30: 190000 | E30: 6330 | G30: 185000 | H30: ～ | I30: 195000 | J30: 19228 | L30: 9614 | N30: 22496 | P30: 11248 | R30: 32528 | T30: 16264 | V30: 33136 | X30: 16568
B31: 17(13) | C31: 200000 | E31: 6670 | G31: 195000 | H31: ～ | I31: 210000 | J31: 20240 | L31: 10120 | N31: 23680 | P31: 11840 | R31: 34240 | T31: 17120 | V31: 34880 | X31: 17440
B32: 18(14) | C32: 220000 | E32: 7330 | G32: 210000 | H32: ～ | I32: 230000 | J32: 22264 | L32: 11132 | N32: 26048 | P32: 13024 | R32: 37664 | T32: 18832 | V32: 38368 | X32: 19184
B33: 19(15) | C33: 240000 | E33: 8000 | G33: 230000 | H33: ～ | I33: 250000 | J33: 24288 | L33: 12144 | N33: 28416 | P33: 14208 | R33: 41088 | T33: 20544 | V33: 41856 | X33: 20928
B34: 20(16) | C34: 260000 | E34: 8670 | G34: 250000 | H34: ～ | I34: 270000 | J34: 26312 | L34: 13156 | N34: 30784 | P34: 15392 | R34: 44512 | T34: 22256 | V34: 45344 | X34: 22672
B35: 21(17) | C35: 280000 | E35: 9330 | G35: 270000 | H35: ～ | I35: 290000 | J35: 28336 | L35: 14168 | N35: 33152 | P35: 16576 | R35: 47936 | T35: 23968 | V35: 48832 | X35: 24416
B36: 22(18) | C36: 300000 | E36: 10000 | G36: 290000 | H36: ～ | I36: 310000 | J36: 30360 | L36: 15180 | N36: 35520 | P36: 17760 | R36: 51360 | T36: 25680 | V36: 52320 | X36: 26160
B37: 23(19) | C37: 320000 | E37: 10670 | G37: 310000 | H37: ～ | I37: 330000 | J37: 32384 | L37: 16192 | N37: 37888 | P37: 18944 | R37: 54784 | T37: 27392 | V37: 55808 | X37: 27904
B38: 24(20) | C38: 340000 | E38: 11330 | G38: 330000 | H38: ～ | I38: 350000 | J38: 34408 | L38: 17204 | N38: 40256 | P38: 20128 | R38: 58208 | T38: 29104 | V38: 59296 | X38: 29648
B39: 25(21) | C39: 360000 | E39: 12000 | G39: 350000 | H39: ～ | I39: 370000 | J39: 36432 | L39: 18216 | N39: 42624 | P39: 21312 | R39: 61632 | T39: 30816 | V39: 62784 | X39: 31392
B40: 26(22) | C40: 380000 | E40: 12670 | G40: 370000 | H40: ～ | I40: 395000 | J40: 38456 | L40: 19228 | N40: 44992 | P40: 22496 | R40: 65056 | T40: 32528 | V40: 66272 | X40: 33136
B41: 27(23) | C41: 410000 | E41: 13670 | G41: 395000 | H41: ～ | I41: 425000 | J41: 41492 | L41: 20746 | N41: 48544 | P41: 24272 | R41: 70192 | T41: 35096 | V41: 71504 | X41: 35752
B42: 28(24) | C42: 440000 | E42: 14670 | G42: 425000 | H42: ～ | I42: 455000 | J42: 44528 | L42: 22264 | N42: 52096 | P42: 26048 | R42: 75328 | T42: 37664 | V42: 76736 | X42: 38368
B43: 29(25) | C43: 470000 | E43: 15670 | G43: 455000 | H43: ～ | I43: 485000 | J43: 47564 | L43: 23782 | N43: 55648 | P43: 27824 | R43: 80464 | T43: 40232 | V43: 81968 | X43: 40984
B44: 30(26) | C44: 500000 | E44: 16670 | G44: 485000 | H44: ～ | I44: 515000 | J44: 50600 | L44: 25300 | N44: 59200 | P44: 29600 | R44: 85600 | T44: 42800 | V44: 87200 | X44: 43600
B45: 31(27) | C45: 530000 | E45: 17670 | G45: 515000 | H45: ～ | I45: 545000 | J45: 53636 | L45: 26818 | N45: 62752 | P45: 31376 | R45: 90736 | T45: 45368 | V45: 92432 | X45: 46216
B46: 32(28) | C46: 560000 | E46: 18670 | G46: 545000 | H46: ～ | I46: 575000 | J46: 56672 | L46: 28336 | N46: 66304 | P46: 33152 | R46: 95872 | T46: 47936 | V46: 97664 | X46: 48832
B47: 33(29) | C47: 590000 | E47: 19670 | G47: 575000 | H47: ～ | I47: 605000 | J47: 59708 | L47: 29854 | N47: 69856 | P47: 34928 | R47: 101008 | T47: 50504 | V47: 102896 | X47: 51448
B48: 34(30) | C48: 620000 | E48: 20670 | G48: 605000 | H48: ～ | I48: 635000 | J48: 62744 | L48: 31372 | N48: 73408 | P48: 36704 | R48: 106144 | T48: 53072 | V48: 108128 | X48: 54064
B49: 35 | C49: 650000 | E49: 21670 | G49: 635000 | H49: ～ | I49: 665000 | J49: 65780 | L49: 32890 | N49: 76960 | P49: 38480 | R49: ※厚生年金基金に加入する方の厚生年金保険の保 険料率は、基金ごとに定められている免除保険 料率(2.4%～5.0%)を控除した率となり、次の範 囲内で基金ごとに定められています。 厚生年金基金に加入する ・一般の被保険者の方 …12.120%～14.720% ・坑内員の被保険者の方…12.440%～15.040% 加入する基金ごとに異なりますので、免除保険 料率および厚生年金基金の掛金については、加 入する厚生年金基金にお問い合わせください。
B50: 36 | C50: 680000 | E50: 22670 | G50: 665000 | H50: ～ | I50: 695000 | J50: 68816 | L50: 34408 | N50: 80512 | P50: 40256
B51: 37 | C51: 710000 | E51: 23670 | G51: 695000 | H51: ～ | I51: 730000 | J51: 71852 | L51: 35926 | N51: 84064 | P51: 42032
B52: 38 | C52: 750000 | E52: 25000 | G52: 730000 | H52: ～ | I52: 770000 | J52: 75900 | L52: 37950 | N52: 88800 | P52: 44400
B53: 39 | C53: 790000 | E53: 26330 | G53: 770000 | H53: ～ | I53: 810000 | J53: 79948 | L53: 39974 | N53: 93536 | P53: 46768
B54: 40 | C54: 830000 | E54: 27670 | G54: 810000 | H54: ～ | I54: 855000 | J54: 83996 | L54: 41998 | N54: 98272 | P54: 49136
B55: 41 | C55: 880000 | E55: 29330 | G55: 855000 | H55: ～ | I55: 905000 | J55: 89056 | L55: 44528 | N55: 104192 | P55: 52096
B56: 42 | C56: 930000 | E56: 31000 | G56: 905000 | H56: ～ | I56: 955000 | J56: 94116 | L56: 47058 | N56: 110112 | P56: 55056
B57: 43 | C57: 980000 | E57: 32670 | G57: 955000 | H57: ～ | I57: 1005000 | J57: 99176 | L57: 49588 | N57: 116032 | P57: 58016
B58: 44 | C58: 1030000 | E58: 34330 | G58: 1005000 | H58: ～ | I58: 1055000 | J58: 104236 | L58: 52118 | N58: 121952 | P58: 60976
B59: 45 | C59: 1090000 | E59: 36330 | G59: 1055000 | H59: ～ | I59: 1115000 | J59: 110308 | L59: 55154 | N59: 129056 | P59: 64528
B60: 46 | C60: 1150000 | E60: 38330 | G60: 1115000 | H60: ～ | I60: 1175000 | J60: 116380 | L60: 58190 | N60: 136160 | P60: 68080
B61: 47 | C61: 1210000 | E61: 40330 | G61: 1175000 | H61: ～ | J61: 122452 | L61: 61226 | N61: 143264 | P61: 71632
A63: =J10 -> 0.1012
A65: ◆等級欄の（ ）内の数字は、厚生年金保険の標準報酬月額等級です。
A66: 5(1)等級の「報酬月額」欄は、厚生年金保険の場合「101,000円未満」と読み替えてください。
A67: 34(30)等級の「報酬月額」欄は、厚生年金保険の場合「605,000円以上」と読み替えてください。
A69: ◆平成26年度における協会けんぽの任意継続被保険者の標準報酬月額の上限は、280,000円です。
A71: ○被保険者負担分（表の折半額の欄）に円未満の端数がある場合
A72: ①事業主が、給与から被保険者負担分を控除する場合、被保険者負担分の端数が50銭以下の場合は切り捨て、50銭を超える場合は切り上げて1円となります。
A73: ②被保険者が、被保険者負担分を事業主へ現金で支払う場合、被保険者負担分の端数が50銭未満の場合は切り捨て、50銭以上の場合は切り上げて1円となります。
A74: （注）①、②にかかわらず、事業主と被保険者の間で特約がある場合には、特約に基づき端数処理をすることができます。
A76: ○納入告知書の保険料額について
A77: 納入告知書の保険料額は、被保険者個々の保険料額を合算した金額になります。ただし、合算した金額に円未満の端数がある場合は、その端数を切り捨てた額となります。
A79: ○賞与に係る保険料について
A80: 賞与に係る保険料額は、賞与額から1,000円未満の端数を切り捨てた額（標準賞与額）に、保険料率を乗じた額となります。
A81: また、標準賞与額の上限は、健康保険は年間540万円（毎年4月1日から翌年3月31日までの累計額）となり、厚生年金保険と児童手当拠出金の場合は月間150万円となります。
A83: ○児童手当拠出金について
A84: 厚生年金保険の被保険者を使用する事業主の方は、児童手当等の支給に要する費用の一部として児童手当拠出金を全額負担いただくことになります。この児童手当
A85: 拠出金の額は、被保険者個々の厚生年金保険の標準報酬月額及び標準賞与額に、拠出金率（0.15%）を乗じて得た額の総額となります。

Sheet 青森 (hidden)
B1: 平成26年3月分(4月納付分)からの健康保険・厚生年金保険の保険料額表
B3: ‣健康保険料率：平成24年3月分～ 適用 ‣厚生年金保険料率：平成25年9月分～平成26年8月分 適用 ‣介護保険料率：平成26年3月分～ 適用 ‣児童手当拠出金率：平成24年4月分～ 適用
B5: （青森県） | X5: （単位：円）
B6: 標 準 報 酬 | G6: 報 酬 月 額 | J6: 全国健康保険協会管掌健康保険料 | R6: 厚生年金保険料（厚生年金基金加入員を除く）
J7: 介護保険第２号被保険者 に該当しない場合 | N7: 介護保険第２号被保険者 に該当する場合 | R7: 一般の被保険者等 | V7: 坑内員・船員
J10: 0.1 | N10: =J10+0.0172 -> 0.1172 | R10: 0.1712 | V10: 0.1744
B12: 等級 | C12: 月 額 | E12: 日 額 | J12: 全 額 | L12: 折半額 | N12: 全 額 | P12: 折半額 | R12: 全 額 | T12: 折半額 | V12: 全 額 | X12: 折半額
G14: 円以上 | I14: 円未満
B15: 1 | C15: 58000 | E15: 1930 | H15: ～ | I15: 63000 | J15: =C15*$J$10 -> 5800 | L15: =J15/2 -> 2900 | N15: =C15*$N$10 -> 6797.6 | P15: =N15/2 -> 3398.8
B16: 2 | C16: 68000 | E16: 2270 | G16: 63000 | H16: ～ | I16: 73000 | J16: =C16*$J$10 -> 6800 | L16: =J16/2 -> 3400 | N16: =C16*$N$10 -> 7969.6 | P16: =N16/2 -> 3984.8
B17: 3 | C17: 78000 | E17: 2600 | G17: 73000 | H17: ～ | I17: 83000 | J17: 7800 | L17: 3900 | N17: 9141.6 | P17: 4570.8
B18: 4 | C18: 88000 | E18: 2930 | G18: 83000 | H18: ～ | I18: 93000 | J18: 8800 | L18: 4400 | N18: =C18*$N$10 -> 10313.6 | P18: 5156.8
B19: 5(1) | C19: 98000 | E19: 3270 | G19: 93000 | H19: ～ | I19: 101000 | J19: 9800 | L19: 4900 | N19: 11485.6 | P19: 5742.8 | R19: =C19*$R$10 -> 16777.6 | T19: =R19/2 -> 8388.8 | V19: =C19*$V$10 -> 17091.2 | X19: =V19/2 -> 8545.6
B20: 6(2) | C20: 104000 | E20: 3470 | G20: 101000 | H20: ～ | I20: 107000 | J20: 10400 | L20: 5200 | N20: 12188.8 | P20: 6094.4 | R20: =C20*$R$10 -> 17804.8 | T20: =R20/2 -> 8902.4 | V20: =C20*$V$10 -> 18137.6 | X20: =V20/2 -> 9068.8
B21: 7(3) | C21: 110000 | E21: 3670 | G21: 107000 | H21: ～ | I21: 114000 | J21: 11000 | L21: 5500 | N21: 12892 | P21: 6446 | R21: 18832 | T21: 9416 | V21: 19184 | X21: 9592
B22: 8(4) | C22: 118000 | E22: 3930 | G22: 114000 | H22: ～ | I22: 122000 | J22: 11800 | L22: 5900 | N22: 13829.6 | P22: 6914.8 | R22: 20201.6 | T22: 10100.8 | V22: 20579.2 | X22: 10289.6
B23: 9(5) | C23: 126000 | E23: 4200 | G23: 122000 | H23: ～ | I23: 130000 | J23: 12600 | L23: 6300 | N23: 14767.2 | P23: 7383.6 | R23: 21571.2 | T23: 10785.6 | V23: 21974.4 | X23: 10987.2
B24: 10(6) | C24: 134000 | E24: 4470 | G24: 130000 | H24: ～ | I24: 138000 | J24: 13400 | L24: 6700 | N24: 15704.8 | P24: 7852.4 | R24: 22940.8 | T24: 11470.4 | V24: 23369.6 | X24: 11684.8
B25: 11(7) | C25: 142000 | E25: 4730 | G25: 138000 | H25: ～ | I25: 146000 | J25: 14200 | L25: 7100 | N25: 16642.4 | P25: 8321.2 | R25: 24310.4 | T25: 12155.2 | V25: 24764.8 | X25: 12382.4
B26: 12(8) | C26: 150000 | E26: 5000 | G26: 146000 | H26: ～ | I26: 155000 | J26: 15000 | L26: 7500 | N26: 17580 | P26: 8790 | R26: 25680 | T26: 12840 | V26: 26160 | X26: 13080
B27: 13(9) | C27: 160000 | E27: 5330 | G27: 155000 | H27: ～ | I27: 165000 | J27: 16000 | L27: 8000 | N27: 18752 | P27: 9376 | R27: 27392 | T27: 13696 | V27: 27904 | X27: 13952
B28: 14(10) | C28: 170000 | E28: 5670 | G28: 165000 | H28: ～ | I28: 175000 | J28: 17000 | L28: 8500 | N28: 19924 | P28: 9962 | R28: 29104 | T28: 14552 | V28: 29648 | X28: 14824
B29: 15(11) | C29: 180000 | E29: 6000 | G29: 175000 | H29: ～ | I29: 185000 | J29: 18000 | L29: 9000 | N29: 21096 | P29: 10548 | R29: 30816 | T29: 15408 | V29: 31392 | X29: 15696
B30: 16(12) | C30: 190000 | E30: 6330 | G30: 185000 | H30: ～ | I30: 195000 | J30: 19000 | L30: 9500 | N30: 22268 | P30: 11134 | R30: 32528 | T30: 16264 | V30: 33136 | X30: 16568
B31: 17(13) | C31: 200000 | E31: 6670 | G31: 195000 | H31: ～ | I31: 210000 | J31: 20000 | L31: 10000 | N31: 23440 | P31: 11720 | R31: 34240 | T31: 17120 | V31: 34880 | X31: 17440
B32: 18(14) | C32: 220000 | E32: 7330 | G32: 210000 | H32: ～ | I32: 230000 | J32: 22000 | L32: 11000 | N32: 25784 | P32: 12892 | R32: 37664 | T32: 18832 | V32: 38368 | X32: 19184
B33: 19(15) | C33: 240000 | E33: 8000 | G33: 230000 | H33: ～ | I33: 250000 | J33: 24000 | L33: 12000 | N33: 28128 | P33: 14064 | R33: 41088 | T33: 20544 | V33: 41856 | X33: 20928
B34: 20(16) | C34: 260000 | E34: 8670 | G34: 250000 | H34: ～ | I34: 270000 | J34: 26000 | L34: 13000 | N34: 30472 | P34: 15236 | R34: 44512 | T34: 22256 | V34: 45344 | X34: 22672
B35: 21(17) | C35: 280000 | E35: 9330 | G35: 270000 | H35: ～ | I35: 290000 | J35: 28000 | L35: 14000 | N35: 32816 | P35: 16408 | R35: 47936 | T35: 23968 | V35: 48832 | X35: 24416
B36: 22(18) | C36: 300000 | E36: 10000 | G36: 290000 | H36: ～ | I36: 310000 | J36: 30000 | L36: 15000 | N36: 35160 | P36: 17580 | R36: 51360 | T36: 25680 | V36: 52320 | X36: 26160
B37: 23(19) | C37: 320000 | E37: 10670 | G37: 310000 | H37: ～ | I37: 330000 | J37: 32000 | L37: 16000 | N37: 37504 | P37: 18752 | R37: 54784 | T37: 27392 | V37: 55808 | X37: 27904
B38: 24(20) | C38: 340000 | E38: 11330 | G38: 330000 | H38: ～ | I38: 350000 | J38: 34000 | L38: 17000 | N38: 39848 | P38: 19924 | R38: 58208 | T38: 29104 | V38: 59296 | X38: 29648
B39: 25(21) | C39: 360000 | E39: 12000 | G39: 350000 | H39: ～ | I39: 370000 | J39: 36000 | L39: 18000 | N39: 42192 | P39: 21096 | R39: 61632 | T39: 30816 | V39: 62784 | X39: 31392
B40: 26(22) | C40: 380000 | E40: 12670 | G40: 370000 | H40: ～ | I40: 395000 | J40: 38000 | L40: 19000 | N40: 44536 | P40: 22268 | R40: 65056 | T40: 32528 | V40: 66272 | X40: 33136
B41: 27(23) | C41: 410000 | E41: 13670 | G41: 395000 | H41: ～ | I41: 425000 | J41: 41000 | L41: 20500 | N41: 48052 | P41: 24026 | R41: 70192 | T41: 35096 | V41: 71504 | X41: 35752
B42: 28(24) | C42: 440000 | E42: 14670 | G42: 425000 | H42: ～ | I42: 455000 | J42: 44000 | L42: 22000 | N42: 51568 | P42: 25784 | R42: 75328 | T42: 37664 | V42: 76736 | X42: 38368
B43: 29(25) | C43: 470000 | E43: 15670 | G43: 455000 | H43: ～ | I43: 485000 | J43: 47000 | L43: 23500 | N43: 55084 | P43: 27542 | R43: 80464 | T43: 40232 | V43: 81968 | X43: 40984
B44: 30(26) | C44: 500000 | E44: 16670 | G44: 485000 | H44: ～ | I44: 515000 | J44: 50000 | L44: 25000 | N44: 58600 | P44: 29300 | R44: 85600 | T44: 42800 | V44: 87200 | X44: 43600
B45: 31(27) | C45: 530000 | E45: 17670 | G45: 515000 | H45: ～ | I45: 545000 | J45: 53000 | L45: 26500 | N45: 62116 | P45: 31058 | R45: 90736 | T45: 45368 | V45: 92432 | X45: 46216
B46: 32(28) | C46: 560000 | E46: 18670 | G46: 545000 | H46: ～ | I46: 575000 | J46: 56000 | L46: 28000 | N46: 65632 | P46: 32816 | R46: 95872 | T46: 47936 | V46: 97664 | X46: 48832
B47: 33(29) | C47: 590000 | E47: 19670 | G47: 575000 | H47: ～ | I47: 605000 | J47: 59000 | L47: 29500 | N47: 69148 | P47: 34574 | R47: 101008 | T47: 50504 | V47: 102896 | X47: 51448
B48: 34(30) | C48: 620000 | E48: 20670 | G48: 605000 | H48: ～ | I48: 635000 | J48: 62000 | L48: 31000 | N48: 72664 | P48: 36332 | R48: 106144 | T48: 53072 | V48: 108128 | X48: 54064
B49: 35 | C49: 650000 | E49: 21670 | G49: 635000 | H49: ～ | I49: 665000 | J49: 65000 | L49: 32500 | N49: 76180 | P49: 38090 | R49: ※厚生年金基金に加入する方の厚生年金保険の保 険料率は、基金ごとに定められている免除保険 料率(2.4%～5.0%)を控除した率となり、次の範 囲内で基金ごとに定められています。 厚生年金基金に加入する ・一般の被保険者の方 …12.120%～14.720% ・坑内員の被保険者の方…12.440%～15.040% 加入する基金ごとに異なりますので、免除保険 料率および厚生年金基金の掛金については、加 入する厚生年金基金にお問い合わせください。
B50: 36 | C50: 680000 | E50: 22670 | G50: 665000 | H50: ～ | I50: 695000 | J50: 68000 | L50: 34000 | N50: 79696 | P50: 39848
B51: 37 | C51: 710000 | E51: 23670 | G51: 695000 | H51: ～ | I51: 730000 | J51: 71000 | L51: 35500 | N51: 83212 | P51: 41606
B52: 38 | C52: 750000 | E52: 25000 | G52: 730000 | H52: ～ | I52: 770000 | J52: 75000 | L52: 37500 | N52: 87900 | P52: 43950
B53: 39 | C53: 790000 | E53: 26330 | G53: 770000 | H53: ～ | I53: 810000 | J53: 79000 | L53: 39500 | N53: 92588 | P53: 46294
B54: 40 | C54: 830000 | E54: 27670 | G54: 810000 | H54: ～ | I54: 855000 | J54: 83000 | L54: 41500 | N54: 97276 | P54: 48638
B55: 41 | C55: 880000 | E55: 29330 | G55: 855000 | H55: ～ | I55: 905000 | J55: 88000 | L55: 44000 | N55: 103136 | P55: 51568
B56: 42 | C56: 930000 | E56: 31000 | G56: 905000 | H56: ～ | I56: 955000 | J56: 93000 | L56: 46500 | N56: 108996 | P56: 54498
B57: 43 | C57: 980000 | E57: 32670 | G57: 955000 | H57: ～ | I57: 1005000 | J57: 98000 | L57: 49000 | N57: 114856 | P57: 57428
B58: 44 | C58: 1030000 | E58: 34330 | G58: 1005000 | H58: ～ | I58: 1055000 | J58: 103000 | L58: 51500 | N58: 120716 | P58: 60358
B59: 45 | C59: 1090000 | E59: 36330 | G59: 1055000 | H59: ～ | I59: 1115000 | J59: 109000 | L59: 54500 | N59: 127748 | P59: 63874
B60: 46 | C60: 1150000 | E60: 38330 | G60: 1115000 | H60: ～ | I60: 1175000 | J60: 115000 | L60: 57500 | N60: 134780 | P60: 67390
B61: 47 | C61: 1210000 | E61: 40330 | G61: 1175000 | H61: ～ | J61: 121000 | L61: 60500 | N61: 141812 | P61: 70906
A63: =J10 -> 0.1
A65: ◆等級欄の（ ）内の数字は、厚生年金保険の標準報酬月額等級です。
A66: 5(1)等級の「報酬月額」欄は、厚生年金保険の場合「101,000円未満」と読み替えてください。
A67: 34(30)等級の「報酬月額」欄は、厚生年金保険の場合「605,000円以上」と読み替えてください。
A69: ◆平成26年度における協会けんぽの任意継続被保険者の標準報酬月額の上限は、280,000円です。
A71: ○被保険者負担分（表の折半額の欄）に円未満の端数がある場合
A72: ①事業主が、給与から被保険者負担分を控除する場合、被保険者負担分の端数が50銭以下の場合は切り捨て、50銭を超える場合は切り上げて1円となります。
A73: ②被保険者が、被保険者負担分を事業主へ現金で支払う場合、被保険者負担分の端数が50銭未満の場合は切り捨て、50銭以上の場合は切り上げて1円となります。
A74: （注）①、②にかかわらず、事業主と被保険者の間で特約がある場合には、特約に基づき端数処理をすることができます。
A76: ○納入告知書の保険料額について
A77: 納入告知書の保険料額は、被保険者個々の保険料額を合算した金額になります。ただし、合算した金額に円未満の端数がある場合は、その端数を切り捨てた額となります。
A79: ○賞与に係る保険料について
A80: 賞与に係る保険料額は、賞与額から1,000円未満の端数を切り捨てた額（標準賞与額）に、保険料率を乗じた額となります。
A81: また、標準賞与額の上限は、健康保険は年間540万円（毎年4月1日から翌年3月31日までの累計額）となり、厚生年金保険と児童手当拠出金の場合は月間150万円となります。
A83: ○児童手当拠出金について
A84: 厚生年金保険の被保険者を使用する事業主の方は、児童手当等の支給に要する費用の一部として児童手当拠出金を全額負担いただくことになります。この児童手当
A85: 拠出金の額は、被保険者個々の厚生年金保険の標準報酬月額及び標準賞与額に、拠出金率（0.15%）を乗じて得た額の総額となります。

Sheet 岩手 (hidden)
B1: 平成26年3月分(4月納付分)からの健康保険・厚生年金保険の保険料額表
B3: ‣健康保険料率：平成24年3月分～ 適用 ‣厚生年金保険料率：平成25年9月分～平成26年8月分 適用 ‣介護保険料率：平成26年3月分～ 適用 ‣児童手当拠出金率：平成24年4月分～ 適用
B5: （岩手県） | X5: （単位：円）
B6: 標 準 報 酬 | G6: 報 酬 月 額 | J6: 全国健康保険協会管掌健康保険料 | R6: 厚生年金保険料（厚生年金基金加入員を除く）
J7: 介護保険第２号被保険者 に該当しない場合 | N7: 介護保険第２号被保険者 に該当する場合 | R7: 一般の被保険者等 | V7: 坑内員・船員
J10: 0.0993 | N10: =J10+0.0172 -> 0.1165 | R10: 0.1712 | V10: 0.1744
B12: 等級 | C12: 月 額 | E12: 日 額 | J12: 全 額 | L12: 折半額 | N12: 全 額 | P12: 折半額 | R12: 全 額 | T12: 折半額 | V12: 全 額 | X12: 折半額
G14: 円以上 | I14: 円未満
B15: 1 | C15: 58000 | E15: 1930 | H15: ～ | I15: 63000 | J15: =C15*$J$10 -> 5759.4 | L15: =J15/2 -> 2879.7 | N15: =C15*$N$10 -> 6757 | P15: =N15/2 -> 3378.5
B16: 2 | C16: 68000 | E16: 2270 | G16: 63000 | H16: ～ | I16: 73000 | J16: =C16*$J$10 -> 6752.4 | L16: =J16/2 -> 3376.2 | N16: =C16*$N$10 -> 7922 | P16: =N16/2 -> 3961
B17: 3 | C17: 78000 | E17: 2600 | G17: 73000 | H17: ～ | I17: 83000 | J17: 7745.4 | L17: 3872.7 | N17: 9087 | P17: 4543.5
B18: 4 | C18: 88000 | E18: 2930 | G18: 83000 | H18: ～ | I18: 93000 | J18: 8738.4 | L18: 4369.2 | N18: =C18*$N$10 -> 10252 | P18: 5126
B19: 5(1) | C19: 98000 | E19: 3270 | G19: 93000 | H19: ～ | I19: 101000 | J19: 9731.4 | L19: 4865.7 | N19: 11417 | P19: 5708.5 | R19: =C19*$R$10 -> 16777.6 | T19: =R19/2 -> 8388.8 | V19: =C19*$V$10 -> 17091.2 | X19: =V19/2 -> 8545.6
B20: 6(2) | C20: 104000 | E20: 3470 | G20: 101000 | H20: ～ | I20: 107000 | J20: 10327.2 | L20: 5163.6 | N20: 12116 | P20: 6058 | R20: =C20*$R$10 -> 17804.8 | T20: =R20/2 -> 8902.4 | V20: =C20*$V$10 -> 18137.6 | X20: =V20/2 -> 9068.8
B21: 7(3) | C21: 110000 | E21: 3670 | G21: 107000 | H21: ～ | I21: 114000 | J21: 10923 | L21: 5461.5 | N21: 12815 | P21: 6407.5 | R21: 18832 | T21: 9416 | V21: 19184 | X21: 9592
B22: 8(4) | C22: 118000 | E22: 3930 | G22: 114000 | H22: ～ | I22: 122000 | J22: 11717.4 | L22: 5858.7 | N22: 13747 | P22: 6873.5 | R22: 20201.6 | T22: 10100.8 | V22: 20579.2 | X22: 10289.6
B23: 9(5) | C23: 126000 | E23: 4200 | G23: 122000 | H23: ～ | I23: 130000 | J23: 12511.8 | L23: 6255.9 | N23: 14679 | P23: 7339.5 | R23: 21571.2 | T23: 10785.6 | V23: 21974.4 | X23: 10987.2
B24: 10(6) | C24: 134000 | E24: 4470 | G24: 130000 | H24: ～ | I24: 138000 | J24: 13306.2 | L24: 6653.1 | N24: 15611 | P24: 7805.5 | R24: 22940.8 | T24: 11470.4 | V24: 23369.6 | X24: 11684.8
B25: 11(7) | C25: 142000 | E25: 4730 | G25: 138000 | H25: ～ | I25: 146000 | J25: 14100.6 | L25: 7050.3 | N25: 16543 | P25: 8271.5 | R25: 24310.4 | T25: 12155.2 | V25: 24764.8 | X25: 12382.4
B26: 12(8) | C26: 150000 | E26: 5000 | G26: 146000 | H26: ～ | I26: 155000 | J26: 14895 | L26: 7447.5 | N26: 17475 | P26: 8737.5 | R26: 25680 | T26: 12840 | V26: 26160 | X26: 13080
B27: 13(9) | C27: 160000 | E27: 5330 | G27: 155000 | H27: ～ | I27: 165000 | J27: 15888 | L27: 7944 | N27: 18640 | P27: 9320 | R27: 27392 | T27: 13696 | V27: 27904 | X27: 13952
B28: 14(10) | C28: 170000 | E28: 5670 | G28: 165000 | H28: ～ | I28: 175000 | J28: 16881 | L28: 8440.5 | N28: 19805 | P28: 9902.5 | R28: 29104 | T28: 14552 | V28: 29648 | X28: 14824
B29: 15(11) | C29: 180000 | E29: 6000 | G29: 175000 | H29: ～ | I29: 185000 | J29: 17874 | L29: 8937 | N29: 20970 | P29: 10485 | R29: 30816 | T29: 15408 | V29: 31392 | X29: 15696
B30: 16(12) | C30: 190000 | E30: 6330 | G30: 185000 | H30: ～ | I30: 195000 | J30: 18867 | L30: 9433.5 | N30: 22135 | P30: 11067.5 | R30: 32528 | T30: 16264 | V30: 33136 | X30: 16568
B31: 17(13) | C31: 200000 | E31: 6670 | G31: 195000 | H31: ～ | I31: 210000 | J31: 19860 | L31: 9930 | N31: 23300 | P31: 11650 | R31: 34240 | T31: 17120 | V31: 34880 | X31: 17440
B32: 18(14) | C32: 220000 | E32: 7330 | G32: 210000 | H32: ～ | I32: 230000 | J32: 21846 | L32: 10923 | N32: 25630 | P32: 12815 | R32: 37664 | T32: 18832 | V32: 38368 | X32: 19184
B33: 19(15) | C33: 240000 | E33: 8000 | G33: 230000 | H33: ～ | I33: 250000 | J33: 23832 | L33: 11916 | N33: 27960 | P33: 13980 | R33: 41088 | T33: 20544 | V33: 41856 | X33: 20928
B34: 20(16) | C34: 260000 | E34: 8670 | G34: 250000 | H34: ～ | I34: 270000 | J34: 25818 | L34: 12909 | N34: 30290 | P34: 15145 | R34: 44512 | T34: 22256 | V34: 45344 | X34: 22672
B35: 21(17) | C35: 280000 | E35: 9330 | G35: 270000 | H35: ～ | I35: 290000 | J35: 27804 | L35: 13902 | N35: 32620 | P35: 16310 | R35: 47936 | T35: 23968 | V35: 48832 | X35: 24416
B36: 22(18) | C36: 300000 | E36: 10000 | G36: 290000 | H36: ～ | I36: 310000 | J36: 29790 | L36: 14895 | N36: 34950 | P36: 17475 | R36: 51360 | T36: 25680 | V36: 52320 | X36: 26160
B37: 23(19) | C37: 320000 | E37: 10670 | G37: 310000 | H37: ～ | I37: 330000 | J37: 31776 | L37: 15888 | N37: 37280 | P37: 18640 | R37: 54784 | T37: 27392 | V37: 55808 | X37: 27904
B38: 24(20) | C38: 340000 | E38: 11330 | G38: 330000 | H38: ～ | I38: 350000 | J38: 33762 | L38: 16881 | N38: 39610 | P38: 19805 | R38: 58208 | T38: 29104 | V38: 59296 | X38: 29648
B39: 25(21) | C39: 360000 | E39: 12000 | G39: 350000 | H39: ～ | I39: 370000 | J39: 35748 | L39: 17874 | N39: 41940 | P39: 20970 | R39: 61632 | T39: 30816 | V39: 62784 | X39: 31392
B40: 26(22) | C40: 380000 | E40: 12670 | G40: 370000 | H40: ～ | I40: 395000 | J40: 37734 | L40: 18867 | N40: 44270 | P40: 22135 | R40: 65056 | T40: 32528 | V40: 66272 | X40: 33136
B41: 27(23) | C41: 410000 | E41: 13670 | G41: 395000 | H41: ～ | I41: 425000 | J41: 40713 | L41: 20356.5 | N41: 47765 | P41: 23882.5 | R41: 70192 | T41: 35096 | V41: 71504 | X41: 35752
B42: 28(24) | C42: 440000 | E42: 14670 | G42: 425000 | H42: ～ | I42: 455000 | J42: 43692 | L42: 21846 | N42: 51260 | P42: 25630 | R42: 75328 | T42: 37664 | V42: 76736 | X42: 38368
B43: 29(25) | C43: 470000 | E43: 15670 | G43: 455000 | H43: ～ | I43: 485000 | J43: 46671 | L43: 23335.5 | N43: 54755 | P43: 27377.5 | R43: 80464 | T43: 40232 | V43: 81968 | X43: 40984
B44: 30(26) | C44: 500000 | E44: 16670 | G44: 485000 | H44: ～ | I44: 515000 | J44: 49650 | L44: 24825 | N44: 58250 | P44: 29125 | R44: 85600 | T44: 42800 | V44: 87200 | X44: 43600
B45: 31(27) | C45: 530000 | E45: 17670 | G45: 515000 | H45: ～ | I45: 545000 | J45: 52629 | L45: 26314.5 | N45: 61745 | P45: 30872.5 | R45: 90736 | T45: 45368 | V45: 92432 | X45: 46216
B46: 32(28) | C46: 560000 | E46: 18670 | G46: 545000 | H46: ～ | I46: 575000 | J46: 55608 | L46: 27804 | N46: 65240 | P46: 32620 | R46: 95872 | T46: 47936 | V46: 97664 | X46: 48832
B47: 33(29) | C47: 590000 | E47: 19670 | G47: 575000 | H47: ～ | I47: 605000 | J47: 58587 | L47: 29293.5 | N47: 68735 | P47: 34367.5 | R47: 101008 | T47: 50504 | V47: 102896 | X47: 51448
B48: 34(30) | C48: 620000 | E48: 20670 | G48: 605000 | H48: ～ | I48: 635000 | J48: 61566 | L48: 30783 | N48: 72230 | P48: 36115 | R48: 106144 | T48: 53072 | V48: 108128 | X48: 54064
B49: 35 | C49: 650000 | E49: 21670 | G49: 635000 | H49: ～ | I49: 665000 | J49: 64545 | L49: 32272.5 | N49: 75725 | P49: 37862.5 | R49: ※厚生年金基金に加入する方の厚生年金保険の保 険料率は、基金ごとに定められている免除保険 料率(2.4%～5.0%)を控除した率となり、次の範 囲内で基金ごとに定められています。 厚生年金基金に加入する ・一般の被保険者の方 …12.120%～14.720% ・坑内員の被保険者の方…12.440%～15.040% 加入する基金ごとに異なりますので、免除保険 料率および厚生年金基金の掛金については、加 入する厚生年金基金にお問い合わせください。
B50: 36 | C50: 680000 | E50: 22670 | G50: 665000 | H50: ～ | I50: 695000 | J50: 67524 | L50: 33762 | N50: 79220 | P50: 39610
B51: 37 | C51: 710000 | E51: 23670 | G51: 695000 | H51: ～ | I51: 730000 | J51: 70503 | L51: 35251.5 | N51: 82715 | P51: 41357.5
B52: 38 | C52: 750000 | E52: 25000 | G52: 730000 | H52: ～ | I52: 770000 | J52: 74475 | L52: 37237.5 | N52: 87375 | P52: 43687.5
B53: 39 | C53: 790000 | E53: 26330 | G53: 770000 | H53: ～ | I53: 810000 | J53: 78447 | L53: 39223.5 | N53: 92035 | P53: 46017.5
B54: 40 | C54: 830000 | E54: 27670 | G54: 810000 | H54: ～ | I54: 855000 | J54: 82419 | L54: 41209.5 | N54: 96695 | P54: 48347.5
B55: 41 | C55: 880000 | E55: 29330 | G55: 855000 | H55: ～ | I55: 905000 | J55: 87384 | L55: 43692 | N55: 102520 | P55: 51260
B56: 42 | C56: 930000 | E56: 31000 | G56: 905000 | H56: ～ | I56: 955000 | J56: 92349 | L56: 46174.5 | N56: 108345 | P56: 54172.5
B57: 43 | C57: 980000 | E57: 32670 | G57: 955000 | H57: ～ | I57: 1005000 | J57: 97314 | L57: 48657 | N57: 114170 | P57: 57085
B58: 44 | C58: 1030000 | E58: 34330 | G58: 1005000 | H58: ～ | I58: 1055000 | J58: 102279 | L58: 51139.5 | N58: 119995 | P58: 59997.5
B59: 45 | C59: 1090000 | E59: 36330 | G59: 1055000 | H59: ～ | I59: 1115000 | J59: 108237 | L59: 54118.5 | N59: 126985 | P59: 63492.5
B60: 46 | C60: 1150000 | E60: 38330 | G60: 1115000 | H60: ～ | I60: 1175000 | J60: 114195 | L60: 57097.5 | N60: 133975 | P60: 66987.5
B61: 47 | C61: 1210000 | E61: 40330 | G61: 1175000 | H61: ～ | J61: 120153 | L61: 60076.5 | N61: 140965 | P61: 70482.5
A63: =J10 -> 0.0993
A65: ◆等級欄の（ ）内の数字は、厚生年金保険の標準報酬月額等級です。
A66: 5(1)等級の「報酬月額」欄は、厚生年金保険の場合「101,000円未満」と読み替えてください。
A67: 34(30)等級の「報酬月額」欄は、厚生年金保険の場合「605,000円以上」と読み替えてください。
A69: ◆平成26年度における協会けんぽの任意継続被保険者の標準報酬月額の上限は、280,000円です。
A71: ○被保険者負担分（表の折半額の欄）に円未満の端数がある場合
A72: ①事業主が、給与から被保険者負担分を控除する場合、被保険者負担分の端数が50銭以下の場合は切り捨て、50銭を超える場合は切り上げて1円となります。
A73: ②被保険者が、被保険者負担分を事業主へ現金で支払う場合、被保険者負担分の端数が50銭未満の場合は切り捨て、50銭以上の場合は切り上げて1円となります。
A74: （注）①、②にかかわらず、事業主と被保険者の間で特約がある場合には、特約に基づき端数処理をすることができます。
A76: ○納入告知書の保険料額について
A77: 納入告知書の保険料額は、被保険者個々の保険料額を合算した金額になります。ただし、合算した金額に円未満の端数がある場合は、その端数を切り捨てた額となります。
A79: ○賞与に係る保険料について
A80: 賞与に係る保険料額は、賞与額から1,000円未満の端数を切り捨てた額（標準賞与額）に、保険料率を乗じた額となります。
A81: また、標準賞与額の上限は、健康保険は年間540万円（毎年4月1日から翌年3月31日までの累計額）となり、厚生年金保険と児童手当拠出金の場合は月間150万円となります。
A83: ○児童手当拠出金について
A84: 厚生年金保険の被保険者を使用する事業主の方は、児童手当等の支給に要する費用の一部として児童手当拠出金を全額負担いただくことになります。この児童手当
A85: 拠出金の額は、被保険者個々の厚生年金保険の標準報酬月額及び標準賞与額に、拠出金率（0.15%）を乗じて得た額の総額となります。

Sheet 宮城 (hidden)
B1: 平成26年3月分(4月納付分)からの健康保険・厚生年金保険の保険料額表
B3: ‣健康保険料率：平成24年3月分～ 適用 ‣厚生年金保険料率：平成25年9月分～平成26年8月分 適用 ‣介護保険料率：平成26年3月分～ 適用 ‣児童手当拠出金率：平成24年4月分～ 適用
B5: （宮城県） | X5: （単位：円）
B6: 標 準 報 酬 | G6: 報 酬 月 額 | J6: 全国健康保険協会管掌健康保険料 | R6: 厚生年金保険料（厚生年金基金加入員を除く）
J7: 介護保険第２号被保険者 に該当しない場合 | N7: 介護保険第２号被保険者 に該当する場合 | R7: 一般の被保険者等 | V7: 坑内員・船員
J10: 0.1001 | N10: =J10+0.0172 -> 0.1173 | R10: 0.1712 | V10: 0.1744
B12: 等級 | C12: 月 額 | E12: 日 額 | J12: 全 額 | L12: 折半額 | N12: 全 額 | P12: 折半額 | R12: 全 額 | T12: 折半額 | V12: 全 額 | X12: 折半額
G14: 円以上 | I14: 円未満
B15: 1 | C15: 58000 | E15: 1930 | H15: ～ | I15: 63000 | J15: =C15*$J$10 -> 5805.8 | L15: =J15/2 -> 2902.9 | N15: =C15*$N$10 -> 6803.4 | P15: =N15/2 -> 3401.7
B16: 2 | C16: 68000 | E16: 2270 | G16: 63000 | H16: ～ | I16: 73000 | J16: =C16*$J$10 -> 6806.8 | L16: =J16/2 -> 3403.4 | N16: =C16*$N$10 -> 7976.4 | P16: =N16/2 -> 3988.2
B17: 3 | C17: 78000 | E17: 2600 | G17: 73000 | H17: ～ | I17: 83000 | J17: 7807.8 | L17: 3903.9 | N17: 9149.4 | P17: 4574.7
B18: 4 | C18: 88000 | E18: 2930 | G18: 83000 | H18: ～ | I18: 93000 | J18: 8808.8 | L18: 4404.4 | N18: =C18*$N$10 -> 10322.4 | P18: 5161.2
B19: 5(1) | C19: 98000 | E19: 3270 | G19: 93000 | H19: ～ | I19: 101000 | J19: 9809.8 | L19: 4904.9 | N19: 11495.4 | P19: 5747.7 | R19: =C19*$R$10 -> 16777.6 | T19: =R19/2 -> 8388.8 | V19: =C19*$V$10 -> 17091.2 | X19: =V19/2 -> 8545.6
B20: 6(2) | C20: 104000 | E20: 3470 | G20: 101000 | H20: ～ | I20: 107000 | J20: 10410.4 | L20: 5205.2 | N20: 12199.2 | P20: 6099.6 | R20: =C20*$R$10 -> 17804.8 | T20: =R20/2 -> 8902.4 | V20: =C20*$V$10 -> 18137.6 | X20: =V20/2 -> 9068.8
B21: 7(3) | C21: 110000 | E21: 3670 | G21: 107000 | H21: ～ | I21: 114000 | J21: 11011 | L21: 5505.5 | N21: 12903 | P21: 6451.5 | R21: 18832 | T21: 9416 | V21: 19184 | X21: 9592
B22: 8(4) | C22: 118000 | E22: 3930 | G22: 114000 | H22: ～ | I22: 122000 | J22: 11811.8 | L22: 5905.9 | N22: 13841.4 | P22: 6920.7 | R22: 20201.6 | T22: 10100.8 | V22: 20579.2 | X22: 10289.6
B23: 9(5) | C23: 126000 | E23: 4200 | G23: 122000 | H23: ～ | I23: 130000 | J23: 12612.6 | L23: 6306.3 | N23: 14779.8 | P23: 7389.9 | R23: 21571.2 | T23: 10785.6 | V23: 21974.4 | X23: 10987.2
B24: 10(6) | C24: 134000 | E24: 4470 | G24: 130000 | H24: ～ | I24: 138000 | J24: 13413.4 | L24: 6706.7 | N24: 15718.2 | P24: 7859.1 | R24: 22940.8 | T24: 11470.4 | V24: 23369.6 | X24: 11684.8
B25: 11(7) | C25: 142000 | E25: 4730 | G25: 138000 | H25: ～ | I25: 146000 | J25: 14214.2 | L25: 7107.1 | N25: 16656.6 | P25: 8328.3 | R25: 24310.4 | T25: 12155.2 | V25: 24764.8 | X25: 12382.4
B26: 12(8) | C26: 150000 | E26: 5000 | G26: 146000 | H26: ～ | I26: 155000 | J26: 15015 | L26: 7507.5 | N26: 17595 | P26: 8797.5 | R26: 25680 | T26: 12840 | V26: 26160 | X26: 13080
B27: 13(9) | C27: 160000 | E27: 5330 | G27: 155000 | H27: ～ | I27: 165000 | J27: 16016 | L27: 8008 | N27: 18768 | P27: 9384 | R27: 27392 | T27: 13696 | V27: 27904 | X27: 13952
B28: 14(10) | C28: 170000 | E28: 5670 | G28: 165000 | H28: ～ | I28: 175000 | J28: 17017 | L28: 8508.5 | N28: 19941 | P28: 9970.5 | R28: 29104 | T28: 14552 | V28: 29648 | X28: 14824
B29: 15(11) | C29: 180000 | E29: 6000 | G29: 175000 | H29: ～ | I29: 185000 | J29: 18018 | L29: 9009 | N29: 21114 | P29: 10557 | R29: 30816 | T29: 15408 | V29: 31392 | X29: 15696
B30: 16(12) | C30: 190000 | E30: 6330 | G30: 185000 | H30: ～ | I30: 195000 | J30: 19019 | L30: 9509.5 | N30: 22287 | P30: 11143.5 | R30: 32528 | T30: 16264 | V30: 33136 | X30: 16568
B31: 17(13) | C31: 200000 | E31: 6670 | G31: 195000 | H31: ～ | I31: 210000 | J31: 20020 | L31: 10010 | N31: 23460 | P31: 11730 | R31: 34240 | T31: 17120 | V31: 34880 | X31: 17440
B32: 18(14) | C32: 220000 | E32: 7330 | G32: 210000 | H32: ～ | I32: 230000 | J32: 22022 | L32: 11011 | N32: 25806 | P32: 12903 | R32: 37664 | T32: 18832 | V32: 38368 | X32: 19184
B33: 19(15) | C33: 240000 | E33: 8000 | G33: 230000 | H33: ～ | I33: 250000 | J33: 24024 | L33: 12012 | N33: 28152 | P33: 14076 | R33: 41088 | T33: 20544 | V33: 41856 | X33: 20928
B34: 20(16) | C34: 260000 | E34: 8670 | G34: 250000 | H34: ～ | I34: 270000 | J34: 26026 | L34: 13013 | N34: 30498 | P34: 15249 | R34: 44512 | T34: 22256 | V34: 45344 | X34: 22672
B35: 21(17) | C35: 280000 | E35: 9330 | G35: 270000 | H35: ～ | I35: 290000 | J35: 28028 | L35: 14014 | N35: 32844 | P35: 16422 | R35: 47936 | T35: 23968 | V35: 48832 | X35: 24416
B36: 22(18) | C36: 300000 | E36: 10000 | G36: 290000 | H36: ～ | I36: 310000 | J36: 30030 | L36: 15015 | N36: 35190 | P36: 17595 | R36: 51360 | T36: 25680 | V36: 52320 | X36: 26160
B37: 23(19) | C37: 320000 | E37: 10670 | G37: 310000 | H37: ～ | I37: 330000 | J37: 32032 | L37: 16016 | N37: 37536 | P37: 18768 | R37: 54784 | T37: 27392 | V37: 55808 | X37: 27904
B38: 24(20) | C38: 340000 | E38: 11330 | G38: 330000 | H38: ～ | I38: 350000 | J38: 34034 | L38: 17017 | N38: 39882 | P38: 19941 | R38: 58208 | T38: 29104 | V38: 59296 | X38: 29648
B39: 25(21) | C39: 360000 | E39: 12000 | G39: 350000 | H39: ～ | I39: 370000 | J39: 36036 | L39: 18018 | N39: 42228 | P39: 21114 | R39: 61632 | T39: 30816 | V39: 62784 | X39: 31392
B40: 26(22) | C40: 380000 | E40: 12670 | G40: 370000 | H40: ～ | I40: 395000 | J40: 38038 | L40: 19019 | N40: 44574 | P40: 22287 | R40: 65056 | T40: 32528 | V40: 66272 | X40: 33136
B41: 27(23) | C41: 410000 | E41: 13670 | G41: 395000 | H41: ～ | I41: 425000 | J41: 41041 | L41: 20520.5 | N41: 48093 | P41: 24046.5 | R41: 70192 | T41: 35096 | V41: 71504 | X41: 35752
B42: 28(24) | C42: 440000 | E42: 14670 | G42: 425000 | H42: ～ | I42: 455000 | J42: 44044 | L42: 22022 | N42: 51612 | P42: 25806 | R42: 75328 | T42: 37664 | V42: 76736 | X42: 38368
B43: 29(25) | C43: 470000 | E43: 15670 | G43: 455000 | H43: ～ | I43: 485000 | J43: 47047 | L43: 23523.5 | N43: 55131 | P43: 27565.5 | R43: 80464 | T43: 40232 | V43: 81968 | X43: 40984
B44: 30(26) | C44: 500000 | E44: 16670 | G44: 485000 | H44: ～ | I44: 515000 | J44: 50050 | L44: 25025 | N44: 58650 | P44: 29325 | R44: 85600 | T44: 42800 | V44: 87200 | X44: 43600
B45: 31(27) | C45: 530000 | E45: 17670 | G45: 515000 | H45: ～ | I45: 545000 | J45: 53053 | L45: 26526.5 | N45: 62169 | P45: 31084.5 | R45: 90736 | T45: 45368 | V45: 92432 | X45: 46216
B46: 32(28) | C46: 560000 | E46: 18670 | G46: 545000 | H46: ～ | I46: 575000 | J46: 56056 | L46: 28028 | N46: 65688 | P46: 32844 | R46: 95872 | T46: 47936 | V46: 97664 | X46: 48832
B47: 33(29) | C47: 590000 | E47: 19670 | G47: 575000 | H47: ～ | I47: 605000 | J47: 59059 | L47: 29529.5 | N47: 69207 | P47: 34603.5 | R47: 101008 | T47: 50504 | V47: 102896 | X47: 51448
B48: 34(30) | C48: 620000 | E48: 20670 | G48: 605000 | H48: ～ | I48: 635000 | J48: 62062 | L48: 31031 | N48: 72726 | P48: 36363 | R48: 106144 | T48: 53072 | V48: 108128 | X48: 54064
B49: 35 | C49: 650000 | E49: 21670 | G49: 635000 | H49: ～ | I49: 665000 | J49: 65065 | L49: 32532.5 | N49: 76245 | P49: 38122.5 | R49: ※厚生年金基金に加入する方の厚生年金保険の保 険料率は、基金ごとに定められている免除保険 料率(2.4%～5.0%)を控除した率となり、次の範 囲内で基金ごとに定められています。 厚生年金基金に加入する ・一般の被保険者の方 …12.120%～14.720% ・坑内員の被保険者の方…12.440%～15.040% 加入する基金ごとに異なりますので、免除保険 料率および厚生年金基金の掛金については、加 入する厚生年金基金にお問い合わせください。
B50: 36 | C50: 680000 | E50: 22670 | G50: 665000 | H50: ～ | I50: 695000 | J50: 68068 | L50: 34034 | N50: 79764 | P50: 39882
B51: 37 | C51: 710000 | E51: 23670 | G51: 695000 | H51: ～ | I51: 730000 | J51: 71071 | L51: 35535.5 | N51: 83283 | P51: 41641.5
B52: 38 | C52: 750000 | E52: 25000 | G52: 730000 | H52: ～ | I52: 770000 | J52: 75075 | L52: 37537.5 | N52: 87975 | P52: 43987.5
B53: 39 | C53: 790000 | E53: 26330 | G53: 770000 | H53: ～ | I53: 810000 | J53: 79079 | L53: 39539.5 | N53: 92667 | P53: 46333.5
B54: 40 | C54: 830000 | E54: 27670 | G54: 810000 | H54: ～ | I54: 855000 | J54: 83083 | L54: 41541.5 | N54: 97359 | P54: 48679.5
B55: 41 | C55: 880000 | E55: 29330 | G55: 855000 | H55: ～ | I55: 905000 | J55: 88088 | L55: 44044 | N55: 103224 | P55: 51612
B56: 42 | C56: 930000 | E56: 31000 | G56: 905000 | H56: ～ | I56: 955000 | J56: 93093 | L56: 46546.5 | N56: 109089 | P56: 54544.5
B57: 43 | C57: 980000 | E57: 32670 | G57: 955000 | H57: ～ | I57: 1005000 | J57: 98098 | L57: 49049 | N57: 114954 | P57: 57477
B58: 44 | C58: 1030000 | E58: 34330 | G58: 1005000 | H58: ～ | I58: 1055000 | J58: 103103 | L58: 51551.5 | N58: 120819 | P58: 60409.5
B59: 45 | C59: 1090000 | E59: 36330 | G59: 1055000 | H59: ～ | I59: 1115000 | J59: 109109 | L59: 54554.5 | N59: 127857 | P59: 63928.5
B60: 46 | C60: 1150000 | E60: 38330 | G60: 1115000 | H60: ～ | I60: 1175000 | J60: 115115 | L60: 57557.5 | N60: 134895 | P60: 67447.5
B61: 47 | C61: 1210000 | E61: 40330 | G61: 1175000 | H61: ～ | J61: 121121 | L61: 60560.5 | N61: 141933 | P61: 70966.5
A63: =J10 -> 0.1001
A65: ◆等級欄の（ ）内の数字は、厚生年金保険の標準報酬月額等級です。
A66: 5(1)等級の「報酬月額」欄は、厚生年金保険の場合「101,000円未満」と読み替えてください。
A67: 34(30)等級の「報酬月額」欄は、厚生年金保険の場合「605,000円以上」と読み替えてください。
A69: ◆平成26年度における協会けんぽの任意継続被保険者の標準報酬月額の上限は、280,000円です。
A71: ○被保険者負担分（表の折半額の欄）に円未満の端数がある場合
A72: ①事業主が、給与から被保険者負担分を控除する場合、被保険者負担分の端数が50銭以下の場合は切り捨て、50銭を超える場合は切り上げて1円となります。
A73: ②被保険者が、被保険者負担分を事業主へ現金で支払う場合、被保険者負担分の端数が50銭未満の場合は切り捨て、50銭以上の場合は切り上げて1円となります。
A74: （注）①、②にかかわらず、事業主と被保険者の間で特約がある場合には、特約に基づき端数処理をすることができます。
A76: ○納入告知書の保険料額について
A77: 納入告知書の保険料額は、被保険者個々の保険料額を合算した金額になります。ただし、合算した金額に円未満の端数がある場合は、その端数を切り捨てた額となります。
A79: ○賞与に係る保険料について
A80: 賞与に係る保険料額は、賞与額から1,000円未満の端数を切り捨てた額（標準賞与額）に、保険料率を乗じた額となります。
A81: また、標準賞与額の上限は、健康保険は年間540万円（毎年4月1日から翌年3月31日までの累計額）となり、厚生年金保険と児童手当拠出金の場合は月間150万円となります。
A83: ○児童手当拠出金について
A84: 厚生年金保険の被保険者を使用する事業主の方は、児童手当等の支給に要する費用の一部として児童手当拠出金を全額負担いただくことになります。この児童手当
A85: 拠出金の額は、被保険者個々の厚生年金保険の標準報酬月額及び標準賞与額に、拠出金率（0.15%）を乗じて得た額の総額となります。

Sheet 秋田 (hidden)
B1: 平成26年3月分(4月納付分)からの健康保険・厚生年金保険の保険料額表
B3: ‣健康保険料率：平成24年3月分～ 適用 ‣厚生年金保険料率：平成25年9月分～平成26年8月分 適用 ‣介護保険料率：平成26年3月分～ 適用 ‣児童手当拠出金率：平成24年4月分～ 適用
B5: （秋田県） | X5: （単位：円）
B6: 標 準 報 酬 | G6: 報 酬 月 額 | J6: 全国健康保険協会管掌健康保険料 | R6: 厚生年金保険料（厚生年金基金加入員を除く）
J7: 介護保険第２号被保険者 に該当しない場合 | N7: 介護保険第２号被保険者 に該当する場合 | R7: 一般の被保険者等 | V7: 坑内員・船員
J10: 0.1002 | N10: =J10+0.0172 -> 0.1174 | R10: 0.1712 | V10: 0.1744
B12: 等級 | C12: 月 額 | E12: 日 額 | J12: 全 額 | L12: 折半額 | N12: 全 額 | P12: 折半額 | R12: 全 額 | T12: 折半額 | V12: 全 額 | X12: 折半額
G14: 円以上 | I14: 円未満
B15: 1 | C15: 58000 | E15: 1930 | H15: ～ | I15: 63000 | J15: =C15*$J$10 -> 5811.6 | L15: =J15/2 -> 2905.8 | N15: =C15*$N$10 -> 6809.2 | P15: =N15/2 -> 3404.6
B16: 2 | C16: 68000 | E16: 2270 | G16: 63000 | H16: ～ | I16: 73000 | J16: =C16*$J$10 -> 6813.6 | L16: =J16/2 -> 3406.8 | N16: =C16*$N$10 -> 7983.2 | P16: =N16/2 -> 3991.6
B17: 3 | C17: 78000 | E17: 2600 | G17: 73000 | H17: ～ | I17: 83000 | J17: 7815.6 | L17: 3907.8 | N17: 9157.2 | P17: 4578.6
B18: 4 | C18: 88000 | E18: 2930 | G18: 83000 | H18: ～ | I18: 93000 | J18: 8817.6 | L18: 4408.8 | N18: =C18*$N$10 -> 10331.2 | P18: 5165.6
B19: 5(1) | C19: 98000 | E19: 3270 | G19: 93000 | H19: ～ | I19: 101000 | J19: 9819.6 | L19: 4909.8 | N19: 11505.2 | P19: 5752.6 | R19: =C19*$R$10 -> 16777.6 | T19: =R19/2 -> 8388.8 | V19: =C19*$V$10 -> 17091.2 | X19: =V19/2 -> 8545.6
B20: 6(2) | C20: 104000 | E20: 3470 | G20: 101000 | H20: ～ | I20: 107000 | J20: 10420.8 | L20: 5210.4 | N20: 12209.6 | P20: 6104.8 | R20: =C20*$R$10 -> 17804.8 | T20: =R20/2 -> 8902.4 | V20: =C20*$V$10 -> 18137.6 | X20: =V20/2 -> 9068.8
B21: 7(3) | C21: 110000 | E21: 3670 | G21: 107000 | H21: ～ | I21: 114000 | J21: 11022 | L21: 5511 | N21: 12914 | P21: 6457 | R21: 18832 | T21: 9416 | V21: 19184 | X21: 9592
B22: 8(4) | C22: 118000 | E22: 3930 | G22: 114000 | H22: ～ | I22: 122000 | J22: 11823.6 | L22: 5911.8 | N22: 13853.2 | P22: 6926.6 | R22: 20201.6 | T22: 10100.8 | V22: 20579.2 | X22: 10289.6
B23: 9(5) | C23: 126000 | E23: 4200 | G23: 122000 | H23: ～ | I23: 130000 | J23: 12625.2 | L23: 6312.6 | N23: 14792.4 | P23: 7396.2 | R23: 21571.2 | T23: 10785.6 | V23: 21974.4 | X23: 10987.2
B24: 10(6) | C24: 134000 | E24: 4470 | G24: 130000 | H24: ～ | I24: 138000 | J24: 13426.8 | L24: 6713.4 | N24: 15731.6 | P24: 7865.8 | R24: 22940.8 | T24: 11470.4 | V24: 23369.6 | X24: 11684.8
B25: 11(7) | C25: 142000 | E25: 4730 | G25: 138000 | H25: ～ | I25: 146000 | J25: 14228.4 | L25: 7114.2 | N25: 16670.8 | P25: 8335.4 | R25: 24310.4 | T25: 12155.2 | V25: 24764.8 | X25: 12382.4
B26: 12(8) | C26: 150000 | E26: 5000 | G26: 146000 | H26: ～ | I26: 155000 | J26: 15030 | L26: 7515 | N26: 17610 | P26: 8805 | R26: 25680 | T26: 12840 | V26: 26160 | X26: 13080
B27: 13(9) | C27: 160000 | E27: 5330 | G27: 155000 | H27: ～ | I27: 165000 | J27: 16032 | L27: 8016 | N27: 18784 | P27: 9392 | R27: 27392 | T27: 13696 | V27: 27904 | X27: 13952
B28: 14(10) | C28: 170000 | E28: 5670 | G28: 165000 | H28: ～ | I28: 175000 | J28: 17034 | L28: 8517 | N28: 19958 | P28: 9979 | R28: 29104 | T28: 14552 | V28: 29648 | X28: 14824
B29: 15(11) | C29: 180000 | E29: 6000 | G29: 175000 | H29: ～ | I29: 185000 | J29: 18036 | L29: 9018 | N29: 21132 | P29: 10566 | R29: 30816 | T29: 15408 | V29: 31392 | X29: 15696
B30: 16(12) | C30: 190000 | E30: 6330 | G30: 185000 | H30: ～ | I30: 195000 | J30: 19038 | L30: 9519 | N30: 22306 | P30: 11153 | R30: 32528 | T30: 16264 | V30: 33136 | X30: 16568
B31: 17(13) | C31: 200000 | E31: 6670 | G31: 195000 | H31: ～ | I31: 210000 | J31: 20040 | L31: 10020 | N31: 23480 | P31: 11740 | R31: 34240 | T31: 17120 | V31: 34880 | X31: 17440
B32: 18(14) | C32: 220000 | E32: 7330 | G32: 210000 | H32: ～ | I32: 230000 | J32: 22044 | L32: 11022 | N32: 25828 | P32: 12914 | R32: 37664 | T32: 18832 | V32: 38368 | X32: 19184
B33: 19(15) | C33: 240000 | E33: 8000 | G33: 230000 | H33: ～ | I33: 250000 | J33: 24048 | L33: 12024 | N33: 28176 | P33: 14088 | R33: 41088 | T33: 20544 | V33: 41856 | X33: 20928
B34: 20(16) | C34: 260000 | E34: 8670 | G34: 250000 | H34: ～ | I34: 270000 | J34: 26052 | L34: 13026 | N34: 30524 | P34: 15262 | R34: 44512 | T34: 22256 | V34: 45344 | X34: 22672
B35: 21(17) | C35: 280000 | E35: 9330 | G35: 270000 | H35: ～ | I35: 290000 | J35: 28056 | L35: 14028 | N35: 32872 | P35: 16436 | R35: 47936 | T35: 23968 | V35: 48832 | X35: 24416
B36: 22(18) | C36: 300000 | E36: 10000 | G36: 290000 | H36: ～ | I36: 310000 | J36: 30060 | L36: 15030 | N36: 35220 | P36: 17610 | R36: 51360 | T36: 25680 | V36: 52320 | X36: 26160
B37: 23(19) | C37: 320000 | E37: 10670 | G37: 310000 | H37: ～ | I37: 330000 | J37: 32064 | L37: 16032 | N37: 37568 | P37: 18784 | R37: 54784 | T37: 27392 | V37: 55808 | X37: 27904
B38: 24(20) | C38: 340000 | E38: 11330 | G38: 330000 | H38: ～ | I38: 350000 | J38: 34068 | L38: 17034 | N38: 39916 | P38: 19958 | R38: 58208 | T38: 29104 | V38: 59296 | X38: 29648
B39: 25(21) | C39: 360000 | E39: 12000 | G39: 350000 | H39: ～ | I39: 370000 | J39: 36072 | L39: 18036 | N39: 42264 | P39: 21132 | R39: 61632 | T39: 30816 | V39: 62784 | X39: 31392
B40: 26(22) | C40: 380000 | E40: 12670 | G40: 370000 | H40: ～ | I40: 395000 | J40: 38076 | L40: 19038 | N40: 44612 | P40: 22306 | R40: 65056 | T40: 32528 | V40: 66272 | X40: 33136
B41: 27(23) | C41: 410000 | E41: 13670 | G41: 395000 | H41: ～ | I41: 425000 | J41: 41082 | L41: 20541 | N41: 48134 | P41: 24067 | R41: 70192 | T41: 35096 | V41: 71504 | X41: 35752
B42: 28(24) | C42: 440000 | E42: 14670 | G42: 425000 | H42: ～ | I42: 455000 | J42: 44088 | L42: 22044 | N42: 51656 | P42: 25828 | R42: 75328 | T42: 37664 | V42: 76736 | X42: 38368
B43: 29(25) | C43: 470000 | E43: 15670 | G43: 455000 | H43: ～ | I43: 485000 | J43: 47094 | L43: 23547 | N43: 55178 | P43: 27589 | R43: 80464 | T43: 40232 | V43: 81968 | X43: 40984
B44: 30(26) | C44: 500000 | E44: 16670 | G44: 485000 | H44: ～ | I44: 515000 | J44: 50100 | L44: 25050 | N44: 58700 | P44: 29350 | R44: 85600 | T44: 42800 | V44: 87200 | X44: 43600
B45: 31(27) | C45: 530000 | E45: 17670 | G45: 515000 | H45: ～ | I45: 545000 | J45: 53106 | L45: 26553 | N45: 62222 | P45: 31111 | R45: 90736 | T45: 45368 | V45: 92432 | X45: 46216
B46: 32(28) | C46: 560000 | E46: 18670 | G46: 545000 | H46: ～ | I46: 575000 | J46: 56112 | L46: 28056 | N46: 65744 | P46: 32872 | R46: 95872 | T46: 47936 | V46: 97664 | X46: 48832
B47: 33(29) | C47: 590000 | E47: 19670 | G47: 575000 | H47: ～ | I47: 605000 | J47: 59118 | L47: 29559 | N47: 69266 | P47: 34633 | R47: 101008 | T47: 50504 | V47: 102896 | X47: 51448
B48: 34(30) | C48: 620000 | E48: 20670 | G48: 605000 | H48: ～ | I48: 635000 | J48: 62124 | L48: 31062 | N48: 72788 | P48: 36394 | R48: 106144 | T48: 53072 | V48: 108128 | X48: 54064
B49: 35 | C49: 650000 | E49: 21670 | G49: 635000 | H49: ～ | I49: 665000 | J49: 65130 | L49: 32565 | N49: 76310 | P49: 38155 | R49: ※厚生年金基金に加入する方の厚生年金保険の保 険料率は、基金ごとに定められている免除保険 料率(2.4%～5.0%)を控除した率となり、次の範 囲内で基金ごとに定められています。 厚生年金基金に加入する ・一般の被保険者の方 …12.120%～14.720% ・坑内員の被保険者の方…12.440%～15.040% 加入する基金ごとに異なりますので、免除保険 料率および厚生年金基金の掛金については、加 入する厚生年金基金にお問い合わせください。
B50: 36 | C50: 680000 | E50: 22670 | G50: 665000 | H50: ～ | I50: 695000 | J50: 68136 | L50: 34068 | N50: 79832 | P50: 39916
B51: 37 | C51: 710000 | E51: 23670 | G51: 695000 | H51: ～ | I51: 730000 | J51: 71142 | L51: 35571 | N51: 83354 | P51: 41677
B52: 38 | C52: 750000 | E52: 25000 | G52: 730000 | H52: ～ | I52: 770000 | J52: 75150 | L52: 37575 | N52: 88050 | P52: 44025
B53: 39 | C53: 790000 | E53: 26330 | G53: 770000 | H53: ～ | I53: 810000 | J53: 79158 | L53: 39579 | N53: 92746 | P53: 46373
B54: 40 | C54: 830000 | E54: 27670 | G54: 810000 | H54: ～ | I54: 855000 | J54: 83166 | L54: 41583 | N54: 97442 | P54: 48721
B55: 41 | C55: 880000 | E55: 29330 | G55: 855000 | H55: ～ | I55: 905000 | J55: 88176 | L55: 44088 | N55: 103312 | P55: 51656
B56: 42 | C56: 930000 | E56: 31000 | G56: 905000 | H56: ～ | I56: 955000 | J56: 93186 | L56: 46593 | N56: 109182 | P56: 54591
B57: 43 | C57: 980000 | E57: 32670 | G57: 955000 | H57: ～ | I57: 1005000 | J57: 98196 | L57: 49098 | N57: 115052 | P57: 57526
B58: 44 | C58: 1030000 | E58: 34330 | G58: 1005000 | H58: ～ | I58: 1055000 | J58: 103206 | L58: 51603 | N58: 120922 | P58: 60461
B59: 45 | C59: 1090000 | E59: 36330 | G59: 1055000 | H59: ～ | I59: 1115000 | J59: 109218 | L59: 54609 | N59: 127966 | P59: 63983
B60: 46 | C60: 1150000 | E60: 38330 | G60: 1115000 | H60: ～ | I60: 1175000 | J60: 115230 | L60: 57615 | N60: 135010 | P60: 67505
B61: 47 | C61: 1210000 | E61: 40330 | G61: 1175000 | H61: ～ | J61: 121242 | L61: 60621 | N61: 142054 | P61: 71027
A63: =J10 -> 0.1002
A65: ◆等級欄の（ ）内の数字は、厚生年金保険の標準報酬月額等級です。
A66: 5(1)等級の「報酬月額」欄は、厚生年金保険の場合「101,000円未満」と読み替えてください。
A67: 34(30)等級の「報酬月額」欄は、厚生年金保険の場合「605,000円以上」と読み替えてください。
A69: ◆平成26年度における協会けんぽの任意継続被保険者の標準報酬月額の上限は、280,000円です。
A71: ○被保険者負担分（表の折半額の欄）に円未満の端数がある場合
A72: ①事業主が、給与から被保険者負担分を控除する場合、被保険者負担分の端数が50銭以下の場合は切り捨て、50銭を超える場合は切り上げて1円となります。
A73: ②被保険者が、被保険者負担分を事業主へ現金で支払う場合、被保険者負担分の端数が50銭未満の場合は切り捨て、50銭以上の場合は切り上げて1円となります。
A74: （注）①、②にかかわらず、事業主と被保険者の間で特約がある場合には、特約に基づき端数処理をすることができます。
A76: ○納入告知書の保険料額について
A77: 納入告知書の保険料額は、被保険者個々の保険料額を合算した金額になります。ただし、合算した金額に円未満の端数がある場合は、その端数を切り捨てた額となります。
A79: ○賞与に係る保険料について
A80: 賞与に係る保険料額は、賞与額から1,000円未満の端数を切り捨てた額（標準賞与額）に、保険料率を乗じた額となります。
A81: また、標準賞与額の上限は、健康保険は年間540万円（毎年4月1日から翌年3月31日までの累計額）となり、厚生年金保険と児童手当拠出金の場合は月間150万円となります。
A83: ○児童手当拠出金について
A84: 厚生年金保険の被保険者を使用する事業主の方は、児童手当等の支給に要する費用の一部として児童手当拠出金を全額負担いただくことになります。この児童手当
A85: 拠出金の額は、被保険者個々の厚生年金保険の標準報酬月額及び標準賞与額に、拠出金率（0.15%）を乗じて得た額の総額となります。

Sheet 山形 (hidden)
B1: 平成26年3月分(4月納付分)からの健康保険・厚生年金保険の保険料額表
B3: ‣健康保険料率：平成24年3月分～ 適用 ‣厚生年金保険料率：平成25年9月分～平成26年8月分 適用 ‣介護保険料率：平成26年3月分～ 適用 ‣児童手当拠出金率：平成24年4月分～ 適用
B5: （山形県） | X5: （単位：円）
B6: 標 準 報 酬 | G6: 報 酬 月 額 | J6: 全国健康保険協会管掌健康保険料 | R6: 厚生年金保険料（厚生年金基金加入員を除く）
J7: 介護保険第２号被保険者 に該当しない場合 | N7: 介護保険第２号被保険者 に該当する場合 | R7: 一般の被保険者等 | V7: 坑内員・船員
J10: 0.0996 | N10: =J10+0.0172 -> 0.1168 | R10: 0.1712 | V10: 0.1744
B12: 等級 | C12: 月 額 | E12: 日 額 | J12: 全 額 | L12: 折半額 | N12: 全 額 | P12: 折半額 | R12: 全 額 | T12: 折半額 | V12: 全 額 | X12: 折半額
G14: 円以上 | I14: 円未満
B15: 1 | C15: 58000 | E15: 1930 | H15: ～ | I15: 63000 | J15: =C15*$J$10 -> 5776.8 | L15: =J15/2 -> 2888.4 | N15: =C15*$N$10 -> 6774.4 | P15: =N15/2 -> 3387.2
B16: 2 | C16: 68000 | E16: 2270 | G16: 63000 | H16: ～ | I16: 73000 | J16: =C16*$J$10 -> 6772.8 | L16: =J16/2 -> 3386.4 | N16: =C16*$N$10 -> 7942.4 | P16: =N16/2 -> 3971.2
B17: 3 | C17: 78000 | E17: 2600 | G17: 73000 | H17: ～ | I17: 83000 | J17: 7768.8 | L17: 3884.4 | N17: 9110.4 | P17: 4555.2
B18: 4 | C18: 88000 | E18: 2930 | G18: 83000 | H18: ～ | I18: 93000 | J18: 8764.8 | L18: 4382.4 | N18: =C18*$N$10 -> 10278.4 | P18: 5139.2
B19: 5(1) | C19: 98000 | E19: 3270 | G19: 93000 | H19: ～ | I19: 101000 | J19: 9760.8 | L19: 4880.4 | N19: 11446.4 | P19: 5723.2 | R19: =C19*$R$10 -> 16777.6 | T19: =R19/2 -> 8388.8 | V19: =C19*$V$10 -> 17091.2 | X19: =V19/2 -> 8545.6
B20: 6(2) | C20: 104000 | E20: 3470 | G20: 101000 | H20: ～ | I20: 107000 | J20: 10358.4 | L20: 5179.2 | N20: 12147.2 | P20: 6073.6 | R20: =C20*$R$10 -> 17804.8 | T20: =R20/2 -> 8902.4 | V20: =C20*$V$10 -> 18137.6 | X20: =V20/2 -> 9068.8
B21: 7(3) | C21: 110000 | E21: 3670 | G21: 107000 | H21: ～ | I21: 114000 | J21: 10956 | L21: 5478 | N21: 12848 | P21: 6424 | R21: 18832 | T21: 9416 | V21: 19184 | X21: 9592
B22: 8(4) | C22: 118000 | E22: 3930 | G22: 114000 | H22: ～ | I22: 122000 | J22: 11752.8 | L22: 5876.4 | N22: 13782.4 | P22: 6891.2 | R22: 20201.6 | T22: 10100.8 | V22: 20579.2 | X22: 10289.6
B23: 9(5) | C23: 126000 | E23: 4200 | G23: 122000 | H23: ～ | I23: 130000 | J23: 12549.6 | L23: 6274.8 | N23: 14716.8 | P23: 7358.4 | R23: 21571.2 | T23: 10785.6 | V23: 21974.4 | X23: 10987.2
B24: 10(6) | C24: 134000 | E24: 4470 | G24: 130000 | H24: ～ | I24: 138000 | J24: 13346.4 | L24: 6673.2 | N24: 15651.2 | P24: 7825.6 | R24: 22940.8 | T24: 11470.4 | V24: 23369.6 | X24: 11684.8
B25: 11(7) | C25: 142000 | E25: 4730 | G25: 138000 | H25: ～ | I25: 146000 | J25: 14143.2 | L25: 7071.6 | N25: 16585.6 | P25: 8292.8 | R25: 24310.4 | T25: 12155.2 | V25: 24764.8 | X25: 12382.4
B26: 12(8) | C26: 150000 | E26: 5000 | G26: 146000 | H26: ～ | I26: 155000 | J26: 14940 | L26: 7470 | N26: 17520 | P26: 8760 | R26: 25680 | T26: 12840 | V26: 26160 | X26: 13080
B27: 13(9) | C27: 160000 | E27: 5330 | G27: 155000 | H27: ～ | I27: 165000 | J27: 15936 | L27: 7968 | N27: 18688 | P27: 9344 | R27: 27392 | T27: 13696 | V27: 27904 | X27: 13952
B28: 14(10) | C28: 170000 | E28: 5670 | G28: 165000 | H28: ～ | I28: 175000 | J28: 16932 | L28: 8466 | N28: 19856 | P28: 9928 | R28: 29104 | T28: 14552 | V28: 29648 | X28: 14824
B29: 15(11) | C29: 180000 | E29: 6000 | G29: 175000 | H29: ～ | I29: 185000 | J29: 17928 | L29: 8964 | N29: 21024 | P29: 10512 | R29: 30816 | T29: 15408 | V29: 31392 | X29: 15696
B30: 16(12) | C30: 190000 | E30: 6330 | G30: 185000 | H30: ～ | I30: 195000 | J30: 18924 | L30: 9462 | N30: 22192 | P30: 11096 | R30: 32528 | T30: 16264 | V30: 33136 | X30: 16568
B31: 17(13) | C31: 200000 | E31: 6670 | G31: 195000 | H31: ～ | I31: 210000 | J31: 19920 | L31: 9960 | N31: 23360 | P31: 11680 | R31: 34240 | T31: 17120 | V31: 34880 | X31: 17440
B32: 18(14) | C32: 220000 | E32: 7330 | G32: 210000 | H32: ～ | I32: 230000 | J32: 21912 | L32: 10956 | N32: 25696 | P32: 12848 | R32: 37664 | T32: 18832 | V32: 38368 | X32: 19184
B33: 19(15) | C33: 240000 | E33: 8000 | G33: 230000 | H33: ～ | I33: 250000 | J33: 23904 | L33: 11952 | N33: 28032 | P33: 14016 | R33: 41088 | T33: 20544 | V33: 41856 | X33: 20928
B34: 20(16) | C34: 260000 | E34: 8670 | G34: 250000 | H34: ～ | I34: 270000 | J34: 25896 | L34: 12948 | N34: 30368 | P34: 15184 | R34: 44512 | T34: 22256 | V34: 45344 | X34: 22672
B35: 21(17) | C35: 280000 | E35: 9330 | G35: 270000 | H35: ～ | I35: 290000 | J35: 27888 | L35: 13944 | N35: 32704 | P35: 16352 | R35: 47936 | T35: 23968 | V35: 48832 | X35: 24416
B36: 22(18) | C36: 300000 | E36: 10000 | G36: 290000 | H36: ～ | I36: 310000 | J36: 29880 | L36: 14940 | N36: 35040 | P36: 17520 | R36: 51360 | T36: 25680 | V36: 52320 | X36: 26160
B37: 23(19) | C37: 320000 | E37: 10670 | G37: 310000 | H37: ～ | I37: 330000 | J37: 31872 | L37: 15936 | N37: 37376 | P37: 18688 | R37: 54784 | T37: 27392 | V37: 55808 | X37: 27904
B38: 24(20) | C38: 340000 | E38: 11330 | G38: 330000 | H38: ～ | I38: 350000 | J38: 33864 | L38: 16932 | N38: 39712 | P38: 19856 | R38: 58208 | T38: 29104 | V38: 59296 | X38: 29648
B39: 25(21) | C39: 360000 | E39: 12000 | G39: 350000 | H39: ～ | I39: 370000 | J39: 35856 | L39: 17928 | N39: 42048 | P39: 21024 | R39: 61632 | T39: 30816 | V39: 62784 | X39: 31392
B40: 26(22) | C40: 380000 | E40: 12670 | G40: 370000 | H40: ～ | I40: 395000 | J40: 37848 | L40: 18924 | N40: 44384 | P40: 22192 | R40: 65056 | T40: 32528 | V40: 66272 | X40: 33136
B41: 27(23) | C41: 410000 | E41: 13670 | G41: 395000 | H41: ～ | I41: 425000 | J41: 40836 | L41: 20418 | N41: 47888 | P41: 23944 | R41: 70192 | T41: 35096 | V41: 71504 | X41: 35752
B42: 28(24) | C42: 440000 | E42: 14670 | G42: 425000 | H42: ～ | I42: 455000 | J42: 43824 | L42: 21912 | N42: 51392 | P42: 25696 | R42: 75328 | T42: 37664 | V42: 76736 | X42: 38368
B43: 29(25) | C43: 470000 | E43: 15670 | G43: 455000 | H43: ～ | I43: 485000 | J43: 46812 | L43: 23406 | N43: 54896 | P43: 27448 | R43: 80464 | T43: 40232 | V43: 81968 | X43: 40984
B44: 30(26) | C44: 500000 | E44: 16670 | G44: 485000 | H44: ～ | I44: 515000 | J44: 49800 | L44: 24900 | N44: 58400 | P44: 29200 | R44: 85600 | T44: 42800 | V44: 87200 | X44: 43600
B45: 31(27) | C45: 530000 | E45: 17670 | G45: 515000 | H45: ～ | I45: 545000 | J45: 52788 | L45: 26394 | N45: 61904 | P45: 30952 | R45: 90736 | T45: 45368 | V45: 92432 | X45: 46216
B46: 32(28) | C46: 560000 | E46: 18670 | G46: 545000 | H46: ～ | I46: 575000 | J46: 55776 | L46: 27888 | N46: 65408 | P46: 32704 | R46: 95872 | T46: 47936 | V46: 97664 | X46: 48832
B47: 33(29) | C47: 590000 | E47: 19670 | G47: 575000 | H47: ～ | I47: 605000 | J47: 58764 | L47: 29382 | N47: 68912 | P47: 34456 | R47: 101008 | T47: 50504 | V47: 102896 | X47: 51448
B48: 34(30) | C48: 620000 | E48: 20670 | G48: 605000 | H48: ～ | I48: 635000 | J48: 61752 | L48: 30876 | N48: 72416 | P48: 36208 | R48: 106144 | T48: 53072 | V48: 108128 | X48: 54064
B49: 35 | C49: 650000 | E49: 21670 | G49: 635000 | H49: ～ | I49: 665000 | J49: 64740 | L49: 32370 | N49: 75920 | P49: 37960 | R49: ※厚生年金基金に加入する方の厚生年金保険の保 険料率は、基金ごとに定められている免除保険 料率(2.4%～5.0%)を控除した率となり、次の範 囲内で基金ごとに定められています。 厚生年金基金に加入する ・一般の被保険者の方 …12.120%～14.720% ・坑内員の被保険者の方…12.440%～15.040% 加入する基金ごとに異なりますので、免除保険 料率および厚生年金基金の掛金については、加 入する厚生年金基金にお問い合わせください。
B50: 36 | C50: 680000 | E50: 22670 | G50: 665000 | H50: ～ | I50: 695000 | J50: 67728 | L50: 33864 | N50: 79424 | P50: 39712
B51: 37 | C51: 710000 | E51: 23670 | G51: 695000 | H51: ～ | I51: 730000 | J51: 70716 | L51: 35358 | N51: 82928 | P51: 41464
B52: 38 | C52: 750000 | E52: 25000 | G52: 730000 | H52: ～ | I52: 770000 | J52: 74700 | L52: 37350 | N52: 87600 | P52: 43800
B53: 39 | C53: 790000 | E53: 26330 | G53: 770000 | H53: ～ | I53: 810000 | J53: 78684 | L53: 39342 | N53: 92272 | P53: 46136
B54: 40 | C54: 830000 | E54: 27670 | G54: 810000 | H54: ～ | I54: 855000 | J54: 82668 | L54: 41334 | N54: 96944 | P54: 48472
B55: 41 | C55: 880000 | E55: 29330 | G55: 855000 | H55: ～ | I55: 905000 | J55: 87648 | L55: 43824 | N55: 102784 | P55: 51392
B56: 42 | C56: 930000 | E56: 31000 | G56: 905000 | H56: ～ | I56: 955000 | J56: 92628 | L56: 46314 | N56: 108624 | P56: 54312
B57: 43 | C57: 980000 | E57: 32670 | G57: 955000 | H57: ～ | I57: 1005000 | J57: 97608 | L57: 48804 | N57: 114464 | P57: 57232
B58: 44 | C58: 1030000 | E58: 34330 | G58: 1005000 | H58: ～ | I58: 1055000 | J58: 102588 | L58: 51294 | N58: 120304 | P58: 60152
B59: 45 | C59: 1090000 | E59: 36330 | G59: 1055000 | H59: ～ | I59: 1115000 | J59: 108564 | L59: 54282 | N59: 127312 | P59: 63656
B60: 46 | C60: 1150000 | E60: 38330 | G60: 1115000 | H60: ～ | I60: 1175000 | J60: 114540 | L60: 57270 | N60: 134320 | P60: 67160
B61: 47 | C61: 1210000 | E61: 40330 | G61: 1175000 | H61: ～ | J61: 120516 | L61: 60258 | N61: 141328 | P61: 70664
A63: =J10 -> 0.0996
A65: ◆等級欄の（ ）内の数字は、厚生年金保険の標準報酬月額等級です。
A66: 5(1)等級の「報酬月額」欄は、厚生年金保険の場合「101,000円未満」と読み替えてください。
A67: 34(30)等級の「報酬月額」欄は、厚生年金保険の場合「605,000円以上」と読み替えてください。
A69: ◆平成26年度における協会けんぽの任意継続被保険者の標準報酬月額の上限は、280,000円です。
A71: ○被保険者負担分（表の折半額の欄）に円未満の端数がある場合
A72: ①事業主が、給与から被保険者負担分を控除する場合、被保険者負担分の端数が50銭以下の場合は切り捨て、50銭を超える場合は切り上げて1円となります。
A73: ②被保険者が、被保険者負担分を事業主へ現金で支払う場合、被保険者負担分の端数が50銭未満の場合は切り捨て、50銭以上の場合は切り上げて1円となります。
A74: （注）①、②にかかわらず、事業主と被保険者の間で特約がある場合には、特約に基づき端数処理をすることができます。
A76: ○納入告知書の保険料額について
A77: 納入告知書の保険料額は、被保険者個々の保険料額を合算した金額になります。ただし、合算した金額に円未満の端数がある場合は、その端数を切り捨てた額となります。
A79: ○賞与に係る保険料について
A80: 賞与に係る保険料額は、賞与額から1,000円未満の端数を切り捨てた額（標準賞与額）に、保険料率を乗じた額となります。
A81: また、標準賞与額の上限は、健康保険は年間540万円（毎年4月1日から翌年3月31日までの累計額）となり、厚生年金保険と児童手当拠出金の場合は月間150万円となります。
A83: ○児童手当拠出金について
A84: 厚生年金保険の被保険者を使用する事業主の方は、児童手当等の支給に要する費用の一部として児童手当拠出金を全額負担いただくことになります。この児童手当
A85: 拠出金の額は、被保険者個々の厚生年金保険の標準報酬月額及び標準賞与額に、拠出金率（0.15%）を乗じて得た額の総額となります。

Sheet 福島 (hidden)
B1: 平成26年3月分(4月納付分)からの健康保険・厚生年金保険の保険料額表
B3: ‣健康保険料率：平成24年3月分～ 適用 ‣厚生年金保険料率：平成25年9月分～平成26年8月分 適用 ‣介護保険料率：平成26年3月分～ 適用 ‣児童手当拠出金率：平成24年4月分～ 適用
B5: （福島県） | X5: （単位：円）
B6: 標 準 報 酬 | G6: 報 酬 月 額 | J6: 全国健康保険協会管掌健康保険料 | R6: 厚生年金保険料（厚生年金基金加入員を除く）
J7: 介護保険第２号被保険者 に該当しない場合 | N7: 介護保険第２号被保険者 に該当する場合 | R7: 一般の被保険者等 | V7: 坑内員・船員
J10: 0.0996 | N10: =J10+0.0172 -> 0.1168 | R10: 0.1712 | V10: 0.1744
B12: 等級 | C12: 月 額 | E12: 日 額 | J12: 全 額 | L12: 折半額 | N12: 全 額 | P12: 折半額 | R12: 全 額 | T12: 折半額 | V12: 全 額 | X12: 折半額
G14: 円以上 | I14: 円未満
B15: 1 | C15: 58000 | E15: 1930 | H15: ～ | I15: 63000 | J15: =C15*$J$10 -> 5776.8 | L15: =J15/2 -> 2888.4 | N15: =C15*$N$10 -> 6774.4 | P15: =N15/2 -> 3387.2
B16: 2 | C16: 68000 | E16: 2270 | G16: 63000 | H16: ～ | I16: 73000 | J16: =C16*$J$10 -> 6772.8 | L16: =J16/2 -> 3386.4 | N16: =C16*$N$10 -> 7942.4 | P16: =N16/2 -> 3971.2
B17: 3 | C17: 78000 | E17: 2600 | G17: 73000 | H17: ～ | I17: 83000 | J17: 7768.8 | L17: 3884.4 | N17: 9110.4 | P17: 4555.2
B18: 4 | C18: 88000 | E18: 2930 | G18: 83000 | H18: ～ | I18: 93000 | J18: 8764.8 | L18: 4382.4 | N18: =C18*$N$10 -> 10278.4 | P18: 5139.2
B19: 5(1) | C19: 98000 | E19: 3270 | G19: 93000 | H19: ～ | I19: 101000 | J19: 9760.8 | L19: 4880.4 | N19: 11446.4 | P19: 5723.2 | R19: =C19*$R$10 -> 16777.6 | T19: =R19/2 -> 8388.8 | V19: =C19*$V$10 -> 17091.2 | X19: =V19/2 -> 8545.6
B20: 6(2) | C20: 104000 | E20: 3470 | G20: 101000 | H20: ～ | I20: 107000 | J20: 10358.4 | L20: 5179.2 | N20: 12147.2 | P20: 6073.6 | R20: =C20*$R$10 -> 17804.8 | T20: =R20/2 -> 8902.4 | V20: =C20*$V$10 -> 18137.6 | X20: =V20/2 -> 9068.8
B21: 7(3) | C21: 110000 | E21: 3670 | G21: 107000 | H21: ～ | I21: 114000 | J21: 10956 | L21: 5478 | N21: 12848 | P21: 6424 | R21: 18832 | T21: 9416 | V21: 19184 | X21: 9592
B22: 8(4) | C22: 118000 | E22: 3930 | G22: 114000 | H22: ～ | I22: 122000 | J22: 11752.8 | L22: 5876.4 | N22: 13782.4 | P22: 6891.2 | R22: 20201.6 | T22: 10100.8 | V22: 20579.2 | X22: 10289.6
B23: 9(5) | C23: 126000 | E23: 4200 | G23: 122000 | H23: ～ | I23: 130000 | J23: 12549.6 | L23: 6274.8 | N23: 14716.8 | P23: 7358.4 | R23: 21571.2 | T23: 10785.6 | V23: 21974.4 | X23: 10987.2
B24: 10(6) | C24: 134000 | E24: 4470 | G24: 130000 | H24: ～ | I24: 138000 | J24: 13346.4 | L24: 6673.2 | N24: 15651.2 | P24: 7825.6 | R24: 22940.8 | T24: 11470.4 | V24: 23369.6 | X24: 11684.8
B25: 11(7) | C25: 142000 | E25: 4730 | G25: 138000 | H25: ～ | I25: 146000 | J25: 14143.2 | L25: 7071.6 | N25: 16585.6 | P25: 8292.8 | R25: 24310.4 | T25: 12155.2 | V25: 24764.8 | X25: 12382.4
B26: 12(8) | C26: 150000 | E26: 5000 | G26: 146000 | H26: ～ | I26: 155000 | J26: 14940 | L26: 7470 | N26: 17520 | P26: 8760 | R26: 25680 | T26: 12840 | V26: 26160 | X26: 13080
B27: 13(9) | C27: 160000 | E27: 5330 | G27: 155000 | H27: ～ | I27: 165000 | J27: 15936 | L27: 7968 | N27: 18688 | P27: 9344 | R27: 27392 | T27: 13696 | V27: 27904 | X27: 13952
B28: 14(10) | C28: 170000 | E28: 5670 | G28: 165000 | H28: ～ | I28: 175000 | J28: 16932 | L28: 8466 | N28: 19856 | P28: 9928 | R28: 29104 | T28: 14552 | V28: 29648 | X28: 14824
B29: 15(11) | C29: 180000 | E29: 6000 | G29: 175000 | H29: ～ | I29: 185000 | J29: 17928 | L29: 8964 | N29: 21024 | P29: 10512 | R29: 30816 | T29: 15408 | V29: 31392 | X29: 15696
B30: 16(12) | C30: 190000 | E30: 6330 | G30: 185000 | H30: ～ | I30: 195000 | J30: 18924 | L30: 9462 | N30: 22192 | P30: 11096 | R30: 32528 | T30: 16264 | V30: 33136 | X30: 16568
B31: 17(13) | C31: 200000 | E31: 6670 | G31: 195000 | H31: ～ | I31: 210000 | J31: 19920 | L31: 9960 | N31: 23360 | P31: 11680 | R31: 34240 | T31: 17120 | V31: 34880 | X31: 17440
B32: 18(14) | C32: 220000 | E32: 7330 | G32: 210000 | H32: ～ | I32: 230000 | J32: 21912 | L32: 10956 | N32: 25696 | P32: 12848 | R32: 37664 | T32: 18832 | V32: 38368 | X32: 19184
B33: 19(15) | C33: 240000 | E33: 8000 | G33: 230000 | H33: ～ | I33: 250000 | J33: 23904 | L33: 11952 | N33: 28032 | P33: 14016 | R33: 41088 | T33: 20544 | V33: 41856 | X33: 20928
B34: 20(16) | C34: 260000 | E34: 8670 | G34: 250000 | H34: ～ | I34: 270000 | J34: 25896 | L34: 12948 | N34: 30368 | P34: 15184 | R34: 44512 | T34: 22256 | V34: 45344 | X34: 22672
B35: 21(17) | C35: 280000 | E35: 9330 | G35: 270000 | H35: ～ | I35: 290000 | J35: 27888 | L35: 13944 | N35: 32704 | P35: 16352 | R35: 47936 | T35: 23968 | V35: 48832 | X35: 24416
B36: 22(18) | C36: 300000 | E36: 10000 | G36: 290000 | H36: ～ | I36: 310000 | J36: 29880 | L36: 14940 | N36: 35040 | P36: 17520 | R36: 51360 | T36: 25680 | V36: 52320 | X36: 26160
B37: 23(19) | C37: 320000 | E37: 10670 | G37: 310000 | H37: ～ | I37: 330000 | J37: 31872 | L37: 15936 | N37: 37376 | P37: 18688 | R37: 54784 | T37: 27392 | V37: 55808 | X37: 27904
B38: 24(20) | C38: 340000 | E38: 11330 | G38: 330000 | H38: ～ | I38: 350000 | J38: 33864 | L38: 16932 | N38: 39712 | P38: 19856 | R38: 58208 | T38: 29104 | V38: 59296 | X38: 29648
B39: 25(21) | C39: 360000 | E39: 12000 | G39: 350000 | H39: ～ | I39: 370000 | J39: 35856 | L39: 17928 | N39: 42048 | P39: 21024 | R39: 61632 | T39: 30816 | V39: 62784 | X39: 31392
B40: 26(22) | C40: 380000 | E40: 12670 | G40: 370000 | H40: ～ | I40: 395000 | J40: 37848 | L40: 18924 | N40: 44384 | P40: 22192 | R40: 65056 | T40: 32528 | V40: 66272 | X40: 33136
B41: 27(23) | C41: 410000 | E41: 13670 | G41: 395000 | H41: ～ | I41: 425000 | J41: 40836 | L41: 20418 | N41: 47888 | P41: 23944 | R41: 70192 | T41: 35096 | V41: 71504 | X41: 35752
B42: 28(24) | C42: 440000 | E42: 14670 | G42: 425000 | H42: ～ | I42: 455000 | J42: 43824 | L42: 21912 | N42: 51392 | P42: 25696 | R42: 75328 | T42: 37664 | V42: 76736 | X42: 38368
B43: 29(25) | C43: 470000 | E43: 15670 | G43: 455000 | H43: ～ | I43: 485000 | J43: 46812 | L43: 23406 | N43: 54896 | P43: 27448 | R43: 80464 | T43: 40232 | V43: 81968 | X43: 40984
B44: 30(26) | C44: 500000 | E44: 16670 | G44: 485000 | H44: ～ | I44: 515000 | J44: 49800 | L44: 24900 | N44: 58400 | P44: 29200 | R44: 85600 | T44: 42800 | V44: 87200 | X44: 43600
B45: 31(27) | C45: 530000 | E45: 17670 | G45: 515000 | H45: ～ | I45: 545000 | J45: 52788 | L45: 26394 | N45: 61904 | P45: 30952 | R45: 90736 | T45: 45368 | V45: 92432 | X45: 46216
B46: 32(28) | C46: 560000 | E46: 18670 | G46: 545000 | H46: ～ | I46: 575000 | J46: 55776 | L46: 27888 | N46: 65408 | P46: 32704 | R46: 95872 | T46: 47936 | V46: 97664 | X46: 48832
B47: 33(29) | C47: 590000 | E47: 19670 | G47: 575000 | H47: ～ | I47: 605000 | J47: 58764 | L47: 29382 | N47: 68912 | P47: 34456 | R47: 101008 | T47: 50504 | V47: 102896 | X47: 51448
B48: 34(30) | C48: 620000 | E48: 20670 | G48: 605000 | H48: ～ | I48: 635000 | J48: 61752 | L48: 30876 | N48: 72416 | P48: 36208 | R48: 106144 | T48: 53072 | V48: 108128 | X48: 54064
B49: 35 | C49: 650000 | E49: 21670 | G49: 635000 | H49: ～ | I49: 665000 | J49: 64740 | L49: 32370 | N49: 75920 | P49: 37960 | R49: ※厚生年金基金に加入する方の厚生年金保険の保 険料率は、基金ごとに定められている免除保険 料率(2.4%～5.0%)を控除した率となり、次の範 囲内で基金ごとに定められています。 厚生年金基金に加入する ・一般の被保険者の方 …12.120%～14.720% ・坑内員の被保険者の方…12.440%～15.040% 加入する基金ごとに異なりますので、免除保険 料率および厚生年金基金の掛金については、加 入する厚生年金基金にお問い合わせください。
B50: 36 | C50: 680000 | E50: 22670 | G50: 665000 | H50: ～ | I50: 695000 | J50: 67728 | L50: 33864 | N50: 79424 | P50: 39712
B51: 37 | C51: 710000 | E51: 23670 | G51: 695000 | H51: ～ | I51: 730000 | J51: 70716 | L51: 35358 | N51: 82928 | P51: 41464
B52: 38 | C52: 750000 | E52: 25000 | G52: 730000 | H52: ～ | I52: 770000 | J52: 74700 | L52: 37350 | N52: 87600 | P52: 43800
B53: 39 | C53: 790000 | E53: 26330 | G53: 770000 | H53: ～ | I53: 810000 | J53: 78684 | L53: 39342 | N53: 92272 | P53: 46136
B54: 40 | C54: 830000 | E54: 27670 | G54: 810000 | H54: ～ | I54: 855000 | J54: 82668 | L54: 41334 | N54: 96944 | P54: 48472
B55: 41 | C55: 880000 | E55: 29330 | G55: 855000 | H55: ～ | I55: 905000 | J55: 87648 | L55: 43824 | N55: 102784 | P55: 51392
B56: 42 | C56: 930000 | E56: 31000 | G56: 905000 | H56: ～ | I56: 955000 | J56: 92628 | L56: 46314 | N56: 108624 | P56: 54312
B57: 43 | C57: 980000 | E57: 32670 | G57: 955000 | H57: ～ | I57: 1005000 | J57: 97608 | L57: 48804 | N57: 114464 | P57: 57232
B58: 44 | C58: 1030000 | E58: 34330 | G58: 1005000 | H58: ～ | I58: 1055000 | J58: 102588 | L58: 51294 | N58: 120304 | P58: 60152
B59: 45 | C59: 1090000 | E59: 36330 | G59: 1055000 | H59: ～ | I59: 1115000 | J59: 108564 | L59: 54282 | N59: 127312 | P59: 63656
B60: 46 | C60: 1150000 | E60: 38330 | G60: 1115000 | H60: ～ | I60: 1175000 | J60: 114540 | L60: 57270 | N60: 134320 | P60: 67160
B61: 47 | C61: 1210000 | E61: 40330 | G61: 1175000 | H61: ～ | J61: 120516 | L61: 60258 | N61: 141328 | P61: 70664
A63: =J10 -> 0.0996
A65: ◆等級欄の（ ）内の数字は、厚生年金保険の標準報酬月額等級です。
A66: 5(1)等級の「報酬月額」欄は、厚生年金保険の場合「101,000円未満」と読み替えてください。
A67: 34(30)等級の「報酬月額」欄は、厚生年金保険の場合「605,000円以上」と読み替えてください。
A69: ◆平成26年度における協会けんぽの任意継続被保険者の標準報酬月額の上限は、280,000円です。
A71: ○被保険者負担分（表の折半額の欄）に円未満の端数がある場合
A72: ①事業主が、給与から被保険者負担分を控除する場合、被保険者負担分の端数が50銭以下の場合は切り捨て、50銭を超える場合は切り上げて1円となります。
A73: ②被保険者が、被保険者負担分を事業主へ現金で支払う場合、被保険者負担分の端数が50銭未満の場合は切り捨て、50銭以上の場合は切り上げて1円となります。
A74: （注）①、②にかかわらず、事業主と被保険者の間で特約がある場合には、特約に基づき端数処理をすることができます。
A76: ○納入告知書の保険料額について
A77: 納入告知書の保険料額は、被保険者個々の保険料額を合算した金額になります。ただし、合算した金額に円未満の端数がある場合は、その端数を切り捨てた額となります。
A79: ○賞与に係る保険料について
A80: 賞与に係る保険料額は、賞与額から1,000円未満の端数を切り捨てた額（標準賞与額）に、保険料率を乗じた額となります。
A81: また、標準賞与額の上限は、健康保険は年間540万円（毎年4月1日から翌年3月31日までの累計額）となり、厚生年金保険と児童手当拠出金の場合は月間150万円となります。
A83: ○児童手当拠出金について
A84: 厚生年金保険の被保険者を使用する事業主の方は、児童手当等の支給に要する費用の一部として児童手当拠出金を全額負担いただくことになります。この児童手当
A85: 拠出金の額は、被保険者個々の厚生年金保険の標準報酬月額及び標準賞与額に、拠出金率（0.15%）を乗じて得た額の総額となります。

Sheet 茨城 (hidden)
B1: 平成26年3月分(4月納付分)からの健康保険・厚生年金保険の保険料額表
B3: ‣健康保険料率：平成24年3月分～ 適用 ‣厚生年金保険料率：平成25年9月分～平成26年8月分 適用 ‣介護保険料率：平成26年3月分～ 適用 ‣児童手当拠出金率：平成24年4月分～ 適用
B5: （茨城県） | X5: （単位：円）
B6: 標 準 報 酬 | G6: 報 酬 月 額 | J6: 全国健康保険協会管掌健康保険料 | R6: 厚生年金保険料（厚生年金基金加入員を除く）
J7: 介護保険第２号被保険者 に該当しない場合 | N7: 介護保険第２号被保険者 に該当する場合 | R7: 一般の被保険者等 | V7: 坑内員・船員
J10: 0.0993 | N10: =J10+0.0172 -> 0.1165 | R10: 0.1712 | V10: 0.1744
B12: 等級 | C12: 月 額 | E12: 日 額 | J12: 全 額 | L12: 折半額 | N12: 全 額 | P12: 折半額 | R12: 全 額 | T12: 折半額 | V12: 全 額 | X12: 折半額
G14: 円以上 | I14: 円未満
B15: 1 | C15: 58000 | E15: 1930 | H15: ～ | I15: 63000 | J15: =C15*$J$10 -> 5759.4 | L15: =J15/2 -> 2879.7 | N15: =C15*$N$10 -> 6757 | P15: =N15/2 -> 3378.5
B16: 2 | C16: 68000 | E16: 2270 | G16: 63000 | H16: ～ | I16: 73000 | J16: =C16*$J$10 -> 6752.4 | L16: =J16/2 -> 3376.2 | N16: =C16*$N$10 -> 7922 | P16: =N16/2 -> 3961
B17: 3 | C17: 78000 | E17: 2600 | G17: 73000 | H17: ～ | I17: 83000 | J17: 7745.4 | L17: 3872.7 | N17: 9087 | P17: 4543.5
B18: 4 | C18: 88000 | E18: 2930 | G18: 83000 | H18: ～ | I18: 93000 | J18: 8738.4 | L18: 4369.2 | N18: =C18*$N$10 -> 10252 | P18: 5126
B19: 5(1) | C19: 98000 | E19: 3270 | G19: 93000 | H19: ～ | I19: 101000 | J19: 9731.4 | L19: 4865.7 | N19: 11417 | P19: 5708.5 | R19: =C19*$R$10 -> 16777.6 | T19: =R19/2 -> 8388.8 | V19: =C19*$V$10 -> 17091.2 | X19: =V19/2 -> 8545.6
B20: 6(2) | C20: 104000 | E20: 3470 | G20: 101000 | H20: ～ | I20: 107000 | J20: 10327.2 | L20: 5163.6 | N20: 12116 | P20: 6058 | R20: =C20*$R$10 -> 17804.8 | T20: =R20/2 -> 8902.4 | V20: =C20*$V$10 -> 18137.6 | X20: =V20/2 -> 9068.8
B21: 7(3) | C21: 110000 | E21: 3670 | G21: 107000 | H21: ～ | I21: 114000 | J21: 10923 | L21: 5461.5 | N21: 12815 | P21: 6407.5 | R21: 18832 | T21: 9416 | V21: 19184 | X21: 9592
B22: 8(4) | C22: 118000 | E22: 3930 | G22: 114000 | H22: ～ | I22: 122000 | J22: 11717.4 | L22: 5858.7 | N22: 13747 | P22: 6873.5 | R22: 20201.6 | T22: 10100.8 | V22: 20579.2 | X22: 10289.6
B23: 9(5) | C23: 126000 | E23: 4200 | G23: 122000 | H23: ～ | I23: 130000 | J23: 12511.8 | L23: 6255.9 | N23: 14679 | P23: 7339.5 | R23: 21571.2 | T23: 10785.6 | V23: 21974.4 | X23: 10987.2
B24: 10(6) | C24: 134000 | E24: 4470 | G24: 130000 | H24: ～ | I24: 138000 | J24: 13306.2 | L24: 6653.1 | N24: 15611 | P24: 7805.5 | R24: 22940.8 | T24: 11470.4 | V24: 23369.6 | X24: 11684.8
B25: 11(7) | C25: 142000 | E25: 4730 | G25: 138000 | H25: ～ | I25: 146000 | J25: 14100.6 | L25: 7050.3 | N25: 16543 | P25: 8271.5 | R25: 24310.4 | T25: 12155.2 | V25: 24764.8 | X25: 12382.4
B26: 12(8) | C26: 150000 | E26: 5000 | G26: 146000 | H26: ～ | I26: 155000 | J26: 14895 | L26: 7447.5 | N26: 17475 | P26: 8737.5 | R26: 25680 | T26: 12840 | V26: 26160 | X26: 13080
B27: 13(9) | C27: 160000 | E27: 5330 | G27: 155000 | H27: ～ | I27: 165000 | J27: 15888 | L27: 7944 | N27: 18640 | P27: 9320 | R27: 27392 | T27: 13696 | V27: 27904 | X27: 13952
B28: 14(10) | C28: 170000 | E28: 5670 | G28: 165000 | H28: ～ | I28: 175000 | J28: 16881 | L28: 8440.5 | N28: 19805 | P28: 9902.5 | R28: 29104 | T28: 14552 | V28: 29648 | X28: 14824
B29: 15(11) | C29: 180000 | E29: 6000 | G29: 175000 | H29: ～ | I29: 185000 | J29: 17874 | L29: 8937 | N29: 20970 | P29: 10485 | R29: 30816 | T29: 15408 | V29: 31392 | X29: 15696
B30: 16(12) | C30: 190000 | E30: 6330 | G30: 185000 | H30: ～ | I30: 195000 | J30: 18867 | L30: 9433.5 | N30: 22135 | P30: 11067.5 | R30: 32528 | T30: 16264 | V30: 33136 | X30: 16568
B31: 17(13) | C31: 200000 | E31: 6670 | G31: 195000 | H31: ～ | I31: 210000 | J31: 19860 | L31: 9930 | N31: 23300 | P31: 11650 | R31: 34240 | T31: 17120 | V31: 34880 | X31: 17440
B32: 18(14) | C32: 220000 | E32: 7330 | G32: 210000 | H32: ～ | I32: 230000 | J32: 21846 | L32: 10923 | N32: 25630 | P32: 12815 | R32: 37664 | T32: 18832 | V32: 38368 | X32: 19184
B33: 19(15) | C33: 240000 | E33: 8000 | G33: 230000 | H33: ～ | I33: 250000 | J33: 23832 | L33: 11916 | N33: 27960 | P33: 13980 | R33: 41088 | T33: 20544 | V33: 41856 | X33: 20928
B34: 20(16) | C34: 260000 | E34: 8670 | G34: 250000 | H34: ～ | I34: 270000 | J34: 25818 | L34: 12909 | N34: 30290 | P34: 15145 | R34: 44512 | T34: 22256 | V34: 45344 | X34: 22672
B35: 21(17) | C35: 280000 | E35: 9330 | G35: 270000 | H35: ～ | I35: 290000 | J35: 27804 | L35: 13902 | N35: 32620 | P35: 16310 | R35: 47936 | T35: 23968 | V35: 48832 | X35: 24416
B36: 22(18) | C36: 300000 | E36: 10000 | G36: 290000 | H36: ～ | I36: 310000 | J36: 29790 | L36: 14895 | N36: 34950 | P36: 17475 | R36: 51360 | T36: 25680 | V36: 52320 | X36: 26160
B37: 23(19) | C37: 320000 | E37: 10670 | G37: 310000 | H37: ～ | I37: 330000 | J37: 31776 | L37: 15888 | N37: 37280 | P37: 18640 | R37: 54784 | T37: 27392 | V37: 55808 | X37: 27904
B38: 24(20) | C38: 340000 | E38: 11330 | G38: 330000 | H38: ～ | I38: 350000 | J38: 33762 | L38: 16881 | N38: 39610 | P38: 19805 | R38: 58208 | T38: 29104 | V38: 59296 | X38: 29648
B39: 25(21) | C39: 360000 | E39: 12000 | G39: 350000 | H39: ～ | I39: 370000 | J39: 35748 | L39: 17874 | N39: 41940 | P39: 20970 | R39: 61632 | T39: 30816 | V39: 62784 | X39: 31392
B40: 26(22) | C40: 380000 | E40: 12670 | G40: 370000 | H40: ～ | I40: 395000 | J40: 37734 | L40: 18867 | N40: 44270 | P40: 22135 | R40: 65056 | T40: 32528 | V40: 66272 | X40: 33136
B41: 27(23) | C41: 410000 | E41: 13670 | G41: 395000 | H41: ～ | I41: 425000 | J41: 40713 | L41: 20356.5 | N41: 47765 | P41: 23882.5 | R41: 70192 | T41: 35096 | V41: 71504 | X41: 35752
B42: 28(24) | C42: 440000 | E42: 14670 | G42: 425000 | H42: ～ | I42: 455000 | J42: 43692 | L42: 21846 | N42: 51260 | P42: 25630 | R42: 75328 | T42: 37664 | V42: 76736 | X42: 38368
B43: 29(25) | C43: 470000 | E43: 15670 | G43: 455000 | H43: ～ | I43: 485000 | J43: 46671 | L43: 23335.5 | N43: 54755 | P43: 27377.5 | R43: 80464 | T43: 40232 | V43: 81968 | X43: 40984
B44: 30(26) | C44: 500000 | E44: 16670 | G44: 485000 | H44: ～ | I44: 515000 | J44: 49650 | L44: 24825 | N44: 58250 | P44: 29125 | R44: 85600 | T44: 42800 | V44: 87200 | X44: 43600
B45: 31(27) | C45: 530000 | E45: 17670 | G45: 515000 | H45: ～ | I45: 545000 | J45: 52629 | L45: 26314.5 | N45: 61745 | P45: 30872.5 | R45: 90736 | T45: 45368 | V45: 92432 | X45: 46216
B46: 32(28) | C46: 560000 | E46: 18670 | G46: 545000 | H46: ～ | I46: 575000 | J46: 55608 | L46: 27804 | N46: 65240 | P46: 32620 | R46: 95872 | T46: 47936 | V46: 97664 | X46: 48832
B47: 33(29) | C47: 590000 | E47: 19670 | G47: 575000 | H47: ～ | I47: 605000 | J47: 58587 | L47: 29293.5 | N47: 68735 | P47: 34367.5 | R47: 101008 | T47: 50504 | V47: 102896 | X47: 51448
B48: 34(30) | C48: 620000 | E48: 20670 | G48: 605000 | H48: ～ | I48: 635000 | J48: 61566 | L48: 30783 | N48: 72230 | P48: 36115 | R48: 106144 | T48: 53072 | V48: 108128 | X48: 54064
B49: 35 | C49: 650000 | E49: 21670 | G49: 635000 | H49: ～ | I49: 665000 | J49: 64545 | L49: 32272.5 | N49: 75725 | P49: 37862.5 | R49: ※厚生年金基金に加入する方の厚生年金保険の保 険料率は、基金ごとに定められている免除保険 料率(2.4%～5.0%)を控除した率となり、次の範 囲内で基金ごとに定められています。 厚生年金基金に加入する ・一般の被保険者の方 …12.120%～14.720% ・坑内員の被保険者の方…12.440%～15.040% 加入する基金ごとに異なりますので、免除保険 料率および厚生年金基金の掛金については、加 入する厚生年金基金にお問い合わせください。
B50: 36 | C50: 680000 | E50: 22670 | G50: 665000 | H50: ～ | I50: 695000 | J50: 67524 | L50: 33762 | N50: 79220 | P50: 39610
B51: 37 | C51: 710000 | E51: 23670 | G51: 695000 | H51: ～ | I51: 730000 | J51: 70503 | L51: 35251.5 | N51: 82715 | P51: 41357.5
B52: 38 | C52: 750000 | E52: 25000 | G52: 730000 | H52: ～ | I52: 770000 | J52: 74475 | L52: 37237.5 | N52: 87375 | P52: 43687.5
B53: 39 | C53: 790000 | E53: 26330 | G53: 770000 | H53: ～ | I53: 810000 | J53: 78447 | L53: 39223.5 | N53: 92035 | P53: 46017.5
B54: 40 | C54: 830000 | E54: 27670 | G54: 810000 | H54: ～ | I54: 855000 | J54: 82419 | L54: 41209.5 | N54: 96695 | P54: 48347.5
B55: 41 | C55: 880000 | E55: 29330 | G55: 855000 | H55: ～ | I55: 905000 | J55: 87384 | L55: 43692 | N55: 102520 | P55: 51260
B56: 42 | C56: 930000 | E56: 31000 | G56: 905000 | H56: ～ | I56: 955000 | J56: 92349 | L56: 46174.5 | N56: 108345 | P56: 54172.5
B57: 43 | C57: 980000 | E57: 32670 | G57: 955000 | H57: ～ | I57: 1005000 | J57: 97314 | L57: 48657 | N57: 114170 | P57: 57085
B58: 44 | C58: 1030000 | E58: 34330 | G58: 1005000 | H58: ～ | I58: 1055000 | J58: 102279 | L58: 51139.5 | N58: 119995 | P58: 59997.5
B59: 45 | C59: 1090000 | E59: 36330 | G59: 1055000 | H59: ～ | I59: 1115000 | J59: 108237 | L59: 54118.5 | N59: 126985 | P59: 63492.5
B60: 46 | C60: 1150000 | E60: 38330 | G60: 1115000 | H60: ～ | I60: 1175000 | J60: 114195 | L60: 57097.5 | N60: 133975 | P60: 66987.5
B61: 47 | C61: 1210000 | E61: 40330 | G61: 1175000 | H61: ～ | J61: 120153 | L61: 60076.5 | N61: 140965 | P61: 70482.5
A63: =J10 -> 0.0993
A65: ◆等級欄の（ ）内の数字は、厚生年金保険の標準報酬月額等級です。
A66: 5(1)等級の「報酬月額」欄は、厚生年金保険の場合「101,000円未満」と読み替えてください。
A67: 34(30)等級の「報酬月額」欄は、厚生年金保険の場合「605,000円以上」と読み替えてください。
A69: ◆平成26年度における協会けんぽの任意継続被保険者の標準報酬月額の上限は、280,000円です。
A71: ○被保険者負担分（表の折半額の欄）に円未満の端数がある場合
A72: ①事業主が、給与から被保険者負担分を控除する場合、被保険者負担分の端数が50銭以下の場合は切り捨て、50銭を超える場合は切り上げて1円となります。
A73: ②被保険者が、被保険者負担分を事業主へ現金で支払う場合、被保険者負担分の端数が50銭未満の場合は切り捨て、50銭以上の場合は切り上げて1円となります。
A74: （注）①、②にかかわらず、事業主と被保険者の間で特約がある場合には、特約に基づき端数処理をすることができます。
A76: ○納入告知書の保険料額について
A77: 納入告知書の保険料額は、被保険者個々の保険料額を合算した金額になります。ただし、合算した金額に円未満の端数がある場合は、その端数を切り捨てた額となります。
A79: ○賞与に係る保険料について
A80: 賞与に係る保険料額は、賞与額から1,000円未満の端数を切り捨てた額（標準賞与額）に、保険料率を乗じた額となります。
A81: また、標準賞与額の上限は、健康保険は年間540万円（毎年4月1日から翌年3月31日までの累計額）となり、厚生年金保険と児童手当拠出金の場合は月間150万円となります。
A83: ○児童手当拠出金について
A84: 厚生年金保険の被保険者を使用する事業主の方は、児童手当等の支給に要する費用の一部として児童手当拠出金を全額負担いただくことになります。この児童手当
A85: 拠出金の額は、被保険者個々の厚生年金保険の標準報酬月額及び標準賞与額に、拠出金率（0.15%）を乗じて得た額の総額となります。

Sheet 栃木 (hidden)
B1: 平成26年3月分(4月納付分)からの健康保険・厚生年金保険の保険料額表
B3: ‣健康保険料率：平成24年3月分～ 適用 ‣厚生年金保険料率：平成25年9月分～平成26年8月分 適用 ‣介護保険料率：平成26年3月分～ 適用 ‣児童手当拠出金率：平成24年4月分～ 適用
B5: （栃木県） | X5: （単位：円）
B6: 標 準 報 酬 | G6: 報 酬 月 額 | J6: 全国健康保険協会管掌健康保険料 | R6: 厚生年金保険料（厚生年金基金加入員を除く）
J7: 介護保険第２号被保険者 に該当しない場合 | N7: 介護保険第２号被保険者 に該当する場合 | R7: 一般の被保険者等 | V7: 坑内員・船員
J10: 0.0995 | N10: =J10+0.0172 -> 0.1167 | R10: 0.1712 | V10: 0.1744
B12: 等級 | C12: 月 額 | E12: 日 額 | J12: 全 額 | L12: 折半額 | N12: 全 額 | P12: 折半額 | R12: 全 額 | T12: 折半額 | V12: 全 額 | X12: 折半額
G14: 円以上 | I14: 円未満
B15: 1 | C15: 58000 | E15: 1930 | H15: ～ | I15: 63000 | J15: =C15*$J$10 -> 5771 | L15: =J15/2 -> 2885.5 | N15: =C15*$N$10 -> 6768.6 | P15: =N15/2 -> 3384.3
B16: 2 | C16: 68000 | E16: 2270 | G16: 63000 | H16: ～ | I16: 73000 | J16: =C16*$J$10 -> 6766 | L16: =J16/2 -> 3383 | N16: =C16*$N$10 -> 7935.6 | P16: =N16/2 -> 3967.8
B17: 3 | C17: 78000 | E17: 2600 | G17: 73000 | H17: ～ | I17: 83000 | J17: 7761 | L17: 3880.5 | N17: 9102.6 | P17: 4551.3
B18: 4 | C18: 88000 | E18: 2930 | G18: 83000 | H18: ～ | I18: 93000 | J18: 8756 | L18: 4378 | N18: =C18*$N$10 -> 10269.6 | P18: 5134.8
B19: 5(1) | C19: 98000 | E19: 3270 | G19: 93000 | H19: ～ | I19: 101000 | J19: 9751 | L19: 4875.5 | N19: 11436.6 | P19: 5718.3 | R19: =C19*$R$10 -> 16777.6 | T19: =R19/2 -> 8388.8 | V19: =C19*$V$10 -> 17091.2 | X19: =V19/2 -> 8545.6
B20: 6(2) | C20: 104000 | E20: 3470 | G20: 101000 | H20: ～ | I20: 107000 | J20: 10348 | L20: 5174 | N20: 12136.8 | P20: 6068.4 | R20: =C20*$R$10 -> 17804.8 | T20: =R20/2 -> 8902.4 | V20: =C20*$V$10 -> 18137.6 | X20: =V20/2 -> 9068.8
B21: 7(3) | C21: 110000 | E21: 3670 | G21: 107000 | H21: ～ | I21: 114000 | J21: 10945 | L21: 5472.5 | N21: 12837 | P21: 6418.5 | R21: 18832 | T21: 9416 | V21: 19184 | X21: 9592
B22: 8(4) | C22: 118000 | E22: 3930 | G22: 114000 | H22: ～ | I22: 122000 | J22: 11741 | L22: 5870.5 | N22: 13770.6 | P22: 6885.3 | R22: 20201.6 | T22: 10100.8 | V22: 20579.2 | X22: 10289.6
B23: 9(5) | C23: 126000 | E23: 4200 | G23: 122000 | H23: ～ | I23: 130000 | J23: 12537 | L23: 6268.5 | N23: 14704.2 | P23: 7352.1 | R23: 21571.2 | T23: 10785.6 | V23: 21974.4 | X23: 10987.2
B24: 10(6) | C24: 134000 | E24: 4470 | G24: 130000 | H24: ～ | I24: 138000 | J24: 13333 | L24: 6666.5 | N24: 15637.8 | P24: 7818.9 | R24: 22940.8 | T24: 11470.4 | V24: 23369.6 | X24: 11684.8
B25: 11(7) | C25: 142000 | E25: 4730 | G25: 138000 | H25: ～ | I25: 146000 | J25: 14129 | L25: 7064.5 | N25: 16571.4 | P25: 8285.7 | R25: 24310.4 | T25: 12155.2 | V25: 24764.8 | X25: 12382.4
B26: 12(8) | C26: 150000 | E26: 5000 | G26: 146000 | H26: ～ | I26: 155000 | J26: 14925 | L26: 7462.5 | N26: 17505 | P26: 8752.5 | R26: 25680 | T26: 12840 | V26: 26160 | X26: 13080
B27: 13(9) | C27: 160000 | E27: 5330 | G27: 155000 | H27: ～ | I27: 165000 | J27: 15920 | L27: 7960 | N27: 18672 | P27: 9336 | R27: 27392 | T27: 13696 | V27: 27904 | X27: 13952
B28: 14(10) | C28: 170000 | E28: 5670 | G28: 165000 | H28: ～ | I28: 175000 | J28: 16915 | L28: 8457.5 | N28: 19839 | P28: 9919.5 | R28: 29104 | T28: 14552 | V28: 29648 | X28: 14824
B29: 15(11) | C29: 180000 | E29: 6000 | G29: 175000 | H29: ～ | I29: 185000 | J29: 17910 | L29: 8955 | N29: 21006 | P29: 10503 | R29: 30816 | T29: 15408 | V29: 31392 | X29: 15696
B30: 16(12) | C30: 190000 | E30: 6330 | G30: 185000 | H30: ～ | I30: 195000 | J30: 18905 | L30: 9452.5 | N30: 22173 | P30: 11086.5 | R30: 32528 | T30: 16264 | V30: 33136 | X30: 16568
B31: 17(13) | C31: 200000 | E31: 6670 | G31: 195000 | H31: ～ | I31: 210000 | J31: 19900 | L31: 9950 | N31: 23340 | P31: 11670 | R31: 34240 | T31: 17120 | V31: 34880 | X31: 17440
B32: 18(14) | C32: 220000 | E32: 7330 | G32: 210000 | H32: ～ | I32: 230000 | J32: 21890 | L32: 10945 | N32: 25674 | P32: 12837 | R32: 37664 | T32: 18832 | V32: 38368 | X32: 19184
B33: 19(15) | C33: 240000 | E33: 8000 | G33: 230000 | H33: ～ | I33: 250000 | J33: 23880 | L33: 11940 | N33: 28008 | P33: 14004 | R33: 41088 | T33: 20544 | V33: 41856 | X33: 20928
B34: 20(16) | C34: 260000 | E34: 8670 | G34: 250000 | H34: ～ | I34: 270000 | J34: 25870 | L34: 12935 | N34: 30342 | P34: 15171 | R34: 44512 | T34: 22256 | V34: 45344 | X34: 22672
B35: 21(17) | C35: 280000 | E35: 9330 | G35: 270000 | H35: ～ | I35: 290000 | J35: 27860 | L35: 13930 | N35: 32676 | P35: 16338 | R35: 47936 | T35: 23968 | V35: 48832 | X35: 24416
B36: 22(18) | C36: 300000 | E36: 10000 | G36: 290000 | H36: ～ | I36: 310000 | J36: 29850 | L36: 14925 | N36: 35010 | P36: 17505 | R36: 51360 | T36: 25680 | V36: 52320 | X36: 26160
B37: 23(19) | C37: 320000 | E37: 10670 | G37: 310000 | H37: ～ | I37: 330000 | J37: 31840 | L37: 15920 | N37: 37344 | P37: 18672 | R37: 54784 | T37: 27392 | V37: 55808 | X37: 27904
B38: 24(20) | C38: 340000 | E38: 11330 | G38: 330000 | H38: ～ | I38: 350000 | J38: 33830 | L38: 16915 | N38: 39678 | P38: 19839 | R38: 58208 | T38: 29104 | V38: 59296 | X38: 29648
B39: 25(21) | C39: 360000 | E39: 12000 | G39: 350000 | H39: ～ | I39: 370000 | J39: 35820 | L39: 17910 | N39: 42012 | P39: 21006 | R39: 61632 | T39: 30816 | V39: 62784 | X39: 31392
B40: 26(22) | C40: 380000 | E40: 12670 | G40: 370000 | H40: ～ | I40: 395000 | J40: 37810 | L40: 18905 | N40: 44346 | P40: 22173 | R40: 65056 | T40: 32528 | V40: 66272 | X40: 33136
B41: 27(23) | C41: 410000 | E41: 13670 | G41: 395000 | H41: ～ | I41: 425000 | J41: 40795 | L41: 20397.5 | N41: 47847 | P41: 23923.5 | R41: 70192 | T41: 35096 | V41: 71504 | X41: 35752
B42: 28(24) | C42: 440000 | E42: 14670 | G42: 425000 | H42: ～ | I42: 455000 | J42: 43780 | L42: 21890 | N42: 51348 | P42: 25674 | R42: 75328 | T42: 37664 | V42: 76736 | X42: 38368
B43: 29(25) | C43: 470000 | E43: 15670 | G43: 455000 | H43: ～ | I43: 485000 | J43: 46765 | L43: 23382.5 | N43: 54849 | P43: 27424.5 | R43: 80464 | T43: 40232 | V43: 81968 | X43: 40984
B44: 30(26) | C44: 500000 | E44: 16670 | G44: 485000 | H44: ～ | I44: 515000 | J44: 49750 | L44: 24875 | N44: 58350 | P44: 29175 | R44: 85600 | T44: 42800 | V44: 87200 | X44: 43600
B45: 31(27) | C45: 530000 | E45: 17670 | G45: 515000 | H45: ～ | I45: 545000 | J45: 52735 | L45: 26367.5 | N45: 61851 | P45: 30925.5 | R45: 90736 | T45: 45368 | V45: 92432 | X45: 46216
B46: 32(28) | C46: 560000 | E46: 18670 | G46: 545000 | H46: ～ | I46: 575000 | J46: 55720 | L46: 27860 | N46: 65352 | P46: 32676 | R46: 95872 | T46: 47936 | V46: 97664 | X46: 48832
B47: 33(29) | C47: 590000 | E47: 19670 | G47: 575000 | H47: ～ | I47: 605000 | J47: 58705 | L47: 29352.5 | N47: 68853 | P47: 34426.5 | R47: 101008 | T47: 50504 | V47: 102896 | X47: 51448
B48: 34(30) | C48: 620000 | E48: 20670 | G48: 605000 | H48: ～ | I48: 635000 | J48: 61690 | L48: 30845 | N48: 72354 | P48: 36177 | R48: 106144 | T48: 53072 | V48: 108128 | X48: 54064
B49: 35 | C49: 650000 | E49: 21670 | G49: 635000 | H49: ～ | I49: 665000 | J49: 64675 | L49: 32337.5 | N49: 75855 | P49: 37927.5 | R49: ※厚生年金基金に加入する方の厚生年金保険の保 険料率は、基金ごとに定められている免除保険 料率(2.4%～5.0%)を控除した率となり、次の範 囲内で基金ごとに定められています。 厚生年金基金に加入する ・一般の被保険者の方 …12.120%～14.720% ・坑内員の被保険者の方…12.440%～15.040% 加入する基金ごとに異なりますので、免除保険 料率および厚生年金基金の掛金については、加 入する厚生年金基金にお問い合わせください。
B50: 36 | C50: 680000 | E50: 22670 | G50: 665000 | H50: ～ | I50: 695000 | J50: 67660 | L50: 33830 | N50: 79356 | P50: 39678
B51: 37 | C51: 710000 | E51: 23670 | G51: 695000 | H51: ～ | I51: 730000 | J51: 70645 | L51: 35322.5 | N51: 82857 | P51: 41428.5
B52: 38 | C52: 750000 | E52: 25000 | G52: 730000 | H52: ～ | I52: 770000 | J52: 74625 | L52: 37312.5 | N52: 87525 | P52: 43762.5
B53: 39 | C53: 790000 | E53: 26330 | G53: 770000 | H53: ～ | I53: 810000 | J53: 78605 | L53: 39302.5 | N53: 92193 | P53: 46096.5
B54: 40 | C54: 830000 | E54: 27670 | G54: 810000 | H54: ～ | I54: 855000 | J54: 82585 | L54: 41292.5 | N54: 96861 | P54: 48430.5
B55: 41 | C55: 880000 | E55: 29330 | G55: 855000 | H55: ～ | I55: 905000 | J55: 87560 | L55: 43780 | N55: 102696 | P55: 51348
B56: 42 | C56: 930000 | E56: 31000 | G56: 905000 | H56: ～ | I56: 955000 | J56: 92535 | L56: 46267.5 | N56: 108531 | P56: 54265.5
B57: 43 | C57: 980000 | E57: 32670 | G57: 955000 | H57: ～ | I57: 1005000 | J57: 97510 | L57: 48755 | N57: 114366 | P57: 57183
B58: 44 | C58: 1030000 | E58: 34330 | G58: 1005000 | H58: ～ | I58: 1055000 | J58: 102485 | L58: 51242.5 | N58: 120201 | P58: 60100.5
B59: 45 | C59: 1090000 | E59: 36330 | G59: 1055000 | H59: ～ | I59: 1115000 | J59: 108455 | L59: 54227.5 | N59: 127203 | P59: 63601.5
B60: 46 | C60: 1150000 | E60: 38330 | G60: 1115000 | H60: ～ | I60: 1175000 | J60: 114425 | L60: 57212.5 | N60: 134205 | P60: 67102.5
B61: 47 | C61: 1210000 | E61: 40330 | G61: 1175000 | H61: ～ | J61: 120395 | L61: 60197.5 | N61: 141207 | P61: 70603.5
A63: =J10 -> 0.0995
A65: ◆等級欄の（ ）内の数字は、厚生年金保険の標準報酬月額等級です。
A66: 5(1)等級の「報酬月額」欄は、厚生年金保険の場合「101,000円未満」と読み替えてください。
A67: 34(30)等級の「報酬月額」欄は、厚生年金保険の場合「605,000円以上」と読み替えてください。
A69: ◆平成26年度における協会けんぽの任意継続被保険者の標準報酬月額の上限は、280,000円です。
A71: ○被保険者負担分（表の折半額の欄）に円未満の端数がある場合
A72: ①事業主が、給与から被保険者負担分を控除する場合、被保険者負担分の端数が50銭以下の場合は切り捨て、50銭を超える場合は切り上げて1円となります。
A73: ②被保険者が、被保険者負担分を事業主へ現金で支払う場合、被保険者負担分の端数が50銭未満の場合は切り捨て、50銭以上の場合は切り上げて1円となります。
A74: （注）①、②にかかわらず、事業主と被保険者の間で特約がある場合には、特約に基づき端数処理をすることができます。
A76: ○納入告知書の保険料額について
A77: 納入告知書の保険料額は、被保険者個々の保険料額を合算した金額になります。ただし、合算した金額に円未満の端数がある場合は、その端数を切り捨てた額となります。
A79: ○賞与に係る保険料について
A80: 賞与に係る保険料額は、賞与額から1,000円未満の端数を切り捨てた額（標準賞与額）に、保険料率を乗じた額となります。
A81: また、標準賞与額の上限は、健康保険は年間540万円（毎年4月1日から翌年3月31日までの累計額）となり、厚生年金保険と児童手当拠出金の場合は月間150万円となります。
A83: ○児童手当拠出金について
A84: 厚生年金保険の被保険者を使用する事業主の方は、児童手当等の支給に要する費用の一部として児童手当拠出金を全額負担いただくことになります。この児童手当
A85: 拠出金の額は、被保険者個々の厚生年金保険の標準報酬月額及び標準賞与額に、拠出金率（0.15%）を乗じて得た額の総額となります。

Sheet 群馬 (hidden)
B1: 平成26年3月分(4月納付分)からの健康保険・厚生年金保険の保険料額表
B3: ‣健康保険料率：平成24年3月分～ 適用 ‣厚生年金保険料率：平成25年9月分～平成26年8月分 適用 ‣介護保険料率：平成26年3月分～ 適用 ‣児童手当拠出金率：平成24年4月分～ 適用
B5: （群馬県） | X5: （単位：円）
B6: 標 準 報 酬 | G6: 報 酬 月 額 | J6: 全国健康保険協会管掌健康保険料 | R6: 厚生年金保険料（厚生年金基金加入員を除く）
J7: 介護保険第２号被保険者 に該当しない場合 | N7: 介護保険第２号被保険者 に該当する場合 | R7: 一般の被保険者等 | V7: 坑内員・船員
J10: 0.0995 | N10: =J10+0.0172 -> 0.1167 | R10: 0.1712 | V10: 0.1744
B12: 等級 | C12: 月 額 | E12: 日 額 | J12: 全 額 | L12: 折半額 | N12: 全 額 | P12: 折半額 | R12: 全 額 | T12: 折半額 | V12: 全 額 | X12: 折半額
G14: 円以上 | I14: 円未満
B15: 1 | C15: 58000 | E15: 1930 | H15: ～ | I15: 63000 | J15: =C15*$J$10 -> 5771 | L15: =J15/2 -> 2885.5 | N15: =C15*$N$10 -> 6768.6 | P15: =N15/2 -> 3384.3
B16: 2 | C16: 68000 | E16: 2270 | G16: 63000 | H16: ～ | I16: 73000 | J16: =C16*$J$10 -> 6766 | L16: =J16/2 -> 3383 | N16: =C16*$N$10 -> 7935.6 | P16: =N16/2 -> 3967.8
B17: 3 | C17: 78000 | E17: 2600 | G17: 73000 | H17: ～ | I17: 83000 | J17: 7761 | L17: 3880.5 | N17: 9102.6 | P17: 4551.3
B18: 4 | C18: 88000 | E18: 2930 | G18: 83000 | H18: ～ | I18: 93000 | J18: 8756 | L18: 4378 | N18: =C18*$N$10 -> 10269.6 | P18: 5134.8
B19: 5(1) | C19: 98000 | E19: 3270 | G19: 93000 | H19: ～ | I19: 101000 | J19: 9751 | L19: 4875.5 | N19: 11436.6 | P19: 5718.3 | R19: =C19*$R$10 -> 16777.6 | T19: =R19/2 -> 8388.8 | V19: =C19*$V$10 -> 17091.2 | X19: =V19/2 -> 8545.6
B20: 6(2) | C20: 104000 | E20: 3470 | G20: 101000 | H20: ～ | I20: 107000 | J20: 10348 | L20: 5174 | N20: 12136.8 | P20: 6068.4 | R20: =C20*$R$10 -> 17804.8 | T20: =R20/2 -> 8902.4 | V20: =C20*$V$10 -> 18137.6 | X20: =V20/2 -> 9068.8
B21: 7(3) | C21: 110000 | E21: 3670 | G21: 107000 | H21: ～ | I21: 114000 | J21: 10945 | L21: 5472.5 | N21: 12837 | P21: 6418.5 | R21: 18832 | T21: 9416 | V21: 19184 | X21: 9592
B22: 8(4) | C22: 118000 | E22: 3930 | G22: 114000 | H22: ～ | I22: 122000 | J22: 11741 | L22: 5870.5 | N22: 13770.6 | P22: 6885.3 | R22: 20201.6 | T22: 10100.8 | V22: 20579.2 | X22: 10289.6
B23: 9(5) | C23: 126000 | E23: 4200 | G23: 122000 | H23: ～ | I23: 130000 | J23: 12537 | L23: 6268.5 | N23: 14704.2 | P23: 7352.1 | R23: 21571.2 | T23: 10785.6 | V23: 21974.4 | X23: 10987.2
B24: 10(6) | C24: 134000 | E24: 4470 | G24: 130000 | H24: ～ | I24: 138000 | J24: 13333 | L24: 6666.5 | N24: 15637.8 | P24: 7818.9 | R24: 22940.8 | T24: 11470.4 | V24: 23369.6 | X24: 11684.8
B25: 11(7) | C25: 142000 | E25: 4730 | G25: 138000 | H25: ～ | I25: 146000 | J25: 14129 | L25: 7064.5 | N25: 16571.4 | P25: 8285.7 | R25: 24310.4 | T25: 12155.2 | V25: 24764.8 | X25: 12382.4
B26: 12(8) | C26: 150000 | E26: 5000 | G26: 146000 | H26: ～ | I26: 155000 | J26: 14925 | L26: 7462.5 | N26: 17505 | P26: 8752.5 | R26: 25680 | T26: 12840 | V26: 26160 | X26: 13080
B27: 13(9) | C27: 160000 | E27: 5330 | G27: 155000 | H27: ～ | I27: 165000 | J27: 15920 | L27: 7960 | N27: 18672 | P27: 9336 | R27: 27392 | T27: 13696 | V27: 27904 | X27: 13952
B28: 14(10) | C28: 170000 | E28: 5670 | G28: 165000 | H28: ～ | I28: 175000 | J28: 16915 | L28: 8457.5 | N28: 19839 | P28: 9919.5 | R28: 29104 | T28: 14552 | V28: 29648 | X28: 14824
B29: 15(11) | C29: 180000 | E29: 6000 | G29: 175000 | H29: ～ | I29: 185000 | J29: 17910 | L29: 8955 | N29: 21006 | P29: 10503 | R29: 30816 | T29: 15408 | V29: 31392 | X29: 15696
B30: 16(12) | C30: 190000 | E30: 6330 | G30: 185000 | H30: ～ | I30: 195000 | J30: 18905 | L30: 9452.5 | N30: 22173 | P30: 11086.5 | R30: 32528 | T30: 16264 | V30: 33136 | X30: 16568
B31: 17(13) | C31: 200000 | E31: 6670 | G31: 195000 | H31: ～ | I31: 210000 | J31: 19900 | L31: 9950 | N31: 23340 | P31: 11670 | R31: 34240 | T31: 17120 | V31: 34880 | X31: 17440
B32: 18(14) | C32: 220000 | E32: 7330 | G32: 210000 | H32: ～ | I32: 230000 | J32: 21890 | L32: 10945 | N32: 25674 | P32: 12837 | R32: 37664 | T32: 18832 | V32: 38368 | X32: 19184
B33: 19(15) | C33: 240000 | E33: 8000 | G33: 230000 | H33: ～ | I33: 250000 | J33: 23880 | L33: 11940 | N33: 28008 | P33: 14004 | R33: 41088 | T33: 20544 | V33: 41856 | X33: 20928
B34: 20(16) | C34: 260000 | E34: 8670 | G34: 250000 | H34: ～ | I34: 270000 | J34: 25870 | L34: 12935 | N34: 30342 | P34: 15171 | R34: 44512 | T34: 22256 | V34: 45344 | X34: 22672
B35: 21(17) | C35: 280000 | E35: 9330 | G35: 270000 | H35: ～ | I35: 290000 | J35: 27860 | L35: 13930 | N35: 32676 | P35: 16338 | R35: 47936 | T35: 23968 | V35: 48832 | X35: 24416
B36: 22(18) | C36: 300000 | E36: 10000 | G36: 290000 | H36: ～ | I36: 310000 | J36: 29850 | L36: 14925 | N36: 35010 | P36: 17505 | R36: 51360 | T36: 25680 | V36: 52320 | X36: 26160
B37: 23(19) | C37: 320000 | E37: 10670 | G37: 310000 | H37: ～ | I37: 330000 | J37: 31840 | L37: 15920 | N37: 37344 | P37: 18672 | R37: 54784 | T37: 27392 | V37: 55808 | X37: 27904
B38: 24(20) | C38: 340000 | E38: 11330 | G38: 330000 | H38: ～ | I38: 350000 | J38: 33830 | L38: 16915 | N38: 39678 | P38: 19839 | R38: 58208 | T38: 29104 | V38: 59296 | X38: 29648
B39: 25(21) | C39: 360000 | E39: 12000 | G39: 350000 | H39: ～ | I39: 370000 | J39: 35820 | L39: 17910 | N39: 42012 | P39: 21006 | R39: 61632 | T39: 30816 | V39: 62784 | X39: 31392
B40: 26(22) | C40: 380000 | E40: 12670 | G40: 370000 | H40: ～ | I40: 395000 | J40: 37810 | L40: 18905 | N40: 44346 | P40: 22173 | R40: 65056 | T40: 32528 | V40: 66272 | X40: 33136
B41: 27(23) | C41: 410000 | E41: 13670 | G41: 395000 | H41: ～ | I41: 425000 | J41: 40795 | L41: 20397.5 | N41: 47847 | P41: 23923.5 | R41: 70192 | T41: 35096 | V41: 71504 | X41: 35752
B42: 28(24) | C42: 440000 | E42: 14670 | G42: 425000 | H42: ～ | I42: 455000 | J42: 43780 | L42: 21890 | N42: 51348 | P42: 25674 | R42: 75328 | T42: 37664 | V42: 76736 | X42: 38368
B43: 29(25) | C43: 470000 | E43: 15670 | G43: 455000 | H43: ～ | I43: 485000 | J43: 46765 | L43: 23382.5 | N43: 54849 | P43: 27424.5 | R43: 80464 | T43: 40232 | V43: 81968 | X43: 40984
B44: 30(26) | C44: 500000 | E44: 16670 | G44: 485000 | H44: ～ | I44: 515000 | J44: 49750 | L44: 24875 | N44: 58350 | P44: 29175 | R44: 85600 | T44: 42800 | V44: 87200 | X44: 43600
B45: 31(27) | C45: 530000 | E45: 17670 | G45: 515000 | H45: ～ | I45: 545000 | J45: 52735 | L45: 26367.5 | N45: 61851 | P45: 30925.5 | R45: 90736 | T45: 45368 | V45: 92432 | X45: 46216
B46: 32(28) | C46: 560000 | E46: 18670 | G46: 545000 | H46: ～ | I46: 575000 | J46: 55720 | L46: 27860 | N46: 65352 | P46: 32676 | R46: 95872 | T46: 47936 | V46: 97664 | X46: 48832
B47: 33(29) | C47: 590000 | E47: 19670 | G47: 575000 | H47: ～ | I47: 605000 | J47: 58705 | L47: 29352.5 | N47: 68853 | P47: 34426.5 | R47: 101008 | T47: 50504 | V47: 102896 | X47: 51448
B48: 34(30) | C48: 620000 | E48: 20670 | G48: 605000 | H48: ～ | I48: 635000 | J48: 61690 | L48: 30845 | N48: 72354 | P48: 36177 | R48: 106144 | T48: 53072 | V48: 108128 | X48: 54064
B49: 35 | C49: 650000 | E49: 21670 | G49: 635000 | H49: ～ | I49: 665000 | J49: 64675 | L49: 32337.5 | N49: 75855 | P49: 37927.5 | R49: ※厚生年金基金に加入する方の厚生年金保険の保 険料率は、基金ごとに定められている免除保険 料率(2.4%～5.0%)を控除した率となり、次の範 囲内で基金ごとに定められています。 厚生年金基金に加入する ・一般の被保険者の方 …12.120%～14.720% ・坑内員の被保険者の方…12.440%～15.040% 加入する基金ごとに異なりますので、免除保険 料率および厚生年金基金の掛金については、加 入する厚生年金基金にお問い合わせください。
B50: 36 | C50: 680000 | E50: 22670 | G50: 665000 | H50: ～ | I50: 695000 | J50: 67660 | L50: 33830 | N50: 79356 | P50: 39678
B51: 37 | C51: 710000 | E51: 23670 | G51: 695000 | H51: ～ | I51: 730000 | J51: 70645 | L51: 35322.5 | N51: 82857 | P51: 41428.5
B52: 38 | C52: 750000 | E52: 25000 | G52: 730000 | H52: ～ | I52: 770000 | J52: 74625 | L52: 37312.5 | N52: 87525 | P52: 43762.5
B53: 39 | C53: 790000 | E53: 26330 | G53: 770000 | H53: ～ | I53: 810000 | J53: 78605 | L53: 39302.5 | N53: 92193 | P53: 46096.5
B54: 40 | C54: 830000 | E54: 27670 | G54: 810000 | H54: ～ | I54: 855000 | J54: 82585 | L54: 41292.5 | N54: 96861 | P54: 48430.5
B55: 41 | C55: 880000 | E55: 29330 | G55: 855000 | H55: ～ | I55: 905000 | J55: 87560 | L55: 43780 | N55: 102696 | P55: 51348
B56: 42 | C56: 930000 | E56: 31000 | G56: 905000 | H56: ～ | I56: 955000 | J56: 92535 | L56: 46267.5 | N56: 108531 | P56: 54265.5
B57: 43 | C57: 980000 | E57: 32670 | G57: 955000 | H57: ～ | I57: 1005000 | J57: 97510 | L57: 48755 | N57: 114366 | P57: 57183
B58: 44 | C58: 1030000 | E58: 34330 | G58: 1005000 | H58: ～ | I58: 1055000 | J58: 102485 | L58: 51242.5 | N58: 120201 | P58: 60100.5
B59: 45 | C59: 1090000 | E59: 36330 | G59: 1055000 | H59: ～ | I59: 1115000 | J59: 108455 | L59: 54227.5 | N59: 127203 | P59: 63601.5
B60: 46 | C60: 1150000 | E60: 38330 | G60: 1115000 | H60: ～ | I60: 1175000 | J60: 114425 | L60: 57212.5 | N60: 134205 | P60: 67102.5
B61: 47 | C61: 1210000 | E61: 40330 | G61: 1175000 | H61: ～ | J61: 120395 | L61: 60197.5 | N61: 141207 | P61: 70603.5
A63: =J10 -> 0.0995
A65: ◆等級欄の（ ）内の数字は、厚生年金保険の標準報酬月額等級です。
A66: 5(1)等級の「報酬月額」欄は、厚生年金保険の場合「101,000円未満」と読み替えてください。
A67: 34(30)等級の「報酬月額」欄は、厚生年金保険の場合「605,000円以上」と読み替えてください。
A69: ◆平成26年度における協会けんぽの任意継続被保険者の標準報酬月額の上限は、280,000円です。
A71: ○被保険者負担分（表の折半額の欄）に円未満の端数がある場合
A72: ①事業主が、給与から被保険者負担分を控除する場合、被保険者負担分の端数が50銭以下の場合は切り捨て、50銭を超える場合は切り上げて1円となります。
A73: ②被保険者が、被保険者負担分を事業主へ現金で支払う場合、被保険者負担分の端数が50銭未満の場合は切り捨て、50銭以上の場合は切り上げて1円となります。
A74: （注）①、②にかかわらず、事業主と被保険者の間で特約がある場合には、特約に基づき端数処理をすることができます。
A76: ○納入告知書の保険料額について
A77: 納入告知書の保険料額は、被保険者個々の保険料額を合算した金額になります。ただし、合算した金額に円未満の端数がある場合は、その端数を切り捨てた額となります。
A79: ○賞与に係る保険料について
A80: 賞与に係る保険料額は、賞与額から1,000円未満の端数を切り捨てた額（標準賞与額）に、保険料率を乗じた額となります。
A81: また、標準賞与額の上限は、健康保険は年間540万円（毎年4月1日から翌年3月31日までの累計額）となり、厚生年金保険と児童手当拠出金の場合は月間150万円となります。
A83: ○児童手当拠出金について
A84: 厚生年金保険の被保険者を使用する事業主の方は、児童手当等の支給に要する費用の一部として児童手当拠出金を全額負担いただくことになります。この児童手当
A85: 拠出金の額は、被保険者個々の厚生年金保険の標準報酬月額及び標準賞与額に、拠出金率（0.15%）を乗じて得た額の総額となります。

Sheet 埼玉 (hidden)
B1: 平成26年3月分(4月納付分)からの健康保険・厚生年金保険の保険料額表
B3: ‣健康保険料率：平成24年3月分～ 適用 ‣厚生年金保険料率：平成25年9月分～平成26年8月分 適用 ‣介護保険料率：平成26年3月分～ 適用 ‣児童手当拠出金率：平成24年4月分～ 適用
B5: （埼玉県） | X5: （単位：円）
B6: 標 準 報 酬 | G6: 報 酬 月 額 | J6: 全国健康保険協会管掌健康保険料 | R6: 厚生年金保険料（厚生年金基金加入員を除く）
J7: 介護保険第２号被保険者 に該当しない場合 | N7: 介護保険第２号被保険者 に該当する場合 | R7: 一般の被保険者等 | V7: 坑内員・船員
J10: 0.0994 | N10: =J10+0.0172 -> 0.1166 | R10: 0.1712 | V10: 0.1744
B12: 等級 | C12: 月 額 | E12: 日 額 | J12: 全 額 | L12: 折半額 | N12: 全 額 | P12: 折半額 | R12: 全 額 | T12: 折半額 | V12: 全 額 | X12: 折半額
G14: 円以上 | I14: 円未満
B15: 1 | C15: 58000 | E15: 1930 | H15: ～ | I15: 63000 | J15: =C15*$J$10 -> 5765.2 | L15: =J15/2 -> 2882.6 | N15: =C15*$N$10 -> 6762.8 | P15: =N15/2 -> 3381.4
B16: 2 | C16: 68000 | E16: 2270 | G16: 63000 | H16: ～ | I16: 73000 | J16: =C16*$J$10 -> 6759.2 | L16: =J16/2 -> 3379.6 | N16: =C16*$N$10 -> 7928.8 | P16: =N16/2 -> 3964.4
B17: 3 | C17: 78000 | E17: 2600 | G17: 73000 | H17: ～ | I17: 83000 | J17: 7753.2 | L17: 3876.6 | N17: 9094.8 | P17: 4547.4
B18: 4 | C18: 88000 | E18: 2930 | G18: 83000 | H18: ～ | I18: 93000 | J18: 8747.2 | L18: 4373.6 | N18: =C18*$N$10 -> 10260.8 | P18: 5130.4
B19: 5(1) | C19: 98000 | E19: 3270 | G19: 93000 | H19: ～ | I19: 101000 | J19: 9741.2 | L19: 4870.6 | N19: 11426.8 | P19: 5713.4 | R19: =C19*$R$10 -> 16777.6 | T19: =R19/2 -> 8388.8 | V19: =C19*$V$10 -> 17091.2 | X19: =V19/2 -> 8545.6
B20: 6(2) | C20: 104000 | E20: 3470 | G20: 101000 | H20: ～ | I20: 107000 | J20: 10337.6 | L20: 5168.8 | N20: 12126.4 | P20: 6063.2 | R20: =C20*$R$10 -> 17804.8 | T20: =R20/2 -> 8902.4 | V20: =C20*$V$10 -> 18137.6 | X20: =V20/2 -> 9068.8
B21: 7(3) | C21: 110000 | E21: 3670 | G21: 107000 | H21: ～ | I21: 114000 | J21: 10934 | L21: 5467 | N21: 12826 | P21: 6413 | R21: 18832 | T21: 9416 | V21: 19184 | X21: 9592
B22: 8(4) | C22: 118000 | E22: 3930 | G22: 114000 | H22: ～ | I22: 122000 | J22: 11729.2 | L22: 5864.6 | N22: 13758.8 | P22: 6879.4 | R22: 20201.6 | T22: 10100.8 | V22: 20579.2 | X22: 10289.6
B23: 9(5) | C23: 126000 | E23: 4200 | G23: 122000 | H23: ～ | I23: 130000 | J23: 12524.4 | L23: 6262.2 | N23: 14691.6 | P23: 7345.8 | R23: 21571.2 | T23: 10785.6 | V23: 21974.4 | X23: 10987.2
B24: 10(6) | C24: 134000 | E24: 4470 | G24: 130000 | H24: ～ | I24: 138000 | J24: 13319.6 | L24: 6659.8 | N24: 15624.4 | P24: 7812.2 | R24: 22940.8 | T24: 11470.4 | V24: 23369.6 | X24: 11684.8
B25: 11(7) | C25: 142000 | E25: 4730 | G25: 138000 | H25: ～ | I25: 146000 | J25: 14114.8 | L25: 7057.4 | N25: 16557.2 | P25: 8278.6 | R25: 24310.4 | T25: 12155.2 | V25: 24764.8 | X25: 12382.4
B26: 12(8) | C26: 150000 | E26: 5000 | G26: 146000 | H26: ～ | I26: 155000 | J26: 14910 | L26: 7455 | N26: 17490 | P26: 8745 | R26: 25680 | T26: 12840 | V26: 26160 | X26: 13080
B27: 13(9) | C27: 160000 | E27: 5330 | G27: 155000 | H27: ～ | I27: 165000 | J27: 15904 | L27: 7952 | N27: 18656 | P27: 9328 | R27: 27392 | T27: 13696 | V27: 27904 | X27: 13952
B28: 14(10) | C28: 170000 | E28: 5670 | G28: 165000 | H28: ～ | I28: 175000 | J28: 16898 | L28: 8449 | N28: 19822 | P28: 9911 | R28: 29104 | T28: 14552 | V28: 29648 | X28: 14824
B29: 15(11) | C29: 180000 | E29: 6000 | G29: 175000 | H29: ～ | I29: 185000 | J29: 17892 | L29: 8946 | N29: 20988 | P29: 10494 | R29: 30816 | T29: 15408 | V29: 31392 | X29: 15696
B30: 16(12) | C30: 190000 | E30: 6330 | G30: 185000 | H30: ～ | I30: 195000 | J30: 18886 | L30: 9443 | N30: 22154 | P30: 11077 | R30: 32528 | T30: 16264 | V30: 33136 | X30: 16568
B31: 17(13) | C31: 200000 | E31: 6670 | G31: 195000 | H31: ～ | I31: 210000 | J31: 19880 | L31: 9940 | N31: 23320 | P31: 11660 | R31: 34240 | T31: 17120 | V31: 34880 | X31: 17440
B32: 18(14) | C32: 220000 | E32: 7330 | G32: 210000 | H32: ～ | I32: 230000 | J32: 21868 | L32: 10934 | N32: 25652 | P32: 12826 | R32: 37664 | T32: 18832 | V32: 38368 | X32: 19184
B33: 19(15) | C33: 240000 | E33: 8000 | G33: 230000 | H33: ～ | I33: 250000 | J33: 23856 | L33: 11928 | N33: 27984 | P33: 13992 | R33: 41088 | T33: 20544 | V33: 41856 | X33: 20928
B34: 20(16) | C34: 260000 | E34: 8670 | G34: 250000 | H34: ～ | I34: 270000 | J34: 25844 | L34: 12922 | N34: 30316 | P34: 15158 | R34: 44512 | T34: 22256 | V34: 45344 | X34: 22672
B35: 21(17) | C35: 280000 | E35: 9330 | G35: 270000 | H35: ～ | I35: 290000 | J35: 27832 | L35: 13916 | N35: 32648 | P35: 16324 | R35: 47936 | T35: 23968 | V35: 48832 | X35: 24416
B36: 22(18) | C36: 300000 | E36: 10000 | G36: 290000 | H36: ～ | I36: 310000 | J36: 29820 | L36: 14910 | N36: 34980 | P36: 17490 | R36: 51360 | T36: 25680 | V36: 52320 | X36: 26160
B37: 23(19) | C37: 320000 | E37: 10670 | G37: 310000 | H37: ～ | I37: 330000 | J37: 31808 | L37: 15904 | N37: 37312 | P37: 18656 | R37: 54784 | T37: 27392 | V37: 55808 | X37: 27904
B38: 24(20) | C38: 340000 | E38: 11330 | G38: 330000 | H38: ～ | I38: 350000 | J38: 33796 | L38: 16898 | N38: 39644 | P38: 19822 | R38: 58208 | T38: 29104 | V38: 59296 | X38: 29648
B39: 25(21) | C39: 360000 | E39: 12000 | G39: 350000 | H39: ～ | I39: 370000 | J39: 35784 | L39: 17892 | N39: 41976 | P39: 20988 | R39: 61632 | T39: 30816 | V39: 62784 | X39: 31392
B40: 26(22) | C40: 380000 | E40: 12670 | G40: 370000 | H40: ～ | I40: 395000 | J40: 37772 | L40: 18886 | N40: 44308 | P40: 22154 | R40: 65056 | T40: 32528 | V40: 66272 | X40: 33136
B41: 27(23) | C41: 410000 | E41: 13670 | G41: 395000 | H41: ～ | I41: 425000 | J41: 40754 | L41: 20377 | N41: 47806 | P41: 23903 | R41: 70192 | T41: 35096 | V41: 71504 | X41: 35752
B42: 28(24) | C42: 440000 | E42: 14670 | G42: 425000 | H42: ～ | I42: 455000 | J42: 43736 | L42: 21868 | N42: 51304 | P42: 25652 | R42: 75328 | T42: 37664 | V42: 76736 | X42: 38368
B43: 29(25) | C43: 470000 | E43: 15670 | G43: 455000 | H43: ～ | I43: 485000 | J43: 46718 | L43: 23359 | N43: 54802 | P43: 27401 | R43: 80464 | T43: 40232 | V43: 81968 | X43: 40984
B44: 30(26) | C44: 500000 | E44: 16670 | G44: 485000 | H44: ～ | I44: 515000 | J44: 49700 | L44: 24850 | N44: 58300 | P44: 29150 | R44: 85600 | T44: 42800 | V44: 87200 | X44: 43600
B45: 31(27) | C45: 530000 | E45: 17670 | G45: 515000 | H45: ～ | I45: 545000 | J45: 52682 | L45: 26341 | N45: 61798 | P45: 30899 | R45: 90736 | T45: 45368 | V45: 92432 | X45: 46216
B46: 32(28) | C46: 560000 | E46: 18670 | G46: 545000 | H46: ～ | I46: 575000 | J46: 55664 | L46: 27832 | N46: 65296 | P46: 32648 | R46: 95872 | T46: 47936 | V46: 97664 | X46: 48832
B47: 33(29) | C47: 590000 | E47: 19670 | G47: 575000 | H47: ～ | I47: 605000 | J47: 58646 | L47: 29323 | N47: 68794 | P47: 34397 | R47: 101008 | T47: 50504 | V47: 102896 | X47: 51448
B48: 34(30) | C48: 620000 | E48: 20670 | G48: 605000 | H48: ～ | I48: 635000 | J48: 61628 | L48: 30814 | N48: 72292 | P48: 36146 | R48: 106144 | T48: 53072 | V48: 108128 | X48: 54064
B49: 35 | C49: 650000 | E49: 21670 | G49: 635000 | H49: ～ | I49: 665000 | J49: 64610 | L49: 32305 | N49: 75790 | P49: 37895 | R49: ※厚生年金基金に加入する方の厚生年金保険の保 険料率は、基金ごとに定められている免除保険 料率(2.4%～5.0%)を控除した率となり、次の範 囲内で基金ごとに定められています。 厚生年金基金に加入する ・一般の被保険者の方 …12.120%～14.720% ・坑内員の被保険者の方…12.440%～15.040% 加入する基金ごとに異なりますので、免除保険 料率および厚生年金基金の掛金については、加 入する厚生年金基金にお問い合わせください。
B50: 36 | C50: 680000 | E50: 22670 | G50: 665000 | H50: ～ | I50: 695000 | J50: 67592 | L50: 33796 | N50: 79288 | P50: 39644
B51: 37 | C51: 710000 | E51: 23670 | G51: 695000 | H51: ～ | I51: 730000 | J51: 70574 | L51: 35287 | N51: 82786 | P51: 41393
B52: 38 | C52: 750000 | E52: 25000 | G52: 730000 | H52: ～ | I52: 770000 | J52: 74550 | L52: 37275 | N52: 87450 | P52: 43725
B53: 39 | C53: 790000 | E53: 26330 | G53: 770000 | H53: ～ | I53: 810000 | J53: 78526 | L53: 39263 | N53: 92114 | P53: 46057
B54: 40 | C54: 830000 | E54: 27670 | G54: 810000 | H54: ～ | I54: 855000 | J54: 82502 | L54: 41251 | N54: 96778 | P54: 48389
B55: 41 | C55: 880000 | E55: 29330 | G55: 855000 | H55: ～ | I55: 905000 | J55: 87472 | L55: 43736 | N55: 102608 | P55: 51304
B56: 42 | C56: 930000 | E56: 31000 | G56: 905000 | H56: ～ | I56: 955000 | J56: 92442 | L56: 46221 | N56: 108438 | P56: 54219
B57: 43 | C57: 980000 | E57: 32670 | G57: 955000 | H57: ～ | I57: 1005000 | J57: 97412 | L57: 48706 | N57: 114268 | P57: 57134
B58: 44 | C58: 1030000 | E58: 34330 | G58: 1005000 | H58: ～ | I58: 1055000 | J58: 102382 | L58: 51191 | N58: 120098 | P58: 60049
B59: 45 | C59: 1090000 | E59: 36330 | G59: 1055000 | H59: ～ | I59: 1115000 | J59: 108346 | L59: 54173 | N59: 127094 | P59: 63547
B60: 46 | C60: 1150000 | E60: 38330 | G60: 1115000 | H60: ～ | I60: 1175000 | J60: 114310 | L60: 57155 | N60: 134090 | P60: 67045
B61: 47 | C61: 1210000 | E61: 40330 | G61: 1175000 | H61: ～ | J61: 120274 | L61: 60137 | N61: 141086 | P61: 70543
A63: =J10 -> 0.0994
A65: ◆等級欄の（ ）内の数字は、厚生年金保険の標準報酬月額等級です。
A66: 5(1)等級の「報酬月額」欄は、厚生年金保険の場合「101,000円未満」と読み替えてください。
A67: 34(30)等級の「報酬月額」欄は、厚生年金保険の場合「605,000円以上」と読み替えてください。
A69: ◆平成26年度における協会けんぽの任意継続被保険者の標準報酬月額の上限は、280,000円です。
A71: ○被保険者負担分（表の折半額の欄）に円未満の端数がある場合
A72: ①事業主が、給与から被保険者負担分を控除する場合、被保険者負担分の端数が50銭以下の場合は切り捨て、50銭を超える場合は切り上げて1円となります。
A73: ②被保険者が、被保険者負担分を事業主へ現金で支払う場合、被保険者負担分の端数が50銭未満の場合は切り捨て、50銭以上の場合は切り上げて1円となります。
A74: （注）①、②にかかわらず、事業主と被保険者の間で特約がある場合には、特約に基づき端数処理をすることができます。
A76: ○納入告知書の保険料額について
A77: 納入告知書の保険料額は、被保険者個々の保険料額を合算した金額になります。ただし、合算した金額に円未満の端数がある場合は、その端数を切り捨てた額となります。
A79: ○賞与に係る保険料について
A80: 賞与に係る保険料額は、賞与額から1,000円未満の端数を切り捨てた額（標準賞与額）に、保険料率を乗じた額となります。
A81: また、標準賞与額の上限は、健康保険は年間540万円（毎年4月1日から翌年3月31日までの累計額）となり、厚生年金保険と児童手当拠出金の場合は月間150万円となります。
A83: ○児童手当拠出金について
A84: 厚生年金保険の被保険者を使用する事業主の方は、児童手当等の支給に要する費用の一部として児童手当拠出金を全額負担いただくことになります。この児童手当
A85: 拠出金の額は、被保険者個々の厚生年金保険の標準報酬月額及び標準賞与額に、拠出金率（0.15%）を乗じて得た額の総額となります。

Sheet 千葉 (hidden)
B1: 平成26年3月分(4月納付分)からの健康保険・厚生年金保険の保険料額表
B3: ‣健康保険料率：平成24年3月分～ 適用 ‣厚生年金保険料率：平成25年9月分～平成26年8月分 適用 ‣介護保険料率：平成26年3月分～ 適用 ‣児童手当拠出金率：平成24年4月分～ 適用
B5: （千葉県） | X5: （単位：円）
B6: 標 準 報 酬 | G6: 報 酬 月 額 | J6: 全国健康保険協会管掌健康保険料 | R6: 厚生年金保険料（厚生年金基金加入員を除く）
J7: 介護保険第２号被保険者 に該当しない場合 | N7: 介護保険第２号被保険者 に該当する場合 | R7: 一般の被保険者等 | V7: 坑内員・船員
J10: 0.0993 | N10: =J10+0.0172 -> 0.1165 | R10: 0.1712 | V10: 0.1744
B12: 等級 | C12: 月 額 | E12: 日 額 | J12: 全 額 | L12: 折半額 | N12: 全 額 | P12: 折半額 | R12: 全 額 | T12: 折半額 | V12: 全 額 | X12: 折半額
G14: 円以上 | I14: 円未満
B15: 1 | C15: 58000 | E15: 1930 | H15: ～ | I15: 63000 | J15: =C15*$J$10 -> 5759.4 | L15: =J15/2 -> 2879.7 | N15: =C15*$N$10 -> 6757 | P15: =N15/2 -> 3378.5
B16: 2 | C16: 68000 | E16: 2270 | G16: 63000 | H16: ～ | I16: 73000 | J16: =C16*$J$10 -> 6752.4 | L16: =J16/2 -> 3376.2 | N16: =C16*$N$10 -> 7922 | P16: =N16/2 -> 3961
B17: 3 | C17: 78000 | E17: 2600 | G17: 73000 | H17: ～ | I17: 83000 | J17: 7745.4 | L17: 3872.7 | N17: 9087 | P17: 4543.5
B18: 4 | C18: 88000 | E18: 2930 | G18: 83000 | H18: ～ | I18: 93000 | J18: 8738.4 | L18: 4369.2 | N18: =C18*$N$10 -> 10252 | P18: 5126
B19: 5(1) | C19: 98000 | E19: 3270 | G19: 93000 | H19: ～ | I19: 101000 | J19: 9731.4 | L19: 4865.7 | N19: 11417 | P19: 5708.5 | R19: =C19*$R$10 -> 16777.6 | T19: =R19/2 -> 8388.8 | V19: =C19*$V$10 -> 17091.2 | X19: =V19/2 -> 8545.6
B20: 6(2) | C20: 104000 | E20: 3470 | G20: 101000 | H20: ～ | I20: 107000 | J20: 10327.2 | L20: 5163.6 | N20: 12116 | P20: 6058 | R20: =C20*$R$10 -> 17804.8 | T20: =R20/2 -> 8902.4 | V20: =C20*$V$10 -> 18137.6 | X20: =V20/2 -> 9068.8
B21: 7(3) | C21: 110000 | E21: 3670 | G21: 107000 | H21: ～ | I21: 114000 | J21: 10923 | L21: 5461.5 | N21: 12815 | P21: 6407.5 | R21: 18832 | T21: 9416 | V21: 19184 | X21: 9592
B22: 8(4) | C22: 118000 | E22: 3930 | G22: 114000 | H22: ～ | I22: 122000 | J22: 11717.4 | L22: 5858.7 | N22: 13747 | P22: 6873.5 | R22: 20201.6 | T22: 10100.8 | V22: 20579.2 | X22: 10289.6
B23: 9(5) | C23: 126000 | E23: 4200 | G23: 122000 | H23: ～ | I23: 130000 | J23: 12511.8 | L23: 6255.9 | N23: 14679 | P23: 7339.5 | R23: 21571.2 | T23: 10785.6 | V23: 21974.4 | X23: 10987.2
B24: 10(6) | C24: 134000 | E24: 4470 | G24: 130000 | H24: ～ | I24: 138000 | J24: 13306.2 | L24: 6653.1 | N24: 15611 | P24: 7805.5 | R24: 22940.8 | T24: 11470.4 | V24: 23369.6 | X24: 11684.8
B25: 11(7) | C25: 142000 | E25: 4730 | G25: 138000 | H25: ～ | I25: 146000 | J25: 14100.6 | L25: 7050.3 | N25: 16543 | P25: 8271.5 | R25: 24310.4 | T25: 12155.2 | V25: 24764.8 | X25: 12382.4
B26: 12(8) | C26: 150000 | E26: 5000 | G26: 146000 | H26: ～ | I26: 155000 | J26: 14895 | L26: 7447.5 | N26: 17475 | P26: 8737.5 | R26: 25680 | T26: 12840 | V26: 26160 | X26: 13080
B27: 13(9) | C27: 160000 | E27: 5330 | G27: 155000 | H27: ～ | I27: 165000 | J27: 15888 | L27: 7944 | N27: 18640 | P27: 9320 | R27: 27392 | T27: 13696 | V27: 27904 | X27: 13952
B28: 14(10) | C28: 170000 | E28: 5670 | G28: 165000 | H28: ～ | I28: 175000 | J28: 16881 | L28: 8440.5 | N28: 19805 | P28: 9902.5 | R28: 29104 | T28: 14552 | V28: 29648 | X28: 14824
B29: 15(11) | C29: 180000 | E29: 6000 | G29: 175000 | H29: ～ | I29: 185000 | J29: 17874 | L29: 8937 | N29: 20970 | P29: 10485 | R29: 30816 | T29: 15408 | V29: 31392 | X29: 15696
B30: 16(12) | C30: 190000 | E30: 6330 | G30: 185000 | H30: ～ | I30: 195000 | J30: 18867 | L30: 9433.5 | N30: 22135 | P30: 11067.5 | R30: 32528 | T30: 16264 | V30: 33136 | X30: 16568
B31: 17(13) | C31: 200000 | E31: 6670 | G31: 195000 | H31: ～ | I31: 210000 | J31: 19860 | L31: 9930 | N31: 23300 | P31: 11650 | R31: 34240 | T31: 17120 | V31: 34880 | X31: 17440
B32: 18(14) | C32: 220000 | E32: 7330 | G32: 210000 | H32: ～ | I32: 230000 | J32: 21846 | L32: 10923 | N32: 25630 | P32: 12815 | R32: 37664 | T32: 18832 | V32: 38368 | X32: 19184
B33: 19(15) | C33: 240000 | E33: 8000 | G33: 230000 | H33: ～ | I33: 250000 | J33: 23832 | L33: 11916 | N33: 27960 | P33: 13980 | R33: 41088 | T33: 20544 | V33: 41856 | X33: 20928
B34: 20(16) | C34: 260000 | E34: 8670 | G34: 250000 | H34: ～ | I34: 270000 | J34: 25818 | L34: 12909 | N34: 30290 | P34: 15145 | R34: 44512 | T34: 22256 | V34: 45344 | X34: 22672
B35: 21(17) | C35: 280000 | E35: 9330 | G35: 270000 | H35: ～ | I35: 290000 | J35: 27804 | L35: 13902 | N35: 32620 | P35: 16310 | R35: 47936 | T35: 23968 | V35: 48832 | X35: 24416
B36: 22(18) | C36: 300000 | E36: 10000 | G36: 290000 | H36: ～ | I36: 310000 | J36: 29790 | L36: 14895 | N36: 34950 | P36: 17475 | R36: 51360 | T36: 25680 | V36: 52320 | X36: 26160
B37: 23(19) | C37: 320000 | E37: 10670 | G37: 310000 | H37: ～ | I37: 330000 | J37: 31776 | L37: 15888 | N37: 37280 | P37: 18640 | R37: 54784 | T37: 27392 | V37: 55808 | X37: 27904
B38: 24(20) | C38: 340000 | E38: 11330 | G38: 330000 | H38: ～ | I38: 350000 | J38: 33762 | L38: 16881 | N38: 39610 | P38: 19805 | R38: 58208 | T38: 29104 | V38: 59296 | X38: 29648
B39: 25(21) | C39: 360000 | E39: 12000 | G39: 350000 | H39: ～ | I39: 370000 | J39: 35748 | L39: 17874 | N39: 41940 | P39: 20970 | R39: 61632 | T39: 30816 | V39: 62784 | X39: 31392
B40: 26(22) | C40: 380000 | E40: 12670 | G40: 370000 | H40: ～ | I40: 395000 | J40: 37734 | L40: 18867 | N40: 44270 | P40: 22135 | R40: 65056 | T40: 32528 | V40: 66272 | X40: 33136
B41: 27(23) | C41: 410000 | E41: 13670 | G41: 395000 | H41: ～ | I41: 425000 | J41: 40713 | L41: 20356.5 | N41: 47765 | P41: 23882.5 | R41: 70192 | T41: 35096 | V41: 71504 | X41: 35752
B42: 28(24) | C42: 440000 | E42: 14670 | G42: 425000 | H42: ～ | I42: 455000 | J42: 43692 | L42: 21846 | N42: 51260 | P42: 25630 | R42: 75328 | T42: 37664 | V42: 76736 | X42: 38368
B43: 29(25) | C43: 470000 | E43: 15670 | G43: 455000 | H43: ～ | I43: 485000 | J43: 46671 | L43: 23335.5 | N43: 54755 | P43: 27377.5 | R43: 80464 | T43: 40232 | V43: 81968 | X43: 40984
B44: 30(26) | C44: 500000 | E44: 16670 | G44: 485000 | H44: ～ | I44: 515000 | J44: 49650 | L44: 24825 | N44: 58250 | P44: 29125 | R44: 85600 | T44: 42800 | V44: 87200 | X44: 43600
B45: 31(27) | C45: 530000 | E45: 17670 | G45: 515000 | H45: ～ | I45: 545000 | J45: 52629 | L45: 26314.5 | N45: 61745 | P45: 30872.5 | R45: 90736 | T45: 45368 | V45: 92432 | X45: 46216
B46: 32(28) | C46: 560000 | E46: 18670 | G46: 545000 | H46: ～ | I46: 575000 | J46: 55608 | L46: 27804 | N46: 65240 | P46: 32620 | R46: 95872 | T46: 47936 | V46: 97664 | X46: 48832
B47: 33(29) | C47: 590000 | E47: 19670 | G47: 575000 | H47: ～ | I47: 605000 | J47: 58587 | L47: 29293.5 | N47: 68735 | P47: 34367.5 | R47: 101008 | T47: 50504 | V47: 102896 | X47: 51448
B48: 34(30) | C48: 620000 | E48: 20670 | G48: 605000 | H48: ～ | I48: 635000 | J48: 61566 | L48: 30783 | N48: 72230 | P48: 36115 | R48: 106144 | T48: 53072 | V48: 108128 | X48: 54064
B49: 35 | C49: 650000 | E49: 21670 | G49: 635000 | H49: ～ | I49: 665000 | J49: 64545 | L49: 32272.5 | N49: 75725 | P49: 37862.5 | R49: ※厚生年金基金に加入する方の厚生年金保険の保 険料率は、基金ごとに定められている免除保険 料率(2.4%～5.0%)を控除した率となり、次の範 囲内で基金ごとに定められています。 厚生年金基金に加入する ・一般の被保険者の方 …12.120%～14.720% ・坑内員の被保険者の方…12.440%～15.040% 加入する基金ごとに異なりますので、免除保険 料率および厚生年金基金の掛金については、加 入する厚生年金基金にお問い合わせください。
B50: 36 | C50: 680000 | E50: 22670 | G50: 665000 | H50: ～ | I50: 695000 | J50: 67524 | L50: 33762 | N50: 79220 | P50: 39610
B51: 37 | C51: 710000 | E51: 23670 | G51: 695000 | H51: ～ | I51: 730000 | J51: 70503 | L51: 35251.5 | N51: 82715 | P51: 41357.5
B52: 38 | C52: 750000 | E52: 25000 | G52: 730000 | H52: ～ | I52: 770000 | J52: 74475 | L52: 37237.5 | N52: 87375 | P52: 43687.5
B53: 39 | C53: 790000 | E53: 26330 | G53: 770000 | H53: ～ | I53: 810000 | J53: 78447 | L53: 39223.5 | N53: 92035 | P53: 46017.5
B54: 40 | C54: 830000 | E54: 27670 | G54: 810000 | H54: ～ | I54: 855000 | J54: 82419 | L54: 41209.5 | N54: 96695 | P54: 48347.5
B55: 41 | C55: 880000 | E55: 29330 | G55: 855000 | H55: ～ | I55: 905000 | J55: 87384 | L55: 43692 | N55: 102520 | P55: 51260
B56: 42 | C56: 930000 | E56: 31000 | G56: 905000 | H56: ～ | I56: 955000 | J56: 92349 | L56: 46174.5 | N56: 108345 | P56: 54172.5
B57: 43 | C57: 980000 | E57: 32670 | G57: 955000 | H57: ～ | I57: 1005000 | J57: 97314 | L57: 48657 | N57: 114170 | P57: 57085
B58: 44 | C58: 1030000 | E58: 34330 | G58: 1005000 | H58: ～ | I58: 1055000 | J58: 102279 | L58: 51139.5 | N58: 119995 | P58: 59997.5
B59: 45 | C59: 1090000 | E59: 36330 | G59: 1055000 | H59: ～ | I59: 1115000 | J59: 108237 | L59: 54118.5 | N59: 126985 | P59: 63492.5
B60: 46 | C60: 1150000 | E60: 38330 | G60: 1115000 | H60: ～ | I60: 1175000 | J60: 114195 | L60: 57097.5 | N60: 133975 | P60: 66987.5
B61: 47 | C61: 1210000 | E61: 40330 | G61: 1175000 | H61: ～ | J61: 120153 | L61: 60076.5 | N61: 140965 | P61: 70482.5
A63: =J10 -> 0.0993
A65: ◆等級欄の（ ）内の数字は、厚生年金保険の標準報酬月額等級です。
A66: 5(1)等級の「報酬月額」欄は、厚生年金保険の場合「101,000円未満」と読み替えてください。
A67: 34(30)等級の「報酬月額」欄は、厚生年金保険の場合「605,000円以上」と読み替えてください。
A69: ◆平成26年度における協会けんぽの任意継続被保険者の標準報酬月額の上限は、280,000円です。
A71: ○被保険者負担分（表の折半額の欄）に円未満の端数がある場合
A72: ①事業主が、給与から被保険者負担分を控除する場合、被保険者負担分の端数が50銭以下の場合は切り捨て、50銭を超える場合は切り上げて1円となります。
A73: ②被保険者が、被保険者負担分を事業主へ現金で支払う場合、被保険者負担分の端数が50銭未満の場合は切り捨て、50銭以上の場合は切り上げて1円となります。
A74: （注）①、②にかかわらず、事業主と被保険者の間で特約がある場合には、特約に基づき端数処理をすることができます。
A76: ○納入告知書の保険料額について
A77: 納入告知書の保険料額は、被保険者個々の保険料額を合算した金額になります。ただし、合算した金額に円未満の端数がある場合は、その端数を切り捨てた額となります。
A79: ○賞与に係る保険料について
A80: 賞与に係る保険料額は、賞与額から1,000円未満の端数を切り捨てた額（標準賞与額）に、保険料率を乗じた額となります。
A81: また、標準賞与額の上限は、健康保険は年間540万円（毎年4月1日から翌年3月31日までの累計額）となり、厚生年金保険と児童手当拠出金の場合は月間150万円となります。
A83: ○児童手当拠出金について
A84: 厚生年金保険の被保険者を使用する事業主の方は、児童手当等の支給に要する費用の一部として児童手当拠出金を全額負担いただくことになります。この児童手当
A85: 拠出金の額は、被保険者個々の厚生年金保険の標準報酬月額及び標準賞与額に、拠出金率（0.15%）を乗じて得た額の総額となります。

Sheet 東京 (hidden)
B1: 平成26年3月分(4月納付分)からの健康保険・厚生年金保険の保険料額表
B3: ‣健康保険料率：平成24年3月分～ 適用 ‣厚生年金保険料率：平成25年9月分～平成26年8月分 適用 ‣介護保険料率：平成26年3月分～ 適用 ‣児童手当拠出金率：平成24年4月分～ 適用
B5: （東京都） | X5: （単位：円）
B6: 標 準 報 酬 | G6: 報 酬 月 額 | J6: 全国健康保険協会管掌健康保険料 | R6: 厚生年金保険料（厚生年金基金加入員を除く）
J7: 介護保険第２号被保険者 に該当しない場合 | N7: 介護保険第２号被保険者 に該当する場合 | R7: 一般の被保険者等 | V7: 坑内員・船員
J10: 0.0997 | N10: =J10+0.0172 -> 0.1169 | R10: 0.1712 | V10: 0.1744
B12: 等級 | C12: 月 額 | E12: 日 額 | J12: 全 額 | L12: 折半額 | N12: 全 額 | P12: 折半額 | R12: 全 額 | T12: 折半額 | V12: 全 額 | X12: 折半額
G14: 円以上 | I14: 円未満
B15: 1 | C15: 58000 | E15: 1930 | H15: ～ | I15: 63000 | J15: =C15*$J$10 -> 5782.6 | L15: =J15/2 -> 2891.3 | N15: =C15*$N$10 -> 6780.2 | P15: =N15/2 -> 3390.1
B16: 2 | C16: 68000 | E16: 2270 | G16: 63000 | H16: ～ | I16: 73000 | J16: =C16*$J$10 -> 6779.6 | L16: =J16/2 -> 3389.8 | N16: =C16*$N$10 -> 7949.2 | P16: =N16/2 -> 3974.6
B17: 3 | C17: 78000 | E17: 2600 | G17: 73000 | H17: ～ | I17: 83000 | J17: 7776.6 | L17: 3888.3 | N17: 9118.2 | P17: 4559.1
B18: 4 | C18: 88000 | E18: 2930 | G18: 83000 | H18: ～ | I18: 93000 | J18: 8773.6 | L18: 4386.8 | N18: =C18*$N$10 -> 10287.2 | P18: 5143.6
B19: 5(1) | C19: 98000 | E19: 3270 | G19: 93000 | H19: ～ | I19: 101000 | J19: 9770.6 | L19: 4885.3 | N19: 11456.2 | P19: 5728.1 | R19: =C19*$R$10 -> 16777.6 | T19: =R19/2 -> 8388.8 | V19: =C19*$V$10 -> 17091.2 | X19: =V19/2 -> 8545.6
B20: 6(2) | C20: 104000 | E20: 3470 | G20: 101000 | H20: ～ | I20: 107000 | J20: 10368.8 | L20: 5184.4 | N20: 12157.6 | P20: 6078.8 | R20: =C20*$R$10 -> 17804.8 | T20: =R20/2 -> 8902.4 | V20: =C20*$V$10 -> 18137.6 | X20: =V20/2 -> 9068.8
B21: 7(3) | C21: 110000 | E21: 3670 | G21: 107000 | H21: ～ | I21: 114000 | J21: 10967 | L21: 5483.5 | N21: 12859 | P21: 6429.5 | R21: 18832 | T21: 9416 | V21: 19184 | X21: 9592
B22: 8(4) | C22: 118000 | E22: 3930 | G22: 114000 | H22: ～ | I22: 122000 | J22: 11764.6 | L22: 5882.3 | N22: 13794.2 | P22: 6897.1 | R22: 20201.6 | T22: 10100.8 | V22: 20579.2 | X22: 10289.6
B23: 9(5) | C23: 126000 | E23: 4200 | G23: 122000 | H23: ～ | I23: 130000 | J23: 12562.2 | L23: 6281.1 | N23: 14729.4 | P23: 7364.7 | R23: 21571.2 | T23: 10785.6 | V23: 21974.4 | X23: 10987.2
B24: 10(6) | C24: 134000 | E24: 4470 | G24: 130000 | H24: ～ | I24: 138000 | J24: 13359.8 | L24: 6679.9 | N24: 15664.6 | P24: 7832.3 | R24: 22940.8 | T24: 11470.4 | V24: 23369.6 | X24: 11684.8
B25: 11(7) | C25: 142000 | E25: 4730 | G25: 138000 | H25: ～ | I25: 146000 | J25: 14157.4 | L25: 7078.7 | N25: 16599.8 | P25: 8299.9 | R25: 24310.4 | T25: 12155.2 | V25: 24764.8 | X25: 12382.4
B26: 12(8) | C26: 150000 | E26: 5000 | G26: 146000 | H26: ～ | I26: 155000 | J26: 14955 | L26: 7477.5 | N26: 17535 | P26: 8767.5 | R26: 25680 | T26: 12840 | V26: 26160 | X26: 13080
B27: 13(9) | C27: 160000 | E27: 5330 | G27: 155000 | H27: ～ | I27: 165000 | J27: 15952 | L27: 7976 | N27: 18704 | P27: 9352 | R27: 27392 | T27: 13696 | V27: 27904 | X27: 13952
B28: 14(10) | C28: 170000 | E28: 5670 | G28: 165000 | H28: ～ | I28: 175000 | J28: 16949 | L28: 8474.5 | N28: 19873 | P28: 9936.5 | R28: 29104 | T28: 14552 | V28: 29648 | X28: 14824
B29: 15(11) | C29: 180000 | E29: 6000 | G29: 175000 | H29: ～ | I29: 185000 | J29: 17946 | L29: 8973 | N29: 21042 | P29: 10521 | R29: 30816 | T29: 15408 | V29: 31392 | X29: 15696
B30: 16(12) | C30: 190000 | E30: 6330 | G30: 185000 | H30: ～ | I30: 195000 | J30: 18943 | L30: 9471.5 | N30: 22211 | P30: 11105.5 | R30: 32528 | T30: 16264 | V30: 33136 | X30: 16568
B31: 17(13) | C31: 200000 | E31: 6670 | G31: 195000 | H31: ～ | I31: 210000 | J31: 19940 | L31: 9970 | N31: 23380 | P31: 11690 | R31: 34240 | T31: 17120 | V31: 34880 | X31: 17440
B32: 18(14) | C32: 220000 | E32: 7330 | G32: 210000 | H32: ～ | I32: 230000 | J32: 21934 | L32: 10967 | N32: 25718 | P32: 12859 | R32: 37664 | T32: 18832 | V32: 38368 | X32: 19184
B33: 19(15) | C33: 240000 | E33: 8000 | G33: 230000 | H33: ～ | I33: 250000 | J33: 23928 | L33: 11964 | N33: 28056 | P33: 14028 | R33: 41088 | T33: 20544 | V33: 41856 | X33: 20928
B34: 20(16) | C34: 260000 | E34: 8670 | G34: 250000 | H34: ～ | I34: 270000 | J34: 25922 | L34: 12961 | N34: 30394 | P34: 15197 | R34: 44512 | T34: 22256 | V34: 45344 | X34: 22672
B35: 21(17) | C35: 280000 | E35: 9330 | G35: 270000 | H35: ～ | I35: 290000 | J35: 27916 | L35: 13958 | N35: 32732 | P35: 16366 | R35: 47936 | T35: 23968 | V35: 48832 | X35: 24416
B36: 22(18) | C36: 300000 | E36: 10000 | G36: 290000 | H36: ～ | I36: 310000 | J36: 29910 | L36: 14955 | N36: 35070 | P36: 17535 | R36: 51360 | T36: 25680 | V36: 52320 | X36: 26160
B37: 23(19) | C37: 320000 | E37: 10670 | G37: 310000 | H37: ～ | I37: 330000 | J37: 31904 | L37: 15952 | N37: 37408 | P37: 18704 | R37: 54784 | T37: 27392 | V37: 55808 | X37: 27904
B38: 24(20) | C38: 340000 | E38: 11330 | G38: 330000 | H38: ～ | I38: 350000 | J38: 33898 | L38: 16949 | N38: 39746 | P38: 19873 | R38: 58208 | T38: 29104 | V38: 59296 | X38: 29648
B39: 25(21) | C39: 360000 | E39: 12000 | G39: 350000 | H39: ～ | I39: 370000 | J39: 35892 | L39: 17946 | N39: 42084 | P39: 21042 | R39: 61632 | T39: 30816 | V39: 62784 | X39: 31392
B40: 26(22) | C40: 380000 | E40: 12670 | G40: 370000 | H40: ～ | I40: 395000 | J40: 37886 | L40: 18943 | N40: 44422 | P40: 22211 | R40: 65056 | T40: 32528 | V40: 66272 | X40: 33136
B41: 27(23) | C41: 410000 | E41: 13670 | G41: 395000 | H41: ～ | I41: 425000 | J41: 40877 | L41: 20438.5 | N41: 47929 | P41: 23964.5 | R41: 70192 | T41: 35096 | V41: 71504 | X41: 35752
B42: 28(24) | C42: 440000 | E42: 14670 | G42: 425000 | H42: ～ | I42: 455000 | J42: 43868 | L42: 21934 | N42: 51436 | P42: 25718 | R42: 75328 | T42: 37664 | V42: 76736 | X42: 38368
B43: 29(25) | C43: 470000 | E43: 15670 | G43: 455000 | H43: ～ | I43: 485000 | J43: 46859 | L43: 23429.5 | N43: 54943 | P43: 27471.5 | R43: 80464 | T43: 40232 | V43: 81968 | X43: 40984
B44: 30(26) | C44: 500000 | E44: 16670 | G44: 485000 | H44: ～ | I44: 515000 | J44: 49850 | L44: 24925 | N44: 58450 | P44: 29225 | R44: 85600 | T44: 42800 | V44: 87200 | X44: 43600
B45: 31(27) | C45: 530000 | E45: 17670 | G45: 515000 | H45: ～ | I45: 545000 | J45: 52841 | L45: 26420.5 | N45: 61957 | P45: 30978.5 | R45: 90736 | T45: 45368 | V45: 92432 | X45: 46216
B46: 32(28) | C46: 560000 | E46: 18670 | G46: 545000 | H46: ～ | I46: 575000 | J46: 55832 | L46: 27916 | N46: 65464 | P46: 32732 | R46: 95872 | T46: 47936 | V46: 97664 | X46: 48832
B47: 33(29) | C47: 590000 | E47: 19670 | G47: 575000 | H47: ～ | I47: 605000 | J47: 58823 | L47: 29411.5 | N47: 68971 | P47: 34485.5 | R47: 101008 | T47: 50504 | V47: 102896 | X47: 51448
B48: 34(30) | C48: 620000 | E48: 20670 | G48: 605000 | H48: ～ | I48: 635000 | J48: 61814 | L48: 30907 | N48: 72478 | P48: 36239 | R48: 106144 | T48: 53072 | V48: 108128 | X48: 54064
B49: 35 | C49: 650000 | E49: 21670 | G49: 635000 | H49: ～ | I49: 665000 | J49: 64805 | L49: 32402.5 | N49: 75985 | P49: 37992.5 | R49: ※厚生年金基金に加入する方の厚生年金保険の保 険料率は、基金ごとに定められている免除保険 料率(2.4%～5.0%)を控除した率となり、次の範 囲内で基金ごとに定められています。 厚生年金基金に加入する ・一般の被保険者の方 …12.120%～14.720% ・坑内員の被保険者の方…12.440%～15.040% 加入する基金ごとに異なりますので、免除保険 料率および厚生年金基金の掛金については、加 入する厚生年金基金にお問い合わせください。
B50: 36 | C50: 680000 | E50: 22670 | G50: 665000 | H50: ～ | I50: 695000 | J50: 67796 | L50: 33898 | N50: 79492 | P50: 39746
B51: 37 | C51: 710000 | E51: 23670 | G51: 695000 | H51: ～ | I51: 730000 | J51: 70787 | L51: 35393.5 | N51: 82999 | P51: 41499.5
B52: 38 | C52: 750000 | E52: 25000 | G52: 730000 | H52: ～ | I52: 770000 | J52: 74775 | L52: 37387.5 | N52: 87675 | P52: 43837.5
B53: 39 | C53: 790000 | E53: 26330 | G53: 770000 | H53: ～ | I53: 810000 | J53: 78763 | L53: 39381.5 | N53: 92351 | P53: 46175.5
B54: 40 | C54: 830000 | E54: 27670 | G54: 810000 | H54: ～ | I54: 855000 | J54: 82751 | L54: 41375.5 | N54: 97027 | P54: 48513.5
B55: 41 | C55: 880000 | E55: 29330 | G55: 855000 | H55: ～ | I55: 905000 | J55: 87736 | L55: 43868 | N55: 102872 | P55: 51436
B56: 42 | C56: 930000 | E56: 31000 | G56: 905000 | H56: ～ | I56: 955000 | J56: 92721 | L56: 46360.5 | N56: 108717 | P56: 54358.5
B57: 43 | C57: 980000 | E57: 32670 | G57: 955000 | H57: ～ | I57: 1005000 | J57: 97706 | L57: 48853 | N57: 114562 | P57: 57281
B58: 44 | C58: 1030000 | E58: 34330 | G58: 1005000 | H58: ～ | I58: 1055000 | J58: 102691 | L58: 51345.5 | N58: 120407 | P58: 60203.5
B59: 45 | C59: 1090000 | E59: 36330 | G59: 1055000 | H59: ～ | I59: 1115000 | J59: 108673 | L59: 54336.5 | N59: 127421 | P59: 63710.5
B60: 46 | C60: 1150000 | E60: 38330 | G60: 1115000 | H60: ～ | I60: 1175000 | J60: 114655 | L60: 57327.5 | N60: 134435 | P60: 67217.5
B61: 47 | C61: 1210000 | E61: 40330 | G61: 1175000 | H61: ～ | J61: 120637 | L61: 60318.5 | N61: 141449 | P61: 70724.5
A63: =J10 -> 0.0997
A65: ◆等級欄の（ ）内の数字は、厚生年金保険の標準報酬月額等級です。
A66: 5(1)等級の「報酬月額」欄は、厚生年金保険の場合「101,000円未満」と読み替えてください。
A67: 34(30)等級の「報酬月額」欄は、厚生年金保険の場合「605,000円以上」と読み替えてください。
A69: ◆平成26年度における協会けんぽの任意継続被保険者の標準報酬月額の上限は、280,000円です。
A71: ○被保険者負担分（表の折半額の欄）に円未満の端数がある場合
A72: ①事業主が、給与から被保険者負担分を控除する場合、被保険者負担分の端数が50銭以下の場合は切り捨て、50銭を超える場合は切り上げて1円となります。
A73: ②被保険者が、被保険者負担分を事業主へ現金で支払う場合、被保険者負担分の端数が50銭未満の場合は切り捨て、50銭以上の場合は切り上げて1円となります。
A74: （注）①、②にかかわらず、事業主と被保険者の間で特約がある場合には、特約に基づき端数処理をすることができます。
A76: ○納入告知書の保険料額について
A77: 納入告知書の保険料額は、被保険者個々の保険料額を合算した金額になります。ただし、合算した金額に円未満の端数がある場合は、その端数を切り捨てた額となります。
A79: ○賞与に係る保険料について
A80: 賞与に係る保険料額は、賞与額から1,000円未満の端数を切り捨てた額（標準賞与額）に、保険料率を乗じた額となります。
A81: また、標準賞与額の上限は、健康保険は年間540万円（毎年4月1日から翌年3月31日までの累計額）となり、厚生年金保険と児童手当拠出金の場合は月間150万円となります。
A83: ○児童手当拠出金について
A84: 厚生年金保険の被保険者を使用する事業主の方は、児童手当等の支給に要する費用の一部として児童手当拠出金を全額負担いただくことになります。この児童手当
A85: 拠出金の額は、被保険者個々の厚生年金保険の標準報酬月額及び標準賞与額に、拠出金率（0.15%）を乗じて得た額の総額となります。

Sheet 神奈川 (hidden)
B1: 平成26年3月分(4月納付分)からの健康保険・厚生年金保険の保険料額表
B3: ‣健康保険料率：平成24年3月分～ 適用 ‣厚生年金保険料率：平成25年9月分～平成26年8月分 適用 ‣介護保険料率：平成26年3月分～ 適用 ‣児童手当拠出金率：平成24年4月分～ 適用
B5: （神奈川県） | X5: （単位：円）
B6: 標 準 報 酬 | G6: 報 酬 月 額 | J6: 全国健康保険協会管掌健康保険料 | R6: 厚生年金保険料（厚生年金基金加入員を除く）
J7: 介護保険第２号被保険者 に該当しない場合 | N7: 介護保険第２号被保険者 に該当する場合 | R7: 一般の被保険者等 | V7: 坑内員・船員
J10: 0.0998 | N10: =J10+0.0172 -> 0.117 | R10: 0.1712 | V10: 0.1744
B12: 等級 | C12: 月 額 | E12: 日 額 | J12: 全 額 | L12: 折半額 | N12: 全 額 | P12: 折半額 | R12: 全 額 | T12: 折半額 | V12: 全 額 | X12: 折半額
G14: 円以上 | I14: 円未満
B15: 1 | C15: 58000 | E15: 1930 | H15: ～ | I15: 63000 | J15: =C15*$J$10 -> 5788.4 | L15: =J15/2 -> 2894.2 | N15: =C15*$N$10 -> 6786 | P15: =N15/2 -> 3393
B16: 2 | C16: 68000 | E16: 2270 | G16: 63000 | H16: ～ | I16: 73000 | J16: =C16*$J$10 -> 6786.4 | L16: =J16/2 -> 3393.2 | N16: =C16*$N$10 -> 7956 | P16: =N16/2 -> 3978
B17: 3 | C17: 78000 | E17: 2600 | G17: 73000 | H17: ～ | I17: 83000 | J17: 7784.4 | L17: 3892.2 | N17: 9126 | P17: 4563
B18: 4 | C18: 88000 | E18: 2930 | G18: 83000 | H18: ～ | I18: 93000 | J18: 8782.4 | L18: 4391.2 | N18: =C18*$N$10 -> 10296 | P18: 5148
B19: 5(1) | C19: 98000 | E19: 3270 | G19: 93000 | H19: ～ | I19: 101000 | J19: 9780.4 | L19: 4890.2 | N19: 11466 | P19: 5733 | R19: =C19*$R$10 -> 16777.6 | T19: =R19/2 -> 8388.8 | V19: =C19*$V$10 -> 17091.2 | X19: =V19/2 -> 8545.6
B20: 6(2) | C20: 104000 | E20: 3470 | G20: 101000 | H20: ～ | I20: 107000 | J20: 10379.2 | L20: 5189.6 | N20: 12168 | P20: 6084 | R20: =C20*$R$10 -> 17804.8 | T20: =R20/2 -> 8902.4 | V20: =C20*$V$10 -> 18137.6 | X20: =V20/2 -> 9068.8
B21: 7(3) | C21: 110000 | E21: 3670 | G21: 107000 | H21: ～ | I21: 114000 | J21: 10978 | L21: 5489 | N21: 12870 | P21: 6435 | R21: 18832 | T21: 9416 | V21: 19184 | X21: 9592
B22: 8(4) | C22: 118000 | E22: 3930 | G22: 114000 | H22: ～ | I22: 122000 | J22: 11776.4 | L22: 5888.2 | N22: 13806 | P22: 6903 | R22: 20201.6 | T22: 10100.8 | V22: 20579.2 | X22: 10289.6
B23: 9(5) | C23: 126000 | E23: 4200 | G23: 122000 | H23: ～ | I23: 130000 | J23: 12574.8 | L23: 6287.4 | N23: 14742 | P23: 7371 | R23: 21571.2 | T23: 10785.6 | V23: 21974.4 | X23: 10987.2
B24: 10(6) | C24: 134000 | E24: 4470 | G24: 130000 | H24: ～ | I24: 138000 | J24: 13373.2 | L24: 6686.6 | N24: 15678 | P24: 7839 | R24: 22940.8 | T24: 11470.4 | V24: 23369.6 | X24: 11684.8
B25: 11(7) | C25: 142000 | E25: 4730 | G25: 138000 | H25: ～ | I25: 146000 | J25: 14171.6 | L25: 7085.8 | N25: 16614 | P25: 8307 | R25: 24310.4 | T25: 12155.2 | V25: 24764.8 | X25: 12382.4
B26: 12(8) | C26: 150000 | E26: 5000 | G26: 146000 | H26: ～ | I26: 155000 | J26: 14970 | L26: 7485 | N26: 17550 | P26: 8775 | R26: 25680 | T26: 12840 | V26: 26160 | X26: 13080
B27: 13(9) | C27: 160000 | E27: 5330 | G27: 155000 | H27: ～ | I27: 165000 | J27: 15968 | L27: 7984 | N27: 18720 | P27: 9360 | R27: 27392 | T27: 13696 | V27: 27904 | X27: 13952
B28: 14(10) | C28: 170000 | E28: 5670 | G28: 165000 | H28: ～ | I28: 175000 | J28: 16966 | L28: 8483 | N28: 19890 | P28: 9945 | R28: 29104 | T28: 14552 | V28: 29648 | X28: 14824
B29: 15(11) | C29: 180000 | E29: 6000 | G29: 175000 | H29: ～ | I29: 185000 | J29: 17964 | L29: 8982 | N29: 21060 | P29: 10530 | R29: 30816 | T29: 15408 | V29: 31392 | X29: 15696
B30: 16(12) | C30: 190000 | E30: 6330 | G30: 185000 | H30: ～ | I30: 195000 | J30: 18962 | L30: 9481 | N30: 22230 | P30: 11115 | R30: 32528 | T30: 16264 | V30: 33136 | X30: 16568
B31: 17(13) | C31: 200000 | E31: 6670 | G31: 195000 | H31: ～ | I31: 210000 | J31: 19960 | L31: 9980 | N31: 23400 | P31: 11700 | R31: 34240 | T31: 17120 | V31: 34880 | X31: 17440
B32: 18(14) | C32: 220000 | E32: 7330 | G32: 210000 | H32: ～ | I32: 230000 | J32: 21956 | L32: 10978 | N32: 25740 | P32: 12870 | R32: 37664 | T32: 18832 | V32: 38368 | X32: 19184
B33: 19(15) | C33: 240000 | E33: 8000 | G33: 230000 | H33: ～ | I33: 250000 | J33: 23952 | L33: 11976 | N33: 28080 | P33: 14040 | R33: 41088 | T33: 20544 | V33: 41856 | X33: 20928
B34: 20(16) | C34: 260000 | E34: 8670 | G34: 250000 | H34: ～ | I34: 270000 | J34: 25948 | L34: 12974 | N34: 30420 | P34: 15210 | R34: 44512 | T34: 22256 | V34: 45344 | X34: 22672
B35: 21(17) | C35: 280000 | E35: 9330 | G35: 270000 | H35: ～ | I35: 290000 | J35: 27944 | L35: 13972 | N35: 32760 | P35: 16380 | R35: 47936 | T35: 23968 | V35: 48832 | X35: 24416
B36: 22(18) | C36: 300000 | E36: 10000 | G36: 290000 | H36: ～ | I36: 310000 | J36: 29940 | L36: 14970 | N36: 35100 | P36: 17550 | R36: 51360 | T36: 25680 | V36: 52320 | X36: 26160
B37: 23(19) | C37: 320000 | E37: 10670 | G37: 310000 | H37: ～ | I37: 330000 | J37: 31936 | L37: 15968 | N37: 37440 | P37: 18720 | R37: 54784 | T37: 27392 | V37: 55808 | X37: 27904
B38: 24(20) | C38: 340000 | E38: 11330 | G38: 330000 | H38: ～ | I38: 350000 | J38: 33932 | L38: 16966 | N38: 39780 | P38: 19890 | R38: 58208 | T38: 29104 | V38: 59296 | X38: 29648
B39: 25(21) | C39: 360000 | E39: 12000 | G39: 350000 | H39: ～ | I39: 370000 | J39: 35928 | L39: 17964 | N39: 42120 | P39: 21060 | R39: 61632 | T39: 30816 | V39: 62784 | X39: 31392
B40: 26(22) | C40: 380000 | E40: 12670 | G40: 370000 | H40: ～ | I40: 395000 | J40: 37924 | L40: 18962 | N40: 44460 | P40: 22230 | R40: 65056 | T40: 32528 | V40: 66272 | X40: 33136
B41: 27(23) | C41: 410000 | E41: 13670 | G41: 395000 | H41: ～ | I41: 425000 | J41: 40918 | L41: 20459 | N41: 47970 | P41: 23985 | R41: 70192 | T41: 35096 | V41: 71504 | X41: 35752
B42: 28(24) | C42: 440000 | E42: 14670 | G42: 425000 | H42: ～ | I42: 455000 | J42: 43912 | L42: 21956 | N42: 51480 | P42: 25740 | R42: 75328 | T42: 37664 | V42: 76736 | X42: 38368
B43: 29(25) | C43: 470000 | E43: 15670 | G43: 455000 | H43: ～ | I43: 485000 | J43: 46906 | L43: 23453 | N43: 54990 | P43: 27495 | R43: 80464 | T43: 40232 | V43: 81968 | X43: 40984
B44: 30(26) | C44: 500000 | E44: 16670 | G44: 485000 | H44: ～ | I44: 515000 | J44: 49900 | L44: 24950 | N44: 58500 | P44: 29250 | R44: 85600 | T44: 42800 | V44: 87200 | X44: 43600
B45: 31(27) | C45: 530000 | E45: 17670 | G45: 515000 | H45: ～ | I45: 545000 | J45: 52894 | L45: 26447 | N45: 62010 | P45: 31005 | R45: 90736 | T45: 45368 | V45: 92432 | X45: 46216
B46: 32(28) | C46: 560000 | E46: 18670 | G46: 545000 | H46: ～ | I46: 575000 | J46: 55888 | L46: 27944 | N46: 65520 | P46: 32760 | R46: 95872 | T46: 47936 | V46: 97664 | X46: 48832
